Workbook

Sheet PI vs x
A1: Measurement | B1: Hall
A2: Type | B2: Off-axis
A4: Project | B4: ='10 y=-0.2'!B5 -> 504314
A5: PS serial no | B5: ='10 y=-0.2'!B7 -> 2410097
A7: Measurement date | B7: =LEFT('10 y=-0.2'!B4,10) -> 17-09-2024
C11: Nominal gap [mm] | D11: Encoder [counts] | E11: Encoder [mm] | F11: PI [T^2mm^3] | G11: y [mm] | H11: Encoder value at 10 mm gap:
B12: ='PI vs x'!$C$12 & "mm gap" -> 10mm gap | C12: ='10 y=-0.2'!B48 -> 10 | D12: ='10 y=-0.2'!$B$50 -> 19.6817 | E12: =D12-$H$12+10 -> 10 | F12: ='10 y=-0.2'!$K$3 -> 10609.49488 | G12: -0.2 | H12: 19.6817
C13: =C12 -> 10 | D13: ='10 y=-0.1'!$B$50 -> 19.6817 | E13: =D13-$H$12+10 -> 10 | F13: ='10 y=-0.1'!$K$3 -> 10610.80194 | G13: -0.1
C14: =C13 -> 10 | D14: ='10 y=0'!$B$50 -> 19.6817 | E14: 10 | F14: ='10 y=0'!$K$3 -> 10606.29589 | G14: 0
C15: 10 | D15: ='10 y=0.1'!$B$50 -> 19.6817 | E15: 10 | F15: ='10 y=0.1'!$K$3 -> 10608.13902 | G15: 0.1
C16: 10 | D16: ='10 y=0.2'!$B$50 -> 19.6817 | E16: 10 | F16: ='10 y=0.2'!$K$3 -> 10615.83686 | G16: 0.2
B17: ='PI vs x'!$C$17 & "mm gap" -> mm gap

Sheet 10 y=-0.2
A1: =IF('DF raw data'!A1="","",'DF raw data'!A1) -> Number of header lines | B1: =IF('DF raw data'!B1="","",'DF raw data'!B1) -> 54 | C1: =IF('DF raw data'!C1="","",'DF raw data'!C1) ->  | D1: =IF('DF raw data'!D1="","",'DF raw data'!D1) ->  | F1: T_coeff | G1: -0.001 | H1: /degC | J1: IBy total | K1: =J1262*1000 -> -4.990286451 | L1: muTm | M1: =L1262*1000 -> 84.99607675 | R1: DF ref | S1: 1
A2: =IF('DF raw data'!A2="","",'DF raw data'!A2) -> Measured by | B2: =IF('DF raw data'!B2="","",'DF raw data'!B2) -> Danfysik | C2: =IF('DF raw data'!C2="","",'DF raw data'!C2) ->  | D2: =IF('DF raw data'!D2="","",'DF raw data'!D2) ->  | F2: Tcorr | G2: 20 | H2: degC | J2: JBy total | K2: =K1262 -> -3.37163083 | L2: muTm^2 | M2: =M1262 -> 24.44966404
A3: =IF('DF raw data'!A3="","",'DF raw data'!A3) -> Operator | B3: =IF('DF raw data'!B3="","",'DF raw data'!B3) -> PMHA | C3: =IF('DF raw data'!C3="","",'DF raw data'!C3) ->  | D3: =IF('DF raw data'!D3="","",'DF raw data'!D3) ->  | F3: Step | G3: =A63-A62 -> 0.5 | H3: mm | J3: PI total | K3: =N1262 -> 10609.49488 | L3: T^2mm^3
A4: =IF('DF raw data'!A4="","",'DF raw data'!A4) -> Data-time | B4: =IF('DF raw data'!B4="","",'DF raw data'!B4) -> 17-09-2024, 11:57:58 | C4: =IF('DF raw data'!C4="","",'DF raw data'!C4) ->  | D4: =IF('DF raw data'!D4="","",'DF raw data'!D4) -> 
A5: =IF('DF raw data'!A5="","",'DF raw data'!A5) -> Project | B5: =IF('DF raw data'!B5="","",'DF raw data'!B5) -> 504314 | C5: =IF('DF raw data'!C5="","",'DF raw data'!C5) ->  | D5: =IF('DF raw data'!D5="","",'DF raw data'!D5) -> 
A6: =IF('DF raw data'!A6="","",'DF raw data'!A6) -> Magnet type | B6: =IF('DF raw data'!B6="","",'DF raw data'!B6) -> Dipole | C6: =IF('DF raw data'!C6="","",'DF raw data'!C6) ->  | D6: =IF('DF raw data'!D6="","",'DF raw data'!D6) -> 
A7: =IF('DF raw data'!A7="","",'DF raw data'!A7) -> Magnet nr. | B7: =IF('DF raw data'!B7="","",'DF raw data'!B7) -> 2410097 | C7: =IF('DF raw data'!C7="","",'DF raw data'!C7) ->  | D7: =IF('DF raw data'!D7="","",'DF raw data'!D7) -> 
A8: =IF('DF raw data'!A8="","",'DF raw data'!A8) -> Meas. number | B8: =IF('DF raw data'!B8="","",'DF raw data'!B8) -> 519 | C8: =IF('DF raw data'!C8="","",'DF raw data'!C8) ->  | D8: =IF('DF raw data'!D8="","",'DF raw data'!D8) -> 
A9: =IF('DF raw data'!A9="","",'DF raw data'!A9) -> Add. info | B9: =IF('DF raw data'!B9="","",'DF raw data'!B9) -> Y-alignment scan 1) | C9: =IF('DF raw data'!C9="","",'DF raw data'!C9) ->  | D9: =IF('DF raw data'!D9="","",'DF raw data'!D9) -> 
A10: =IF('DF raw data'!A10="","",'DF raw data'!A10) -> Device | B10: =IF('DF raw data'!B10="","",'DF raw data'!B10) -> (HAL) HALL-PROBE | C10: =IF('DF raw data'!C10="","",'DF raw data'!C10) ->  | D10: =IF('DF raw data'!D10="","",'DF raw data'!D10) -> 
A11: =IF('DF raw data'!A11="","",'DF raw data'!A11) -> Goal | B11: =IF('DF raw data'!B11="","",'DF raw data'!B11) -> (AXI) AXis Integral (Line, EFB) | C11: =IF('DF raw data'!C11="","",'DF raw data'!C11) ->  | D11: =IF('DF raw data'!D11="","",'DF raw data'!D11) -> 
A12: =IF('DF raw data'!A12="","",'DF raw data'!A12) -> Power supply mode | B12: =IF('DF raw data'!B12="","",'DF raw data'!B12) -> (PM) Permanent Magnet (no MPS in use) | C12: =IF('DF raw data'!C12="","",'DF raw data'!C12) ->  | D12: =IF('DF raw data'!D12="","",'DF raw data'!D12) -> 
A13: =IF('DF raw data'!A13="","",'DF raw data'!A13) -> Data format | B13: =IF('DF raw data'!B13="","",'DF raw data'!B13) -> Raw data text file | C13: =IF('DF raw data'!C13="","",'DF raw data'!C13) ->  | D13: =IF('DF raw data'!D13="","",'DF raw data'!D13) -> 
A14: =IF('DF raw data'!A14="","",'DF raw data'!A14) -> Direction of the pos. x-axis | B14: =IF('DF raw data'!B14="","",'DF raw data'!B14) -> See test program | C14: =IF('DF raw data'!C14="","",'DF raw data'!C14) ->  | D14: =IF('DF raw data'!D14="","",'DF raw data'!D14) -> 
A15: =IF('DF raw data'!A15="","",'DF raw data'!A15) -> Direction of the pos. y-axis | B15: =IF('DF raw data'!B15="","",'DF raw data'!B15) -> Vertical up | C15: =IF('DF raw data'!C15="","",'DF raw data'!C15) ->  | D15: =IF('DF raw data'!D15="","",'DF raw data'!D15) -> 
A16: =IF('DF raw data'!A16="","",'DF raw data'!A16) -> Direction of the pos. z-axis | B16: =IF('DF raw data'!B16="","",'DF raw data'!B16) -> See test program | C16: =IF('DF raw data'!C16="","",'DF raw data'!C16) ->  | D16: =IF('DF raw data'!D16="","",'DF raw data'!D16) -> 
A17: =IF('DF raw data'!A17="","",'DF raw data'!A17) -> Mapper type | B17: =IF('DF raw data'!B17="","",'DF raw data'!B17) -> Precision Hall Mapper | C17: =IF('DF raw data'!C17="","",'DF raw data'!C17) ->  | D17: =IF('DF raw data'!D17="","",'DF raw data'!D17) -> 
A18: =IF('DF raw data'!A18="","",'DF raw data'!A18) -> Mapper Danfysik Reg. Number | B18: =IF('DF raw data'!B18="","",'DF raw data'!B18) -> 2033-D (mapper 1) | C18: =IF('DF raw data'!C18="","",'DF raw data'!C18) ->  | D18: =IF('DF raw data'!D18="","",'DF raw data'!D18) -> 
A19: =IF('DF raw data'!A19="","",'DF raw data'!A19) -> Measurement consept | B19: =IF('DF raw data'!B19="","",'DF raw data'!B19) -> Square line grid | C19: =IF('DF raw data'!C19="","",'DF raw data'!C19) ->  | D19: =IF('DF raw data'!D19="","",'DF raw data'!D19) -> 
A20: =IF('DF raw data'!A20="","",'DF raw data'!A20) -> Mode | B20: =IF('DF raw data'!B20="","",'DF raw data'!B20) -> On-the-fly measurement | C20: =IF('DF raw data'!C20="","",'DF raw data'!C20) ->  | D20: =IF('DF raw data'!D20="","",'DF raw data'!D20) -> 
A21: =IF('DF raw data'!A21="","",'DF raw data'!A21) ->  | B21: =IF('DF raw data'!B21="","",'DF raw data'!B21) ->  | C21: =IF('DF raw data'!C21="","",'DF raw data'!C21) ->  | D21: =IF('DF raw data'!D21="","",'DF raw data'!D21) -> 
A22: =IF('DF raw data'!A22="","",'DF raw data'!A22) -> Probe Name | B22: =IF('DF raw data'!B22="","",'DF raw data'!B22) -> ID12_By | C22: =IF('DF raw data'!C22="","",'DF raw data'!C22) ->  | D22: =IF('DF raw data'!D22="","",'DF raw data'!D22) -> 
A23: =IF('DF raw data'!A23="","",'DF raw data'!A23) -> Probe Type | B23: =IF('DF raw data'!B23="","",'DF raw data'!B23) -> DF_ID_3D_Bxyz | C23: =IF('DF raw data'!C23="","",'DF raw data'!C23) ->  | D23: =IF('DF raw data'!D23="","",'DF raw data'!D23) -> 
A24: =IF('DF raw data'!A24="","",'DF raw data'!A24) -> Probe Danfysik Reg. Number | B24: =IF('DF raw data'!B24="","",'DF raw data'!B24) -> 2277 | C24: =IF('DF raw data'!C24="","",'DF raw data'!C24) ->  | D24: =IF('DF raw data'!D24="","",'DF raw data'!D24) -> 
A25: =IF('DF raw data'!A25="","",'DF raw data'!A25) -> Probe Axis | B25: =IF('DF raw data'!B25="","",'DF raw data'!B25) -> By | C25: =IF('DF raw data'!C25="","",'DF raw data'!C25) ->  | D25: =IF('DF raw data'!D25="","",'DF raw data'!D25) -> 
A26: =IF('DF raw data'!A26="","",'DF raw data'!A26) -> Probe Current Supply | B26: =IF('DF raw data'!B26="","",'DF raw data'!B26) -> 1825-D | C26: =IF('DF raw data'!C26="","",'DF raw data'!C26) ->  | D26: =IF('DF raw data'!D26="","",'DF raw data'!D26) -> 
A27: =IF('DF raw data'!A27="","",'DF raw data'!A27) -> Probe Gain Correction | B27: =IF('DF raw data'!B27="","",'DF raw data'!B27) -> 0.99606 | C27: =IF('DF raw data'!C27="","",'DF raw data'!C27) ->  | D27: =IF('DF raw data'!D27="","",'DF raw data'!D27) -> 
A28: =IF('DF raw data'!A28="","",'DF raw data'!A28) -> Probe Offset Correction | B28: =IF('DF raw data'!B28="","",'DF raw data'!B28) -> 0.0027513 | C28: =IF('DF raw data'!C28="","",'DF raw data'!C28) ->  | D28: =IF('DF raw data'!D28="","",'DF raw data'!D28) -> 
A29: =IF('DF raw data'!A29="","",'DF raw data'!A29) -> DVM Number | B29: =IF('DF raw data'!B29="","",'DF raw data'!B29) -> 2 | C29: =IF('DF raw data'!C29="","",'DF raw data'!C29) ->  | D29: =IF('DF raw data'!D29="","",'DF raw data'!D29) -> 
A30: =IF('DF raw data'!A30="","",'DF raw data'!A30) -> DVM Type | B30: =IF('DF raw data'!B30="","",'DF raw data'!B30) -> K2701 | C30: =IF('DF raw data'!C30="","",'DF raw data'!C30) ->  | D30: =IF('DF raw data'!D30="","",'DF raw data'!D30) -> 
A31: =IF('DF raw data'!A31="","",'DF raw data'!A31) -> DVM Danfysik Reg. Number | B31: =IF('DF raw data'!B31="","",'DF raw data'!B31) -> 1743-D | C31: =IF('DF raw data'!C31="","",'DF raw data'!C31) ->  | D31: =IF('DF raw data'!D31="","",'DF raw data'!D31) -> 
A32: =IF('DF raw data'!A32="","",'DF raw data'!A32) -> Probe Name | B32: =IF('DF raw data'!B32="","",'DF raw data'!B32) -> ID12_Bx | C32: =IF('DF raw data'!C32="","",'DF raw data'!C32) ->  | D32: =IF('DF raw data'!D32="","",'DF raw data'!D32) -> 
A33: =IF('DF raw data'!A33="","",'DF raw data'!A33) -> Probe Type | B33: =IF('DF raw data'!B33="","",'DF raw data'!B33) -> DF_ID_3D_Bxyz | C33: =IF('DF raw data'!C33="","",'DF raw data'!C33) ->  | D33: =IF('DF raw data'!D33="","",'DF raw data'!D33) -> 
A34: =IF('DF raw data'!A34="","",'DF raw data'!A34) -> Probe Danfysik Reg. Number | B34: =IF('DF raw data'!B34="","",'DF raw data'!B34) -> 2277 | C34: =IF('DF raw data'!C34="","",'DF raw data'!C34) ->  | D34: =IF('DF raw data'!D34="","",'DF raw data'!D34) -> 
A35: =IF('DF raw data'!A35="","",'DF raw data'!A35) -> Probe Axis | B35: =IF('DF raw data'!B35="","",'DF raw data'!B35) -> Bx | C35: =IF('DF raw data'!C35="","",'DF raw data'!C35) ->  | D35: =IF('DF raw data'!D35="","",'DF raw data'!D35) -> 
A36: =IF('DF raw data'!A36="","",'DF raw data'!A36) -> Probe Current Supply | B36: =IF('DF raw data'!B36="","",'DF raw data'!B36) -> 1825-D | C36: =IF('DF raw data'!C36="","",'DF raw data'!C36) ->  | D36: =IF('DF raw data'!D36="","",'DF raw data'!D36) -> 
A37: =IF('DF raw data'!A37="","",'DF raw data'!A37) -> Probe Gain Correction | B37: =IF('DF raw data'!B37="","",'DF raw data'!B37) -> 1 | C37: =IF('DF raw data'!C37="","",'DF raw data'!C37) ->  | D37: =IF('DF raw data'!D37="","",'DF raw data'!D37) -> 
A38: =IF('DF raw data'!A38="","",'DF raw data'!A38) -> Probe Offset Correction | B38: =IF('DF raw data'!B38="","",'DF raw data'!B38) -> -0.17549 | C38: =IF('DF raw data'!C38="","",'DF raw data'!C38) ->  | D38: =IF('DF raw data'!D38="","",'DF raw data'!D38) -> 
A39: =IF('DF raw data'!A39="","",'DF raw data'!A39) -> DVM Number | B39: =IF('DF raw data'!B39="","",'DF raw data'!B39) -> 3 | C39: =IF('DF raw data'!C39="","",'DF raw data'!C39) ->  | D39: =IF('DF raw data'!D39="","",'DF raw data'!D39) -> 
A40: =IF('DF raw data'!A40="","",'DF raw data'!A40) -> DVM Type | B40: =IF('DF raw data'!B40="","",'DF raw data'!B40) -> K2701 | C40: =IF('DF raw data'!C40="","",'DF raw data'!C40) ->  | D40: =IF('DF raw data'!D40="","",'DF raw data'!D40) -> 
A41: =IF('DF raw data'!A41="","",'DF raw data'!A41) -> DVM Danfysik Reg. Number | B41: =IF('DF raw data'!B41="","",'DF raw data'!B41) -> 1744-D | C41: =IF('DF raw data'!C41="","",'DF raw data'!C41) ->  | D41: =IF('DF raw data'!D41="","",'DF raw data'!D41) -> 
A42: =IF('DF raw data'!A42="","",'DF raw data'!A42) -> Probe Name | B42: =IF('DF raw data'!B42="","",'DF raw data'!B42) -> ID12_Bz | C42: =IF('DF raw data'!C42="","",'DF raw data'!C42) ->  | D42: =IF('DF raw data'!D42="","",'DF raw data'!D42) -> 
A43: =IF('DF raw data'!A43="","",'DF raw data'!A43) -> Probe Type | B43: =IF('DF raw data'!B43="","",'DF raw data'!B43) -> DF_ID_3D_Bxyz | C43: =IF('DF raw data'!C43="","",'DF raw data'!C43) ->  | D43: =IF('DF raw data'!D43="","",'DF raw data'!D43) -> 
A44: =IF('DF raw data'!A44="","",'DF raw data'!A44) -> Probe Danfysik Reg. Number | B44: =IF('DF raw data'!B44="","",'DF raw data'!B44) -> 2277 | C44: =IF('DF raw data'!C44="","",'DF raw data'!C44) ->  | D44: =IF('DF raw data'!D44="","",'DF raw data'!D44) -> 
A45: =IF('DF raw data'!A45="","",'DF raw data'!A45) -> Probe Axis | B45: =IF('DF raw data'!B45="","",'DF raw data'!B45) -> Bz | C45: =IF('DF raw data'!C45="","",'DF raw data'!C45) ->  | D45: =IF('DF raw data'!D45="","",'DF raw data'!D45) -> 
A46: =IF('DF raw data'!A46="","",'DF raw data'!A46) -> Probe Current Supply | B46: =IF('DF raw data'!B46="","",'DF raw data'!B46) -> 1825-D | C46: =IF('DF raw data'!C46="","",'DF raw data'!C46) ->  | D46: =IF('DF raw data'!D46="","",'DF raw data'!D46) -> 
A47: =IF('DF raw data'!A47="","",'DF raw data'!A47) -> Probe Gain Correction | B47: =IF('DF raw data'!B47="","",'DF raw data'!B47) -> 1 | C47: =IF('DF raw data'!C47="","",'DF raw data'!C47) ->  | D47: =IF('DF raw data'!D47="","",'DF raw data'!D47) -> 
A48: =IF('DF raw data'!A53="","",'DF raw data'!A53) -> PS-Gap: | B48: =IF('DF raw data'!B53="","",'DF raw data'!B53) -> 10 | C48: =IF('DF raw data'!C53="","",'DF raw data'!C53) ->  | D48: =IF('DF raw data'!D53="","",'DF raw data'!D53) -> 
A49: =IF('DF raw data'!A54="","",'DF raw data'!A54) -> PS-Temperature: | B49: =IF('DF raw data'!B54="","",'DF raw data'!B54) -> 23.5 | C49: =IF('DF raw data'!C54="","",'DF raw data'!C54) ->  | D49: =IF('DF raw data'!D54="","",'DF raw data'!D54) -> 
A50: =IF('DF raw data'!A55="","",'DF raw data'!A55) -> PS-Encoder: | B50: =IF('DF raw data'!B55="","",'DF raw data'!B55) -> 19.6817 | C50: =IF('DF raw data'!C55="","",'DF raw data'!C55) ->  | D50: =IF('DF raw data'!D55="","",'DF raw data'!D55) -> 
A51: =IF('DF raw data'!A56="","",'DF raw data'!A56) ->  | B51: =IF('DF raw data'!B56="","",'DF raw data'!B56) ->  | C51: =IF('DF raw data'!C56="","",'DF raw data'!C56) ->  | D51: =IF('DF raw data'!D56="","",'DF raw data'!D56) -> 
A52: =IF('DF raw data'!A57="","",'DF raw data'!A57) -> Monitor-Index | B52: =IF('DF raw data'!B57="","",'DF raw data'!B57) -> [1,1,4] | C52: =IF('DF raw data'!C57="","",'DF raw data'!C57) ->  | D52: =IF('DF raw data'!D57="","",'DF raw data'!D57) -> 
A53: =IF('DF raw data'!A58="","",'DF raw data'!A58) ->  | B53: =IF('DF raw data'!B58="","",'DF raw data'!B58) ->  | C53: =IF('DF raw data'!C58="","",'DF raw data'!C58) ->  | D53: =IF('DF raw data'!D58="","",'DF raw data'!D58) -> 
A54: =IF('DF raw data'!A59="","",'DF raw data'!A59) -> Time [s] | B54: =IF('DF raw data'!B59="","",'DF raw data'!B59) -> Y [mm] | C54: =IF('DF raw data'!C59="","",'DF raw data'!C59) -> X [mm] | D54: =IF('DF raw data'!D59="","",'DF raw data'!D59) -> Nominal current [A]
A55: =IF('DF raw data'!A60="","",'DF raw data'!A60) ->  | B55: =IF('DF raw data'!B60="","",'DF raw data'!B60) ->  | C55: =IF('DF raw data'!C60="","",'DF raw data'!C60) ->  | D55: =IF('DF raw data'!D60="","",'DF raw data'!D60) -> 
A56: =IF('DF raw data'!A61="","",'DF raw data'!A61) -> 209.1 | B56: =IF('DF raw data'!B61="","",'DF raw data'!B61) -> 31.36 | C56: =IF('DF raw data'!C61="","",'DF raw data'!C61) -> 302.3 | D56: =IF('DF raw data'!D61="","",'DF raw data'!D61) -> 0
A57: =IF('DF raw data'!A62="","",'DF raw data'!A62) ->  | B57: =IF('DF raw data'!B62="","",'DF raw data'!B62) ->  | C57: =IF('DF raw data'!C62="","",'DF raw data'!C62) ->  | D57: =IF('DF raw data'!D62="","",'DF raw data'!D62) -> 
A58: =IF('DF raw data'!A63="","",'DF raw data'!A63) -> Measurement-Index | B58: =IF('DF raw data'!B63="","",'DF raw data'!B63) -> [1,1,1201,2] | C58: =IF('DF raw data'!C63="","",'DF raw data'!C63) ->  | D58: =IF('DF raw data'!D63="","",'DF raw data'!D63) -> 
A59: =IF('DF raw data'!A64="","",'DF raw data'!A64) ->  | B59: =IF('DF raw data'!B64="","",'DF raw data'!B64) ->  | C59: =IF('DF raw data'!C64="","",'DF raw data'!C64) ->  | D59: =IF('DF raw data'!D64="","",'DF raw data'!D64) -> 
A60: =IF('DF raw data'!A65="","",'DF raw data'!A65) -> Z [mm] | B60: =IF('DF raw data'!B65="","",'DF raw data'!B65) -> By [T] | C60: =IF('DF raw data'!C65="","",'DF raw data'!C65) -> Bx [T] | D60: =IF('DF raw data'!D65="","",'DF raw data'!D65) -> Bz [T] | F60: By_corr | G60: Bx_corr | H60: Bz_corr | J60: Iy | K60: Jy | L60: Ix | M60: Jx | N60: PI
A62: =IF('DF raw data'!A67="","",'DF raw data'!A67) -> -300 | B62: =IF('DF raw data'!B67="","",'DF raw data'!B67) -> -9.9815e-06 | C62: =IF('DF raw data'!C67="","",'DF raw data'!C67) -> 0.000126052 | D62: =IF('DF raw data'!D67="","",'DF raw data'!D67) -> -2.39235e-05 | F62: =(1-$G$1*($B$49))*B62 -> -1.021606525e-05 | G62: =(1-$G$1*($B$49-$G$2))*C62 -> 0.000126493182 | H62: =(1-$G$1*($B$49-$G$2))*D62 -> -2.400723225e-05 | J62: =F62*$G$3 -> -5.108032625e-06 | K62: =J62*$G$3 -> -2.554016313e-06 | L62: =G62*$G$3 -> 6.3246591e-05 | M62: =L62*$G$3 -> 3.16232955e-05 | N62: =(J62^2+L62^2)*$G$3 -> 2.013111635e-09
A63: =IF('DF raw data'!A68="","",'DF raw data'!A68) -> -299.5 | B63: =IF('DF raw data'!B68="","",'DF raw data'!B68) -> -1.03666e-05 | C63: =IF('DF raw data'!C68="","",'DF raw data'!C68) -> 0.000131881 | D63: =IF('DF raw data'!D68="","",'DF raw data'!D68) -> -2.37882e-05 | F63: =(1-$G$1*($B$49-$G$2))*B63 -> -1.04028831e-05 | G63: =(1-$G$1*($B$49-$G$2))*C63 -> 0.0001323425835 | H63: -2.38714587e-05 | J63: =F63*$G$3+J62 -> -1.030947418e-05 | K63: =J63*$G$3+K62 -> -7.7087534e-06 | L63: =G63*$G$3+L62 -> 0.0001294178828 | M63: =L63*$G$3+M62 -> 9.633223688e-05 | N63: =(J63^2+L63^2)*$G$3+N62 -> 1.044074845e-08
A64: =IF('DF raw data'!A69="","",'DF raw data'!A69) -> -299 | B64: =IF('DF raw data'!B69="","",'DF raw data'!B69) -> -2.35762e-06 | C64: =IF('DF raw data'!C69="","",'DF raw data'!C69) -> 0.000132751 | D64: =IF('DF raw data'!D69="","",'DF raw data'!D69) -> -2.40458e-05 | F64: =(1-$G$1*($B$49-$G$2))*B64 -> -2.36587167e-06 | G64: 0.0001332156285 | H64: -2.41299603e-05 | J64: =F64*$G$3+J63 -> -1.149241001e-05 | K64: =J64*$G$3+K63 -> -1.345495841e-05 | L64: =G64*$G$3+L63 -> 0.000196025697 | M64: =L64*$G$3+M63 -> 0.0001943450854 | N64: =(J64^2+L64^2)*$G$3+N63 -> 2.971982314e-08
A65: =IF('DF raw data'!A70="","",'DF raw data'!A70) -> -298.5 | B65: =IF('DF raw data'!B70="","",'DF raw data'!B70) -> 6.54297e-07 | C65: =IF('DF raw data'!C70="","",'DF raw data'!C70) -> 0.000129003 | D65: =IF('DF raw data'!D70="","",'DF raw data'!D70) -> -2.51097e-05 | F65: 6.565870395e-07 | G65: 0.0001294545105 | H65: -2.519758395e-05 | J65: -1.116411649e-05 | K65: -1.903701665e-05 | L65: 0.0002607529523 | M65: 0.0003247215615 | N65: 6.377819294e-08
A66: =IF('DF raw data'!A71="","",'DF raw data'!A71) -> -298 | B66: =IF('DF raw data'!B71="","",'DF raw data'!B71) -> -4.98331e-06 | C66: =IF('DF raw data'!C71="","",'DF raw data'!C71) -> 0.000151576 | D66: =IF('DF raw data'!D71="","",'DF raw data'!D71) -> -2.58682e-05 | F66: -5.000751585e-06 | G66: 0.000152106516 | H66: -2.59587387e-05 | J66: -1.366449228e-05 | K66: -2.586926279e-05 | L66: 0.0003368062103 | M66: 0.0004931246666 | N66: 1.205907637e-07
A67: =IF('DF raw data'!A72="","",'DF raw data'!A72) -> -297.5 | B67: =IF('DF raw data'!B72="","",'DF raw data'!B72) -> -1.60672e-05 | C67: =IF('DF raw data'!C72="","",'DF raw data'!C72) -> 0.000145367 | D67: =IF('DF raw data'!D72="","",'DF raw data'!D72) -> -2.5365e-05 | F67: -1.61234352e-05 | G67: 0.0001458757845 | H67: -2.54537775e-05 | J67: -2.172620988e-05 | K67: -3.673236773e-05 | L67: 0.0004097441025 | M67: 0.0006979967179 | N67: 2.047718926e-07
A68: =IF('DF raw data'!A73="","",'DF raw data'!A73) -> -297 | B68: =IF('DF raw data'!B73="","",'DF raw data'!B73) -> -1.02379e-05 | C68: =IF('DF raw data'!C73="","",'DF raw data'!C73) -> 0.000146795 | D68: =IF('DF raw data'!D73="","",'DF raw data'!D73) -> -2.44911e-05 | F68: -1.027373265e-05 | G68: 0.0001473087825 | H68: -2.457681885e-05 | J68: -2.686307621e-05 | K68: -5.016390584e-05 | L68: 0.0004833984938 | M68: 0.0009396959648 | N68: 3.219697569e-07
A69: =IF('DF raw data'!A74="","",'DF raw data'!A74) -> -296.5 | B69: =IF('DF raw data'!B74="","",'DF raw data'!B74) -> -8.57193e-06 | C69: =IF('DF raw data'!C74="","",'DF raw data'!C74) -> 0.000144305 | D69: =IF('DF raw data'!D74="","",'DF raw data'!D74) -> -2.42952e-05 | F69: -8.601931755e-06 | G69: 0.0001448100675 | H69: -2.43802332e-05 | J69: -3.116404209e-05 | K69: -6.574592688e-05 | L69: 0.0005558035275 | M69: 0.001217597729 | N69: 4.769141363e-07
A70: =IF('DF raw data'!A75="","",'DF raw data'!A75) -> -296 | B70: =IF('DF raw data'!B75="","",'DF raw data'!B75) -> -5.94528e-06 | C70: =IF('DF raw data'!C75="","",'DF raw data'!C75) -> 0.000147842 | D70: =IF('DF raw data'!D75="","",'DF raw data'!D75) -> -2.45799e-05 | F70: -5.96608848e-06 | G70: 0.000148359447 | H70: -2.466592965e-05 | J70: -3.414708633e-05 | K70: -8.281947004e-05 | L70: 0.000629983251 | M70: 0.001532589354 | N70: 6.759365963e-07
A71: =IF('DF raw data'!A76="","",'DF raw data'!A76) -> -295.5 | B71: =IF('DF raw data'!B76="","",'DF raw data'!B76) -> -1.10703e-05 | C71: =IF('DF raw data'!C76="","",'DF raw data'!C76) -> 0.000148152 | D71: =IF('DF raw data'!D76="","",'DF raw data'!D76) -> -2.47309e-05 | F71: -1.110904605e-05 | G71: 0.000148670532 | H71: -2.481745815e-05 | J71: -3.970160935e-05 | K71: -0.0001026702747 | L71: 0.000704318517 | M71: 0.001884748613 | N71: 9.247569919e-07
A72: =IF('DF raw data'!A77="","",'DF raw data'!A77) -> -295 | B72: =IF('DF raw data'!B77="","",'DF raw data'!B77) -> -4.53568e-06 | C72: =IF('DF raw data'!C77="","",'DF raw data'!C77) -> 0.000149058 | D72: =IF('DF raw data'!D77="","",'DF raw data'!D77) -> -2.48189e-05 | F72: -4.55155488e-06 | G72: 0.000149579703 | H72: -2.490576615e-05 | J72: -4.197738679e-05 | K72: -0.0001236589681 | L72: 0.0007791083685 | M72: 0.002274302797 | N72: 1.229142967e-06
A73: =IF('DF raw data'!A78="","",'DF raw data'!A78) -> -294.5 | B73: =IF('DF raw data'!B78="","",'DF raw data'!B78) -> -1.1967e-05 | C73: =IF('DF raw data'!C78="","",'DF raw data'!C78) -> 0.000149116 | D73: =IF('DF raw data'!D78="","",'DF raw data'!D78) -> -2.48692e-05 | F73: -1.20088845e-05 | G73: 0.000149637906 | H73: -2.49562422e-05 | J73: -4.798182904e-05 | K73: -0.0001476498826 | L73: 0.0008539273215 | M73: 0.002701266458 | N73: 1.59489003e-06
A74: =IF('DF raw data'!A79="","",'DF raw data'!A79) -> -294 | B74: =IF('DF raw data'!B79="","",'DF raw data'!B79) -> -5.88114e-06 | C74: =IF('DF raw data'!C79="","",'DF raw data'!C79) -> 0.000153206 | D74: =IF('DF raw data'!D79="","",'DF raw data'!D79) -> -2.49494e-05 | F74: -5.90172399e-06 | G74: 0.000153742221 | H74: -2.50367229e-05 | J74: -5.093269104e-05 | K74: -0.0001731162282 | L74: 0.000930798432 | M74: 0.003166665674 | N74: 2.02937996e-06
A75: =IF('DF raw data'!A80="","",'DF raw data'!A80) -> -293.5 | B75: =IF('DF raw data'!B80="","",'DF raw data'!B80) -> -1.32482e-05 | C75: =IF('DF raw data'!C80="","",'DF raw data'!C80) -> 0.000155866 | D75: =IF('DF raw data'!D80="","",'DF raw data'!D80) -> -2.50534e-05 | F75: -1.32945687e-05 | G75: 0.000156411531 | H75: -2.51410869e-05 | J75: -5.757997539e-05 | K75: -0.0002019062158 | L75: 0.001009004198 | M75: 0.003671167772 | N75: 2.540082423e-06
A76: =IF('DF raw data'!A81="","",'DF raw data'!A81) -> -293 | B76: =IF('DF raw data'!B81="","",'DF raw data'!B81) -> -6.71373e-06 | C76: =IF('DF raw data'!C81="","",'DF raw data'!C81) -> 0.000162492 | D76: =IF('DF raw data'!D81="","",'DF raw data'!D81) -> -2.5146e-05 | F76: -6.737228055e-06 | G76: 0.000163060722 | H76: -2.5234011e-05 | J76: -6.094858941e-05 | K76: -0.0002323805105 | L76: 0.001090534559 | M76: 0.004216435052 | N76: 3.136572599e-06
A77: =IF('DF raw data'!A82="","",'DF raw data'!A82) -> -292.5 | B77: =IF('DF raw data'!B82="","",'DF raw data'!B82) -> -1.82455e-05 | C77: =IF('DF raw data'!C82="","",'DF raw data'!C82) -> 0.000154635 | D77: =IF('DF raw data'!D82="","",'DF raw data'!D82) -> -2.48626e-05 | F77: -1.830935925e-05 | G77: 0.0001551762225 | H77: -2.49496191e-05 | J77: -7.010326904e-05 | K77: -0.0002674321451 | L77: 0.00116812267 | M77: 0.004800496386 | N77: 3.821285119e-06
A78: =IF('DF raw data'!A83="","",'DF raw data'!A83) -> -292 | B78: =IF('DF raw data'!B83="","",'DF raw data'!B83) -> -1.0174e-05 | C78: =IF('DF raw data'!C83="","",'DF raw data'!C83) -> 0.000145113 | D78: =IF('DF raw data'!D83="","",'DF raw data'!D83) -> -2.45371e-05 | F78: -1.0209609e-05 | G78: 0.0001456208955 | H78: -2.462297985e-05 | J78: -7.520807354e-05 | K78: -0.0003050361818 | L78: 0.001240933118 | M78: 0.005420962945 | N78: 4.594070748e-06
A79: =IF('DF raw data'!A84="","",'DF raw data'!A84) -> -291.5 | B79: =IF('DF raw data'!B84="","",'DF raw data'!B84) -> -1.19119e-05 | C79: =IF('DF raw data'!C84="","",'DF raw data'!C84) -> 0.000145455 | D79: =IF('DF raw data'!D84="","",'DF raw data'!D84) -> -1.14063e-05 | F79: -1.195359165e-05 | G79: 0.0001459640925 | H79: -1.144622205e-05 | J79: -8.118486936e-05 | K79: -0.0003456286165 | L79: 0.001313915164 | M79: 0.006077920527 | N79: 5.460552768e-06
A80: =IF('DF raw data'!A85="","",'DF raw data'!A85) -> -291 | B80: =IF('DF raw data'!B85="","",'DF raw data'!B85) -> -1.14648e-05 | C80: =IF('DF raw data'!C85="","",'DF raw data'!C85) -> 0.000140133 | D80: =IF('DF raw data'!D85="","",'DF raw data'!D85) -> -1.00242e-05 | F80: -1.15049268e-05 | G80: 0.0001406234655 | H80: -1.00592847e-05 | J80: -8.693733276e-05 | K80: -0.0003890972829 | L80: 0.001384226897 | M80: 0.006770033975 | N80: 6.422373868e-06
A81: =IF('DF raw data'!A86="","",'DF raw data'!A86) -> -290.5 | B81: =IF('DF raw data'!B86="","",'DF raw data'!B86) -> -8.64793e-06 | C81: =IF('DF raw data'!C86="","",'DF raw data'!C86) -> 0.000140692 | D81: =IF('DF raw data'!D86="","",'DF raw data'!D86) -> -6.07757e-06 | F81: -8.678197755e-06 | G81: 0.000141184422 | H81: -6.098841495e-06 | J81: -9.127643164e-05 | K81: -0.0004347354987 | L81: 0.001454819108 | M81: 0.007497443529 | N81: 7.48478888e-06
A82: =IF('DF raw data'!A87="","",'DF raw data'!A87) -> -290 | B82: =IF('DF raw data'!B87="","",'DF raw data'!B87) -> -5.24734e-06 | C82: =IF('DF raw data'!C87="","",'DF raw data'!C87) -> 0.000131197 | D82: =IF('DF raw data'!D87="","",'DF raw data'!D87) -> -1.39072e-05 | F82: -5.26570569e-06 | G82: 0.0001316561895 | H82: -1.39558752e-05 | J82: -9.390928449e-05 | K82: -0.000481690141 | L82: 0.001520647202 | M82: 0.00825776713 | N82: 8.645382313e-06
A83: =IF('DF raw data'!A88="","",'DF raw data'!A88) -> -289.5 | B83: =IF('DF raw data'!B88="","",'DF raw data'!B88) -> 5.32578e-06 | C83: =IF('DF raw data'!C88="","",'DF raw data'!C88) -> 0.000126522 | D83: =IF('DF raw data'!D88="","",'DF raw data'!D88) -> -1.69447e-05 | F83: 5.34442023e-06 | G83: 0.000126964827 | H83: -1.700400645e-05 | J83: -9.123707437e-05 | K83: -0.0005273086781 | L83: 0.001584129616 | M83: 0.009049831938 | N83: 9.904277735e-06
A84: =IF('DF raw data'!A89="","",'DF raw data'!A89) -> -289 | B84: =IF('DF raw data'!B89="","",'DF raw data'!B89) -> -1.30721e-05 | C84: =IF('DF raw data'!C89="","",'DF raw data'!C89) -> 0.000137911 | D84: =IF('DF raw data'!D89="","",'DF raw data'!D89) -> -1.4961e-06 | F84: -1.311785235e-05 | G84: 0.0001383936885 | H84: -1.50133635e-06 | J84: -9.779600055e-05 | K84: -0.0005762066784 | L84: 0.00165332646 | M84: 0.009876495168 | N84: 1.127580396e-05
A85: =IF('DF raw data'!A90="","",'DF raw data'!A90) -> -288.5 | B85: =IF('DF raw data'!B90="","",'DF raw data'!B90) -> -1.33843e-05 | C85: =IF('DF raw data'!C90="","",'DF raw data'!C90) -> 0.000138621 | D85: =IF('DF raw data'!D90="","",'DF raw data'!D90) -> -1.28041e-05 | F85: -1.343114505e-05 | G85: 0.0001391061735 | H85: -1.284891435e-05 | J85: -0.0001045115731 | K85: -0.000628462465 | L85: 0.001722879547 | M85: 0.01073793494 | N85: 1.276542226e-05
A86: =IF('DF raw data'!A91="","",'DF raw data'!A91) -> -288 | B86: =IF('DF raw data'!B91="","",'DF raw data'!B91) -> -2.16493e-05 | C86: =IF('DF raw data'!C91="","",'DF raw data'!C91) -> 0.000135912 | D86: =IF('DF raw data'!D91="","",'DF raw data'!D91) -> -1.38955e-05 | F86: -2.172507255e-05 | G86: 0.000136387692 | H86: -1.394413425e-05 | J86: -0.0001153741093 | K86: -0.0006861495196 | L86: 0.001791073393 | M86: 0.01163347164 | N86: 1.43760498e-05
A87: =IF('DF raw data'!A92="","",'DF raw data'!A92) -> -287.5 | B87: =IF('DF raw data'!B92="","",'DF raw data'!B92) -> -1.10164e-05 | C87: =IF('DF raw data'!C92="","",'DF raw data'!C92) -> 0.000133329 | D87: =IF('DF raw data'!D92="","",'DF raw data'!D92) -> -9.10912e-06 | F87: -1.10549574e-05 | G87: 0.0001337956515 | H87: -9.14100192e-06 | J87: -0.000120901588 | K87: -0.0007466003137 | L87: 0.001857971219 | M87: 0.01256245725 | N87: 1.610938692e-05
A88: =IF('DF raw data'!A93="","",'DF raw data'!A93) -> -287 | B88: =IF('DF raw data'!B93="","",'DF raw data'!B93) -> -1.13308e-05 | C88: =IF('DF raw data'!C93="","",'DF raw data'!C93) -> 0.000129603 | D88: =IF('DF raw data'!D93="","",'DF raw data'!D93) -> -1.89927e-05 | F88: -1.13704578e-05 | G88: 0.0001300566105 | H88: -1.905917445e-05 | J88: -0.0001265868169 | K88: -0.0008098937221 | L88: 0.001922999524 | M88: 0.01352395701 | N88: 1.796636261e-05
A89: =IF('DF raw data'!A94="","",'DF raw data'!A94) -> -286.5 | B89: =IF('DF raw data'!B94="","",'DF raw data'!B94) -> -5.95211e-06 | C89: =IF('DF raw data'!C94="","",'DF raw data'!C94) -> 0.000137245 | D89: =IF('DF raw data'!D94="","",'DF raw data'!D94) -> -1.36035e-05 | F89: -5.972942385e-06 | G89: 0.0001377253575 | H89: -1.365111225e-05 | J89: -0.0001295732881 | K89: -0.0008746803662 | L89: 0.001991862203 | M89: 0.01451988811 | N89: 1.995851475e-05
A90: =IF('DF raw data'!A95="","",'DF raw data'!A95) -> -286 | B90: =IF('DF raw data'!B95="","",'DF raw data'!B95) -> -1.58747e-05 | C90: =IF('DF raw data'!C95="","",'DF raw data'!C95) -> 0.00014349 | D90: =IF('DF raw data'!D95="","",'DF raw data'!D95) -> -2.67632e-05 | F90: -1.593026145e-05 | G90: 0.000143992215 | H90: -2.68568712e-05 | J90: -0.0001375384189 | K90: -0.0009434495756 | L90: 0.00206385831 | M90: 0.01555181727 | N90: 2.209772872e-05
A91: =IF('DF raw data'!A96="","",'DF raw data'!A96) -> -285.5 | B91: =IF('DF raw data'!B96="","",'DF raw data'!B96) -> -1.33215e-05 | C91: =IF('DF raw data'!C96="","",'DF raw data'!C96) -> 0.000161191 | D91: =IF('DF raw data'!D96="","",'DF raw data'!D96) -> -1.09982e-05 | F91: -1.336812525e-05 | G91: 0.0001617551685 | H91: -1.10366937e-05 | J91: -0.0001442224815 | K91: -0.001015560816 | L91: 0.002144735894 | M91: 0.01662418521 | N91: 2.440807481e-05
A92: =IF('DF raw data'!A97="","",'DF raw data'!A97) -> -285 | B92: =IF('DF raw data'!B97="","",'DF raw data'!B97) -> -1.02402e-05 | C92: =IF('DF raw data'!C97="","",'DF raw data'!C97) -> 0.000163369 | D92: =IF('DF raw data'!D97="","",'DF raw data'!D97) -> -2.11439e-05 | F92: -1.02760407e-05 | G92: 0.0001639407915 | H92: -2.121790365e-05 | J92: -0.0001493605018 | K92: -0.001090241067 | L92: 0.00222670629 | M92: 0.01773753836 | N92: 2.689833954e-05
A93: =IF('DF raw data'!A98="","",'DF raw data'!A98) -> -284.5 | B93: =IF('DF raw data'!B98="","",'DF raw data'!B98) -> -2.69056e-05 | C93: =IF('DF raw data'!C98="","",'DF raw data'!C98) -> 0.000158609 | D93: =IF('DF raw data'!D98="","",'DF raw data'!D98) -> -7.6311e-06 | F93: -2.69997696e-05 | G93: 0.0001591641315 | H93: -7.65780885e-06 | J93: -0.0001628603866 | K93: -0.001171671261 | L93: 0.002306288356 | M93: 0.01889068254 | N93: 2.957108428e-05
A94: =IF('DF raw data'!A99="","",'DF raw data'!A99) -> -284 | B94: =IF('DF raw data'!B99="","",'DF raw data'!B99) -> -1.13993e-05 | C94: =IF('DF raw data'!C99="","",'DF raw data'!C99) -> 0.000148052 | D94: =IF('DF raw data'!D99="","",'DF raw data'!D99) -> -1.23711e-05 | F94: -1.143919755e-05 | G94: 0.000148570182 | H94: -1.241439885e-05 | J94: -0.0001685799854 | K94: -0.001255961253 | L94: 0.002380573447 | M94: 0.02008096926 | N94: 3.241885886e-05
A95: =IF('DF raw data'!A100="","",'DF raw data'!A100) -> -283.5 | B95: =IF('DF raw data'!B100="","",'DF raw data'!B100) -> -1.85089e-05 | C95: =IF('DF raw data'!C100="","",'DF raw data'!C100) -> 0.000143271 | D95: =IF('DF raw data'!D100="","",'DF raw data'!D100) -> -1.37452e-05 | F95: -1.857368115e-05 | G95: 0.0001437724485 | H95: -1.37933082e-05 | J95: -0.000177866826 | K95: -0.001344894666 | L95: 0.002452459671 | M95: 0.02130719909 | N95: 3.544195638e-05
A96: =IF('DF raw data'!A101="","",'DF raw data'!A101) -> -283 | B96: =IF('DF raw data'!B101="","",'DF raw data'!B101) -> -1.84771e-06 | C96: =IF('DF raw data'!C101="","",'DF raw data'!C101) -> 0.000149185 | D96: =IF('DF raw data'!D101="","",'DF raw data'!D101) -> -2.00387e-05 | F96: -1.854176985e-06 | G96: 0.0001497071475 | H96: -2.010883545e-05 | J96: -0.0001787939145 | K96: -0.001434291624 | L96: 0.002527313245 | M96: 0.02257085572 | N96: 3.865159613e-05
A97: =IF('DF raw data'!A102="","",'DF raw data'!A102) -> -282.5 | B97: =IF('DF raw data'!B102="","",'DF raw data'!B102) -> -1.65837e-05 | C97: =IF('DF raw data'!C102="","",'DF raw data'!C102) -> 0.000145413 | D97: =IF('DF raw data'!D102="","",'DF raw data'!D102) -> -1.8946e-05 | F97: -1.664174295e-05 | G97: 0.0001459219455 | H97: -1.9012311e-05 | J97: -0.000187114786 | K97: -0.001527849017 | L97: 0.002600274217 | M97: 0.02387099283 | N97: 4.204981511e-05
A98: =IF('DF raw data'!A103="","",'DF raw data'!A103) -> -282 | B98: =IF('DF raw data'!B103="","",'DF raw data'!B103) -> -5.69272e-06 | C98: =IF('DF raw data'!C103="","",'DF raw data'!C103) -> 0.000140398 | D98: =IF('DF raw data'!D103="","",'DF raw data'!D103) -> -1.8925e-05 | F98: -5.71264452e-06 | G98: 0.000140889393 | H98: -1.89912375e-05 | J98: -0.0001899711082 | K98: -0.001622834571 | L98: 0.002670718914 | M98: 0.02520635228 | N98: 4.563422937e-05
A99: =IF('DF raw data'!A104="","",'DF raw data'!A104) -> -281.5 | B99: =IF('DF raw data'!B104="","",'DF raw data'!B104) -> -9.28134e-06 | C99: =IF('DF raw data'!C104="","",'DF raw data'!C104) -> 0.000142464 | D99: =IF('DF raw data'!D104="","",'DF raw data'!D104) -> -1.72091e-05 | F99: -9.31382469e-06 | G99: 0.000142962624 | H99: -1.726933185e-05 | J99: -0.0001946280206 | K99: -0.001720148581 | L99: 0.002742200226 | M99: 0.0265774524 | N99: 4.941300045e-05
A100: =IF('DF raw data'!A105="","",'DF raw data'!A105) -> -281 | B100: =IF('DF raw data'!B105="","",'DF raw data'!B105) -> -1.6138e-05 | C100: =IF('DF raw data'!C105="","",'DF raw data'!C105) -> 0.000151554 | D100: =IF('DF raw data'!D105="","",'DF raw data'!D105) -> -1.59357e-05 | F100: -1.6194483e-05 | G100: 0.000152084439 | H100: -1.599147495e-05 | J100: -0.0002027252621 | K100: -0.001821511212 | L100: 0.002818242445 | M100: 0.02798657362 | N100: 5.340479445e-05
A101: =IF('DF raw data'!A106="","",'DF raw data'!A106) -> -280.5 | B101: =IF('DF raw data'!B106="","",'DF raw data'!B106) -> -1.49183e-05 | C101: =IF('DF raw data'!C106="","",'DF raw data'!C106) -> 0.000151553 | D101: =IF('DF raw data'!D106="","",'DF raw data'!D106) -> -1.86793e-05 | F101: -1.497051405e-05 | G101: 0.0001520834355 | H101: -1.874467755e-05 | J101: -0.0002102105191 | K101: -0.001926616471 | L101: 0.002894284163 | M101: 0.0294337157 | N101: 5.761532909e-05
A102: =IF('DF raw data'!A107="","",'DF raw data'!A107) -> -280 | B102: =IF('DF raw data'!B107="","",'DF raw data'!B107) -> 2.89215e-06 | C102: =IF('DF raw data'!C107="","",'DF raw data'!C107) -> 0.000151535 | D102: =IF('DF raw data'!D107="","",'DF raw data'!D107) -> -1.83527e-05 | F102: 2.902272525e-06 | G102: 0.0001520653725 | H102: -1.841693445e-05 | J102: -0.0002087593828 | K102: -0.002030996163 | L102: 0.002970316849 | M102: 0.03091887412 | N102: 6.204851043e-05
A103: =IF('DF raw data'!A108="","",'DF raw data'!A108) -> -279.5 | B103: =IF('DF raw data'!B108="","",'DF raw data'!B108) -> -2.17741e-05 | C103: =IF('DF raw data'!C108="","",'DF raw data'!C108) -> 0.000157984 | D103: =IF('DF raw data'!D108="","",'DF raw data'!D108) -> -1.73819e-05 | F103: -2.185030935e-05 | G103: 0.000158536944 | H103: -1.744273665e-05 | J103: -0.0002196845375 | K103: -0.002140838432 | L103: 0.003049585321 | M103: 0.03244366678 | N103: 6.672262639e-05
A104: =IF('DF raw data'!A109="","",'DF raw data'!A109) -> -279 | B104: =IF('DF raw data'!B109="","",'DF raw data'!B109) -> -1.36337e-05 | C104: =IF('DF raw data'!C109="","",'DF raw data'!C109) -> 0.000151534 | D104: =IF('DF raw data'!D109="","",'DF raw data'!D109) -> -2.4442e-05 | F104: -1.368141795e-05 | G104: 0.000152064369 | H104: -2.4527547e-05 | J104: -0.0002265252465 | K104: -0.002254101055 | L104: 0.003125617506 | M104: 0.03400647554 | N104: 7.163302563e-05
A105: =IF('DF raw data'!A110="","",'DF raw data'!A110) -> -278.5 | B105: =IF('DF raw data'!B110="","",'DF raw data'!B110) -> -1.60039e-05 | C105: =IF('DF raw data'!C110="","",'DF raw data'!C110) -> 0.000145867 | D105: =IF('DF raw data'!D110="","",'DF raw data'!D110) -> -2.39178e-05 | F105: -1.605991365e-05 | G105: 0.0001463775345 | H105: -2.40015123e-05 | J105: -0.0002345552033 | K105: -0.002371378657 | L105: 0.003198806273 | M105: 0.03560587867 | N105: 7.677671449e-05
A106: =IF('DF raw data'!A111="","",'DF raw data'!A111) -> -278 | B106: =IF('DF raw data'!B111="","",'DF raw data'!B111) -> -1.35757e-05 | C106: =IF('DF raw data'!C111="","",'DF raw data'!C111) -> 0.000143931 | D106: =IF('DF raw data'!D111="","",'DF raw data'!D111) -> -1.50847e-05 | F106: -1.362321495e-05 | G106: 0.0001444347585 | H106: -1.513749645e-05 | J106: -0.0002413668108 | K106: -0.002492062062 | L106: 0.003271023652 | M106: 0.0372413905 | N106: 8.215564133e-05
A107: =IF('DF raw data'!A112="","",'DF raw data'!A112) -> -277.5 | B107: =IF('DF raw data'!B112="","",'DF raw data'!B112) -> -1.60104e-05 | C107: =IF('DF raw data'!C112="","",'DF raw data'!C112) -> 0.000148443 | D107: =IF('DF raw data'!D112="","",'DF raw data'!D112) -> -1.39481e-05 | F107: -1.60664364e-05 | G107: 0.0001489625505 | H107: -1.399691835e-05 | J107: -0.000249400029 | K107: -0.002616762076 | L107: 0.003345504928 | M107: 0.03891414296 | N107: 8.778294313e-05
A108: =IF('DF raw data'!A113="","",'DF raw data'!A113) -> -277 | B108: =IF('DF raw data'!B113="","",'DF raw data'!B113) -> -1.95981e-05 | C108: =IF('DF raw data'!C113="","",'DF raw data'!C113) -> 0.00014351 | D108: =IF('DF raw data'!D113="","",'DF raw data'!D113) -> -1.52242e-05 | F108: -1.966669335e-05 | G108: 0.000144012285 | H108: -1.52774847e-05 | J108: -0.0002592333756 | K108: -0.002746378764 | L108: 0.00341751107 | M108: 0.0406228985 | N108: 9.365623505e-05
A109: =IF('DF raw data'!A114="","",'DF raw data'!A114) -> -276.5 | B109: =IF('DF raw data'!B114="","",'DF raw data'!B114) -> -1.06882e-05 | C109: =IF('DF raw data'!C114="","",'DF raw data'!C114) -> 0.000150089 | D109: =IF('DF raw data'!D114="","",'DF raw data'!D114) -> -2.13578e-05 | F109: -1.07256087e-05 | G109: 0.0001506143115 | H109: -2.14325523e-05 | J109: -0.00026459618 | K109: -0.002878676854 | L109: 0.003492818226 | M109: 0.04236930761 | N109: 9.97911302e-05
A110: =IF('DF raw data'!A115="","",'DF raw data'!A115) -> -276 | B110: =IF('DF raw data'!B115="","",'DF raw data'!B115) -> -1.25538e-05 | C110: =IF('DF raw data'!C115="","",'DF raw data'!C115) -> 0.000152411 | D110: =IF('DF raw data'!D115="","",'DF raw data'!D115) -> -1.01568e-05 | F110: -1.25977383e-05 | G110: 0.0001529444385 | H110: -1.01923488e-05 | J110: -0.0002708950491 | K110: -0.003014124379 | L110: 0.003569290445 | M110: 0.04415395284 | N110: 0.0001061977394
A111: =IF('DF raw data'!A116="","",'DF raw data'!A116) -> -275.5 | B111: =IF('DF raw data'!B116="","",'DF raw data'!B116) -> -1.13974e-05 | C111: =IF('DF raw data'!C116="","",'DF raw data'!C116) -> 0.00014897 | D111: =IF('DF raw data'!D116="","",'DF raw data'!D116) -> -1.45119e-05 | F111: -1.14372909e-05 | G111: 0.000149491395 | H111: -1.456269165e-05 | J111: -0.0002766136946 | K111: -0.003152431226 | L111: 0.003644036143 | M111: 0.04597597091 | N111: 0.0001128754967
A112: =IF('DF raw data'!A117="","",'DF raw data'!A117) -> -275 | B112: =IF('DF raw data'!B117="","",'DF raw data'!B117) -> -5.94649e-06 | C112: =IF('DF raw data'!C117="","",'DF raw data'!C117) -> 0.000145958 | D112: =IF('DF raw data'!D117="","",'DF raw data'!D117) -> -2.26688e-05 | F112: -5.967302715e-06 | G112: 0.000146468853 | H112: -2.27481408e-05 | J112: -0.000279597346 | K112: -0.003292229899 | L112: 0.003717270569 | M112: 0.04783460619 | N112: 0.0001198236343
A113: =IF('DF raw data'!A118="","",'DF raw data'!A118) -> -274.5 | B113: =IF('DF raw data'!B118="","",'DF raw data'!B118) -> -1.7159e-05 | C113: =IF('DF raw data'!C118="","",'DF raw data'!C118) -> 0.000145491 | D113: =IF('DF raw data'!D118="","",'DF raw data'!D118) -> -2.1414e-05 | F113: -1.72190565e-05 | G113: 0.0001460002185 | H113: -2.1488949e-05 | J113: -0.0002882068742 | K113: -0.003436333336 | L113: 0.003790270678 | M113: 0.04972974153 | N113: 0.0001270482418
A114: =IF('DF raw data'!A119="","",'DF raw data'!A119) -> -274 | B114: =IF('DF raw data'!B119="","",'DF raw data'!B119) -> -1.3191e-05 | C114: =IF('DF raw data'!C119="","",'DF raw data'!C119) -> 0.000149402 | D114: =IF('DF raw data'!D119="","",'DF raw data'!D119) -> -1.55502e-05 | F114: -1.32371685e-05 | G114: 0.000149924907 | H114: -1.56046257e-05 | J114: -0.0002948254585 | K114: -0.003583746065 | L114: 0.003865233132 | M114: 0.0516623581 | N114: 0.0001345617164
A115: =IF('DF raw data'!A120="","",'DF raw data'!A120) -> -273.5 | B115: =IF('DF raw data'!B120="","",'DF raw data'!B120) -> -5.0553e-06 | C115: =IF('DF raw data'!C120="","",'DF raw data'!C120) -> 0.000156942 | D115: =IF('DF raw data'!D120="","",'DF raw data'!D120) -> -1.35655e-05 | F115: -5.07299355e-06 | G115: 0.000157491297 | H115: -1.361297925e-05 | J115: -0.0002973619552 | K115: -0.003732427043 | L115: 0.00394397878 | M115: 0.05363434749 | N115: 0.0001423834128
A116: =IF('DF raw data'!A121="","",'DF raw data'!A121) -> -273 | B116: =IF('DF raw data'!B121="","",'DF raw data'!B121) -> -1.01199e-06 | C116: =IF('DF raw data'!C121="","",'DF raw data'!C121) -> 0.000157137 | D116: =IF('DF raw data'!D121="","",'DF raw data'!D121) -> -2.46235e-05 | F116: -1.015531965e-06 | G116: 0.0001576869795 | H116: -2.470968225e-05 | J116: -0.0002978697212 | K116: -0.003881361904 | L116: 0.00402282227 | M116: 0.05564575862 | N116: 0.0001505193255
A117: =IF('DF raw data'!A122="","",'DF raw data'!A122) -> -272.5 | B117: =IF('DF raw data'!B122="","",'DF raw data'!B122) -> -2.17101e-05 | C117: =IF('DF raw data'!C122="","",'DF raw data'!C122) -> 0.000155608 | D117: =IF('DF raw data'!D122="","",'DF raw data'!D122) -> -1.75283e-05 | F117: -2.178608535e-05 | G117: 0.000156152628 | H117: -1.758964905e-05 | J117: -0.0003087627639 | K117: -0.004035743286 | L117: 0.004100898584 | M117: 0.05769620791 | N117: 0.0001589756773
A118: =IF('DF raw data'!A123="","",'DF raw data'!A123) -> -272 | B118: =IF('DF raw data'!B123="","",'DF raw data'!B123) -> -1.08235e-05 | C118: =IF('DF raw data'!C123="","",'DF raw data'!C123) -> 0.000160738 | D118: =IF('DF raw data'!D123="","",'DF raw data'!D123) -> -1.0815e-05 | F118: -1.086138225e-05 | G118: 0.000161300583 | H118: -1.08528525e-05 | J118: -0.000314193455 | K118: -0.004192840013 | L118: 0.004181548876 | M118: 0.05978698235 | N118: 0.0001677677115
A119: =IF('DF raw data'!A124="","",'DF raw data'!A124) -> -271.5 | B119: =IF('DF raw data'!B124="","",'DF raw data'!B124) -> -1.2681e-05 | C119: =IF('DF raw data'!C124="","",'DF raw data'!C124) -> 0.00015118 | D119: =IF('DF raw data'!D124="","",'DF raw data'!D124) -> -1.09926e-05 | F119: -1.27253835e-05 | G119: 0.00015170913 | H119: -1.10310741e-05 | J119: -0.0003205561468 | K119: -0.004353118086 | L119: 0.004257403441 | M119: 0.06191568407 | N119: 0.0001768818317
A120: =IF('DF raw data'!A125="","",'DF raw data'!A125) -> -271 | B120: =IF('DF raw data'!B125="","",'DF raw data'!B125) -> -1.79082e-06 | C120: =IF('DF raw data'!C125="","",'DF raw data'!C125) -> 0.000153434 | D120: =IF('DF raw data'!D125="","",'DF raw data'!D125) -> -9.15912e-06 | F120: -1.79708787e-06 | G120: 0.000153971019 | H120: -9.19117692e-06 | J120: -0.0003214546907 | K120: -0.004513845432 | L120: 0.00433438895 | M120: 0.06408287855 | N120: 0.000186326962
A121: =IF('DF raw data'!A126="","",'DF raw data'!A126) -> -270.5 | B121: =IF('DF raw data'!B126="","",'DF raw data'!B126) -> -1.91058e-06 | C121: =IF('DF raw data'!C126="","",'DF raw data'!C126) -> 0.000160781 | D121: =IF('DF raw data'!D126="","",'DF raw data'!D126) -> -2.19302e-05 | F121: -1.91726703e-06 | G121: 0.0001613437335 | H121: -2.20069557e-05 | J121: -0.0003224133242 | K121: -0.004675052094 | L121: 0.004415060817 | M121: 0.06629040896 | N121: 0.0001961253182
A122: =IF('DF raw data'!A127="","",'DF raw data'!A127) -> -270 | B122: =IF('DF raw data'!B127="","",'DF raw data'!B127) -> -1.10731e-05 | C122: =IF('DF raw data'!C127="","",'DF raw data'!C127) -> 0.000156708 | D122: =IF('DF raw data'!D127="","",'DF raw data'!D127) -> -2.12571e-05 | F122: -1.111185585e-05 | G122: 0.000157256478 | H122: -2.133149985e-05 | J122: -0.0003279692521 | K122: -0.00483903672 | L122: 0.004493689056 | M122: 0.06853725348 | N122: 0.0002062757208
A123: =IF('DF raw data'!A128="","",'DF raw data'!A128) -> -269.5 | B123: =IF('DF raw data'!B128="","",'DF raw data'!B128) -> 1.60889e-06 | C123: =IF('DF raw data'!C128="","",'DF raw data'!C128) -> 0.000150068 | D123: =IF('DF raw data'!D128="","",'DF raw data'!D128) -> -1.54968e-05 | F123: 1.614521115e-06 | G123: 0.000150593238 | H123: -1.55510388e-05 | J123: -0.0003271619916 | K123: -0.005002617716 | L123: 0.004568985675 | M123: 0.07082174632 | N123: 0.0002167670533
A124: =IF('DF raw data'!A129="","",'DF raw data'!A129) -> -269 | B124: =IF('DF raw data'!B129="","",'DF raw data'!B129) -> -1.1846e-05 | C124: =IF('DF raw data'!C129="","",'DF raw data'!C129) -> 0.000154854 | D124: =IF('DF raw data'!D129="","",'DF raw data'!D129) -> -1.48896e-05 | F124: -1.1887461e-05 | G124: 0.000155395989 | H124: -1.49417136e-05 | J124: -0.0003331057221 | K124: -0.005169170577 | L124: 0.00464668367 | M124: 0.07314508816 | N124: 0.0002276183676
A125: =IF('DF raw data'!A130="","",'DF raw data'!A130) -> -268.5 | B125: =IF('DF raw data'!B130="","",'DF raw data'!B130) -> -1.28079e-05 | C125: =IF('DF raw data'!C130="","",'DF raw data'!C130) -> 0.000147539 | D125: =IF('DF raw data'!D130="","",'DF raw data'!D130) -> -1.28533e-05 | F125: -1.285272765e-05 | G125: 0.0001480553865 | H125: -1.289828655e-05 | J125: -0.0003395320859 | K125: -0.00533893662 | L125: 0.004720711363 | M125: 0.07550544384 | N125: 0.0002388185665
A126: =IF('DF raw data'!A131="","",'DF raw data'!A131) -> -268 | B126: =IF('DF raw data'!B131="","",'DF raw data'!B131) -> -1.08871e-05 | C126: =IF('DF raw data'!C131="","",'DF raw data'!C131) -> 0.000152168 | D126: =IF('DF raw data'!D131="","",'DF raw data'!D131) -> -1.1511e-05 | F126: -1.092520485e-05 | G126: 0.000152700588 | H126: -1.15512885e-05 | J126: -0.0003449946883 | K126: -0.005511433964 | L126: 0.004797061657 | M126: 0.07790397467 | N126: 0.0002503839774
A127: =IF('DF raw data'!A132="","",'DF raw data'!A132) -> -267.5 | B127: =IF('DF raw data'!B132="","",'DF raw data'!B132) -> -6.58275e-06 | C127: =IF('DF raw data'!C132="","",'DF raw data'!C132) -> 0.00015331 | D127: =IF('DF raw data'!D132="","",'DF raw data'!D132) -> -2.9057e-05 | F127: -6.605789625e-06 | G127: 0.000153846585 | H127: -2.91586995e-05 | J127: -0.0003482975831 | K127: -0.005685582756 | L127: 0.004873984949 | M127: 0.08034096714 | N127: 0.0002623224977
A128: =IF('DF raw data'!A133="","",'DF raw data'!A133) -> -267 | B128: =IF('DF raw data'!B133="","",'DF raw data'!B133) -> -1.03116e-05 | C128: =IF('DF raw data'!C133="","",'DF raw data'!C133) -> 0.000156223 | D128: =IF('DF raw data'!D133="","",'DF raw data'!D133) -> -9.82556e-06 | F128: =(1-$G$1*($B$49-$G$2))*B128 -> -1.03476906e-05 | G128: 0.0001567697805 | H128: -9.85994946e-06 | J128: =F128*$G$3+J127 -> -0.0003534714284 | K128: =J128*$G$3+K127 -> -0.00586231847 | L128: =G128*$G$3+L127 -> 0.00495236984 | M128: =L128*$G$3+M127 -> 0.08281715206 | N128: =(J128^2+L128^2)*$G$3+N127 -> 0.0002746479522
A129: =IF('DF raw data'!A134="","",'DF raw data'!A134) -> -266.5 | B129: =IF('DF raw data'!B134="","",'DF raw data'!B134) -> -2.0374e-05 | C129: =IF('DF raw data'!C134="","",'DF raw data'!C134) -> 0.000158059 | D129: =IF('DF raw data'!D134="","",'DF raw data'!D134) -> -3.28075e-06 | F129: -2.0445309e-05 | G129: 0.0001586122065 | H129: -3.292232625e-06 | J129: -0.0003636940829 | K129: -0.006044165511 | L129: 0.005031675943 | M129: 0.08533299003 | N129: 0.0002873729703
A130: =IF('DF raw data'!A135="","",'DF raw data'!A135) -> -266 | B130: =IF('DF raw data'!B135="","",'DF raw data'!B135) -> -1.10205e-05 | C130: =IF('DF raw data'!C135="","",'DF raw data'!C135) -> 0.000154375 | D130: =IF('DF raw data'!D135="","",'DF raw data'!D135) -> -3.63659e-06 | F130: -1.105907175e-05 | G130: 0.0001549153125 | H130: -3.649318065e-06 | J130: -0.0003692236188 | K130: -0.006228777321 | L130: 0.005109133599 | M130: 0.08788755683 | N130: 0.0003004927564
A131: =IF('DF raw data'!A136="","",'DF raw data'!A136) -> -265.5 | B131: =IF('DF raw data'!B136="","",'DF raw data'!B136) -> -1.50463e-05 | C131: =IF('DF raw data'!C136="","",'DF raw data'!C136) -> 0.00015669 | D131: =IF('DF raw data'!D136="","",'DF raw data'!D136) -> -1.90033e-05 | F131: -1.509896205e-05 | G131: 0.000157238415 | H131: -1.906981155e-05 | J131: -0.0003767730998 | K131: -0.006417163871 | L131: 0.005187752807 | M131: 0.09048143323 | N131: 0.000314020125
A132: =IF('DF raw data'!A137="","",'DF raw data'!A137) -> -265 | B132: =IF('DF raw data'!B137="","",'DF raw data'!B137) -> 1.99679e-06 | C132: =IF('DF raw data'!C137="","",'DF raw data'!C137) -> 0.000157649 | D132: =IF('DF raw data'!D137="","",'DF raw data'!D137) -> -2.08069e-05 | F132: 2.003778765e-06 | G132: 0.0001582007715 | H132: -2.087972415e-05 | J132: -0.0003757712105 | K132: -0.006605049476 | L132: 0.005266853192 | M132: 0.09311485983 | N132: 0.0003279605983
A133: =IF('DF raw data'!A138="","",'DF raw data'!A138) -> -264.5 | B133: =IF('DF raw data'!B138="","",'DF raw data'!B138) -> -8.12013e-06 | C133: =IF('DF raw data'!C138="","",'DF raw data'!C138) -> 0.000155531 | D133: =IF('DF raw data'!D138="","",'DF raw data'!D138) -> -2.97911e-05 | F133: -8.148550455e-06 | G133: 0.0001560753585 | H133: -2.989536885e-05 | J133: -0.0003798454857 | K133: -0.006794972219 | L133: 0.005344890872 | M133: 0.09578730527 | N133: 0.0003423166688
A134: =IF('DF raw data'!A139="","",'DF raw data'!A139) -> -264 | B134: =IF('DF raw data'!B139="","",'DF raw data'!B139) -> -1.19722e-05 | C134: =IF('DF raw data'!C139="","",'DF raw data'!C139) -> 0.000154512 | D134: =IF('DF raw data'!D139="","",'DF raw data'!D139) -> -1.77655e-05 | F134: -1.20141027e-05 | G134: 0.000155052792 | H134: -1.782767925e-05 | J134: -0.000385852537 | K134: -0.006987898487 | L134: 0.005422417268 | M134: 0.0984985139 | N134: 0.0003570924144
A135: =IF('DF raw data'!A140="","",'DF raw data'!A140) -> -263.5 | B135: =IF('DF raw data'!B140="","",'DF raw data'!B140) -> -1.21716e-05 | C135: =IF('DF raw data'!C140="","",'DF raw data'!C140) -> 0.000145058 | D135: =IF('DF raw data'!D140="","",'DF raw data'!D140) -> -6.24292e-06 | F135: -1.22142006e-05 | G135: 0.000145565703 | H135: -6.26477022e-06 | J135: -0.0003919596373 | K135: -0.007183878306 | L135: 0.005495200119 | M135: 0.101246114 | N135: 0.0003722678427
A136: =IF('DF raw data'!A141="","",'DF raw data'!A141) -> -263 | B136: =IF('DF raw data'!B141="","",'DF raw data'!B141) -> -1.51788e-05 | C136: =IF('DF raw data'!C141="","",'DF raw data'!C141) -> 0.00015238 | D136: =IF('DF raw data'!D141="","",'DF raw data'!D141) -> -1.30303e-05 | F136: -1.52319258e-05 | G136: 0.00015291333 | H136: -1.307590605e-05 | J136: -0.0003995756002 | K136: -0.007383666106 | L136: 0.005571656784 | M136: 0.1040319424 | N136: 0.0003878693527
A137: =IF('DF raw data'!A142="","",'DF raw data'!A142) -> -262.5 | B137: =IF('DF raw data'!B142="","",'DF raw data'!B142) -> -1.12738e-05 | C137: =IF('DF raw data'!C142="","",'DF raw data'!C142) -> 0.0001483 | D137: =IF('DF raw data'!D142="","",'DF raw data'!D142) -> -7.65938e-06 | F137: -1.13132583e-05 | G137: 0.00014881905 | H137: -7.68618783e-06 | J137: -0.0004052322294 | K137: -0.007586282221 | L137: 0.005646066309 | M137: 0.1068549755 | N137: 0.0004038904917
A138: =IF('DF raw data'!A143="","",'DF raw data'!A143) -> -262 | B138: =IF('DF raw data'!B143="","",'DF raw data'!B143) -> -1.20437e-05 | C138: =IF('DF raw data'!C143="","",'DF raw data'!C143) -> 0.000151532 | D138: =IF('DF raw data'!D143="","",'DF raw data'!D143) -> -6.44606e-06 | F138: -1.208585295e-05 | G138: 0.000152062362 | H138: -6.46862121e-06 | J138: -0.0004112751559 | K138: -0.007791919799 | L138: 0.00572209749 | M138: 0.1097160243 | N138: 0.0004203462652
A139: =IF('DF raw data'!A144="","",'DF raw data'!A144) -> -261.5 | B139: =IF('DF raw data'!B144="","",'DF raw data'!B144) -> 1.0951e-06 | C139: =IF('DF raw data'!C144="","",'DF raw data'!C144) -> 0.000151853 | D139: =IF('DF raw data'!D144="","",'DF raw data'!D144) -> -1.35127e-05 | F139: 1.09893285e-06 | G139: 0.0001523844855 | H139: -1.355999445e-05 | J139: -0.0004107256894 | K139: -0.007997282643 | L139: 0.005798289733 | M139: 0.1126151691 | N139: 0.0004372406949
A140: =IF('DF raw data'!A145="","",'DF raw data'!A145) -> -261 | B140: =IF('DF raw data'!B145="","",'DF raw data'!B145) -> -1.15247e-05 | C140: =IF('DF raw data'!C145="","",'DF raw data'!C145) -> 0.000147843 | D140: =IF('DF raw data'!D145="","",'DF raw data'!D145) -> -1.64042e-05 | F140: -1.156503645e-05 | G140: 0.0001483604505 | H140: -1.64616147e-05 | J140: -0.0004165082077 | K140: -0.008205536747 | L140: 0.005872469958 | M140: 0.1155514041 | N140: 0.0004545703861
A141: =IF('DF raw data'!A146="","",'DF raw data'!A146) -> -260.5 | B141: =IF('DF raw data'!B146="","",'DF raw data'!B146) -> -1.67684e-05 | C141: =IF('DF raw data'!C146="","",'DF raw data'!C146) -> 0.00014975 | D141: =IF('DF raw data'!D146="","",'DF raw data'!D146) -> -3.10816e-05 | F141: -1.68270894e-05 | G141: 0.000150274125 | H141: -3.11903856e-05 | J141: -0.0004249217524 | K141: -0.008417997623 | L141: 0.005947607021 | M141: 0.1185252076 | N141: 0.00047234768
A142: =IF('DF raw data'!A147="","",'DF raw data'!A147) -> -260 | B142: =IF('DF raw data'!B147="","",'DF raw data'!B147) -> -1.83205e-05 | C142: =IF('DF raw data'!C147="","",'DF raw data'!C147) -> 0.000151108 | D142: =IF('DF raw data'!D147="","",'DF raw data'!D147) -> -9.46055e-06 | F142: -1.838462175e-05 | G142: 0.000151636878 | H142: -9.493661925e-06 | J142: -0.0004341140632 | K142: -0.008635054655 | L142: 0.00602342546 | M142: 0.1215369203 | N142: 0.0004905827346
A143: =IF('DF raw data'!A148="","",'DF raw data'!A148) -> -259.5 | B143: =IF('DF raw data'!B148="","",'DF raw data'!B148) -> -2.38879e-05 | C143: =IF('DF raw data'!C148="","",'DF raw data'!C148) -> 0.000155363 | D143: =IF('DF raw data'!D148="","",'DF raw data'!D148) -> -1.85117e-05 | F143: -2.397150765e-05 | G143: 0.0001559067705 | H143: -1.857649095e-05 | J143: -0.0004460998171 | K143: -0.008858104563 | L143: 0.006101378845 | M143: 0.1245876098 | N143: 0.0005092956491
A144: =IF('DF raw data'!A149="","",'DF raw data'!A149) -> -259 | B144: =IF('DF raw data'!B149="","",'DF raw data'!B149) -> -1.05657e-05 | C144: =IF('DF raw data'!C149="","",'DF raw data'!C149) -> 0.000150929 | D144: =IF('DF raw data'!D149="","",'DF raw data'!D149) -> -1.30859e-05 | F144: -1.060267995e-05 | G144: 0.0001514572515 | H144: -1.313170065e-05 | J144: -0.000451401157 | K144: -0.009083805142 | L144: 0.006177107471 | M144: 0.1276761635 | N144: 0.0005284758589
A145: =IF('DF raw data'!A150="","",'DF raw data'!A150) -> -258.5 | B145: =IF('DF raw data'!B150="","",'DF raw data'!B150) -> -1.14614e-05 | C145: =IF('DF raw data'!C150="","",'DF raw data'!C150) -> 0.000155622 | D145: =IF('DF raw data'!D150="","",'DF raw data'!D150) -> -1.44662e-05 | F145: -1.15015149e-05 | G145: 0.000156166677 | H145: -1.45168317e-05 | J145: -0.0004571519145 | K145: -0.009312381099 | L145: 0.006255190809 | M145: 0.1308037589 | N145: 0.0005481440589
A146: =IF('DF raw data'!A151="","",'DF raw data'!A151) -> -258 | B146: =IF('DF raw data'!B151="","",'DF raw data'!B151) -> 1.79371e-06 | C146: =IF('DF raw data'!C151="","",'DF raw data'!C151) -> 0.000151161 | D146: =IF('DF raw data'!D151="","",'DF raw data'!D151) -> -3.82405e-06 | F146: 1.799987985e-06 | G146: 0.0001516900635 | H146: -3.837434175e-06 | J146: -0.0004562519205 | K146: -0.009540507059 | L146: 0.006331035841 | M146: 0.1339692768 | N146: 0.0005682891492
A147: =IF('DF raw data'!A152="","",'DF raw data'!A152) -> -257.5 | B147: =IF('DF raw data'!B152="","",'DF raw data'!B152) -> -2.55262e-06 | C147: =IF('DF raw data'!C152="","",'DF raw data'!C152) -> 0.000157876 | D147: =IF('DF raw data'!D152="","",'DF raw data'!D152) -> -1.98035e-05 | F147: -2.56155417e-06 | G147: 0.000158428566 | H147: -1.987281225e-05 | J147: -0.0004575326976 | K147: -0.009769273408 | L147: 0.006410250124 | M147: 0.1371744019 | N147: 0.0005889394706
A148: =IF('DF raw data'!A153="","",'DF raw data'!A153) -> -257 | B148: =IF('DF raw data'!B153="","",'DF raw data'!B153) -> -1.4728e-05 | C148: =IF('DF raw data'!C153="","",'DF raw data'!C153) -> 0.000158476 | D148: =IF('DF raw data'!D153="","",'DF raw data'!D153) -> -1.65093e-05 | F148: -1.4779548e-05 | G148: 0.000159030666 | H148: -1.656708255e-05 | J148: -0.0004649224716 | K148: -0.01000173464 | L148: 0.006489765457 | M148: 0.1404192846 | N148: 0.0006101060749
A149: =IF('DF raw data'!A154="","",'DF raw data'!A154) -> -256.5 | B149: =IF('DF raw data'!B154="","",'DF raw data'!B154) -> -5.88385e-06 | C149: =IF('DF raw data'!C154="","",'DF raw data'!C154) -> 0.000152575 | D149: =IF('DF raw data'!D154="","",'DF raw data'!D154) -> -2.03741e-05 | F149: -5.904443475e-06 | G149: 0.0001531090125 | H149: -2.044540935e-05 | J149: -0.0004678746933 | K149: -0.01023567199 | L149: 0.006566319963 | M149: 0.1437024446 | N149: 0.0006317738072
A150: =IF('DF raw data'!A155="","",'DF raw data'!A155) -> -256 | B150: =IF('DF raw data'!B155="","",'DF raw data'!B155) -> -1.90256e-05 | C150: =IF('DF raw data'!C155="","",'DF raw data'!C155) -> 0.000146652 | D150: =IF('DF raw data'!D155="","",'DF raw data'!D155) -> -8.70234e-06 | F150: -1.90921896e-05 | G150: 0.000147165282 | H150: -8.73279819e-06 | J150: -0.0004774207881 | K150: -0.01047438238 | L150: 0.006639902604 | M150: 0.1470223959 | N150: 0.0006539319258
A151: =IF('DF raw data'!A156="","",'DF raw data'!A156) -> -255.5 | B151: =IF('DF raw data'!B156="","",'DF raw data'!B156) -> -3.00294e-06 | C151: =IF('DF raw data'!C156="","",'DF raw data'!C156) -> 0.000154796 | D151: =IF('DF raw data'!D156="","",'DF raw data'!D156) -> -1.71198e-05 | F151: -3.01345029e-06 | G151: 0.000155337786 | H151: -1.71797193e-05 | J151: -0.0004789275133 | K151: -0.01071384614 | L151: 0.006717571497 | M151: 0.1503811816 | N151: 0.000676609495
A152: =IF('DF raw data'!A157="","",'DF raw data'!A157) -> -255 | B152: =IF('DF raw data'!B157="","",'DF raw data'!B157) -> -2.88123e-06 | C152: =IF('DF raw data'!C157="","",'DF raw data'!C157) -> 0.000157546 | D152: =IF('DF raw data'!D157="","",'DF raw data'!D157) -> -7.37024e-06 | F152: -2.891314305e-06 | G152: 0.000158097411 | H152: -7.39603584e-06 | J152: -0.0004803731704 | K152: -0.01095403273 | L152: 0.006796620203 | M152: 0.1537794917 | N152: 0.0006998218973
A153: =IF('DF raw data'!A158="","",'DF raw data'!A158) -> -254.5 | B153: =IF('DF raw data'!B158="","",'DF raw data'!B158) -> -1.22886e-05 | C153: =IF('DF raw data'!C158="","",'DF raw data'!C158) -> 0.000157312 | D153: =IF('DF raw data'!D158="","",'DF raw data'!D158) -> -2.33087e-05 | F153: -1.23316101e-05 | G153: 0.000157862592 | H153: -2.339028045e-05 | J153: -0.0004865389755 | K153: -0.01119730221 | L153: 0.006875551499 | M153: 0.1572172675 | N153: 0.0007235768616
A154: =IF('DF raw data'!A159="","",'DF raw data'!A159) -> -254 | B154: =IF('DF raw data'!B159="","",'DF raw data'!B159) -> -1.39583e-05 | C154: =IF('DF raw data'!C159="","",'DF raw data'!C159) -> 0.000168063 | D154: =IF('DF raw data'!D159="","",'DF raw data'!D159) -> -1.78716e-05 | F154: -1.400715405e-05 | G154: 0.0001686512205 | H154: -1.79341506e-05 | J154: -0.0004935425525 | K154: -0.01144407349 | L154: 0.006959877109 | M154: 0.160697206 | N154: 0.0007479185984
A155: =IF('DF raw data'!A160="","",'DF raw data'!A160) -> -253.5 | B155: =IF('DF raw data'!B160="","",'DF raw data'!B160) -> -6.84523e-06 | C155: =IF('DF raw data'!C160="","",'DF raw data'!C160) -> 0.00016693 | D155: =IF('DF raw data'!D160="","",'DF raw data'!D160) -> -1.95114e-05 | F155: -6.869188305e-06 | G155: 0.000167514255 | H155: -1.95796899e-05 | J155: -0.0004969771466 | K155: -0.01169256206 | L155: 0.007043634236 | M155: 0.1642190232 | N155: 0.0007728484831
A156: =IF('DF raw data'!A161="","",'DF raw data'!A161) -> -253 | B156: =IF('DF raw data'!B161="","",'DF raw data'!B161) -> -1.35118e-05 | C156: =IF('DF raw data'!C161="","",'DF raw data'!C161) -> 0.000157549 | D156: =IF('DF raw data'!D161="","",'DF raw data'!D161) -> -1.46215e-05 | F156: -1.35590913e-05 | G156: 0.0001581004215 | H156: -1.467267525e-05 | J156: -0.0005037566923 | K156: -0.01194444041 | L156: 0.007122684447 | M156: 0.1677803654 | N156: 0.0007983416854
A157: =IF('DF raw data'!A162="","",'DF raw data'!A162) -> -252.5 | B157: =IF('DF raw data'!B162="","",'DF raw data'!B162) -> -5.55996e-06 | C157: =IF('DF raw data'!C162="","",'DF raw data'!C162) -> 0.000155236 | D157: =IF('DF raw data'!D162="","",'DF raw data'!D162) -> -2.56676e-05 | F157: -5.57941986e-06 | G157: 0.000155779326 | H157: -2.57574366e-05 | J157: -0.0005065464022 | K157: -0.01219771361 | L157: 0.00720057411 | M157: 0.1713806524 | N157: 0.0008243941138
A158: =IF('DF raw data'!A163="","",'DF raw data'!A163) -> -252 | B158: =IF('DF raw data'!B163="","",'DF raw data'!B163) -> -1.40246e-05 | C158: =IF('DF raw data'!C163="","",'DF raw data'!C163) -> 0.000148573 | D158: =IF('DF raw data'!D163="","",'DF raw data'!D163) -> -1.46713e-05 | F158: -1.40736861e-05 | G158: 0.0001490930055 | H158: -1.472264955e-05 | J158: -0.0005135832453 | K158: -0.01245450523 | L158: 0.007275120613 | M158: 0.1750182127 | N158: 0.0008509896876
A159: =IF('DF raw data'!A164="","",'DF raw data'!A164) -> -251.5 | B159: =IF('DF raw data'!B164="","",'DF raw data'!B164) -> -1.09406e-05 | C159: =IF('DF raw data'!C164="","",'DF raw data'!C164) -> 0.000154206 | D159: =IF('DF raw data'!D164="","",'DF raw data'!D164) -> -2.72097e-05 | F159: -1.09788921e-05 | G159: 0.000154745721 | H159: -2.730493395e-05 | J159: -0.0005190726913 | K159: -0.01271404158 | L159: 0.007352493473 | M159: 0.1786944595 | N159: 0.000878153986
A160: =IF('DF raw data'!A165="","",'DF raw data'!A165) -> -251 | B160: =IF('DF raw data'!B165="","",'DF raw data'!B165) -> -2.087e-05 | C160: =IF('DF raw data'!C165="","",'DF raw data'!C165) -> 0.000154284 | D160: =IF('DF raw data'!D165="","",'DF raw data'!D165) -> -2.98187e-05 | F160: -2.0943045e-05 | G160: 0.000154823994 | H160: -2.992306545e-05 | J160: -0.0005295442138 | K160: -0.01297881369 | L160: 0.00742990547 | M160: 0.1824094122 | N160: 0.0009058959422
A161: =IF('DF raw data'!A166="","",'DF raw data'!A166) -> -250.5 | B161: =IF('DF raw data'!B166="","",'DF raw data'!B166) -> -6.65727e-06 | C161: =IF('DF raw data'!C166="","",'DF raw data'!C166) -> 0.000142005 | D161: =IF('DF raw data'!D166="","",'DF raw data'!D166) -> -1.32146e-05 | F161: -6.680570445e-06 | G161: 0.0001425020175 | H161: -1.32608511e-05 | J161: -0.000532884499 | K161: -0.01324525594 | L161: 0.007501156479 | M161: 0.1861599905 | N161: 0.0009341715994
A162: =IF('DF raw data'!A167="","",'DF raw data'!A167) -> -250 | B162: =IF('DF raw data'!B167="","",'DF raw data'!B167) -> 5.83926e-06 | C162: =IF('DF raw data'!C167="","",'DF raw data'!C167) -> 0.000147239 | D162: =IF('DF raw data'!D167="","",'DF raw data'!D167) -> -1.80528e-05 | F162: 5.85969741e-06 | G162: 0.0001477543365 | H162: -1.81159848e-05 | J162: -0.0005299546503 | K162: -0.01351023326 | L162: 0.007575033647 | M162: 0.1899475073 | N162: 0.0009630025927
A163: =IF('DF raw data'!A168="","",'DF raw data'!A168) -> -249.5 | B163: =IF('DF raw data'!B168="","",'DF raw data'!B168) -> -1.03765e-05 | C163: =IF('DF raw data'!C168="","",'DF raw data'!C168) -> 0.000159789 | D163: =IF('DF raw data'!D168="","",'DF raw data'!D168) -> -7.81901e-06 | F163: -1.041281775e-05 | G163: 0.0001603482615 | H163: -7.846376535e-06 | J163: -0.0005351610592 | K163: -0.01377781379 | L163: 0.007655207778 | M163: 0.1937751112 | N163: 0.0009924468945
A164: =IF('DF raw data'!A169="","",'DF raw data'!A169) -> -249 | B164: =IF('DF raw data'!B169="","",'DF raw data'!B169) -> -2.2291e-05 | C164: =IF('DF raw data'!C169="","",'DF raw data'!C169) -> 0.00016779 | D164: =IF('DF raw data'!D169="","",'DF raw data'!D169) -> -1.18841e-05 | F164: -2.23690185e-05 | G164: 0.000168377265 | H164: -1.192569435e-05 | J164: -0.0005463455685 | K164: -0.01405098657 | L164: 0.007739396411 | M164: 0.1976448094 | N164: 0.00102254527
A165: =IF('DF raw data'!A170="","",'DF raw data'!A170) -> -248.5 | B165: =IF('DF raw data'!B170="","",'DF raw data'!B170) -> -1.31312e-05 | C165: =IF('DF raw data'!C170="","",'DF raw data'!C170) -> 0.000166649 | D165: =IF('DF raw data'!D170="","",'DF raw data'!D170) -> -8.12185e-06 | F165: -1.31771592e-05 | G165: 0.0001672322715 | H165: -8.150276475e-06 | J165: -0.0005529341481 | K165: -0.01432745365 | L165: 0.007823012546 | M165: 0.2015563157 | N165: 0.0010532979
A166: =IF('DF raw data'!A171="","",'DF raw data'!A171) -> -248 | B166: =IF('DF raw data'!B171="","",'DF raw data'!B171) -> -1.71672e-05 | C166: =IF('DF raw data'!C171="","",'DF raw data'!C171) -> 0.00015772 | D166: =IF('DF raw data'!D171="","",'DF raw data'!D171) -> -9.68232e-06 | F166: -1.72272852e-05 | G166: 0.00015827202 | H166: -9.71620812e-06 | J166: -0.0005615477907 | K166: -0.01460822754 | L166: 0.007902148556 | M166: 0.2055073899 | N166: 0.001084677544
A167: =IF('DF raw data'!A172="","",'DF raw data'!A172) -> -247.5 | B167: =IF('DF raw data'!B172="","",'DF raw data'!B172) -> -2.95273e-05 | C167: =IF('DF raw data'!C172="","",'DF raw data'!C172) -> 0.000158654 | D167: =IF('DF raw data'!D172="","",'DF raw data'!D172) -> -1.60952e-05 | F167: -2.963064555e-05 | G167: 0.000159209289 | H167: -1.61515332e-05 | J167: -0.0005763631134 | K167: -0.0148964091 | L167: 0.007981753201 | M167: 0.2094982665 | N167: 0.001116697834
A168: =IF('DF raw data'!A173="","",'DF raw data'!A173) -> -247 | B168: =IF('DF raw data'!B173="","",'DF raw data'!B173) -> -7.61255e-06 | C168: =IF('DF raw data'!C173="","",'DF raw data'!C173) -> 0.000147864 | D168: =IF('DF raw data'!D173="","",'DF raw data'!D173) -> -2.21286e-05 | F168: -7.639193925e-06 | G168: 0.000148381524 | H168: -2.22060501e-05 | J168: -0.0005801827104 | K168: -0.01518650046 | L168: 0.008055943963 | M168: 0.2135262385 | N168: 0.001149315256
A169: =IF('DF raw data'!A174="","",'DF raw data'!A174) -> -246.5 | B169: =IF('DF raw data'!B174="","",'DF raw data'!B174) -> -1.1078e-05 | C169: =IF('DF raw data'!C174="","",'DF raw data'!C174) -> 0.000148801 | D169: =IF('DF raw data'!D174="","",'DF raw data'!D174) -> -1.30369e-05 | F169: -1.1116773e-05 | G169: 0.0001493218035 | H169: -1.308252915e-05 | J169: -0.0005857410969 | K169: -0.015479371 | L169: 0.008130604865 | M169: 0.2175915409 | N169: 0.00118254017
A170: =IF('DF raw data'!A175="","",'DF raw data'!A175) -> -246 | B170: =IF('DF raw data'!B175="","",'DF raw data'!B175) -> -2.02956e-05 | C170: =IF('DF raw data'!C175="","",'DF raw data'!C175) -> 0.000167467 | D170: =IF('DF raw data'!D175="","",'DF raw data'!D175) -> -2.65167e-05 | F170: -2.03666346e-05 | G170: 0.0001680531345 | H170: -2.660950845e-05 | J170: -0.0005959244142 | K170: -0.01577733321 | L170: 0.008214631432 | M170: 0.2216988567 | N170: 0.001216457818
A171: =IF('DF raw data'!A176="","",'DF raw data'!A176) -> -245.5 | B171: =IF('DF raw data'!B176="","",'DF raw data'!B176) -> -1.6265e-05 | C171: =IF('DF raw data'!C176="","",'DF raw data'!C176) -> 0.000161452 | D171: =IF('DF raw data'!D176="","",'DF raw data'!D176) -> -1.67482e-05 | F171: -1.63219275e-05 | G171: 0.000162017082 | H171: -1.68068187e-05 | J171: -0.000604085378 | K171: -0.0160793759 | L171: 0.008295639973 | M171: 0.2258466766 | N171: 0.001251049099
A172: =IF('DF raw data'!A177="","",'DF raw data'!A177) -> -245 | B172: =IF('DF raw data'!B177="","",'DF raw data'!B177) -> -4.98941e-06 | C172: =IF('DF raw data'!C177="","",'DF raw data'!C177) -> 0.000153886 | D172: =IF('DF raw data'!D177="","",'DF raw data'!D177) -> -1.64145e-05 | F172: -5.006872935e-06 | G172: 0.000154424601 | H172: -1.647195075e-05 | J172: -0.0006065888144 | K172: -0.01638267031 | L172: 0.008372852273 | M172: 0.2300331028 | N172: 0.001286285401
A173: =IF('DF raw data'!A178="","",'DF raw data'!A178) -> -244.5 | B173: =IF('DF raw data'!B178="","",'DF raw data'!B178) -> -1.38941e-05 | C173: =IF('DF raw data'!C178="","",'DF raw data'!C178) -> 0.000152789 | D173: =IF('DF raw data'!D178="","",'DF raw data'!D178) -> -1.77179e-05 | F173: -1.394272935e-05 | G173: 0.0001533237615 | H173: -1.777991265e-05 | J173: -0.0006135601791 | K173: -0.0166894504 | L173: 0.008449514154 | M173: 0.2342578599 | N173: 0.001322170774
A174: =IF('DF raw data'!A179="","",'DF raw data'!A179) -> -244 | B174: =IF('DF raw data'!B179="","",'DF raw data'!B179) -> -2.49102e-06 | C174: =IF('DF raw data'!C179="","",'DF raw data'!C179) -> 0.000152503 | D174: =IF('DF raw data'!D179="","",'DF raw data'!D179) -> -1.63334e-05 | F174: -2.49973857e-06 | G174: 0.0001530367605 | H174: -1.63905669e-05 | J174: -0.0006148100484 | K174: -0.01699685542 | L174: 0.008526032534 | M174: 0.2385208761 | N174: 0.001358706385
A175: =IF('DF raw data'!A180="","",'DF raw data'!A180) -> -243.5 | B175: =IF('DF raw data'!B180="","",'DF raw data'!B180) -> -2.04923e-05 | C175: =IF('DF raw data'!C180="","",'DF raw data'!C180) -> 0.000159017 | D175: =IF('DF raw data'!D180="","",'DF raw data'!D180) -> -1.84317e-05 | F175: -2.056402305e-05 | G175: 0.0001595735595 | H175: -1.849621095e-05 | J175: -0.0006250920599 | K175: -0.01730940145 | L175: 0.008605819314 | M175: 0.2428237858 | N175: 0.001395931818
A176: =IF('DF raw data'!A181="","",'DF raw data'!A181) -> -243 | B176: =IF('DF raw data'!B181="","",'DF raw data'!B181) -> -1.41582e-05 | C176: =IF('DF raw data'!C181="","",'DF raw data'!C181) -> 0.000165474 | D176: =IF('DF raw data'!D181="","",'DF raw data'!D181) -> -6.11164e-06 | F176: -1.42077537e-05 | G176: 0.000166053159 | H176: -6.13303074e-06 | J176: -0.0006321959368 | K176: -0.01762549942 | L176: 0.008688845894 | M176: 0.2471682087 | N176: 0.001433879676
A177: =IF('DF raw data'!A182="","",'DF raw data'!A182) -> -242.5 | B177: =IF('DF raw data'!B182="","",'DF raw data'!B182) -> -2.03053e-05 | C177: =IF('DF raw data'!C182="","",'DF raw data'!C182) -> 0.000157066 | D177: =IF('DF raw data'!D182="","",'DF raw data'!D182) -> -1.068e-05 | F177: -2.037636855e-05 | G177: 0.000157615731 | H177: -1.071738e-05 | J177: -0.000642384121 | K177: -0.01794669148 | L177: 0.008767653759 | M177: 0.2515520356 | N177: 0.00147252188
A178: =IF('DF raw data'!A183="","",'DF raw data'!A183) -> -242 | B178: =IF('DF raw data'!B183="","",'DF raw data'!B183) -> -1.50544e-05 | C178: =IF('DF raw data'!C183="","",'DF raw data'!C183) -> 0.000160684 | D178: =IF('DF raw data'!D183="","",'DF raw data'!D183) -> -7.45341e-06 | F178: -1.51070904e-05 | G178: 0.000161246394 | H178: -7.479496935e-06 | J178: -0.0006499376662 | K178: -0.01827166031 | L178: 0.008848276956 | M178: 0.2559761741 | N178: 0.001511879092
A179: =IF('DF raw data'!A184="","",'DF raw data'!A184) -> -241.5 | B179: =IF('DF raw data'!B184="","",'DF raw data'!B184) -> -7.68819e-06 | C179: =IF('DF raw data'!C184="","",'DF raw data'!C184) -> 0.000167677 | D179: =IF('DF raw data'!D184="","",'DF raw data'!D184) -> -4.12963e-06 | F179: -7.715098665e-06 | G179: 0.0001682638695 | H179: -4.144083705e-06 | J179: -0.0006537952156 | K179: -0.01859855792 | L179: 0.008932408891 | M179: 0.2604423785 | N179: 0.001551986781
A180: =IF('DF raw data'!A185="","",'DF raw data'!A185) -> -241 | B180: =IF('DF raw data'!B185="","",'DF raw data'!B185) -> -8.5836e-06 | C180: =IF('DF raw data'!C185="","",'DF raw data'!C185) -> 0.000161114 | D180: =IF('DF raw data'!D185="","",'DF raw data'!D185) -> -6.8613e-06 | F180: -8.6136426e-06 | G180: 0.000161677899 | H180: -6.88531455e-06 | J180: -0.0006581020369 | K180: -0.01892760894 | L180: 0.00901324784 | M180: 0.2649490025 | N180: 0.001592822648
A181: =IF('DF raw data'!A186="","",'DF raw data'!A186) -> -240.5 | B181: =IF('DF raw data'!B186="","",'DF raw data'!B186) -> -1.96686e-05 | C181: =IF('DF raw data'!C186="","",'DF raw data'!C186) -> 0.000159547 | D181: =IF('DF raw data'!D186="","",'DF raw data'!D186) -> -4.48815e-06 | F181: -1.97374401e-05 | G181: 0.0001601054145 | H181: -4.503858525e-06 | J181: -0.0006679707569 | K181: -0.01926159432 | L181: 0.009093300548 | M181: 0.2694956527 | N181: 0.001634389798
A182: =IF('DF raw data'!A187="","",'DF raw data'!A187) -> -240 | B182: =IF('DF raw data'!B187="","",'DF raw data'!B187) -> -6.0815e-06 | C182: =IF('DF raw data'!C187="","",'DF raw data'!C187) -> 0.000162969 | D182: =IF('DF raw data'!D187="","",'DF raw data'!D187) -> -1.21014e-05 | F182: -6.10278525e-06 | G182: 0.0001635393915 | H182: -1.21437549e-05 | J182: -0.0006710221495 | K182: -0.01959710539 | L182: 0.009175070243 | M182: 0.2740831878 | N182: 0.001676705891
A183: =IF('DF raw data'!A188="","",'DF raw data'!A188) -> -239.5 | B183: =IF('DF raw data'!B188="","",'DF raw data'!B188) -> -1.71016e-05 | C183: =IF('DF raw data'!C188="","",'DF raw data'!C188) -> 0.000172032 | D183: =IF('DF raw data'!D188="","",'DF raw data'!D188) -> -1.07743e-05 | F183: -1.71614556e-05 | G183: 0.000172634112 | H183: -1.081201005e-05 | J183: -0.0006796028773 | K183: -0.01993690683 | L183: 0.009261387299 | M183: 0.2787138815 | N183: 0.001719823468
A184: =IF('DF raw data'!A189="","",'DF raw data'!A189) -> -239 | B184: =IF('DF raw data'!B189="","",'DF raw data'!B189) -> -1.19744e-05 | C184: =IF('DF raw data'!C189="","",'DF raw data'!C189) -> 0.000167554 | D184: =IF('DF raw data'!D189="","",'DF raw data'!D189) -> -1.4364e-05 | F184: -1.20163104e-05 | G184: 0.000168140439 | H184: -1.4414274e-05 | J184: -0.0006856110325 | K184: -0.02027971235 | L184: 0.009345457519 | M184: 0.2833866103 | N184: 0.001763727287
A185: =IF('DF raw data'!A190="","",'DF raw data'!A190) -> -238.5 | B185: =IF('DF raw data'!B190="","",'DF raw data'!B190) -> -1.49862e-05 | C185: =IF('DF raw data'!C190="","",'DF raw data'!C190) -> 0.000161046 | D185: =IF('DF raw data'!D190="","",'DF raw data'!D190) -> -1.25582e-05 | F185: -1.50386517e-05 | G185: 0.000161609661 | H185: -1.26021537e-05 | J185: -0.0006931303584 | K185: -0.02062627753 | L185: 0.009426262349 | M185: 0.2880997414 | N185: 0.001808394713
A186: =IF('DF raw data'!A191="","",'DF raw data'!A191) -> -238 | B186: =IF('DF raw data'!B191="","",'DF raw data'!B191) -> -9.60991e-06 | C186: =IF('DF raw data'!C191="","",'DF raw data'!C191) -> 0.000168114 | D186: =IF('DF raw data'!D191="","",'DF raw data'!D191) -> -4.99776e-06 | F186: -9.643544685e-06 | G186: 0.000168702399 | H186: -5.01525216e-06 | J186: -0.0006979521307 | K186: -0.02097525359 | L186: 0.009510613549 | M186: 0.2928550482 | N186: 0.001853864167
A187: =IF('DF raw data'!A192="","",'DF raw data'!A192) -> -237.5 | B187: =IF('DF raw data'!B192="","",'DF raw data'!B192) -> -1.08831e-06 | C187: =IF('DF raw data'!C192="","",'DF raw data'!C192) -> 0.000168329 | D187: =IF('DF raw data'!D192="","",'DF raw data'!D192) -> -5.45815e-06 | F187: -1.092119085e-06 | G187: 0.0001689181515 | H187: -5.477253525e-06 | J187: -0.0006984981903 | K187: -0.02132450269 | L187: 0.009595072625 | M187: 0.2976525845 | N187: 0.001900140826
A188: =IF('DF raw data'!A193="","",'DF raw data'!A193) -> -237 | B188: =IF('DF raw data'!B193="","",'DF raw data'!B193) -> -1.23549e-05 | C188: =IF('DF raw data'!C193="","",'DF raw data'!C193) -> 0.000162426 | D188: =IF('DF raw data'!D193="","",'DF raw data'!D193) -> -2.04708e-05 | F188: -1.239814215e-05 | G188: 0.000162994491 | H188: -2.05424478e-05 | J188: -0.0007046972613 | K188: -0.02167685132 | L188: 0.00967656987 | M188: 0.3024908695 | N188: 0.001947207127
A189: =IF('DF raw data'!A194="","",'DF raw data'!A194) -> -236.5 | B189: =IF('DF raw data'!B194="","",'DF raw data'!B194) -> -1.55644e-05 | C189: =IF('DF raw data'!C194="","",'DF raw data'!C194) -> 0.00015914 | D189: =IF('DF raw data'!D194="","",'DF raw data'!D194) -> -1.0395e-05 | F189: -1.56188754e-05 | G189: 0.00015969699 | H189: -1.04313825e-05 | J189: -0.000712506699 | K189: -0.02203310467 | L189: 0.009756418365 | M189: 0.3073690786 | N189: 0.00199505481
A190: =IF('DF raw data'!A195="","",'DF raw data'!A195) -> -236 | B190: =IF('DF raw data'!B195="","",'DF raw data'!B195) -> -8.69976e-06 | C190: =IF('DF raw data'!C195="","",'DF raw data'!C195) -> 0.000156133 | D190: =IF('DF raw data'!D195="","",'DF raw data'!D195) -> -2.53441e-05 | F190: -8.73020916e-06 | G190: 0.0001566794655 | H190: -2.543280435e-05 | J190: -0.0007168718036 | K190: -0.02239154057 | L190: 0.009834758098 | M190: 0.3122864577 | N190: 0.002043672996
A191: =IF('DF raw data'!A196="","",'DF raw data'!A196) -> -235.5 | B191: =IF('DF raw data'!B196="","",'DF raw data'!B196) -> -2.01155e-05 | C191: =IF('DF raw data'!C196="","",'DF raw data'!C196) -> 0.000163516 | D191: =IF('DF raw data'!D196="","",'DF raw data'!D196) -> -6.63293e-06 | F191: -2.018590425e-05 | G191: 0.000164088306 | H191: -6.656145255e-06 | J191: -0.0007269647558 | K191: -0.02275502295 | L191: 0.009916802251 | M191: 0.3172448588 | N191: 0.002093108718
A192: =IF('DF raw data'!A197="","",'DF raw data'!A197) -> -235 | B192: =IF('DF raw data'!B197="","",'DF raw data'!B197) -> -1.84508e-05 | C192: =IF('DF raw data'!C197="","",'DF raw data'!C197) -> 0.000160736 | D192: =IF('DF raw data'!D197="","",'DF raw data'!D197) -> -6.19813e-06 | F192: =(1-$G$1*($B$49-$G$2))*B192 -> -1.85153778e-05 | G192: 0.000161298576 | H192: -6.219823455e-06 | J192: =F192*$G$3+J191 -> -0.0007362224447 | K192: =J192*$G$3+K191 -> -0.02312313417 | L192: =G192*$G$3+L191 -> 0.009997451539 | M192: =L192*$G$3+M191 -> 0.3222435846 | N192: =(J192^2+L192^2)*$G$3+N191 -> 0.002143354249
A193: =IF('DF raw data'!A198="","",'DF raw data'!A198) -> -234.5 | B193: =IF('DF raw data'!B198="","",'DF raw data'!B198) -> -1.17863e-05 | C193: =IF('DF raw data'!C198="","",'DF raw data'!C198) -> 0.000170073 | D193: =IF('DF raw data'!D198="","",'DF raw data'!D198) -> -7.68949e-06 | F193: -1.182755205e-05 | G193: 0.0001706682555 | H193: -7.716403215e-06 | J193: -0.0007421362207 | K193: -0.02349420228 | L193: 0.01008278567 | M193: 0.3272849774 | N193: 0.002194460915
A194: =IF('DF raw data'!A199="","",'DF raw data'!A199) -> -234 | B194: =IF('DF raw data'!B199="","",'DF raw data'!B199) -> -1.19117e-05 | C194: =IF('DF raw data'!C199="","",'DF raw data'!C199) -> 0.000170737 | D194: =IF('DF raw data'!D199="","",'DF raw data'!D199) -> -1.24638e-05 | F194: -1.195339095e-05 | G194: 0.0001713345795 | H194: -1.25074233e-05 | J194: -0.0007481129162 | K194: -0.02386825874 | L194: 0.01016845296 | M194: 0.3323692039 | N194: 0.002246439469
A195: =IF('DF raw data'!A200="","",'DF raw data'!A200) -> -233.5 | B195: =IF('DF raw data'!B200="","",'DF raw data'!B200) -> -2.11966e-05 | C195: =IF('DF raw data'!C200="","",'DF raw data'!C200) -> 0.000173385 | D195: =IF('DF raw data'!D200="","",'DF raw data'!D200) -> -1.93922e-05 | F195: -2.12707881e-05 | G195: 0.0001739918475 | H195: -1.94600727e-05 | J195: -0.0007587483102 | K195: -0.02424763289 | L195: 0.01025544888 | M195: 0.3374969283 | N195: 0.002299314435
A196: =IF('DF raw data'!A201="","",'DF raw data'!A201) -> -233 | B196: =IF('DF raw data'!B201="","",'DF raw data'!B201) -> -1.08193e-05 | C196: =IF('DF raw data'!C201="","",'DF raw data'!C201) -> 0.000171746 | D196: =IF('DF raw data'!D201="","",'DF raw data'!D201) -> -1.71974e-05 | F196: -1.085716755e-05 | G196: 0.000172347111 | H196: -1.72575909e-05 | J196: -0.000764176894 | K196: -0.02462972134 | L196: 0.01034162244 | M196: 0.3426677395 | N196: 0.002353080995
A197: =IF('DF raw data'!A202="","",'DF raw data'!A202) -> -232.5 | B197: =IF('DF raw data'!B202="","",'DF raw data'!B202) -> -1.2806e-05 | C197: =IF('DF raw data'!C202="","",'DF raw data'!C202) -> 0.000165286 | D197: =IF('DF raw data'!D202="","",'DF raw data'!D202) -> -1.58617e-05 | F197: -1.2850821e-05 | G197: 0.000165864501 | H197: -1.591721595e-05 | J197: -0.0007706023045 | K197: -0.02501502249 | L197: 0.01042455469 | M197: 0.3478800169 | N197: 0.002407713579
A198: =IF('DF raw data'!A203="","",'DF raw data'!A203) -> -232 | B198: =IF('DF raw data'!B203="","",'DF raw data'!B203) -> -1.21591e-05 | C198: =IF('DF raw data'!C203="","",'DF raw data'!C203) -> 0.000162621 | D198: =IF('DF raw data'!D203="","",'DF raw data'!D203) -> -2.60523e-05 | F198: -1.220165685e-05 | G198: 0.0001631901735 | H198: -2.614348305e-05 | J198: -0.0007767031329 | K198: -0.02540337406 | L198: 0.01050614977 | M198: 0.3531330918 | N198: 0.002463204805
A199: =IF('DF raw data'!A204="","",'DF raw data'!A204) -> -231.5 | B199: =IF('DF raw data'!B204="","",'DF raw data'!B204) -> -9.40932e-06 | C199: =IF('DF raw data'!C204="","",'DF raw data'!C204) -> 0.000164736 | D199: =IF('DF raw data'!D204="","",'DF raw data'!D204) -> -1.76485e-05 | F199: -9.44225262e-06 | G199: 0.000165312576 | H199: -1.771026975e-05 | J199: -0.0007814242592 | K199: -0.02579408619 | L199: 0.01058880606 | M199: 0.3584274948 | N199: 0.002519571523
A200: =IF('DF raw data'!A205="","",'DF raw data'!A205) -> -231 | B200: =IF('DF raw data'!B205="","",'DF raw data'!B205) -> -3.05893e-06 | C200: =IF('DF raw data'!C205="","",'DF raw data'!C205) -> 0.000164546 | D200: =IF('DF raw data'!D205="","",'DF raw data'!D205) -> -2.95216e-05 | F200: -3.069636255e-06 | G200: 0.000165121911 | H200: -2.96249256e-05 | J200: -0.0007829590773 | K200: -0.02618556573 | L200: 0.01067136702 | M200: 0.3637631783 | N200: 0.002576817073
A201: =IF('DF raw data'!A206="","",'DF raw data'!A206) -> -230.5 | B201: =IF('DF raw data'!B206="","",'DF raw data'!B206) -> -6.90405e-06 | C201: =IF('DF raw data'!C206="","",'DF raw data'!C206) -> 0.000156413 | D201: =IF('DF raw data'!D206="","",'DF raw data'!D206) -> -2.78612e-05 | F201: -6.928214175e-06 | G201: 0.0001569604455 | H201: -2.79587142e-05 | J201: -0.0007864231844 | K201: -0.02657877732 | L201: 0.01074984724 | M201: 0.3691381019 | N201: 0.002634905911
... 1061 more rows

Sheet 10 y=-0.1
A1: =IF('DF raw data'!E1="","",'DF raw data'!E1) -> Number of header lines | B1: =IF('DF raw data'!F1="","",'DF raw data'!F1) -> 54 | C1: =IF('DF raw data'!G1="","",'DF raw data'!G1) ->  | D1: =IF('DF raw data'!H1="","",'DF raw data'!H1) ->  | F1: T_coeff | G1: -0.001 | H1: /degC | J1: IBy total | K1: =J1262*1000 -> -4.585265212 | L1: muTm | M1: =L1262*1000 -> 117.2553302 | R1: DF ref | S1: ='10 y=-0.2'!S1 -> 1
A2: =IF('DF raw data'!E2="","",'DF raw data'!E2) -> Measured by | B2: =IF('DF raw data'!F2="","",'DF raw data'!F2) -> Danfysik | C2: =IF('DF raw data'!G2="","",'DF raw data'!G2) ->  | D2: =IF('DF raw data'!H2="","",'DF raw data'!H2) ->  | F2: Tcorr | G2: 20 | H2: degC | J2: JBy total | K2: =K1262 -> -3.029853857 | L2: muTm^2 | M2: =M1262 -> 35.03014227
A3: =IF('DF raw data'!E3="","",'DF raw data'!E3) -> Operator | B3: =IF('DF raw data'!F3="","",'DF raw data'!F3) -> PMHA | C3: =IF('DF raw data'!G3="","",'DF raw data'!G3) ->  | D3: =IF('DF raw data'!H3="","",'DF raw data'!H3) ->  | F3: Step | G3: =A63-A62 -> 0.5 | H3: mm | J3: PI total | K3: =N1262 -> 10610.80194 | L3: T^2mm^3
A4: =IF('DF raw data'!E4="","",'DF raw data'!E4) -> Data-time | B4: =IF('DF raw data'!F4="","",'DF raw data'!F4) -> 17-09-2024, 12:01:26 | C4: =IF('DF raw data'!G4="","",'DF raw data'!G4) ->  | D4: =IF('DF raw data'!H4="","",'DF raw data'!H4) -> 
A5: =IF('DF raw data'!E5="","",'DF raw data'!E5) -> Project | B5: =IF('DF raw data'!F5="","",'DF raw data'!F5) -> 504314 | C5: =IF('DF raw data'!G5="","",'DF raw data'!G5) ->  | D5: =IF('DF raw data'!H5="","",'DF raw data'!H5) -> 
A6: =IF('DF raw data'!E6="","",'DF raw data'!E6) -> Magnet type | B6: =IF('DF raw data'!F6="","",'DF raw data'!F6) -> Dipole | C6: =IF('DF raw data'!G6="","",'DF raw data'!G6) ->  | D6: =IF('DF raw data'!H6="","",'DF raw data'!H6) -> 
A7: =IF('DF raw data'!E7="","",'DF raw data'!E7) -> Magnet nr. | B7: =IF('DF raw data'!F7="","",'DF raw data'!F7) -> 2410097 | C7: =IF('DF raw data'!G7="","",'DF raw data'!G7) ->  | D7: =IF('DF raw data'!H7="","",'DF raw data'!H7) -> 
A8: =IF('DF raw data'!E8="","",'DF raw data'!E8) -> Meas. number | B8: =IF('DF raw data'!F8="","",'DF raw data'!F8) -> 520 | C8: =IF('DF raw data'!G8="","",'DF raw data'!G8) ->  | D8: =IF('DF raw data'!H8="","",'DF raw data'!H8) -> 
A9: =IF('DF raw data'!E9="","",'DF raw data'!E9) -> Add. info | B9: =IF('DF raw data'!F9="","",'DF raw data'!F9) -> Y-alignment scan 2) | C9: =IF('DF raw data'!G9="","",'DF raw data'!G9) ->  | D9: =IF('DF raw data'!H9="","",'DF raw data'!H9) -> 
A10: =IF('DF raw data'!E10="","",'DF raw data'!E10) -> Device | B10: =IF('DF raw data'!F10="","",'DF raw data'!F10) -> (HAL) HALL-PROBE | C10: =IF('DF raw data'!G10="","",'DF raw data'!G10) ->  | D10: =IF('DF raw data'!H10="","",'DF raw data'!H10) -> 
A11: =IF('DF raw data'!E11="","",'DF raw data'!E11) -> Goal | B11: =IF('DF raw data'!F11="","",'DF raw data'!F11) -> (AXI) AXis Integral (Line, EFB) | C11: =IF('DF raw data'!G11="","",'DF raw data'!G11) ->  | D11: =IF('DF raw data'!H11="","",'DF raw data'!H11) -> 
A12: =IF('DF raw data'!E12="","",'DF raw data'!E12) -> Power supply mode | B12: =IF('DF raw data'!F12="","",'DF raw data'!F12) -> (PM) Permanent Magnet (no MPS in use) | C12: =IF('DF raw data'!G12="","",'DF raw data'!G12) ->  | D12: =IF('DF raw data'!H12="","",'DF raw data'!H12) -> 
A13: =IF('DF raw data'!E13="","",'DF raw data'!E13) -> Data format | B13: =IF('DF raw data'!F13="","",'DF raw data'!F13) -> Raw data text file | C13: =IF('DF raw data'!G13="","",'DF raw data'!G13) ->  | D13: =IF('DF raw data'!H13="","",'DF raw data'!H13) -> 
A14: =IF('DF raw data'!E14="","",'DF raw data'!E14) -> Direction of the pos. x-axis | B14: =IF('DF raw data'!F14="","",'DF raw data'!F14) -> See test program | C14: =IF('DF raw data'!G14="","",'DF raw data'!G14) ->  | D14: =IF('DF raw data'!H14="","",'DF raw data'!H14) -> 
A15: =IF('DF raw data'!E15="","",'DF raw data'!E15) -> Direction of the pos. y-axis | B15: =IF('DF raw data'!F15="","",'DF raw data'!F15) -> Vertical up | C15: =IF('DF raw data'!G15="","",'DF raw data'!G15) ->  | D15: =IF('DF raw data'!H15="","",'DF raw data'!H15) -> 
A16: =IF('DF raw data'!E16="","",'DF raw data'!E16) -> Direction of the pos. z-axis | B16: =IF('DF raw data'!F16="","",'DF raw data'!F16) -> See test program | C16: =IF('DF raw data'!G16="","",'DF raw data'!G16) ->  | D16: =IF('DF raw data'!H16="","",'DF raw data'!H16) -> 
A17: =IF('DF raw data'!E17="","",'DF raw data'!E17) -> Mapper type | B17: =IF('DF raw data'!F17="","",'DF raw data'!F17) -> Precision Hall Mapper | C17: =IF('DF raw data'!G17="","",'DF raw data'!G17) ->  | D17: =IF('DF raw data'!H17="","",'DF raw data'!H17) -> 
A18: =IF('DF raw data'!E18="","",'DF raw data'!E18) -> Mapper Danfysik Reg. Number | B18: =IF('DF raw data'!F18="","",'DF raw data'!F18) -> 2033-D (mapper 1) | C18: =IF('DF raw data'!G18="","",'DF raw data'!G18) ->  | D18: =IF('DF raw data'!H18="","",'DF raw data'!H18) -> 
A19: =IF('DF raw data'!E19="","",'DF raw data'!E19) -> Measurement consept | B19: =IF('DF raw data'!F19="","",'DF raw data'!F19) -> Square line grid | C19: =IF('DF raw data'!G19="","",'DF raw data'!G19) ->  | D19: =IF('DF raw data'!H19="","",'DF raw data'!H19) -> 
A20: =IF('DF raw data'!E20="","",'DF raw data'!E20) -> Mode | B20: =IF('DF raw data'!F20="","",'DF raw data'!F20) -> On-the-fly measurement | C20: =IF('DF raw data'!G20="","",'DF raw data'!G20) ->  | D20: =IF('DF raw data'!H20="","",'DF raw data'!H20) -> 
A21: =IF('DF raw data'!E21="","",'DF raw data'!E21) ->  | B21: =IF('DF raw data'!F21="","",'DF raw data'!F21) ->  | C21: =IF('DF raw data'!G21="","",'DF raw data'!G21) ->  | D21: =IF('DF raw data'!H21="","",'DF raw data'!H21) -> 
A22: =IF('DF raw data'!E22="","",'DF raw data'!E22) -> Probe Name | B22: =IF('DF raw data'!F22="","",'DF raw data'!F22) -> ID12_By | C22: =IF('DF raw data'!G22="","",'DF raw data'!G22) ->  | D22: =IF('DF raw data'!H22="","",'DF raw data'!H22) -> 
A23: =IF('DF raw data'!E23="","",'DF raw data'!E23) -> Probe Type | B23: =IF('DF raw data'!F23="","",'DF raw data'!F23) -> DF_ID_3D_Bxyz | C23: =IF('DF raw data'!G23="","",'DF raw data'!G23) ->  | D23: =IF('DF raw data'!H23="","",'DF raw data'!H23) -> 
A24: =IF('DF raw data'!E24="","",'DF raw data'!E24) -> Probe Danfysik Reg. Number | B24: =IF('DF raw data'!F24="","",'DF raw data'!F24) -> 2277 | C24: =IF('DF raw data'!G24="","",'DF raw data'!G24) ->  | D24: =IF('DF raw data'!H24="","",'DF raw data'!H24) -> 
A25: =IF('DF raw data'!E25="","",'DF raw data'!E25) -> Probe Axis | B25: =IF('DF raw data'!F25="","",'DF raw data'!F25) -> By | C25: =IF('DF raw data'!G25="","",'DF raw data'!G25) ->  | D25: =IF('DF raw data'!H25="","",'DF raw data'!H25) -> 
A26: =IF('DF raw data'!E26="","",'DF raw data'!E26) -> Probe Current Supply | B26: =IF('DF raw data'!F26="","",'DF raw data'!F26) -> 1825-D | C26: =IF('DF raw data'!G26="","",'DF raw data'!G26) ->  | D26: =IF('DF raw data'!H26="","",'DF raw data'!H26) -> 
A27: =IF('DF raw data'!E27="","",'DF raw data'!E27) -> Probe Gain Correction | B27: =IF('DF raw data'!F27="","",'DF raw data'!F27) -> 0.99606 | C27: =IF('DF raw data'!G27="","",'DF raw data'!G27) ->  | D27: =IF('DF raw data'!H27="","",'DF raw data'!H27) -> 
A28: =IF('DF raw data'!E28="","",'DF raw data'!E28) -> Probe Offset Correction | B28: =IF('DF raw data'!F28="","",'DF raw data'!F28) -> 0.0027513 | C28: =IF('DF raw data'!G28="","",'DF raw data'!G28) ->  | D28: =IF('DF raw data'!H28="","",'DF raw data'!H28) -> 
A29: =IF('DF raw data'!E29="","",'DF raw data'!E29) -> DVM Number | B29: =IF('DF raw data'!F29="","",'DF raw data'!F29) -> 2 | C29: =IF('DF raw data'!G29="","",'DF raw data'!G29) ->  | D29: =IF('DF raw data'!H29="","",'DF raw data'!H29) -> 
A30: =IF('DF raw data'!E30="","",'DF raw data'!E30) -> DVM Type | B30: =IF('DF raw data'!F30="","",'DF raw data'!F30) -> K2701 | C30: =IF('DF raw data'!G30="","",'DF raw data'!G30) ->  | D30: =IF('DF raw data'!H30="","",'DF raw data'!H30) -> 
A31: =IF('DF raw data'!E31="","",'DF raw data'!E31) -> DVM Danfysik Reg. Number | B31: =IF('DF raw data'!F31="","",'DF raw data'!F31) -> 1743-D | C31: =IF('DF raw data'!G31="","",'DF raw data'!G31) ->  | D31: =IF('DF raw data'!H31="","",'DF raw data'!H31) -> 
A32: =IF('DF raw data'!E32="","",'DF raw data'!E32) -> Probe Name | B32: =IF('DF raw data'!F32="","",'DF raw data'!F32) -> ID12_Bx | C32: =IF('DF raw data'!G32="","",'DF raw data'!G32) ->  | D32: =IF('DF raw data'!H32="","",'DF raw data'!H32) -> 
A33: =IF('DF raw data'!E33="","",'DF raw data'!E33) -> Probe Type | B33: =IF('DF raw data'!F33="","",'DF raw data'!F33) -> DF_ID_3D_Bxyz | C33: =IF('DF raw data'!G33="","",'DF raw data'!G33) ->  | D33: =IF('DF raw data'!H33="","",'DF raw data'!H33) -> 
A34: =IF('DF raw data'!E34="","",'DF raw data'!E34) -> Probe Danfysik Reg. Number | B34: =IF('DF raw data'!F34="","",'DF raw data'!F34) -> 2277 | C34: =IF('DF raw data'!G34="","",'DF raw data'!G34) ->  | D34: =IF('DF raw data'!H34="","",'DF raw data'!H34) -> 
A35: =IF('DF raw data'!E35="","",'DF raw data'!E35) -> Probe Axis | B35: =IF('DF raw data'!F35="","",'DF raw data'!F35) -> Bx | C35: =IF('DF raw data'!G35="","",'DF raw data'!G35) ->  | D35: =IF('DF raw data'!H35="","",'DF raw data'!H35) -> 
A36: =IF('DF raw data'!E36="","",'DF raw data'!E36) -> Probe Current Supply | B36: =IF('DF raw data'!F36="","",'DF raw data'!F36) -> 1825-D | C36: =IF('DF raw data'!G36="","",'DF raw data'!G36) ->  | D36: =IF('DF raw data'!H36="","",'DF raw data'!H36) -> 
A37: =IF('DF raw data'!E37="","",'DF raw data'!E37) -> Probe Gain Correction | B37: =IF('DF raw data'!F37="","",'DF raw data'!F37) -> 1 | C37: =IF('DF raw data'!G37="","",'DF raw data'!G37) ->  | D37: =IF('DF raw data'!H37="","",'DF raw data'!H37) -> 
A38: =IF('DF raw data'!E38="","",'DF raw data'!E38) -> Probe Offset Correction | B38: =IF('DF raw data'!F38="","",'DF raw data'!F38) -> -0.17549 | C38: =IF('DF raw data'!G38="","",'DF raw data'!G38) ->  | D38: =IF('DF raw data'!H38="","",'DF raw data'!H38) -> 
A39: =IF('DF raw data'!E39="","",'DF raw data'!E39) -> DVM Number | B39: =IF('DF raw data'!F39="","",'DF raw data'!F39) -> 3 | C39: =IF('DF raw data'!G39="","",'DF raw data'!G39) ->  | D39: =IF('DF raw data'!H39="","",'DF raw data'!H39) -> 
A40: =IF('DF raw data'!E40="","",'DF raw data'!E40) -> DVM Type | B40: =IF('DF raw data'!F40="","",'DF raw data'!F40) -> K2701 | C40: =IF('DF raw data'!G40="","",'DF raw data'!G40) ->  | D40: =IF('DF raw data'!H40="","",'DF raw data'!H40) -> 
A41: =IF('DF raw data'!E41="","",'DF raw data'!E41) -> DVM Danfysik Reg. Number | B41: =IF('DF raw data'!F41="","",'DF raw data'!F41) -> 1744-D | C41: =IF('DF raw data'!G41="","",'DF raw data'!G41) ->  | D41: =IF('DF raw data'!H41="","",'DF raw data'!H41) -> 
A42: =IF('DF raw data'!E42="","",'DF raw data'!E42) -> Probe Name | B42: =IF('DF raw data'!F42="","",'DF raw data'!F42) -> ID12_Bz | C42: =IF('DF raw data'!G42="","",'DF raw data'!G42) ->  | D42: =IF('DF raw data'!H42="","",'DF raw data'!H42) -> 
A43: =IF('DF raw data'!E43="","",'DF raw data'!E43) -> Probe Type | B43: =IF('DF raw data'!F43="","",'DF raw data'!F43) -> DF_ID_3D_Bxyz | C43: =IF('DF raw data'!G43="","",'DF raw data'!G43) ->  | D43: =IF('DF raw data'!H43="","",'DF raw data'!H43) -> 
A44: =IF('DF raw data'!E44="","",'DF raw data'!E44) -> Probe Danfysik Reg. Number | B44: =IF('DF raw data'!F44="","",'DF raw data'!F44) -> 2277 | C44: =IF('DF raw data'!G44="","",'DF raw data'!G44) ->  | D44: =IF('DF raw data'!H44="","",'DF raw data'!H44) -> 
A45: =IF('DF raw data'!E45="","",'DF raw data'!E45) -> Probe Axis | B45: =IF('DF raw data'!F45="","",'DF raw data'!F45) -> Bz | C45: =IF('DF raw data'!G45="","",'DF raw data'!G45) ->  | D45: =IF('DF raw data'!H45="","",'DF raw data'!H45) -> 
A46: =IF('DF raw data'!E46="","",'DF raw data'!E46) -> Probe Current Supply | B46: =IF('DF raw data'!F46="","",'DF raw data'!F46) -> 1825-D | C46: =IF('DF raw data'!G46="","",'DF raw data'!G46) ->  | D46: =IF('DF raw data'!H46="","",'DF raw data'!H46) -> 
A47: =IF('DF raw data'!E47="","",'DF raw data'!E47) -> Probe Gain Correction | B47: =IF('DF raw data'!F47="","",'DF raw data'!F47) -> 1 | C47: =IF('DF raw data'!G47="","",'DF raw data'!G47) ->  | D47: =IF('DF raw data'!H47="","",'DF raw data'!H47) -> 
A48: =IF('DF raw data'!E53="","",'DF raw data'!E53) -> PS-Gap: | B48: =IF('DF raw data'!F53="","",'DF raw data'!F53) -> 10 | C48: =IF('DF raw data'!G53="","",'DF raw data'!G53) ->  | D48: =IF('DF raw data'!H53="","",'DF raw data'!H53) -> 
A49: =IF('DF raw data'!E54="","",'DF raw data'!E54) -> PS-Temperature: | B49: =IF('DF raw data'!F54="","",'DF raw data'!F54) -> 23.5 | C49: =IF('DF raw data'!G54="","",'DF raw data'!G54) ->  | D49: =IF('DF raw data'!H54="","",'DF raw data'!H54) -> 
A50: =IF('DF raw data'!E55="","",'DF raw data'!E55) -> PS-Encoder: | B50: =IF('DF raw data'!F55="","",'DF raw data'!F55) -> 19.6817 | C50: =IF('DF raw data'!G55="","",'DF raw data'!G55) ->  | D50: =IF('DF raw data'!H55="","",'DF raw data'!H55) -> 
A51: =IF('DF raw data'!E56="","",'DF raw data'!E56) ->  | B51: =IF('DF raw data'!F56="","",'DF raw data'!F56) ->  | C51: =IF('DF raw data'!G56="","",'DF raw data'!G56) ->  | D51: =IF('DF raw data'!H56="","",'DF raw data'!H56) -> 
A52: =IF('DF raw data'!E57="","",'DF raw data'!E57) -> Monitor-Index | B52: =IF('DF raw data'!F57="","",'DF raw data'!F57) -> [1,1,4] | C52: =IF('DF raw data'!G57="","",'DF raw data'!G57) ->  | D52: =IF('DF raw data'!H57="","",'DF raw data'!H57) -> 
A53: =IF('DF raw data'!E58="","",'DF raw data'!E58) ->  | B53: =IF('DF raw data'!F58="","",'DF raw data'!F58) ->  | C53: =IF('DF raw data'!G58="","",'DF raw data'!G58) ->  | D53: =IF('DF raw data'!H58="","",'DF raw data'!H58) -> 
A54: =IF('DF raw data'!E59="","",'DF raw data'!E59) -> Time [s] | B54: =IF('DF raw data'!F59="","",'DF raw data'!F59) -> Y [mm] | C54: =IF('DF raw data'!G59="","",'DF raw data'!G59) -> X [mm] | D54: =IF('DF raw data'!H59="","",'DF raw data'!H59) -> Nominal current [A]
A55: =IF('DF raw data'!E60="","",'DF raw data'!E60) ->  | B55: =IF('DF raw data'!F60="","",'DF raw data'!F60) ->  | C55: =IF('DF raw data'!G60="","",'DF raw data'!G60) ->  | D55: =IF('DF raw data'!H60="","",'DF raw data'!H60) -> 
A56: =IF('DF raw data'!E61="","",'DF raw data'!E61) -> 207.7 | B56: =IF('DF raw data'!F61="","",'DF raw data'!F61) -> 31.46 | C56: =IF('DF raw data'!G61="","",'DF raw data'!G61) -> 302.3 | D56: =IF('DF raw data'!H61="","",'DF raw data'!H61) -> 0
A57: =IF('DF raw data'!E62="","",'DF raw data'!E62) ->  | B57: =IF('DF raw data'!F62="","",'DF raw data'!F62) ->  | C57: =IF('DF raw data'!G62="","",'DF raw data'!G62) ->  | D57: =IF('DF raw data'!H62="","",'DF raw data'!H62) -> 
A58: =IF('DF raw data'!E63="","",'DF raw data'!E63) -> Measurement-Index | B58: =IF('DF raw data'!F63="","",'DF raw data'!F63) -> [1,1,1201,2] | C58: =IF('DF raw data'!G63="","",'DF raw data'!G63) ->  | D58: =IF('DF raw data'!H63="","",'DF raw data'!H63) -> 
A59: =IF('DF raw data'!E64="","",'DF raw data'!E64) ->  | B59: =IF('DF raw data'!F64="","",'DF raw data'!F64) ->  | C59: =IF('DF raw data'!G64="","",'DF raw data'!G64) ->  | D59: =IF('DF raw data'!H64="","",'DF raw data'!H64) -> 
A60: =IF('DF raw data'!E65="","",'DF raw data'!E65) -> Z [mm] | B60: By [T] | C60: Bx [T] | D60: Bz [T] | F60: By_corr | G60: Bx_corr | H60: Bz_corr | J60: Iy | K60: Jy | L60: Ix | M60: Jx | N60: PI
A62: =IF('DF raw data'!E67="","",'DF raw data'!E67) -> -300 | B62: =IF('DF raw data'!F67="","",'DF raw data'!F67) -> -1.35678e-05 | C62: =IF('DF raw data'!G67="","",'DF raw data'!G67) -> 0.000234769 | D62: =IF('DF raw data'!H67="","",'DF raw data'!H67) -> -4.79742e-06 | F62: =(1-$G$1*($B$49))*B62 -> -1.38866433e-05 | G62: =(1-$G$1*($B$49-$G$2))*C62 -> 0.0002355906915 | H62: =(1-$G$1*($B$49-$G$2))*D62 -> -4.81421097e-06 | J62: =F62*$G$3 -> -6.94332165e-06 | K62: =J62*$G$3 -> -3.471660825e-06 | L62: =G62*$G$3 -> 0.0001177953458 | M62: =L62*$G$3 -> 5.889767288e-05 | N62: =(J62^2+L62^2)*$G$3 -> 6.961976598e-09
A63: =IF('DF raw data'!E68="","",'DF raw data'!E68) -> -299.5 | B63: =IF('DF raw data'!F68="","",'DF raw data'!F68) -> -3.76607e-06 | C63: =IF('DF raw data'!G68="","",'DF raw data'!G68) -> 0.000235069 | D63: =IF('DF raw data'!H68="","",'DF raw data'!H68) -> -5.34937e-06 | F63: =(1-$G$1*($B$49-$G$2))*B63 -> -3.779251245e-06 | G63: =(1-$G$1*($B$49-$G$2))*C63 -> 0.0002358917415 | H63: -5.368092795e-06 | J63: =F63*$G$3+J62 -> -8.832947273e-06 | K63: =J63*$G$3+K62 -> -7.888134461e-06 | L63: =G63*$G$3+L62 -> 0.0002357412165 | M63: =L63*$G$3+M62 -> 0.0001767682811 | N63: =(J63^2+L63^2)*$G$3+N62 -> 3.478794766e-08
A64: =IF('DF raw data'!E69="","",'DF raw data'!E69) -> -299 | B64: =IF('DF raw data'!F69="","",'DF raw data'!F69) -> -3.06139e-07 | C64: =IF('DF raw data'!G69="","",'DF raw data'!G69) -> 0.000236405 | D64: =IF('DF raw data'!H69="","",'DF raw data'!H69) -> -6.49638e-06 | F64: =(1-$G$1*($B$49-$G$2))*B64 -> -3.072104865e-07 | G64: 0.0002372324175 | H64: -6.51911733e-06 | J64: =F64*$G$3+J63 -> -8.986552516e-06 | K64: =J64*$G$3+K63 -> -1.238141072e-05 | L64: =G64*$G$3+L63 -> 0.0003543574253 | M64: =L64*$G$3+M63 -> 0.0003539469937 | N64: =(J64^2+L64^2)*$G$3+N63 -> 9.761291913e-08
A65: =IF('DF raw data'!E70="","",'DF raw data'!E70) -> -298.5 | B65: =IF('DF raw data'!F70="","",'DF raw data'!F70) -> -2.03517e-06 | C65: =IF('DF raw data'!G70="","",'DF raw data'!G70) -> 0.000238164 | D65: =IF('DF raw data'!H70="","",'DF raw data'!H70) -> -7.52666e-06 | F65: -2.042293095e-06 | G65: 0.000238997574 | H65: -7.55300331e-06 | J65: -1.000769906e-05 | K65: -1.738526025e-05 | L65: 0.0004738562123 | M65: 0.0005908750999 | N65: 2.099328511e-07
A66: =IF('DF raw data'!E71="","",'DF raw data'!E71) -> -298 | B66: =IF('DF raw data'!F71="","",'DF raw data'!F71) -> -3.12371e-06 | C66: =IF('DF raw data'!G71="","",'DF raw data'!G71) -> 0.000233986 | D66: =IF('DF raw data'!H71="","",'DF raw data'!H71) -> -8.16966e-06 | F66: -3.134642985e-06 | G66: 0.000234804951 | H66: -8.19825381e-06 | J66: -1.157502056e-05 | K66: -2.317277053e-05 | L66: 0.0005912586878 | M66: 0.0008865044438 | N66: 3.847932596e-07
A67: =IF('DF raw data'!E72="","",'DF raw data'!E72) -> -297.5 | B67: =IF('DF raw data'!F72="","",'DF raw data'!F72) -> -1.13875e-05 | C67: =IF('DF raw data'!G72="","",'DF raw data'!G72) -> 0.000231859 | D67: =IF('DF raw data'!H72="","",'DF raw data'!H72) -> -8.30951e-06 | F67: -1.142735625e-05 | G67: 0.0002326705065 | H67: -8.338593285e-06 | J67: -1.728869868e-05 | K67: -3.181711987e-05 | L67: 0.000707593941 | M67: 0.001240301414 | N67: 6.352873018e-07
A68: =IF('DF raw data'!E73="","",'DF raw data'!E73) -> -297 | B68: =IF('DF raw data'!F73="","",'DF raw data'!F73) -> -9.52986e-06 | C68: =IF('DF raw data'!G73="","",'DF raw data'!G73) -> 0.000233159 | D68: =IF('DF raw data'!H73="","",'DF raw data'!H73) -> -7.55484e-06 | F68: -9.56321451e-06 | G68: 0.0002339750565 | H68: -7.58128194e-06 | J68: -2.207030594e-05 | K68: -4.285227284e-05 | L68: 0.0008245814693 | M68: 0.001652592149 | N68: 9.754981507e-07
A69: =IF('DF raw data'!E74="","",'DF raw data'!E74) -> -296.5 | B69: =IF('DF raw data'!F74="","",'DF raw data'!F74) -> -2.49057e-05 | C69: =IF('DF raw data'!G74="","",'DF raw data'!G74) -> 0.000235064 | D69: =IF('DF raw data'!H74="","",'DF raw data'!H74) -> -6.04266e-06 | F69: -2.499286995e-05 | G69: 0.000235886724 | H69: -6.06380931e-06 | J69: -3.456674091e-05 | K69: -6.013564329e-05 | L69: 0.0009425248313 | M69: 0.002123854565 | N69: 1.420272109e-06
A70: =IF('DF raw data'!E75="","",'DF raw data'!E75) -> -296 | B70: =IF('DF raw data'!F75="","",'DF raw data'!F75) -> 1.93535e-06 | C70: =IF('DF raw data'!G75="","",'DF raw data'!G75) -> 0.000238196 | D70: =IF('DF raw data'!H75="","",'DF raw data'!H75) -> -5.64043e-06 | F70: 1.942123725e-06 | G70: 0.000239029686 | H70: -5.660171505e-06 | J70: -3.359567905e-05 | K70: -7.693348282e-05 | L70: 0.001062039674 | M70: 0.002654874402 | N70: 1.984800579e-06
A71: =IF('DF raw data'!E76="","",'DF raw data'!E76) -> -295.5 | B71: =IF('DF raw data'!F76="","",'DF raw data'!F76) -> -3.70334e-07 | C71: =IF('DF raw data'!G76="","",'DF raw data'!G76) -> 0.000241521 | D71: =IF('DF raw data'!H76="","",'DF raw data'!H76) -> -6.50778e-06 | F71: -3.71630169e-07 | G71: 0.0002423663235 | H71: -6.53055723e-06 | J71: -3.378149413e-05 | K71: -9.382422988e-05 | L71: 0.001183222836 | M71: 0.00324648582 | N71: 2.685379313e-06
A72: =IF('DF raw data'!E77="","",'DF raw data'!E77) -> -295 | B72: =IF('DF raw data'!F77="","",'DF raw data'!F77) -> -4.66181e-06 | C72: =IF('DF raw data'!G77="","",'DF raw data'!G77) -> 0.000232613 | D72: =IF('DF raw data'!H77="","",'DF raw data'!H77) -> -6.9565e-06 | F72: -4.678126335e-06 | G72: 0.0002334271455 | H72: -6.98084775e-06 | J72: -3.61205573e-05 | K72: -0.0001118845085 | L72: 0.001299936409 | M72: 0.003896454024 | N72: 3.530948994e-06
A73: =IF('DF raw data'!E78="","",'DF raw data'!E78) -> -294.5 | B73: =IF('DF raw data'!F78="","",'DF raw data'!F78) -> -5.36699e-06 | C73: =IF('DF raw data'!G78="","",'DF raw data'!G78) -> 0.000230943 | D73: =IF('DF raw data'!H78="","",'DF raw data'!H78) -> -6.68234e-06 | F73: -5.385774465e-06 | G73: 0.0002317513005 | H73: -6.70572819e-06 | J73: -3.881344453e-05 | K73: -0.0001312912308 | L73: 0.001415812059 | M73: 0.004604360054 | N73: 4.533964129e-06
A74: =IF('DF raw data'!E79="","",'DF raw data'!E79) -> -294 | B74: =IF('DF raw data'!F79="","",'DF raw data'!F79) -> 6.548e-06 | C74: =IF('DF raw data'!G79="","",'DF raw data'!G79) -> 0.000240296 | D74: =IF('DF raw data'!H79="","",'DF raw data'!H79) -> -6.76072e-06 | F74: 6.570918e-06 | G74: 0.000241137036 | H74: -6.78438252e-06 | J74: -3.552798553e-05 | K74: -0.0001490552236 | L74: 0.001536380577 | M74: 0.005372550342 | N74: 5.714827887e-06
A75: =IF('DF raw data'!E80="","",'DF raw data'!E80) -> -293.5 | B75: =IF('DF raw data'!F80="","",'DF raw data'!F80) -> -3.06048e-06 | C75: =IF('DF raw data'!G80="","",'DF raw data'!G80) -> 0.000233867 | D75: =IF('DF raw data'!H80="","",'DF raw data'!H80) -> -6.91247e-06 | F75: -3.07119168e-06 | G75: 0.0002346855345 | H75: -6.936663645e-06 | J75: -3.706358137e-05 | K75: -0.0001675870143 | L75: 0.001653723344 | M75: 0.006199412014 | N75: 7.082915191e-06
A76: =IF('DF raw data'!E81="","",'DF raw data'!E81) -> -293 | B76: =IF('DF raw data'!F81="","",'DF raw data'!F81) -> -1.01039e-06 | C76: =IF('DF raw data'!G81="","",'DF raw data'!G81) -> 0.000229929 | D76: =IF('DF raw data'!H81="","",'DF raw data'!H81) -> -7.23981e-06 | F76: -1.013926365e-06 | G76: 0.0002307337515 | H76: -7.265149335e-06 | J76: -3.757054456e-05 | K76: -0.0001863722865 | L76: 0.00176909022 | M76: 0.007083957124 | N76: 8.648461067e-06
A77: =IF('DF raw data'!E82="","",'DF raw data'!E82) -> -292.5 | B77: =IF('DF raw data'!F82="","",'DF raw data'!F82) -> 1.17382e-05 | C77: =IF('DF raw data'!G82="","",'DF raw data'!G82) -> 0.000237233 | D77: =IF('DF raw data'!H82="","",'DF raw data'!H82) -> -8.11739e-06 | F77: 1.17792837e-05 | G77: 0.0002380633155 | H77: -8.145800865e-06 | J77: -3.168090271e-05 | K77: -0.0002022127379 | L77: 0.001888121878 | M77: 0.008028018063 | N77: 1.043146502e-05
A78: =IF('DF raw data'!E83="","",'DF raw data'!E83) -> -292 | B78: =IF('DF raw data'!F83="","",'DF raw data'!F83) -> -1.51025e-05 | C78: =IF('DF raw data'!G83="","",'DF raw data'!G83) -> 0.000235784 | D78: =IF('DF raw data'!H83="","",'DF raw data'!H83) -> -8.35078e-06 | F78: -1.515535875e-05 | G78: 0.000236609244 | H78: -8.38000773e-06 | J78: -3.925858208e-05 | K78: -0.0002218420289 | L78: 0.0020064265 | M78: 0.009031231313 | N78: 1.244510929e-05
A79: =IF('DF raw data'!E84="","",'DF raw data'!E84) -> -291.5 | B79: =IF('DF raw data'!F84="","",'DF raw data'!F84) -> -4.46297e-06 | C79: =IF('DF raw data'!G84="","",'DF raw data'!G84) -> 0.000240311 | D79: =IF('DF raw data'!H84="","",'DF raw data'!H84) -> -1.77211e-05 | F79: -4.478590395e-06 | G79: 0.0002411520885 | H79: -1.778312385e-05 | J79: -4.149787728e-05 | K79: -0.0002425909676 | L79: 0.002127002544 | M79: 0.01009473258 | N79: 1.470804024e-05
A80: =IF('DF raw data'!E85="","",'DF raw data'!E85) -> -291 | B80: =IF('DF raw data'!F85="","",'DF raw data'!F85) -> -1.23495e-05 | C80: =IF('DF raw data'!G85="","",'DF raw data'!G85) -> 0.000230317 | D80: =IF('DF raw data'!H85="","",'DF raw data'!H85) -> -6.07425e-06 | F80: -1.239272325e-05 | G80: 0.0002311231095 | H80: -6.095509875e-06 | J80: -4.76942389e-05 | K80: -0.000266438087 | L80: 0.002242564099 | M80: 0.01121601463 | N80: 1.722372447e-05
A81: =IF('DF raw data'!E86="","",'DF raw data'!E86) -> -290.5 | B81: =IF('DF raw data'!F86="","",'DF raw data'!F86) -> -3.194e-06 | C81: =IF('DF raw data'!G86="","",'DF raw data'!G86) -> 0.000227033 | D81: =IF('DF raw data'!H86="","",'DF raw data'!H86) -> 1.46956e-06 | F81: -3.205179e-06 | G81: 0.0002278276155 | H81: 1.47470346e-06 | J81: -4.92968284e-05 | K81: -0.0002910865012 | L81: 0.002356477907 | M81: 0.01239425359 | N81: 2.000143362e-05
A82: =IF('DF raw data'!E87="","",'DF raw data'!E87) -> -290 | B82: =IF('DF raw data'!F87="","",'DF raw data'!F87) -> 1.42098e-07 | C82: =IF('DF raw data'!G87="","",'DF raw data'!G87) -> 0.000241861 | D82: =IF('DF raw data'!H87="","",'DF raw data'!H87) -> -6.475e-06 | F82: 1.42595343e-07 | G82: 0.0002427075135 | H82: -6.4976625e-06 | J82: -4.922553073e-05 | K82: -0.0003156992666 | L82: 0.002477831663 | M82: 0.01363316942 | N82: 2.307247008e-05
A83: =IF('DF raw data'!E88="","",'DF raw data'!E88) -> -289.5 | B83: =IF('DF raw data'!F88="","",'DF raw data'!F88) -> -7.86564e-06 | C83: =IF('DF raw data'!G88="","",'DF raw data'!G88) -> 0.000234794 | D83: =IF('DF raw data'!H88="","",'DF raw data'!H88) -> -6.08126e-06 | F83: -7.89316974e-06 | G83: 0.000235615779 | H83: -6.10254441e-06 | J83: -5.31721156e-05 | K83: -0.0003422853244 | L83: 0.002595639553 | M83: 0.0149309892 | N83: 2.644255606e-05
A84: =IF('DF raw data'!E89="","",'DF raw data'!E89) -> -289 | B84: =IF('DF raw data'!F89="","",'DF raw data'!F89) -> -8.37268e-06 | C84: =IF('DF raw data'!G89="","",'DF raw data'!G89) -> 0.000230482 | D84: =IF('DF raw data'!H89="","",'DF raw data'!H89) -> -1.40495e-05 | F84: -8.40198438e-06 | G84: 0.000231288687 | H84: -1.409867325e-05 | J84: -5.737310779e-05 | K84: -0.0003709718783 | L84: 0.002711283896 | M84: 0.01628663114 | N84: 3.011973208e-05
A85: =IF('DF raw data'!E90="","",'DF raw data'!E90) -> -288.5 | B85: =IF('DF raw data'!F90="","",'DF raw data'!F90) -> -9.53441e-06 | C85: =IF('DF raw data'!G90="","",'DF raw data'!G90) -> 0.000229448 | D85: =IF('DF raw data'!H90="","",'DF raw data'!H90) -> -9.96047e-07 | F85: -9.567780435e-06 | G85: 0.000230251068 | H85: -9.995331645e-07 | J85: -6.215699801e-05 | K85: -0.0004020503773 | L85: 0.00282640943 | M85: 0.01769983586 | N85: 3.411595896e-05
A86: =IF('DF raw data'!E91="","",'DF raw data'!E91) -> -288 | B86: =IF('DF raw data'!F91="","",'DF raw data'!F91) -> -1.29884e-05 | C86: =IF('DF raw data'!G91="","",'DF raw data'!G91) -> 0.000225888 | D86: =IF('DF raw data'!H91="","",'DF raw data'!H91) -> -8.64634e-06 | F86: -1.30338594e-05 | G86: 0.000226678608 | H86: -8.67660219e-06 | J86: -6.867392771e-05 | K86: -0.0004363873411 | L86: 0.002939748734 | M86: 0.01916971023 | N86: 3.843937832e-05
A87: =IF('DF raw data'!E92="","",'DF raw data'!E92) -> -287.5 | B87: =IF('DF raw data'!F92="","",'DF raw data'!F92) -> -6.32422e-06 | C87: =IF('DF raw data'!G92="","",'DF raw data'!G92) -> 0.000226123 | D87: =IF('DF raw data'!H92="","",'DF raw data'!H92) -> -1.195e-05 | F87: -6.34635477e-06 | G87: 0.0002269144305 | H87: -1.1991825e-05 | J87: -7.184710509e-05 | K87: -0.0004723108937 | L87: 0.00305320595 | M87: 0.0206963132 | N87: 4.310299261e-05
A88: =IF('DF raw data'!E93="","",'DF raw data'!E93) -> -287 | B88: =IF('DF raw data'!F93="","",'DF raw data'!F93) -> -4.97253e-07 | C88: =IF('DF raw data'!G93="","",'DF raw data'!G93) -> 0.000230065 | D88: =IF('DF raw data'!H93="","",'DF raw data'!H93) -> -8.32449e-06 | F88: -4.989933855e-07 | G88: 0.0002308702275 | H88: -8.353625715e-06 | J88: -7.209660179e-05 | K88: -0.0005083591946 | L88: 0.003168641063 | M88: 0.02228063373 | N88: 4.812573466e-05
A89: =IF('DF raw data'!E94="","",'DF raw data'!E94) -> -286.5 | B89: =IF('DF raw data'!F94="","",'DF raw data'!F94) -> -9.51405e-07 | C89: =IF('DF raw data'!G94="","",'DF raw data'!G94) -> 0.000236714 | D89: =IF('DF raw data'!H94="","",'DF raw data'!H94) -> 7.33663e-07 | F89: -9.547349175e-07 | G89: 0.000237542499 | H89: 7.362308205e-07 | J89: -7.257396925e-05 | K89: -0.0005446461792 | L89: 0.003287412313 | M89: 0.02392433989 | N89: 5.353190801e-05
A90: =IF('DF raw data'!E95="","",'DF raw data'!E95) -> -286 | B90: =IF('DF raw data'!F95="","",'DF raw data'!F95) -> -1.78567e-05 | C90: =IF('DF raw data'!G95="","",'DF raw data'!G95) -> 0.000235799 | D90: =IF('DF raw data'!H95="","",'DF raw data'!H95) -> -8.90241e-06 | F90: -1.791919845e-05 | G90: 0.0002366242965 | H90: -8.933568435e-06 | J90: -8.153356847e-05 | K90: -0.0005854129634 | L90: 0.003405724461 | M90: 0.02562720212 | N90: 5.933471142e-05
A91: =IF('DF raw data'!E96="","",'DF raw data'!E96) -> -285.5 | B91: =IF('DF raw data'!F96="","",'DF raw data'!F96) -> -1.1584e-05 | C91: =IF('DF raw data'!G96="","",'DF raw data'!G96) -> 0.000232881 | D91: =IF('DF raw data'!H96="","",'DF raw data'!H96) -> -1.39016e-06 | F91: -1.1624544e-05 | G91: 0.0002336960835 | H91: -1.39502556e-06 | J91: -8.734584047e-05 | K91: -0.0006290858837 | L91: 0.003522572503 | M91: 0.02738848837 | N91: 6.554278459e-05
A92: =IF('DF raw data'!E97="","",'DF raw data'!E97) -> -285 | B92: =IF('DF raw data'!F97="","",'DF raw data'!F97) -> -6.39429e-06 | C92: =IF('DF raw data'!G97="","",'DF raw data'!G97) -> 0.000236442 | D92: =IF('DF raw data'!H97="","",'DF raw data'!H97) -> -2.61739e-06 | F92: -6.416670015e-06 | G92: 0.000237269547 | H92: -2.626550865e-06 | J92: -9.055417548e-05 | K92: -0.0006743629714 | L92: 0.003641207276 | M92: 0.02920909201 | N92: 7.217607983e-05
A93: =IF('DF raw data'!E98="","",'DF raw data'!E98) -> -284.5 | B93: =IF('DF raw data'!F98="","",'DF raw data'!F98) -> -4.21741e-06 | C93: =IF('DF raw data'!G98="","",'DF raw data'!G98) -> 0.00023474 | D93: =IF('DF raw data'!H98="","",'DF raw data'!H98) -> -1.25534e-06 | F93: -4.232170935e-06 | G93: 0.00023556159 | H93: -1.25973369e-06 | J93: -9.267026095e-05 | K93: -0.0007206981019 | L93: 0.003758988071 | M93: 0.03108858604 | N93: 7.924536938e-05
A94: =IF('DF raw data'!E99="","",'DF raw data'!E99) -> -284 | B94: =IF('DF raw data'!F99="","",'DF raw data'!F99) -> -7.59556e-07 | C94: =IF('DF raw data'!G99="","",'DF raw data'!G99) -> 0.000233039 | D94: =IF('DF raw data'!H99="","",'DF raw data'!H99) -> 1.05344e-06 | F94: -7.62214446e-07 | G94: 0.0002338546365 | H94: 1.05712704e-06 | J94: -9.305136817e-05 | K94: -0.000767223786 | L94: 0.00387591539 | M94: 0.03302654374 | N94: 8.676105872e-05
A95: =IF('DF raw data'!E100="","",'DF raw data'!E100) -> -283.5 | B95: =IF('DF raw data'!F100="","",'DF raw data'!F100) -> -1.00499e-05 | C95: =IF('DF raw data'!G100="","",'DF raw data'!G100) -> 0.000236111 | D95: =IF('DF raw data'!H100="","",'DF raw data'!H100) -> 3.70209e-06 | F95: -1.008507465e-05 | G95: 0.0002369373885 | H95: 3.715047315e-06 | J95: -9.809390549e-05 | K95: -0.0008162707387 | L95: 0.003994384084 | M95: 0.03502373578 | N95: 9.474342203e-05
A96: =IF('DF raw data'!E101="","",'DF raw data'!E101) -> -283 | B96: =IF('DF raw data'!F101="","",'DF raw data'!F101) -> -2.23319e-06 | C96: =IF('DF raw data'!G101="","",'DF raw data'!G101) -> 0.000234989 | D96: =IF('DF raw data'!H101="","",'DF raw data'!H101) -> 1.40842e-06 | F96: -2.241006165e-06 | G96: 0.0002358114615 | H96: 1.41334947e-06 | J96: -9.921440858e-05 | K96: -0.000865877943 | L96: 0.004112289815 | M96: 0.03707988069 | N96: 0.0001032038075
A97: =IF('DF raw data'!E102="","",'DF raw data'!E102) -> -282.5 | B97: =IF('DF raw data'!F102="","",'DF raw data'!F102) -> 9.72877e-07 | C97: =IF('DF raw data'!G102="","",'DF raw data'!G102) -> 0.000234058 | D97: =IF('DF raw data'!H102="","",'DF raw data'!H102) -> -3.24848e-06 | F97: 9.762820695e-07 | G97: 0.000234877203 | H97: -3.25984968e-06 | J97: -9.872626754e-05 | K97: -0.0009152410768 | L97: 0.004229728416 | M97: 0.0391947449 | N97: 0.0001121539822
A98: =IF('DF raw data'!E103="","",'DF raw data'!E103) -> -282 | B98: =IF('DF raw data'!F103="","",'DF raw data'!F103) -> -9.78931e-06 | C98: =IF('DF raw data'!G103="","",'DF raw data'!G103) -> 0.000226228 | D98: =IF('DF raw data'!H103="","",'DF raw data'!H103) -> -2.72428e-06 | F98: -9.823572585e-06 | G98: 0.000227019798 | H98: -2.73381498e-06 | J98: -0.0001036380538 | K98: -0.0009670601037 | L98: 0.004343238315 | M98: 0.04136636405 | N98: 0.0001215912122
A99: =IF('DF raw data'!E104="","",'DF raw data'!E104) -> -281.5 | B99: =IF('DF raw data'!F104="","",'DF raw data'!F104) -> -1.0809e-05 | C99: =IF('DF raw data'!G104="","",'DF raw data'!G104) -> 0.000227861 | D99: =IF('DF raw data'!H104="","",'DF raw data'!H104) -> -1.09805e-05 | F99: -1.08468315e-05 | G99: 0.0002286585135 | H99: -1.101893175e-05 | J99: -0.0001090614696 | K99: -0.001021590838 | L99: 0.004457567572 | M99: 0.04359514784 | N99: 0.0001315321137
A100: =IF('DF raw data'!E105="","",'DF raw data'!E105) -> -281 | B100: =IF('DF raw data'!F105="","",'DF raw data'!F105) -> -9.71228e-06 | C100: =IF('DF raw data'!G105="","",'DF raw data'!G105) -> 0.000229232 | D100: =IF('DF raw data'!H105="","",'DF raw data'!H105) -> -2.29601e-05 | F100: -9.74627298e-06 | G100: 0.000230034312 | H100: -2.304046035e-05 | J100: -0.0001139346061 | K100: -0.001078558142 | L100: 0.004572584728 | M100: 0.0458814402 | N100: 0.0001419928698
A101: =IF('DF raw data'!E106="","",'DF raw data'!E106) -> -280.5 | B101: =IF('DF raw data'!F106="","",'DF raw data'!F106) -> -6.2742e-06 | C101: =IF('DF raw data'!G106="","",'DF raw data'!G106) -> 0.000241096 | D101: =IF('DF raw data'!H106="","",'DF raw data'!H106) -> 9.56634e-06 | F101: -6.2961597e-06 | G101: 0.000241939836 | H101: 9.59982219e-06 | J101: -0.0001170826859 | K101: -0.001137099484 | L101: 0.004693554646 | M101: 0.04822821753 | N101: 0.0001530144516
A102: =IF('DF raw data'!E107="","",'DF raw data'!E107) -> -280 | B102: =IF('DF raw data'!F107="","",'DF raw data'!F107) -> -1.66401e-05 | C102: =IF('DF raw data'!G107="","",'DF raw data'!G107) -> 0.000238738 | D102: =IF('DF raw data'!H107="","",'DF raw data'!H107) -> -8.21312e-06 | F102: -1.669834035e-05 | G102: 0.000239573583 | H102: -8.24186592e-06 | J102: -0.0001254318561 | K102: -0.001199815413 | L102: 0.004813341437 | M102: 0.05063488824 | N102: 0.000164606446
A103: =IF('DF raw data'!E108="","",'DF raw data'!E108) -> -279.5 | B103: =IF('DF raw data'!F108="","",'DF raw data'!F108) -> -2.49712e-05 | C103: =IF('DF raw data'!G108="","",'DF raw data'!G108) -> 0.000229901 | D103: =IF('DF raw data'!H108="","",'DF raw data'!H108) -> -3.42613e-06 | F103: -2.50585992e-05 | G103: 0.0002307056535 | H103: -3.438121455e-06 | J103: -0.0001379611557 | K103: -0.00126879599 | L103: 0.004928694264 | M103: 0.05309923538 | N103: 0.0001767619763
A104: =IF('DF raw data'!E109="","",'DF raw data'!E109) -> -279 | B104: =IF('DF raw data'!F109="","",'DF raw data'!F109) -> -8.89069e-06 | C104: =IF('DF raw data'!G109="","",'DF raw data'!G109) -> 0.0002385 | D104: =IF('DF raw data'!H109="","",'DF raw data'!H109) -> -5.6571e-06 | F104: -8.921807415e-06 | G104: 0.00023933475 | H104: -5.67689985e-06 | J104: -0.0001424220594 | K104: -0.00134000702 | L104: 0.005048361639 | M104: 0.0556234162 | N104: 0.0001895150959
A105: =IF('DF raw data'!E110="","",'DF raw data'!E110) -> -278.5 | B105: =IF('DF raw data'!F110="","",'DF raw data'!F110) -> -3.82466e-06 | C105: =IF('DF raw data'!G110="","",'DF raw data'!G110) -> 0.000228868 | D105: =IF('DF raw data'!H110="","",'DF raw data'!H110) -> -1.41549e-05 | F105: -3.83804631e-06 | G105: 0.000229669038 | H105: -1.420444215e-05 | J105: -0.0001443410826 | K105: -0.001412177561 | L105: 0.005163196158 | M105: 0.05820501428 | N105: 0.0002028548104
A106: =IF('DF raw data'!E111="","",'DF raw data'!E111) -> -278 | B106: =IF('DF raw data'!F111="","",'DF raw data'!F111) -> -6.777e-06 | C106: =IF('DF raw data'!G111="","",'DF raw data'!G111) -> 0.00023087 | D106: =IF('DF raw data'!H111="","",'DF raw data'!H111) -> -5.23052e-06 | F106: -6.8007195e-06 | G106: 0.000231678045 | H106: -5.24882682e-06 | J106: -0.0001477414423 | K106: -0.001486048283 | L106: 0.005279035181 | M106: 0.06084453187 | N106: 0.0002167998303
A107: =IF('DF raw data'!E112="","",'DF raw data'!E112) -> -277.5 | B107: =IF('DF raw data'!F112="","",'DF raw data'!F112) -> -6.90533e-06 | C107: =IF('DF raw data'!G112="","",'DF raw data'!G112) -> 0.00023641 | D107: =IF('DF raw data'!H112="","",'DF raw data'!H112) -> -4.92434e-06 | F107: -6.929498655e-06 | G107: 0.000237237435 | H107: -4.94157519e-06 | J107: -0.0001512061916 | K107: -0.001561651378 | L107: 0.005397653898 | M107: 0.06354335881 | N107: 0.0002313785958
A108: =IF('DF raw data'!E113="","",'DF raw data'!E113) -> -277 | B108: =IF('DF raw data'!F113="","",'DF raw data'!F113) -> -2.68007e-06 | C108: =IF('DF raw data'!G113="","",'DF raw data'!G113) -> 0.000233806 | D108: =IF('DF raw data'!H113="","",'DF raw data'!H113) -> -7.4506e-07 | F108: -2.689450245e-06 | G108: 0.000234624321 | H108: -7.4766771e-07 | J108: -0.0001525509168 | K108: -0.001637926837 | L108: 0.005514966059 | M108: 0.06630084184 | N108: 0.000246597657
A109: =IF('DF raw data'!E114="","",'DF raw data'!E114) -> -276.5 | B109: =IF('DF raw data'!F114="","",'DF raw data'!F114) -> -8.63624e-06 | C109: =IF('DF raw data'!G114="","",'DF raw data'!G114) -> 0.000226627 | D109: =IF('DF raw data'!H114="","",'DF raw data'!H114) -> -2.96221e-06 | F109: -8.66646684e-06 | G109: 0.0002274201945 | H109: -2.972577735e-06 | J109: -0.0001568841502 | K109: -0.001716368912 | L109: 0.005628676156 | M109: 0.06911517992 | N109: 0.000262450961
A110: =IF('DF raw data'!E115="","",'DF raw data'!E115) -> -276 | B110: =IF('DF raw data'!F115="","",'DF raw data'!F115) -> 2.03971e-07 | C110: =IF('DF raw data'!G115="","",'DF raw data'!G115) -> 0.000227399 | D110: =IF('DF raw data'!H115="","",'DF raw data'!H115) -> -2.90158e-06 | F110: 2.046848985e-07 | G110: 0.0002281948965 | H110: -2.91173553e-06 | J110: -0.0001567818077 | K110: -0.001794759816 | L110: 0.005742773604 | M110: 0.07198656672 | N110: 0.0002789529756
A111: =IF('DF raw data'!E116="","",'DF raw data'!E116) -> -275.5 | B111: =IF('DF raw data'!F116="","",'DF raw data'!F116) -> -1.81143e-05 | C111: =IF('DF raw data'!G116="","",'DF raw data'!G116) -> 0.000231072 | D111: =IF('DF raw data'!H116="","",'DF raw data'!H116) -> -7.20039e-06 | F111: -1.817770005e-05 | G111: 0.000231880752 | H111: -7.225591365e-06 | J111: -0.0001658706578 | K111: -0.001877695145 | L111: 0.00585871398 | M111: 0.07491592371 | N111: 0.0002961289968
A112: =IF('DF raw data'!E117="","",'DF raw data'!E117) -> -275 | B112: =IF('DF raw data'!F117="","",'DF raw data'!F117) -> -7.79529e-06 | C112: =IF('DF raw data'!G117="","",'DF raw data'!G117) -> 0.000234357 | D112: =IF('DF raw data'!H117="","",'DF raw data'!H117) -> -1.54396e-05 | F112: -7.822573515e-06 | G112: 0.0002351772495 | H112: -1.54936386e-05 | J112: -0.0001697819445 | K112: -0.001962586117 | L112: 0.005976302605 | M112: 0.07790407502 | N112: 0.0003140015062
A113: =IF('DF raw data'!E118="","",'DF raw data'!E118) -> -274.5 | B113: =IF('DF raw data'!F118="","",'DF raw data'!F118) -> -1.66474e-05 | C113: =IF('DF raw data'!G118="","",'DF raw data'!G118) -> 0.000233092 | D113: =IF('DF raw data'!H118="","",'DF raw data'!H118) -> 2.87448e-06 | F113: -1.67056659e-05 | G113: 0.000233907822 | H113: 2.88454068e-06 | J113: -0.0001781347775 | K113: -0.002051653506 | L113: 0.006093256516 | M113: 0.08095070327 | N113: 0.0003325812597
A114: =IF('DF raw data'!E119="","",'DF raw data'!E119) -> -274 | B114: =IF('DF raw data'!F119="","",'DF raw data'!F119) -> -1.06819e-05 | C114: =IF('DF raw data'!G119="","",'DF raw data'!G119) -> 0.00022815 | D114: =IF('DF raw data'!H119="","",'DF raw data'!H119) -> -9.35028e-06 | F114: -1.071928665e-05 | G114: 0.000228948525 | H114: -9.38300598e-06 | J114: -0.0001834944208 | K114: -0.002143400716 | L114: 0.006207730778 | M114: 0.08405456866 | N114: 0.0003518660555
A115: =IF('DF raw data'!E120="","",'DF raw data'!E120) -> -273.5 | B115: =IF('DF raw data'!F120="","",'DF raw data'!F120) -> -8.56697e-06 | C115: =IF('DF raw data'!G120="","",'DF raw data'!G120) -> 0.000232751 | D115: =IF('DF raw data'!H120="","",'DF raw data'!H120) -> -1.07909e-05 | F115: -8.596954395e-06 | G115: 0.0002335656285 | H115: -1.082866815e-05 | J115: -0.000187792898 | K115: -0.002237297165 | L115: 0.006324513593 | M115: 0.08721682546 | N115: 0.0003718834247
A116: =IF('DF raw data'!E121="","",'DF raw data'!E121) -> -273 | B116: =IF('DF raw data'!F121="","",'DF raw data'!F121) -> -7.74521e-06 | C116: =IF('DF raw data'!G121="","",'DF raw data'!G121) -> 0.000236668 | D116: =IF('DF raw data'!H121="","",'DF raw data'!H121) -> 5.9096e-06 | F116: -7.772318235e-06 | G116: 0.000237496338 | H116: 5.9302836e-06 | J116: -0.0001916790571 | K116: -0.002333136693 | L116: 0.006443261762 | M116: 0.09043845634 | N116: 0.0003926596062
A117: =IF('DF raw data'!E122="","",'DF raw data'!E122) -> -272.5 | B117: =IF('DF raw data'!F122="","",'DF raw data'!F122) -> -5.24681e-06 | C117: =IF('DF raw data'!G122="","",'DF raw data'!G122) -> 0.000234115 | D117: =IF('DF raw data'!H122="","",'DF raw data'!H122) -> 5.78135e-06 | F117: -5.265173835e-06 | G117: 0.0002349344025 | H117: 5.801584725e-06 | J117: -0.000194311644 | K117: -0.002430292515 | L117: 0.006560728963 | M117: 0.09371882082 | N117: 0.0004142000669
A118: =IF('DF raw data'!E123="","",'DF raw data'!E123) -> -272 | B118: =IF('DF raw data'!F123="","",'DF raw data'!F123) -> -1.67036e-05 | C118: =IF('DF raw data'!G123="","",'DF raw data'!G123) -> 0.000226998 | D118: =IF('DF raw data'!H123="","",'DF raw data'!H123) -> -9.0565e-06 | F118: -1.67620626e-05 | G118: 0.000227792493 | H118: -9.08819775e-06 | J118: -0.0002026926753 | K118: -0.002531638853 | L118: 0.006674625209 | M118: 0.09705613343 | N118: 0.0004364959199
A119: =IF('DF raw data'!E124="","",'DF raw data'!E124) -> -271.5 | B119: =IF('DF raw data'!F124="","",'DF raw data'!F124) -> -7.01282e-07 | C119: =IF('DF raw data'!G124="","",'DF raw data'!G124) -> 0.000229009 | D119: =IF('DF raw data'!H124="","",'DF raw data'!H124) -> 1.01617e-05 | F119: -7.03736487e-07 | G119: 0.0002298105315 | H119: 1.019726595e-05 | J119: -0.0002030445436 | K119: -0.002633161125 | L119: 0.006789530475 | M119: 0.1004508987 | N119: 0.0004595653955
A120: =IF('DF raw data'!E125="","",'DF raw data'!E125) -> -271 | B120: =IF('DF raw data'!F125="","",'DF raw data'!F125) -> -1.40628e-06 | C120: =IF('DF raw data'!G125="","",'DF raw data'!G125) -> 0.000235611 | D120: =IF('DF raw data'!H125="","",'DF raw data'!H125) -> 1.05522e-05 | F120: -1.41120198e-06 | G120: 0.0002364356385 | H120: 1.05891327e-05 | J120: -0.0002037501446 | K120: -0.002735036197 | L120: 0.006907748294 | M120: 0.1039047728 | N120: 0.0004834446458
A121: =IF('DF raw data'!E126="","",'DF raw data'!E126) -> -270.5 | B121: =IF('DF raw data'!F126="","",'DF raw data'!F126) -> 1.03648e-06 | C121: =IF('DF raw data'!G126="","",'DF raw data'!G126) -> 0.000244558 | D121: =IF('DF raw data'!H126="","",'DF raw data'!H126) -> -2.7744e-06 | F121: 1.04010768e-06 | G121: 0.000245413953 | H121: -2.7841104e-06 | J121: -0.0002032300907 | K121: -0.002836651243 | L121: 0.007030455271 | M121: 0.1074200004 | N121: 0.0005081789477
A122: =IF('DF raw data'!E127="","",'DF raw data'!E127) -> -270 | B122: =IF('DF raw data'!F127="","",'DF raw data'!F127) -> -1.08115e-05 | C122: =IF('DF raw data'!G127="","",'DF raw data'!G127) -> 0.000241504 | D122: =IF('DF raw data'!H127="","",'DF raw data'!H127) -> -6.9557e-06 | F122: -1.084934025e-05 | G122: 0.000242349264 | H122: -6.98004495e-06 | J122: -0.0002086547608 | K122: -0.002940978623 | L122: 0.007151629903 | M122: 0.1109958154 | N122: 0.0005337736213
A123: =IF('DF raw data'!E128="","",'DF raw data'!E128) -> -269.5 | B123: =IF('DF raw data'!F128="","",'DF raw data'!F128) -> -6.58065e-06 | C123: =IF('DF raw data'!G128="","",'DF raw data'!G128) -> 0.000234857 | D123: =IF('DF raw data'!H128="","",'DF raw data'!H128) -> -1.18984e-05 | F123: -6.603682275e-06 | G123: 0.0002356789995 | H123: -1.19400444e-05 | J123: -0.000211956602 | K123: -0.003046956924 | L123: 0.007269469403 | M123: 0.1146305501 | N123: 0.0005602186768
A124: =IF('DF raw data'!E129="","",'DF raw data'!E129) -> -269 | B124: =IF('DF raw data'!F129="","",'DF raw data'!F129) -> -8.82318e-07 | C124: =IF('DF raw data'!G129="","",'DF raw data'!G129) -> 0.000228363 | D124: =IF('DF raw data'!H129="","",'DF raw data'!H129) -> -7.21017e-06 | F124: -8.85406113e-07 | G124: 0.0002291622705 | H124: -7.235405595e-06 | J124: -0.000212399305 | K124: -0.003153156576 | L124: 0.007384050538 | M124: 0.1183225754 | N124: 0.0005875033347
A125: =IF('DF raw data'!E130="","",'DF raw data'!E130) -> -268.5 | B125: =IF('DF raw data'!F130="","",'DF raw data'!F130) -> -1.17678e-05 | C125: =IF('DF raw data'!G130="","",'DF raw data'!G130) -> 0.000224506 | D125: =IF('DF raw data'!H130="","",'DF raw data'!H130) -> -1.42467e-05 | F125: -1.18089873e-05 | G125: 0.000225291771 | H125: -1.429656345e-05 | J125: -0.0002183037987 | K125: -0.003262308476 | L125: 0.007496696423 | M125: 0.1220709236 | N125: 0.0006156273916
A126: =IF('DF raw data'!E131="","",'DF raw data'!E131) -> -268 | B126: =IF('DF raw data'!F131="","",'DF raw data'!F131) -> 3.02196e-06 | C126: =IF('DF raw data'!G131="","",'DF raw data'!G131) -> 0.00022738 | D126: =IF('DF raw data'!H131="","",'DF raw data'!H131) -> -2.16993e-06 | F126: 3.03253686e-06 | G126: 0.00022817583 | H126: -2.177524755e-06 | J126: -0.0002167875303 | K126: -0.003370702241 | L126: 0.007610784338 | M126: 0.1258763157 | N126: 0.0006446129091
A127: =IF('DF raw data'!E132="","",'DF raw data'!E132) -> -267.5 | B127: =IF('DF raw data'!F132="","",'DF raw data'!F132) -> -9.97863e-06 | C127: =IF('DF raw data'!G132="","",'DF raw data'!G132) -> 0.000233664 | D127: =IF('DF raw data'!H132="","",'DF raw data'!H132) -> -7.44594e-06 | F127: -1.001355521e-05 | G127: 0.000234481824 | H127: -7.47200079e-06 | J127: -0.0002217943079 | K127: -0.003481599395 | L127: 0.00772802525 | M127: 0.1297403284 | N127: 0.0006744986926
A128: =IF('DF raw data'!E133="","",'DF raw data'!E133) -> -267 | B128: =IF('DF raw data'!F133="","",'DF raw data'!F133) -> -1.48434e-05 | C128: =IF('DF raw data'!G133="","",'DF raw data'!G133) -> 0.000238822 | D128: =IF('DF raw data'!H133="","",'DF raw data'!H133) -> -1.32456e-05 | F128: =(1-$G$1*($B$49-$G$2))*B128 -> -1.48953519e-05 | G128: 0.000239657877 | H128: -1.32919596e-05 | J128: =F128*$G$3+J127 -> -0.0002292419838 | K128: =J128*$G$3+K127 -> -0.003596220387 | L128: =G128*$G$3+L127 -> 0.007847854189 | M128: =L128*$G$3+M127 -> 0.1336642555 | N128: =(J128^2+L128^2)*$G$3+N127 -> 0.0007053193762
A129: =IF('DF raw data'!E134="","",'DF raw data'!E134) -> -266.5 | B129: =IF('DF raw data'!F134="","",'DF raw data'!F134) -> -3.63924e-06 | C129: =IF('DF raw data'!G134="","",'DF raw data'!G134) -> 0.000236762 | D129: =IF('DF raw data'!H134="","",'DF raw data'!H134) -> -3.52972e-06 | F129: -3.65197734e-06 | G129: 0.000237590667 | H129: -3.54207402e-06 | J129: -0.0002310679725 | K129: -0.003711754373 | L129: 0.007966649522 | M129: 0.1376475802 | N129: 0.0007370798247
A130: =IF('DF raw data'!E135="","",'DF raw data'!E135) -> -266 | B130: =IF('DF raw data'!F135="","",'DF raw data'!F135) -> -7.54707e-06 | C130: =IF('DF raw data'!G135="","",'DF raw data'!G135) -> 0.000240119 | D130: =IF('DF raw data'!H135="","",'DF raw data'!H135) -> -3.09964e-06 | F130: -7.573484745e-06 | G130: 0.0002409594165 | H130: -3.11048874e-06 | J130: -0.0002348547148 | K130: -0.00382918173 | L130: 0.008087129231 | M130: 0.1416911448 | N130: 0.0007698082327
A131: =IF('DF raw data'!E136="","",'DF raw data'!E136) -> -265.5 | B131: =IF('DF raw data'!F136="","",'DF raw data'!F136) -> -9.79273e-06 | C131: =IF('DF raw data'!G136="","",'DF raw data'!G136) -> 0.000237965 | D131: =IF('DF raw data'!H136="","",'DF raw data'!H136) -> 2.43109e-06 | F131: -9.827004555e-06 | G131: 0.0002387978775 | H131: 2.439598815e-06 | J131: -0.0002397682171 | K131: -0.003949065839 | L131: 0.008206528169 | M131: 0.1457944089 | N131: 0.0008035105294
A132: =IF('DF raw data'!E137="","",'DF raw data'!E137) -> -265 | B132: =IF('DF raw data'!F137="","",'DF raw data'!F137) -> -2.42479e-06 | C132: =IF('DF raw data'!G137="","",'DF raw data'!G137) -> 0.000233473 | D132: =IF('DF raw data'!H137="","",'DF raw data'!H137) -> 6.93168e-07 | F132: -2.433276765e-06 | G132: 0.0002342901555 | H132: 6.95594088e-07 | J132: -0.0002409848555 | K132: -0.004069558267 | L132: 0.008323673247 | M132: 0.1499562456 | N132: 0.0008381813344
A133: =IF('DF raw data'!E138="","",'DF raw data'!E138) -> -264.5 | B133: =IF('DF raw data'!F138="","",'DF raw data'!F138) -> -1.02452e-05 | C133: =IF('DF raw data'!G138="","",'DF raw data'!G138) -> 0.000239328 | D133: =IF('DF raw data'!H138="","",'DF raw data'!H138) -> 8.49483e-06 | F133: -1.02810582e-05 | G133: 0.000240165648 | H133: 8.524561905e-06 | J133: -0.0002461253846 | K133: -0.004192620959 | L133: 0.008443756071 | M133: 0.1541781236 | N133: 0.0008738601315
A134: =IF('DF raw data'!E139="","",'DF raw data'!E139) -> -264 | B134: =IF('DF raw data'!F139="","",'DF raw data'!F139) -> -2.68154e-06 | C134: =IF('DF raw data'!G139="","",'DF raw data'!G139) -> 0.000236613 | D134: =IF('DF raw data'!H139="","",'DF raw data'!H139) -> 1.50828e-06 | F134: -2.69092539e-06 | G134: 0.0002374411455 | H134: 1.51355898e-06 | J134: -0.0002474708473 | K134: -0.004316356383 | L134: 0.008562476644 | M134: 0.1584593619 | N134: 0.0009105487556
A135: =IF('DF raw data'!E140="","",'DF raw data'!E140) -> -263.5 | B135: =IF('DF raw data'!F140="","",'DF raw data'!F140) -> -9.07391e-06 | C135: =IF('DF raw data'!G140="","",'DF raw data'!G140) -> 0.000229254 | D135: =IF('DF raw data'!H140="","",'DF raw data'!H140) -> -1.96709e-05 | F135: -9.105668685e-06 | G135: 0.000230056389 | H135: -1.973974815e-05 | J135: -0.0002520236816 | K135: -0.004442368224 | L135: 0.008677504838 | M135: 0.1627981143 | N135: 0.0009482300587
A136: =IF('DF raw data'!E141="","",'DF raw data'!E141) -> -263 | B136: =IF('DF raw data'!F141="","",'DF raw data'!F141) -> -5.10618e-06 | C136: =IF('DF raw data'!G141="","",'DF raw data'!G141) -> 0.000236805 | D136: =IF('DF raw data'!H141="","",'DF raw data'!H141) -> -1.35329e-05 | F136: -5.12405163e-06 | G136: 0.0002376338175 | H136: -1.358026515e-05 | J136: -0.0002545857075 | K136: -0.004569661077 | L136: 0.008796321747 | M136: 0.1671962752 | N136: 0.0009869501038
A137: =IF('DF raw data'!E142="","",'DF raw data'!E142) -> -262.5 | B137: =IF('DF raw data'!F142="","",'DF raw data'!F142) -> -1.01749e-05 | C137: =IF('DF raw data'!G142="","",'DF raw data'!G142) -> 0.000242724 | D137: =IF('DF raw data'!H142="","",'DF raw data'!H142) -> -9.35379e-07 | F137: -1.021051215e-05 | G137: 0.000243573534 | H137: -9.386528265e-07 | J137: -0.0002596909635 | K137: -0.004699506559 | L137: 0.008918108514 | M137: 0.1716553295 | N137: 0.001026750153
A138: =IF('DF raw data'!E143="","",'DF raw data'!E143) -> -262 | B138: =IF('DF raw data'!F143="","",'DF raw data'!F143) -> -3.89445e-06 | C138: =IF('DF raw data'!G143="","",'DF raw data'!G143) -> 0.000239484 | D138: =IF('DF raw data'!H143="","",'DF raw data'!H143) -> -5.09291e-06 | F138: -3.908080575e-06 | G138: 0.000240322194 | H138: -5.110735185e-06 | J138: -0.0002616450038 | K138: -0.004830329061 | L138: 0.009038269611 | M138: 0.1761744643 | N138: 0.001067629541
A139: =IF('DF raw data'!E144="","",'DF raw data'!E144) -> -261.5 | B139: =IF('DF raw data'!F144="","",'DF raw data'!F144) -> 1.04176e-06 | C139: =IF('DF raw data'!G144="","",'DF raw data'!G144) -> 0.000237081 | D139: =IF('DF raw data'!H144="","",'DF raw data'!H144) -> -1.09059e-05 | F139: 1.04540616e-06 | G139: 0.0002379107835 | H139: -1.094407065e-05 | J139: -0.0002611223007 | K139: -0.004960890211 | L139: 0.009157225003 | M139: 0.1807530768 | N139: 0.001109591018
A140: =IF('DF raw data'!E145="","",'DF raw data'!E145) -> -261 | B140: =IF('DF raw data'!F145="","",'DF raw data'!F145) -> -8.88917e-06 | C140: =IF('DF raw data'!G145="","",'DF raw data'!G145) -> 0.00024168 | D140: =IF('DF raw data'!H145="","",'DF raw data'!H145) -> -8.03153e-06 | F140: -8.920282095e-06 | G140: 0.00024252588 | H140: -8.059640355e-06 | J140: -0.0002655824418 | K140: -0.005093681432 | L140: 0.009278487943 | M140: 0.1853923207 | N140: 0.001152671455
A141: =IF('DF raw data'!E146="","",'DF raw data'!E146) -> -260.5 | B141: =IF('DF raw data'!F146="","",'DF raw data'!F146) -> -6.97096e-06 | C141: =IF('DF raw data'!G146="","",'DF raw data'!G146) -> 0.00023026 | D141: =IF('DF raw data'!H146="","",'DF raw data'!H146) -> -2.68012e-06 | F141: -6.99535836e-06 | G141: 0.00023106591 | H141: -2.68950042e-06 | J141: -0.000269080121 | K141: -0.005228221493 | L141: 0.009394020898 | M141: 0.1900893312 | N141: 0.001196831471
A142: =IF('DF raw data'!E147="","",'DF raw data'!E147) -> -260 | B142: =IF('DF raw data'!F147="","",'DF raw data'!F147) -> -4.91951e-06 | C142: =IF('DF raw data'!G147="","",'DF raw data'!G147) -> 0.000229431 | D142: =IF('DF raw data'!H147="","",'DF raw data'!H147) -> -4.85032e-06 | F142: -4.936728285e-06 | G142: 0.0002302340085 | H142: -4.86729612e-06 | J142: -0.0002715484851 | K142: -0.005363995735 | L142: 0.009509137902 | M142: 0.1948439001 | N142: 0.001242080192
A143: =IF('DF raw data'!E148="","",'DF raw data'!E148) -> -259.5 | B143: =IF('DF raw data'!F148="","",'DF raw data'!F148) -> -1.02974e-05 | C143: =IF('DF raw data'!G148="","",'DF raw data'!G148) -> 0.000227524 | D143: =IF('DF raw data'!H148="","",'DF raw data'!H148) -> -9.54392e-06 | F143: -1.03334409e-05 | G143: 0.000228320334 | H143: -9.57732372e-06 | J143: -0.0002767152056 | K143: -0.005502353338 | L143: 0.009623298069 | M143: 0.1996555492 | N143: 0.001288422411
A144: =IF('DF raw data'!E149="","",'DF raw data'!E149) -> -259 | B144: =IF('DF raw data'!F149="","",'DF raw data'!F149) -> -1.88811e-05 | C144: =IF('DF raw data'!G149="","",'DF raw data'!G149) -> 0.000227856 | D144: =IF('DF raw data'!H149="","",'DF raw data'!H149) -> -1.00478e-05 | F144: -1.894718385e-05 | G144: 0.000228653496 | H144: -1.00829673e-05 | J144: -0.0002861887975 | K144: -0.005645447737 | L144: 0.009737624817 | M144: 0.2045243616 | N144: 0.001335874031
A145: =IF('DF raw data'!E150="","",'DF raw data'!E150) -> -258.5 | B145: =IF('DF raw data'!F150="","",'DF raw data'!F150) -> -6.07222e-06 | C145: =IF('DF raw data'!G150="","",'DF raw data'!G150) -> 0.00022992 | D145: =IF('DF raw data'!H150="","",'DF raw data'!H150) -> -5.28658e-06 | F145: -6.09347277e-06 | G145: 0.00023072472 | H145: -5.30508303e-06 | J145: -0.0002892355339 | K145: -0.005790065504 | L145: 0.009852987177 | M145: 0.2094508552 | N145: 0.001384456538
A146: =IF('DF raw data'!E151="","",'DF raw data'!E151) -> -258 | B146: =IF('DF raw data'!F151="","",'DF raw data'!F151) -> -1.22253e-05 | C146: =IF('DF raw data'!G151="","",'DF raw data'!G151) -> 0.000225544 | D146: =IF('DF raw data'!H151="","",'DF raw data'!H151) -> -4.58767e-07 | F146: -1.226808855e-05 | G146: 0.000226333404 | H146: -4.603726845e-07 | J146: -0.0002953695781 | K146: -0.005937750293 | L146: 0.009966153879 | M146: 0.2144339321 | N146: 0.001434162271
A147: =IF('DF raw data'!E152="","",'DF raw data'!E152) -> -257.5 | B147: =IF('DF raw data'!F152="","",'DF raw data'!F152) -> -2.68322e-05 | C147: =IF('DF raw data'!G152="","",'DF raw data'!G152) -> 0.000222272 | D147: =IF('DF raw data'!H152="","",'DF raw data'!H152) -> 2.19664e-06 | F147: -2.69261127e-05 | G147: 0.000223049952 | H147: 2.20432824e-06 | J147: -0.0003088326345 | K147: -0.00609216661 | L147: 0.01007767885 | M147: 0.2194727715 | N147: 0.001484989765
A148: =IF('DF raw data'!E153="","",'DF raw data'!E153) -> -257 | B148: =IF('DF raw data'!F153="","",'DF raw data'!F153) -> -1.17774e-05 | C148: =IF('DF raw data'!G153="","",'DF raw data'!G153) -> 0.000229398 | D148: =IF('DF raw data'!H153="","",'DF raw data'!H153) -> 5.1337e-07 | F148: -1.18186209e-05 | G148: 0.000230200893 | H148: 5.15166795e-07 | J148: -0.0003147419449 | K148: -0.006249537583 | L148: 0.0101927793 | M148: 0.2245691612 | N148: 0.001536985672
A149: =IF('DF raw data'!E154="","",'DF raw data'!E154) -> -256.5 | B149: =IF('DF raw data'!F154="","",'DF raw data'!F154) -> -1.20937e-05 | C149: =IF('DF raw data'!G154="","",'DF raw data'!G154) -> 0.000235547 | D149: =IF('DF raw data'!H154="","",'DF raw data'!H154) -> -5.79632e-06 | F149: -1.213602795e-05 | G149: 0.0002363714145 | H149: -5.81660712e-06 | J149: -0.0003208099589 | K149: -0.006409942562 | L149: 0.01031096501 | M149: 0.2297246437 | N149: 0.001590195131
A150: =IF('DF raw data'!E155="","",'DF raw data'!E155) -> -256 | B150: =IF('DF raw data'!F155="","",'DF raw data'!F155) -> -4.4126e-06 | C150: =IF('DF raw data'!G155="","",'DF raw data'!G155) -> 0.000237291 | D150: =IF('DF raw data'!H155="","",'DF raw data'!H155) -> 3.70486e-06 | F150: -4.4280441e-06 | G150: 0.0002381215185 | H150: 3.71782701e-06 | J150: -0.000323023981 | K150: -0.006571454552 | L150: 0.01043002577 | M150: 0.2349396566 | N150: 0.001644640022
A151: =IF('DF raw data'!E156="","",'DF raw data'!E156) -> -255.5 | B151: =IF('DF raw data'!F156="","",'DF raw data'!F156) -> -7.35017e-06 | C151: =IF('DF raw data'!G156="","",'DF raw data'!G156) -> 0.000230625 | D151: =IF('DF raw data'!H156="","",'DF raw data'!H156) -> -1.05749e-05 | F151: -7.375895595e-06 | G151: 0.0002314321875 | H151: -1.061191215e-05 | J151: -0.0003267119288 | K151: -0.006734810517 | L151: 0.01054574186 | M151: 0.2402125275 | N151: 0.001700299728
A152: =IF('DF raw data'!E157="","",'DF raw data'!E157) -> -255 | B152: =IF('DF raw data'!F157="","",'DF raw data'!F157) -> -1.01103e-05 | C152: =IF('DF raw data'!G157="","",'DF raw data'!G157) -> 0.000230086 | D152: =IF('DF raw data'!H157="","",'DF raw data'!H157) -> -2.01671e-06 | F152: -1.014568605e-05 | G152: 0.000230891301 | H152: -2.023768485e-06 | J152: -0.0003317847718 | K152: -0.006900702903 | L152: 0.01066118751 | M152: 0.2455431213 | N152: 0.001757185228
A153: =IF('DF raw data'!E158="","",'DF raw data'!E158) -> -254.5 | B153: =IF('DF raw data'!F158="","",'DF raw data'!F158) -> -7.42425e-06 | C153: =IF('DF raw data'!G158="","",'DF raw data'!G158) -> 0.000226458 | D153: =IF('DF raw data'!H158="","",'DF raw data'!H158) -> 5.08501e-06 | F153: -7.450234875e-06 | G153: 0.000227250603 | H153: 5.102807535e-06 | J153: -0.0003355098892 | K153: -0.007068457847 | L153: 0.01077481281 | M153: 0.2509305277 | N153: 0.001815289807
A154: =IF('DF raw data'!E159="","",'DF raw data'!E159) -> -254 | B154: =IF('DF raw data'!F159="","",'DF raw data'!F159) -> 4.57518e-07 | C154: =IF('DF raw data'!G159="","",'DF raw data'!G159) -> 0.000245163 | D154: =IF('DF raw data'!H159="","",'DF raw data'!H159) -> 1.22599e-06 | F154: 4.59119313e-07 | G154: 0.0002460210705 | H154: 1.230280965e-06 | J154: -0.0003352803296 | K154: -0.007236098012 | L154: 0.01089782335 | M154: 0.2563794393 | N154: 0.00187472729
A155: =IF('DF raw data'!E160="","",'DF raw data'!E160) -> -253.5 | B155: =IF('DF raw data'!F160="","",'DF raw data'!F160) -> -1.45983e-05 | C155: =IF('DF raw data'!G160="","",'DF raw data'!G160) -> 0.000244842 | D155: =IF('DF raw data'!H160="","",'DF raw data'!H160) -> 3.97063e-06 | F155: -1.464939405e-05 | G155: 0.000245698947 | H155: 3.984527205e-06 | J155: -0.0003426050266 | K155: -0.007407400525 | L155: 0.01102067282 | M155: 0.2618897758 | N155: 0.001935513594
A156: =IF('DF raw data'!E161="","",'DF raw data'!E161) -> -253 | B156: =IF('DF raw data'!F161="","",'DF raw data'!F161) -> 4.36837e-06 | C156: =IF('DF raw data'!G161="","",'DF raw data'!G161) -> 0.00023536 | D156: =IF('DF raw data'!H161="","",'DF raw data'!H161) -> -3.87578e-06 | F156: 4.383659295e-06 | G156: 0.00023618376 | H156: -3.88934523e-06 | J156: -0.000340413197 | K156: -0.007577607124 | L156: 0.0111387647 | M156: 0.2674591581 | N156: 0.001997607574
A157: =IF('DF raw data'!E162="","",'DF raw data'!E162) -> -252.5 | B157: =IF('DF raw data'!F162="","",'DF raw data'!F162) -> -8.63886e-06 | C157: =IF('DF raw data'!G162="","",'DF raw data'!G162) -> 0.000230254 | D157: =IF('DF raw data'!H162="","",'DF raw data'!H162) -> 1.10845e-06 | F157: -8.66909601e-06 | G157: 0.000231059889 | H157: 1.112329575e-06 | J157: -0.000344747745 | K157: -0.007749980996 | L157: 0.01125429465 | M157: 0.2730863054 | N157: 0.002060996574
A158: =IF('DF raw data'!E163="","",'DF raw data'!E163) -> -252 | B158: =IF('DF raw data'!F163="","",'DF raw data'!F163) -> -9.52622e-06 | C158: =IF('DF raw data'!G163="","",'DF raw data'!G163) -> 0.000232832 | D158: =IF('DF raw data'!H163="","",'DF raw data'!H163) -> -1.34439e-05 | F158: -9.55956177e-06 | G158: 0.000233646912 | H158: -1.349095365e-05 | J158: -0.0003495275258 | K158: -0.007924744759 | L158: 0.0113711181 | M158: 0.2787718645 | N158: 0.002125708822
A159: =IF('DF raw data'!E164="","",'DF raw data'!E164) -> -251.5 | B159: =IF('DF raw data'!F164="","",'DF raw data'!F164) -> -4.72745e-06 | C159: =IF('DF raw data'!G164="","",'DF raw data'!G164) -> 0.000231118 | D159: =IF('DF raw data'!H164="","",'DF raw data'!H164) -> -4.86733e-06 | F159: -4.743996075e-06 | G159: 0.000231926913 | H159: -4.884365655e-06 | J159: -0.0003518995239 | K159: -0.008100694521 | L159: 0.01148708156 | M159: 0.2845154053 | N159: 0.00219174726
A160: =IF('DF raw data'!E165="","",'DF raw data'!E165) -> -251 | B160: =IF('DF raw data'!F165="","",'DF raw data'!F165) -> -7.41787e-06 | C160: =IF('DF raw data'!G165="","",'DF raw data'!G165) -> 0.00023359 | D160: =IF('DF raw data'!H165="","",'DF raw data'!H165) -> -4.77479e-06 | F160: -7.443832545e-06 | G160: 0.000234407565 | H160: -4.791501765e-06 | J160: -0.0003556214402 | K160: -0.008278505241 | L160: 0.01160428534 | M160: 0.2903175479 | N160: 0.002259140213
A161: =IF('DF raw data'!E166="","",'DF raw data'!E166) -> -250.5 | B161: =IF('DF raw data'!F166="","",'DF raw data'!F166) -> -7.74445e-06 | C161: =IF('DF raw data'!G166="","",'DF raw data'!G166) -> 0.000228928 | D161: =IF('DF raw data'!H166="","",'DF raw data'!H166) -> 4.7966e-06 | F161: -7.771555575e-06 | G161: 0.000229729248 | H161: 4.8133881e-06 | J161: -0.0003595072179 | K161: -0.00845825885 | L161: 0.01171914997 | M161: 0.2961771229 | N161: 0.002327874073
A162: =IF('DF raw data'!E167="","",'DF raw data'!E167) -> -250 | B162: =IF('DF raw data'!F167="","",'DF raw data'!F167) -> -8.19068e-06 | C162: =IF('DF raw data'!G167="","",'DF raw data'!G167) -> 0.000234239 | D162: =IF('DF raw data'!H167="","",'DF raw data'!H167) -> 1.59314e-06 | F162: -8.21934738e-06 | G162: 0.0002350588365 | H162: 1.59871599e-06 | J162: -0.0003636168916 | K162: -0.008640067296 | L162: 0.01183667938 | M162: 0.3020954626 | N162: 0.002397993671
A163: =IF('DF raw data'!E168="","",'DF raw data'!E168) -> -249.5 | B163: =IF('DF raw data'!F168="","",'DF raw data'!F168) -> 5.13916e-06 | C163: =IF('DF raw data'!G168="","",'DF raw data'!G168) -> 0.000229924 | D163: =IF('DF raw data'!H168="","",'DF raw data'!H168) -> -7.16886e-06 | F163: 5.15714706e-06 | G163: 0.000230728734 | H163: -7.19395101e-06 | J163: -0.0003610383181 | K163: -0.008820586455 | L163: 0.01195204375 | M163: 0.3080714845 | N163: 0.00246948452
A164: =IF('DF raw data'!E169="","",'DF raw data'!E169) -> -249 | B164: =IF('DF raw data'!F169="","",'DF raw data'!F169) -> -2.81387e-06 | C164: =IF('DF raw data'!G169="","",'DF raw data'!G169) -> 0.000228865 | D164: =IF('DF raw data'!H169="","",'DF raw data'!H169) -> 7.98763e-06 | F164: -2.823718545e-06 | G164: 0.0002296660275 | H164: 8.015586705e-06 | J164: -0.0003624501774 | K164: -0.009001811544 | L164: 0.01206687676 | M164: 0.3141049229 | N164: 0.002542354963
A165: =IF('DF raw data'!E170="","",'DF raw data'!E170) -> -248.5 | B165: =IF('DF raw data'!F170="","",'DF raw data'!F170) -> -2.60015e-05 | C165: =IF('DF raw data'!G170="","",'DF raw data'!G170) -> 0.000241231 | D165: =IF('DF raw data'!H170="","",'DF raw data'!H170) -> 5.51717e-06 | F165: -2.609250525e-05 | G165: 0.0002420753085 | H165: 5.536480095e-06 | J165: -0.00037549643 | K165: -0.009189559759 | L165: 0.01218791442 | M165: 0.3201988801 | N165: 0.002616698091
A166: =IF('DF raw data'!E171="","",'DF raw data'!E171) -> -248 | B166: =IF('DF raw data'!F171="","",'DF raw data'!F171) -> 3.72318e-06 | C166: =IF('DF raw data'!G171="","",'DF raw data'!G171) -> 0.000249375 | D166: =IF('DF raw data'!H171="","",'DF raw data'!H171) -> 3.3314e-06 | F166: 3.73621113e-06 | G166: 0.0002502478125 | H166: 3.3430599e-06 | J166: -0.0003736283244 | K166: -0.009376373921 | L166: 0.01231303833 | M166: 0.3263553992 | N166: 0.002692573346
A167: =IF('DF raw data'!E172="","",'DF raw data'!E172) -> -247.5 | B167: =IF('DF raw data'!F172="","",'DF raw data'!F172) -> -4.91977e-06 | C167: =IF('DF raw data'!G172="","",'DF raw data'!G172) -> 0.000249275 | D167: =IF('DF raw data'!H172="","",'DF raw data'!H172) -> -4.30578e-06 | F167: -4.936989195e-06 | G167: 0.0002501474625 | H167: -4.32085023e-06 | J167: -0.000376096819 | K167: -0.009564422331 | L167: 0.01243811206 | M167: 0.3325744553 | N167: 0.002769997386
A168: =IF('DF raw data'!E173="","",'DF raw data'!E173) -> -247 | B168: =IF('DF raw data'!F173="","",'DF raw data'!F173) -> -5.36822e-06 | C168: =IF('DF raw data'!G173="","",'DF raw data'!G173) -> 0.000238549 | D168: =IF('DF raw data'!H173="","",'DF raw data'!H173) -> -4.67781e-06 | F168: -5.38700877e-06 | G168: 0.0002393839215 | H168: -4.694182335e-06 | J168: -0.0003787903234 | K168: -0.009753817492 | L168: 0.01255780402 | M168: 0.3388533573 | N168: 0.002848918348
A169: =IF('DF raw data'!E174="","",'DF raw data'!E174) -> -246.5 | B169: =IF('DF raw data'!F174="","",'DF raw data'!F174) -> 1.74349e-06 | C169: =IF('DF raw data'!G174="","",'DF raw data'!G174) -> 0.000228263 | D169: =IF('DF raw data'!H174="","",'DF raw data'!H174) -> -6.31887e-06 | F169: 1.749592215e-06 | G169: 0.0002290619205 | H169: -6.340986045e-06 | J169: -0.0003779155273 | K169: -0.009942775256 | L169: 0.01267233498 | M169: 0.3451895248 | N169: 0.002929283795
A170: =IF('DF raw data'!E175="","",'DF raw data'!E175) -> -246 | B170: =IF('DF raw data'!F175="","",'DF raw data'!F175) -> 5.78486e-06 | C170: =IF('DF raw data'!G175="","",'DF raw data'!G175) -> 0.000231995 | D170: =IF('DF raw data'!H175="","",'DF raw data'!H175) -> -1.49106e-05 | F170: 5.80510701e-06 | G170: 0.0002328069825 | H170: -1.49627871e-05 | J170: -0.0003750129738 | K170: -0.01013028174 | L170: 0.01278873847 | M170: 0.351583894 | N170: 0.003011130028
A171: =IF('DF raw data'!E176="","",'DF raw data'!E176) -> -245.5 | B171: =IF('DF raw data'!F176="","",'DF raw data'!F176) -> -9.97546e-06 | C171: =IF('DF raw data'!G176="","",'DF raw data'!G176) -> 0.000227763 | D171: =IF('DF raw data'!H176="","",'DF raw data'!H176) -> -1.20139e-05 | F171: -1.001037411e-05 | G171: 0.0002285601705 | H171: -1.205594865e-05 | J171: -0.0003800181609 | K171: -0.01032029082 | L171: 0.01290301855 | M171: 0.3580354033 | N171: 0.003094446179
A172: =IF('DF raw data'!E177="","",'DF raw data'!E177) -> -245 | B172: =IF('DF raw data'!F177="","",'DF raw data'!F177) -> -1.52353e-05 | C172: =IF('DF raw data'!G177="","",'DF raw data'!G177) -> 0.000227237 | D172: =IF('DF raw data'!H177="","",'DF raw data'!H177) -> -2.05548e-06 | F172: -1.528862355e-05 | G172: 0.0002280323295 | H172: -2.06267418e-06 | J172: -0.0003876624726 | K172: -0.01051412206 | L172: 0.01301703472 | M172: 0.3645439206 | N172: 0.003179242917
A173: =IF('DF raw data'!E178="","",'DF raw data'!E178) -> -244.5 | B173: =IF('DF raw data'!F178="","",'DF raw data'!F178) -> -2.08774e-05 | C173: =IF('DF raw data'!G178="","",'DF raw data'!G178) -> 0.00023161 | D173: =IF('DF raw data'!H178="","",'DF raw data'!H178) -> 6.66277e-06 | F173: -2.09504709e-05 | G173: 0.000232420635 | H173: 6.686089695e-06 | J173: -0.0003981377081 | K173: -0.01071319091 | L173: 0.01313324504 | M173: 0.3711105432 | N173: 0.003265563236
A174: =IF('DF raw data'!E179="","",'DF raw data'!E179) -> -244 | B174: =IF('DF raw data'!F179="","",'DF raw data'!F179) -> -9.91609e-06 | C174: =IF('DF raw data'!G179="","",'DF raw data'!G179) -> 0.000231282 | D174: =IF('DF raw data'!H179="","",'DF raw data'!H179) -> -5.24143e-06 | F174: -9.950796315e-06 | G174: 0.000232091487 | H174: -5.259775005e-06 | J174: -0.0004031131062 | K174: -0.01091474747 | L174: 0.01324929078 | M174: 0.3777351885 | N174: 0.003353416339
A175: =IF('DF raw data'!E180="","",'DF raw data'!E180) -> -243.5 | B175: =IF('DF raw data'!F180="","",'DF raw data'!F180) -> -1.52273e-05 | C175: =IF('DF raw data'!G180="","",'DF raw data'!G180) -> 0.000233441 | D175: =IF('DF raw data'!H180="","",'DF raw data'!H180) -> -1.33803e-05 | F175: -1.528059555e-05 | G175: 0.0002342580435 | H175: -1.342713105e-05 | J175: -0.000410753404 | K175: -0.01112012417 | L175: 0.0133664198 | M175: 0.3844183984 | N175: 0.003442831288
A176: =IF('DF raw data'!E181="","",'DF raw data'!E181) -> -243 | B176: =IF('DF raw data'!F181="","",'DF raw data'!F181) -> -2.09292e-05 | C176: =IF('DF raw data'!G181="","",'DF raw data'!G181) -> 0.000231695 | D176: =IF('DF raw data'!H181="","",'DF raw data'!H181) -> -1.33859e-05 | F176: -2.10024522e-05 | G176: 0.0002325059325 | H176: -1.343275065e-05 | J176: -0.0004212546301 | K176: -0.01133075148 | L176: 0.01348267277 | M176: 0.3911597348 | N176: 0.003533811248
A177: =IF('DF raw data'!E182="","",'DF raw data'!E182) -> -242.5 | B177: =IF('DF raw data'!F182="","",'DF raw data'!F182) -> -2.73465e-05 | C177: =IF('DF raw data'!G182="","",'DF raw data'!G182) -> 0.000218738 | D177: =IF('DF raw data'!H182="","",'DF raw data'!H182) -> 5.51569e-06 | F177: -2.744221275e-05 | G177: 0.000219503583 | H177: 5.534994915e-06 | J177: -0.0004349757365 | K177: -0.01154823935 | L177: 0.01359242456 | M177: 0.3979559471 | N177: 0.003626282853
A178: =IF('DF raw data'!E183="","",'DF raw data'!E183) -> -242 | B178: =IF('DF raw data'!F183="","",'DF raw data'!F183) -> -1.65119e-05 | C178: =IF('DF raw data'!G183="","",'DF raw data'!G183) -> 0.000228535 | D178: =IF('DF raw data'!H183="","",'DF raw data'!H183) -> -9.08971e-06 | F178: -1.656969165e-05 | G178: 0.0002293348725 | H178: -9.121523985e-06 | J178: -0.0004432605823 | K178: -0.01176986964 | L178: 0.013707092 | M178: 0.4048094931 | N178: 0.003720323278
A179: =IF('DF raw data'!E184="","",'DF raw data'!E184) -> -241.5 | B179: =IF('DF raw data'!F184="","",'DF raw data'!F184) -> -1.43419e-05 | C179: =IF('DF raw data'!G184="","",'DF raw data'!G184) -> 0.000236174 | D179: =IF('DF raw data'!H184="","",'DF raw data'!H184) -> 4.06562e-06 | F179: -1.439209665e-05 | G179: 0.000237000609 | H179: 4.07984967e-06 | J179: -0.0004504566306 | K179: -0.01199509796 | L179: 0.0138255923 | M179: 0.4117222893 | N179: 0.003815998235
A180: =IF('DF raw data'!E185="","",'DF raw data'!E185) -> -241 | B180: =IF('DF raw data'!F185="","",'DF raw data'!F185) -> -1.2157e-05 | C180: =IF('DF raw data'!G185="","",'DF raw data'!G185) -> 0.00023323 | D180: =IF('DF raw data'!H185="","",'DF raw data'!H185) -> -7.12394e-06 | F180: -1.21995495e-05 | G180: 0.000234046305 | H180: -7.14887379e-06 | J180: -0.0004565564054 | K180: -0.01222337616 | L180: 0.01394261545 | M180: 0.418693597 | N180: 0.00391330072
A181: =IF('DF raw data'!E186="","",'DF raw data'!E186) -> -240.5 | B181: =IF('DF raw data'!F186="","",'DF raw data'!F186) -> -1.88252e-05 | C181: =IF('DF raw data'!G186="","",'DF raw data'!G186) -> 0.000236982 | D181: =IF('DF raw data'!H186="","",'DF raw data'!H186) -> 3.34296e-06 | F181: -1.88910882e-05 | G181: 0.000237811437 | H181: 3.35466036e-06 | J181: -0.0004660019495 | K181: -0.01245637714 | L181: 0.01406152117 | M181: 0.4257243576 | N181: 0.004012272487
A182: =IF('DF raw data'!E187="","",'DF raw data'!E187) -> -240 | B182: =IF('DF raw data'!F187="","",'DF raw data'!F187) -> -1.64548e-05 | C182: =IF('DF raw data'!G187="","",'DF raw data'!G187) -> 0.000242195 | D182: =IF('DF raw data'!H187="","",'DF raw data'!H187) -> 1.91537e-06 | F182: -1.65123918e-05 | G182: 0.0002430426825 | H182: 1.922073795e-06 | J182: -0.0004742581454 | K182: -0.01269350621 | L182: 0.01418304251 | M182: 0.4328158788 | N182: 0.004112964295
A183: =IF('DF raw data'!E188="","",'DF raw data'!E188) -> -239.5 | B183: =IF('DF raw data'!F188="","",'DF raw data'!F188) -> -1.84453e-05 | C183: =IF('DF raw data'!G188="","",'DF raw data'!G188) -> 0.000239681 | D183: =IF('DF raw data'!H188="","",'DF raw data'!H188) -> 1.0285e-05 | F183: -1.850985855e-05 | G183: 0.0002405198835 | H183: 1.03209975e-05 | J183: -0.0004835130747 | K183: -0.01293526275 | L183: 0.01430330245 | M183: 0.4399675301 | N183: 0.004215373418
A184: =IF('DF raw data'!E189="","",'DF raw data'!E189) -> -239 | B184: =IF('DF raw data'!F189="","",'DF raw data'!F189) -> 4.04827e-06 | C184: =IF('DF raw data'!G189="","",'DF raw data'!G189) -> 0.000234024 | D184: =IF('DF raw data'!H189="","",'DF raw data'!H189) -> -4.21488e-06 | F184: 4.062438945e-06 | G184: 0.000234843084 | H184: -4.22963208e-06 | J184: -0.0004814818552 | K184: -0.01317600367 | L184: 0.014420724 | M184: 0.447177892 | N184: 0.004319467971
A185: =IF('DF raw data'!E190="","",'DF raw data'!E190) -> -238.5 | B185: =IF('DF raw data'!F190="","",'DF raw data'!F190) -> -8.50123e-06 | C185: =IF('DF raw data'!G190="","",'DF raw data'!G190) -> 0.000235396 | D185: =IF('DF raw data'!H190="","",'DF raw data'!H190) -> -1.32332e-05 | F185: -8.530984305e-06 | G185: 0.000236219886 | H185: -1.32795162e-05 | J185: -0.0004857473473 | K185: -0.01341887735 | L185: 0.01453883394 | M185: 0.454447309 | N185: 0.004425274792
A186: =IF('DF raw data'!E191="","",'DF raw data'!E191) -> -238 | B186: =IF('DF raw data'!F191="","",'DF raw data'!F191) -> 2.90107e-06 | C186: =IF('DF raw data'!G191="","",'DF raw data'!G191) -> 0.000234162 | D186: =IF('DF raw data'!H191="","",'DF raw data'!H191) -> -1.31969e-05 | F186: 2.911223745e-06 | G186: 0.000234981567 | H186: -1.324308915e-05 | J186: -0.0004842917355 | K186: -0.01366102322 | L186: 0.01465632472 | M186: 0.4617754714 | N186: 0.004532795989
A187: =IF('DF raw data'!E192="","",'DF raw data'!E192) -> -237.5 | B187: =IF('DF raw data'!F192="","",'DF raw data'!F192) -> -1.11375e-05 | C187: =IF('DF raw data'!G192="","",'DF raw data'!G192) -> 0.000226884 | D187: =IF('DF raw data'!H192="","",'DF raw data'!H192) -> 2.05092e-06 | F187: -1.117648125e-05 | G187: 0.000227678094 | H187: 2.05809822e-06 | J187: -0.0004898799761 | K187: -0.0139059632 | L187: 0.01477016377 | M187: 0.4691605533 | N187: 0.004641994849
A188: =IF('DF raw data'!E193="","",'DF raw data'!E193) -> -237 | B188: =IF('DF raw data'!F193="","",'DF raw data'!F193) -> -3.25442e-06 | C188: =IF('DF raw data'!G193="","",'DF raw data'!G193) -> 0.000223818 | D188: =IF('DF raw data'!H193="","",'DF raw data'!H193) -> -4.41429e-06 | F188: -3.26581047e-06 | G188: 0.000224601363 | H188: -4.429740015e-06 | J188: -0.0004915128813 | K188: -0.01415171964 | L188: 0.01488246445 | M188: 0.4766017855 | N188: 0.004752859515
A189: =IF('DF raw data'!E194="","",'DF raw data'!E194) -> -236.5 | B189: =IF('DF raw data'!F194="","",'DF raw data'!F194) -> -1.18988e-05 | C189: =IF('DF raw data'!G194="","",'DF raw data'!G194) -> 0.000214149 | D189: =IF('DF raw data'!H194="","",'DF raw data'!H194) -> -9.18391e-06 | F189: -1.19404458e-05 | G189: 0.0002148985215 | H189: -9.216053685e-06 | J189: -0.0004974831042 | K189: -0.0144004612 | L189: 0.01498991371 | M189: 0.4840967423 | N189: 0.004865332017
A190: =IF('DF raw data'!E195="","",'DF raw data'!E195) -> -236 | B190: =IF('DF raw data'!F195="","",'DF raw data'!F195) -> -2.29839e-05 | C190: =IF('DF raw data'!G195="","",'DF raw data'!G195) -> 0.000224464 | D190: =IF('DF raw data'!H195="","",'DF raw data'!H195) -> -6.56467e-06 | F190: -2.306434365e-05 | G190: 0.000225249624 | H190: -6.587646345e-06 | J190: -0.0005090152761 | K190: -0.01465496883 | L190: 0.01510253852 | M190: 0.4916480116 | N190: 0.0049795049
A191: =IF('DF raw data'!E196="","",'DF raw data'!E196) -> -235.5 | B191: =IF('DF raw data'!F196="","",'DF raw data'!F196) -> -1.5553e-05 | C191: =IF('DF raw data'!G196="","",'DF raw data'!G196) -> 0.00022671 | D191: =IF('DF raw data'!H196="","",'DF raw data'!H196) -> -4.57639e-06 | F191: -1.56074355e-05 | G191: 0.000227503485 | H191: -4.592407365e-06 | J191: -0.0005168189938 | K191: -0.01491337833 | L191: 0.01521629027 | M191: 0.4992561567 | N191: 0.005095406195
A192: =IF('DF raw data'!E197="","",'DF raw data'!E197) -> -235 | B192: =IF('DF raw data'!F197="","",'DF raw data'!F197) -> -6.07236e-06 | C192: =IF('DF raw data'!G197="","",'DF raw data'!G197) -> 0.000223158 | D192: =IF('DF raw data'!H197="","",'DF raw data'!H197) -> -5.38244e-06 | F192: =(1-$G$1*($B$49-$G$2))*B192 -> -6.09361326e-06 | G192: 0.000223939053 | H192: -5.40127854e-06 | J192: =F192*$G$3+J191 -> -0.0005198658004 | K192: =J192*$G$3+K191 -> -0.01517331123 | L192: =G192*$G$3+L191 -> 0.01532825979 | M192: =L192*$G$3+M191 -> 0.5069202866 | N192: =(J192^2+L192^2)*$G$3+N191 -> 0.0052130191
A193: =IF('DF raw data'!E198="","",'DF raw data'!E198) -> -234.5 | B193: =IF('DF raw data'!F198="","",'DF raw data'!F198) -> -1.29295e-05 | C193: =IF('DF raw data'!G198="","",'DF raw data'!G198) -> 0.000236163 | D193: =IF('DF raw data'!H198="","",'DF raw data'!H198) -> -4.38978e-08 | F193: -1.297475325e-05 | G193: 0.0002369895705 | H193: -4.40514423e-08 | J193: -0.0005263531771 | K193: -0.01543648782 | L193: 0.01544675458 | M193: 0.5146436639 | N193: 0.005332458737
A194: =IF('DF raw data'!E199="","",'DF raw data'!E199) -> -234 | B194: =IF('DF raw data'!F199="","",'DF raw data'!F199) -> -3.7098e-06 | C194: =IF('DF raw data'!G199="","",'DF raw data'!G199) -> 0.000244098 | D194: =IF('DF raw data'!H199="","",'DF raw data'!H199) -> 6.50787e-06 | F194: -3.7227843e-06 | G194: 0.000244952343 | H194: 6.530647545e-06 | J194: -0.0005282145692 | K194: -0.0157005951 | L194: 0.01556923075 | M194: 0.5224282793 | N194: 0.005453798715
A195: =IF('DF raw data'!E200="","",'DF raw data'!E200) -> -233.5 | B195: =IF('DF raw data'!F200="","",'DF raw data'!F200) -> -1.15891e-05 | C195: =IF('DF raw data'!G200="","",'DF raw data'!G200) -> 0.000241927 | D195: =IF('DF raw data'!H200="","",'DF raw data'!H200) -> 7.42708e-06 | F195: -1.162966185e-05 | G195: 0.0002427737445 | H195: 7.45307478e-06 | J195: -0.0005340294001 | K195: -0.0159676098 | L195: 0.01569061762 | M195: 0.5302735881 | N195: 0.00557703905
A196: =IF('DF raw data'!E201="","",'DF raw data'!E201) -> -233 | B196: =IF('DF raw data'!F201="","",'DF raw data'!F201) -> -5.68744e-06 | C196: =IF('DF raw data'!G201="","",'DF raw data'!G201) -> 0.0002338 | D196: =IF('DF raw data'!H201="","",'DF raw data'!H201) -> -6.32382e-06 | F196: -5.70734604e-06 | G196: 0.0002346183 | H196: -6.34595337e-06 | J196: -0.0005368830732 | K196: -0.01623605134 | L196: 0.01580792677 | M196: 0.5381775515 | N196: 0.005702128446
A197: =IF('DF raw data'!E202="","",'DF raw data'!E202) -> -232.5 | B197: =IF('DF raw data'!F202="","",'DF raw data'!F202) -> -2.02423e-05 | C197: =IF('DF raw data'!G202="","",'DF raw data'!G202) -> 0.000231818 | D197: =IF('DF raw data'!H202="","",'DF raw data'!H202) -> 1.58278e-05 | F197: -2.031314805e-05 | G197: 0.000232629363 | H197: 1.58831973e-05 | J197: -0.0005470396472 | K197: -0.01650957116 | L197: 0.01592424145 | M197: 0.5461396722 | N197: 0.005829068805
A198: =IF('DF raw data'!E203="","",'DF raw data'!E203) -> -232 | B198: =IF('DF raw data'!F203="","",'DF raw data'!F203) -> 5.32851e-06 | C198: =IF('DF raw data'!G203="","",'DF raw data'!G203) -> 0.000233039 | D198: =IF('DF raw data'!H203="","",'DF raw data'!H203) -> -2.24342e-06 | F198: 5.347159785e-06 | G198: 0.0002338546365 | H198: -2.25127197e-06 | J198: -0.0005443660673 | K198: -0.0167817542 | L198: 0.01604116877 | M198: 0.5541602566 | N198: 0.00595787652
A199: =IF('DF raw data'!E204="","",'DF raw data'!E204) -> -231.5 | B199: =IF('DF raw data'!F204="","",'DF raw data'!F204) -> -4.99303e-06 | C199: =IF('DF raw data'!G204="","",'DF raw data'!G204) -> 0.000224923 | D199: =IF('DF raw data'!H204="","",'DF raw data'!H204) -> 9.89787e-06 | F199: -5.010505605e-06 | G199: 0.0002257102305 | H199: 9.932512545e-06 | J199: -0.0005468713201 | K199: -0.01705518986 | L199: 0.01615402389 | M199: 0.5622372686 | N199: 0.006088502298
A200: =IF('DF raw data'!E205="","",'DF raw data'!E205) -> -231 | B200: =IF('DF raw data'!F205="","",'DF raw data'!F205) -> -8.44558e-06 | C200: =IF('DF raw data'!G205="","",'DF raw data'!G205) -> 0.00022558 | D200: =IF('DF raw data'!H205="","",'DF raw data'!H205) -> -1.00751e-06 | F200: -8.47513953e-06 | G200: 0.00022636953 | H200: -1.011036285e-06 | J200: -0.0005511088899 | K200: -0.0173307443 | L200: 0.01626720865 | M200: 0.5703708729 | N200: 0.006220965197
A201: =IF('DF raw data'!E206="","",'DF raw data'!E206) -> -230.5 | B201: =IF('DF raw data'!F206="","",'DF raw data'!F206) -> -7.29155e-06 | C201: =IF('DF raw data'!G206="","",'DF raw data'!G206) -> 0.000223109 | D201: =IF('DF raw data'!H206="","",'DF raw data'!H206) -> -1.47591e-06 | F201: -7.317070425e-06 | G201: 0.0002238898815 | H201: -1.481075685e-06 | J201: -0.0005547674251 | K201: -0.01760812802 | L201: 0.01637915359 | M201: 0.5785604497 | N201: 0.006355257417
... 1061 more rows

Sheet 10 y=0
A1: =IF('DF raw data'!I1="","",'DF raw data'!I1) -> Number of header lines | B1: =IF('DF raw data'!J1="","",'DF raw data'!J1) -> 54 | C1: =IF('DF raw data'!K1="","",'DF raw data'!K1) ->  | D1: =IF('DF raw data'!L1="","",'DF raw data'!L1) ->  | F1: T_coeff | G1: -0.001 | H1: /degC | J1: IBy total | K1: =J1262*1000 -> -11.39975605 | L1: muTm | M1: =L1262*1000 -> 60.06684158 | R1: DF ref | S1: ='10 y=-0.2'!S1 -> 1
A2: =IF('DF raw data'!I2="","",'DF raw data'!I2) -> Measured by | B2: =IF('DF raw data'!J2="","",'DF raw data'!J2) -> Danfysik | C2: =IF('DF raw data'!K2="","",'DF raw data'!K2) ->  | D2: =IF('DF raw data'!L2="","",'DF raw data'!L2) ->  | F2: Tcorr | G2: 20 | H2: degC | J2: JBy total | K2: =K1262 -> -5.088146906 | L2: muTm^2 | M2: =M1262 -> 18.26297749
A3: =IF('DF raw data'!I3="","",'DF raw data'!I3) -> Operator | B3: =IF('DF raw data'!J3="","",'DF raw data'!J3) -> PMHA | C3: =IF('DF raw data'!K3="","",'DF raw data'!K3) ->  | D3: =IF('DF raw data'!L3="","",'DF raw data'!L3) ->  | F3: Step | G3: =A63-A62 -> 0.5 | H3: mm | J3: PI total | K3: =N1262 -> 10606.29589 | L3: T^2mm^3
A4: =IF('DF raw data'!I4="","",'DF raw data'!I4) -> Data-time | B4: =IF('DF raw data'!J4="","",'DF raw data'!J4) -> 17-09-2024, 12:04:54 | C4: =IF('DF raw data'!K4="","",'DF raw data'!K4) ->  | D4: =IF('DF raw data'!L4="","",'DF raw data'!L4) -> 
A5: =IF('DF raw data'!I5="","",'DF raw data'!I5) -> Project | B5: =IF('DF raw data'!J5="","",'DF raw data'!J5) -> 504314 | C5: =IF('DF raw data'!K5="","",'DF raw data'!K5) ->  | D5: =IF('DF raw data'!L5="","",'DF raw data'!L5) -> 
A6: =IF('DF raw data'!I6="","",'DF raw data'!I6) -> Magnet type | B6: =IF('DF raw data'!J6="","",'DF raw data'!J6) -> Dipole | C6: =IF('DF raw data'!K6="","",'DF raw data'!K6) ->  | D6: =IF('DF raw data'!L6="","",'DF raw data'!L6) -> 
A7: =IF('DF raw data'!I7="","",'DF raw data'!I7) -> Magnet nr. | B7: =IF('DF raw data'!J7="","",'DF raw data'!J7) -> 2410097 | C7: =IF('DF raw data'!K7="","",'DF raw data'!K7) ->  | D7: =IF('DF raw data'!L7="","",'DF raw data'!L7) -> 
A8: =IF('DF raw data'!I8="","",'DF raw data'!I8) -> Meas. number | B8: =IF('DF raw data'!J8="","",'DF raw data'!J8) -> 521 | C8: =IF('DF raw data'!K8="","",'DF raw data'!K8) ->  | D8: =IF('DF raw data'!L8="","",'DF raw data'!L8) -> 
A9: =IF('DF raw data'!I9="","",'DF raw data'!I9) -> Add. info | B9: =IF('DF raw data'!J9="","",'DF raw data'!J9) -> Y-alignment scan 3) | C9: =IF('DF raw data'!K9="","",'DF raw data'!K9) ->  | D9: =IF('DF raw data'!L9="","",'DF raw data'!L9) -> 
A10: =IF('DF raw data'!I10="","",'DF raw data'!I10) -> Device | B10: =IF('DF raw data'!J10="","",'DF raw data'!J10) -> (HAL) HALL-PROBE | C10: =IF('DF raw data'!K10="","",'DF raw data'!K10) ->  | D10: =IF('DF raw data'!L10="","",'DF raw data'!L10) -> 
A11: =IF('DF raw data'!I11="","",'DF raw data'!I11) -> Goal | B11: =IF('DF raw data'!J11="","",'DF raw data'!J11) -> (AXI) AXis Integral (Line, EFB) | C11: =IF('DF raw data'!K11="","",'DF raw data'!K11) ->  | D11: =IF('DF raw data'!L11="","",'DF raw data'!L11) -> 
A12: =IF('DF raw data'!I12="","",'DF raw data'!I12) -> Power supply mode | B12: =IF('DF raw data'!J12="","",'DF raw data'!J12) -> (PM) Permanent Magnet (no MPS in use) | C12: =IF('DF raw data'!K12="","",'DF raw data'!K12) ->  | D12: =IF('DF raw data'!L12="","",'DF raw data'!L12) -> 
A13: =IF('DF raw data'!I13="","",'DF raw data'!I13) -> Data format | B13: =IF('DF raw data'!J13="","",'DF raw data'!J13) -> Raw data text file | C13: =IF('DF raw data'!K13="","",'DF raw data'!K13) ->  | D13: =IF('DF raw data'!L13="","",'DF raw data'!L13) -> 
A14: =IF('DF raw data'!I14="","",'DF raw data'!I14) -> Direction of the pos. x-axis | B14: =IF('DF raw data'!J14="","",'DF raw data'!J14) -> See test program | C14: =IF('DF raw data'!K14="","",'DF raw data'!K14) ->  | D14: =IF('DF raw data'!L14="","",'DF raw data'!L14) -> 
A15: =IF('DF raw data'!I15="","",'DF raw data'!I15) -> Direction of the pos. y-axis | B15: =IF('DF raw data'!J15="","",'DF raw data'!J15) -> Vertical up | C15: =IF('DF raw data'!K15="","",'DF raw data'!K15) ->  | D15: =IF('DF raw data'!L15="","",'DF raw data'!L15) -> 
A16: =IF('DF raw data'!I16="","",'DF raw data'!I16) -> Direction of the pos. z-axis | B16: =IF('DF raw data'!J16="","",'DF raw data'!J16) -> See test program | C16: =IF('DF raw data'!K16="","",'DF raw data'!K16) ->  | D16: =IF('DF raw data'!L16="","",'DF raw data'!L16) -> 
A17: =IF('DF raw data'!I17="","",'DF raw data'!I17) -> Mapper type | B17: =IF('DF raw data'!J17="","",'DF raw data'!J17) -> Precision Hall Mapper | C17: =IF('DF raw data'!K17="","",'DF raw data'!K17) ->  | D17: =IF('DF raw data'!L17="","",'DF raw data'!L17) -> 
A18: =IF('DF raw data'!I18="","",'DF raw data'!I18) -> Mapper Danfysik Reg. Number | B18: =IF('DF raw data'!J18="","",'DF raw data'!J18) -> 2033-D (mapper 1) | C18: =IF('DF raw data'!K18="","",'DF raw data'!K18) ->  | D18: =IF('DF raw data'!L18="","",'DF raw data'!L18) -> 
A19: =IF('DF raw data'!I19="","",'DF raw data'!I19) -> Measurement consept | B19: =IF('DF raw data'!J19="","",'DF raw data'!J19) -> Square line grid | C19: =IF('DF raw data'!K19="","",'DF raw data'!K19) ->  | D19: =IF('DF raw data'!L19="","",'DF raw data'!L19) -> 
A20: =IF('DF raw data'!I20="","",'DF raw data'!I20) -> Mode | B20: =IF('DF raw data'!J20="","",'DF raw data'!J20) -> On-the-fly measurement | C20: =IF('DF raw data'!K20="","",'DF raw data'!K20) ->  | D20: =IF('DF raw data'!L20="","",'DF raw data'!L20) -> 
A21: =IF('DF raw data'!I21="","",'DF raw data'!I21) ->  | B21: =IF('DF raw data'!J21="","",'DF raw data'!J21) ->  | C21: =IF('DF raw data'!K21="","",'DF raw data'!K21) ->  | D21: =IF('DF raw data'!L21="","",'DF raw data'!L21) -> 
A22: =IF('DF raw data'!I22="","",'DF raw data'!I22) -> Probe Name | B22: =IF('DF raw data'!J22="","",'DF raw data'!J22) -> ID12_By | C22: =IF('DF raw data'!K22="","",'DF raw data'!K22) ->  | D22: =IF('DF raw data'!L22="","",'DF raw data'!L22) -> 
A23: =IF('DF raw data'!I23="","",'DF raw data'!I23) -> Probe Type | B23: =IF('DF raw data'!J23="","",'DF raw data'!J23) -> DF_ID_3D_Bxyz | C23: =IF('DF raw data'!K23="","",'DF raw data'!K23) ->  | D23: =IF('DF raw data'!L23="","",'DF raw data'!L23) -> 
A24: =IF('DF raw data'!I24="","",'DF raw data'!I24) -> Probe Danfysik Reg. Number | B24: =IF('DF raw data'!J24="","",'DF raw data'!J24) -> 2277 | C24: =IF('DF raw data'!K24="","",'DF raw data'!K24) ->  | D24: =IF('DF raw data'!L24="","",'DF raw data'!L24) -> 
A25: =IF('DF raw data'!I25="","",'DF raw data'!I25) -> Probe Axis | B25: =IF('DF raw data'!J25="","",'DF raw data'!J25) -> By | C25: =IF('DF raw data'!K25="","",'DF raw data'!K25) ->  | D25: =IF('DF raw data'!L25="","",'DF raw data'!L25) -> 
A26: =IF('DF raw data'!I26="","",'DF raw data'!I26) -> Probe Current Supply | B26: =IF('DF raw data'!J26="","",'DF raw data'!J26) -> 1825-D | C26: =IF('DF raw data'!K26="","",'DF raw data'!K26) ->  | D26: =IF('DF raw data'!L26="","",'DF raw data'!L26) -> 
A27: =IF('DF raw data'!I27="","",'DF raw data'!I27) -> Probe Gain Correction | B27: =IF('DF raw data'!J27="","",'DF raw data'!J27) -> 0.99606 | C27: =IF('DF raw data'!K27="","",'DF raw data'!K27) ->  | D27: =IF('DF raw data'!L27="","",'DF raw data'!L27) -> 
A28: =IF('DF raw data'!I28="","",'DF raw data'!I28) -> Probe Offset Correction | B28: =IF('DF raw data'!J28="","",'DF raw data'!J28) -> 0.0027513 | C28: =IF('DF raw data'!K28="","",'DF raw data'!K28) ->  | D28: =IF('DF raw data'!L28="","",'DF raw data'!L28) -> 
A29: =IF('DF raw data'!I29="","",'DF raw data'!I29) -> DVM Number | B29: =IF('DF raw data'!J29="","",'DF raw data'!J29) -> 2 | C29: =IF('DF raw data'!K29="","",'DF raw data'!K29) ->  | D29: =IF('DF raw data'!L29="","",'DF raw data'!L29) -> 
A30: =IF('DF raw data'!I30="","",'DF raw data'!I30) -> DVM Type | B30: =IF('DF raw data'!J30="","",'DF raw data'!J30) -> K2701 | C30: =IF('DF raw data'!K30="","",'DF raw data'!K30) ->  | D30: =IF('DF raw data'!L30="","",'DF raw data'!L30) -> 
A31: =IF('DF raw data'!I31="","",'DF raw data'!I31) -> DVM Danfysik Reg. Number | B31: =IF('DF raw data'!J31="","",'DF raw data'!J31) -> 1743-D | C31: =IF('DF raw data'!K31="","",'DF raw data'!K31) ->  | D31: =IF('DF raw data'!L31="","",'DF raw data'!L31) -> 
A32: =IF('DF raw data'!I32="","",'DF raw data'!I32) -> Probe Name | B32: =IF('DF raw data'!J32="","",'DF raw data'!J32) -> ID12_Bx | C32: =IF('DF raw data'!K32="","",'DF raw data'!K32) ->  | D32: =IF('DF raw data'!L32="","",'DF raw data'!L32) -> 
A33: =IF('DF raw data'!I33="","",'DF raw data'!I33) -> Probe Type | B33: =IF('DF raw data'!J33="","",'DF raw data'!J33) -> DF_ID_3D_Bxyz | C33: =IF('DF raw data'!K33="","",'DF raw data'!K33) ->  | D33: =IF('DF raw data'!L33="","",'DF raw data'!L33) -> 
A34: =IF('DF raw data'!I34="","",'DF raw data'!I34) -> Probe Danfysik Reg. Number | B34: =IF('DF raw data'!J34="","",'DF raw data'!J34) -> 2277 | C34: =IF('DF raw data'!K34="","",'DF raw data'!K34) ->  | D34: =IF('DF raw data'!L34="","",'DF raw data'!L34) -> 
A35: =IF('DF raw data'!I35="","",'DF raw data'!I35) -> Probe Axis | B35: =IF('DF raw data'!J35="","",'DF raw data'!J35) -> Bx | C35: =IF('DF raw data'!K35="","",'DF raw data'!K35) ->  | D35: =IF('DF raw data'!L35="","",'DF raw data'!L35) -> 
A36: =IF('DF raw data'!I36="","",'DF raw data'!I36) -> Probe Current Supply | B36: =IF('DF raw data'!J36="","",'DF raw data'!J36) -> 1825-D | C36: =IF('DF raw data'!K36="","",'DF raw data'!K36) ->  | D36: =IF('DF raw data'!L36="","",'DF raw data'!L36) -> 
A37: =IF('DF raw data'!I37="","",'DF raw data'!I37) -> Probe Gain Correction | B37: =IF('DF raw data'!J37="","",'DF raw data'!J37) -> 1 | C37: =IF('DF raw data'!K37="","",'DF raw data'!K37) ->  | D37: =IF('DF raw data'!L37="","",'DF raw data'!L37) -> 
A38: =IF('DF raw data'!I38="","",'DF raw data'!I38) -> Probe Offset Correction | B38: =IF('DF raw data'!J38="","",'DF raw data'!J38) -> -0.17549 | C38: =IF('DF raw data'!K38="","",'DF raw data'!K38) ->  | D38: =IF('DF raw data'!L38="","",'DF raw data'!L38) -> 
A39: =IF('DF raw data'!I39="","",'DF raw data'!I39) -> DVM Number | B39: =IF('DF raw data'!J39="","",'DF raw data'!J39) -> 3 | C39: =IF('DF raw data'!K39="","",'DF raw data'!K39) ->  | D39: =IF('DF raw data'!L39="","",'DF raw data'!L39) -> 
A40: =IF('DF raw data'!I40="","",'DF raw data'!I40) -> DVM Type | B40: =IF('DF raw data'!J40="","",'DF raw data'!J40) -> K2701 | C40: =IF('DF raw data'!K40="","",'DF raw data'!K40) ->  | D40: =IF('DF raw data'!L40="","",'DF raw data'!L40) -> 
A41: =IF('DF raw data'!I41="","",'DF raw data'!I41) -> DVM Danfysik Reg. Number | B41: =IF('DF raw data'!J41="","",'DF raw data'!J41) -> 1744-D | C41: =IF('DF raw data'!K41="","",'DF raw data'!K41) ->  | D41: =IF('DF raw data'!L41="","",'DF raw data'!L41) -> 
A42: =IF('DF raw data'!I42="","",'DF raw data'!I42) -> Probe Name | B42: =IF('DF raw data'!J42="","",'DF raw data'!J42) -> ID12_Bz | C42: =IF('DF raw data'!K42="","",'DF raw data'!K42) ->  | D42: =IF('DF raw data'!L42="","",'DF raw data'!L42) -> 
A43: =IF('DF raw data'!I43="","",'DF raw data'!I43) -> Probe Type | B43: =IF('DF raw data'!J43="","",'DF raw data'!J43) -> DF_ID_3D_Bxyz | C43: =IF('DF raw data'!K43="","",'DF raw data'!K43) ->  | D43: =IF('DF raw data'!L43="","",'DF raw data'!L43) -> 
A44: =IF('DF raw data'!I44="","",'DF raw data'!I44) -> Probe Danfysik Reg. Number | B44: =IF('DF raw data'!J44="","",'DF raw data'!J44) -> 2277 | C44: =IF('DF raw data'!K44="","",'DF raw data'!K44) ->  | D44: =IF('DF raw data'!L44="","",'DF raw data'!L44) -> 
A45: =IF('DF raw data'!I45="","",'DF raw data'!I45) -> Probe Axis | B45: =IF('DF raw data'!J45="","",'DF raw data'!J45) -> Bz | C45: =IF('DF raw data'!K45="","",'DF raw data'!K45) ->  | D45: =IF('DF raw data'!L45="","",'DF raw data'!L45) -> 
A46: =IF('DF raw data'!I46="","",'DF raw data'!I46) -> Probe Current Supply | B46: =IF('DF raw data'!J46="","",'DF raw data'!J46) -> 1825-D | C46: =IF('DF raw data'!K46="","",'DF raw data'!K46) ->  | D46: =IF('DF raw data'!L46="","",'DF raw data'!L46) -> 
A47: =IF('DF raw data'!I47="","",'DF raw data'!I47) -> Probe Gain Correction | B47: =IF('DF raw data'!J47="","",'DF raw data'!J47) -> 1 | C47: =IF('DF raw data'!K47="","",'DF raw data'!K47) ->  | D47: =IF('DF raw data'!L47="","",'DF raw data'!L47) -> 
A48: =IF('DF raw data'!I53="","",'DF raw data'!I53) -> PS-Gap: | B48: =IF('DF raw data'!J53="","",'DF raw data'!J53) -> 10 | C48: =IF('DF raw data'!K53="","",'DF raw data'!K53) ->  | D48: =IF('DF raw data'!L53="","",'DF raw data'!L53) -> 
A49: =IF('DF raw data'!I54="","",'DF raw data'!I54) -> PS-Temperature: | B49: =IF('DF raw data'!J54="","",'DF raw data'!J54) -> 23.5 | C49: =IF('DF raw data'!K54="","",'DF raw data'!K54) ->  | D49: =IF('DF raw data'!L54="","",'DF raw data'!L54) -> 
A50: =IF('DF raw data'!I55="","",'DF raw data'!I55) -> PS-Encoder: | B50: =IF('DF raw data'!J55="","",'DF raw data'!J55) -> 19.6817 | C50: =IF('DF raw data'!K55="","",'DF raw data'!K55) ->  | D50: =IF('DF raw data'!L55="","",'DF raw data'!L55) -> 
A51: =IF('DF raw data'!I56="","",'DF raw data'!I56) ->  | B51: =IF('DF raw data'!J56="","",'DF raw data'!J56) ->  | C51: =IF('DF raw data'!K56="","",'DF raw data'!K56) ->  | D51: =IF('DF raw data'!L56="","",'DF raw data'!L56) -> 
A52: =IF('DF raw data'!I57="","",'DF raw data'!I57) -> Monitor-Index | B52: =IF('DF raw data'!J57="","",'DF raw data'!J57) -> [1,1,4] | C52: =IF('DF raw data'!K57="","",'DF raw data'!K57) ->  | D52: =IF('DF raw data'!L57="","",'DF raw data'!L57) -> 
A53: =IF('DF raw data'!I58="","",'DF raw data'!I58) ->  | B53: =IF('DF raw data'!J58="","",'DF raw data'!J58) ->  | C53: =IF('DF raw data'!K58="","",'DF raw data'!K58) ->  | D53: =IF('DF raw data'!L58="","",'DF raw data'!L58) -> 
A54: =IF('DF raw data'!I59="","",'DF raw data'!I59) -> Time [s] | B54: =IF('DF raw data'!J59="","",'DF raw data'!J59) -> Y [mm] | C54: =IF('DF raw data'!K59="","",'DF raw data'!K59) -> X [mm] | D54: =IF('DF raw data'!L59="","",'DF raw data'!L59) -> Nominal current [A]
A55: =IF('DF raw data'!I60="","",'DF raw data'!I60) ->  | B55: =IF('DF raw data'!J60="","",'DF raw data'!J60) ->  | C55: =IF('DF raw data'!K60="","",'DF raw data'!K60) ->  | D55: =IF('DF raw data'!L60="","",'DF raw data'!L60) -> 
A56: =IF('DF raw data'!I61="","",'DF raw data'!I61) -> 207.6 | B56: =IF('DF raw data'!J61="","",'DF raw data'!J61) -> 31.56 | C56: =IF('DF raw data'!K61="","",'DF raw data'!K61) -> 302.3 | D56: =IF('DF raw data'!L61="","",'DF raw data'!L61) -> 0
A57: =IF('DF raw data'!I62="","",'DF raw data'!I62) ->  | B57: =IF('DF raw data'!J62="","",'DF raw data'!J62) ->  | C57: =IF('DF raw data'!K62="","",'DF raw data'!K62) ->  | D57: =IF('DF raw data'!L62="","",'DF raw data'!L62) -> 
A58: =IF('DF raw data'!I63="","",'DF raw data'!I63) -> Measurement-Index | B58: =IF('DF raw data'!J63="","",'DF raw data'!J63) -> [1,1,1201,2] | C58: =IF('DF raw data'!K63="","",'DF raw data'!K63) ->  | D58: =IF('DF raw data'!L63="","",'DF raw data'!L63) -> 
A59: =IF('DF raw data'!I64="","",'DF raw data'!I64) ->  | B59: =IF('DF raw data'!J64="","",'DF raw data'!J64) ->  | C59: =IF('DF raw data'!K64="","",'DF raw data'!K64) ->  | D59: =IF('DF raw data'!L64="","",'DF raw data'!L64) -> 
A60: =IF('DF raw data'!I65="","",'DF raw data'!I65) -> Z [mm] | B60: By [T] | C60: Bx [T] | D60: Bz [T] | F60: By_corr | G60: Bx_corr | H60: Bz_corr | J60: Iy | K60: Jy | L60: Ix | M60: Jx | N60: PI
A62: =IF('DF raw data'!I67="","",'DF raw data'!I67) -> -300 | B62: =IF('DF raw data'!J67="","",'DF raw data'!J67) -> -1.73048e-05 | C62: =IF('DF raw data'!K67="","",'DF raw data'!K67) -> 0.000138484 | D62: =IF('DF raw data'!L67="","",'DF raw data'!L67) -> -7.57845e-06 | F62: =(1-$G$1*($B$49))*B62 -> -1.77114628e-05 | G62: =(1-$G$1*($B$49-$G$2))*C62 -> 0.000138968694 | H62: =(1-$G$1*($B$49-$G$2))*D62 -> -7.604974575e-06 | J62: =F62*$G$3 -> -8.8557314e-06 | K62: =J62*$G$3 -> -4.4278657e-06 | L62: =G62*$G$3 -> 6.9484347e-05 | M62: =L62*$G$3 -> 3.47421735e-05 | N62: =(J62^2+L62^2)*$G$3 -> 2.453249228e-09
A63: =IF('DF raw data'!I68="","",'DF raw data'!I68) -> -299.5 | B63: =IF('DF raw data'!J68="","",'DF raw data'!J68) -> -8.84854e-06 | C63: =IF('DF raw data'!K68="","",'DF raw data'!K68) -> 0.000142354 | D63: =IF('DF raw data'!L68="","",'DF raw data'!L68) -> -7.86068e-06 | F63: =(1-$G$1*($B$49-$G$2))*B63 -> -8.87950989e-06 | G63: =(1-$G$1*($B$49-$G$2))*C63 -> 0.000142852239 | H63: -7.88819238e-06 | J63: =F63*$G$3+J62 -> -1.329548635e-05 | K63: =J63*$G$3+K62 -> -1.107560887e-05 | L63: =G63*$G$3+L62 -> 0.0001409104665 | M63: =L63*$G$3+M62 -> 0.0001051974067 | N63: =(J63^2+L63^2)*$G$3+N62 -> 1.246951399e-08
A64: =IF('DF raw data'!I69="","",'DF raw data'!I69) -> -299 | B64: =IF('DF raw data'!J69="","",'DF raw data'!J69) -> -1.88421e-05 | C64: =IF('DF raw data'!K69="","",'DF raw data'!K69) -> 0.000143134 | D64: =IF('DF raw data'!L69="","",'DF raw data'!L69) -> -8.27098e-06 | F64: =(1-$G$1*($B$49-$G$2))*B64 -> -1.890804735e-05 | G64: 0.000143634969 | H64: -8.29992843e-06 | J64: =F64*$G$3+J63 -> -2.274951002e-05 | K64: =J64*$G$3+K63 -> -2.245036388e-05 | L64: =G64*$G$3+L63 -> 0.000212727951 | M64: =L64*$G$3+M63 -> 0.0002115613822 | N64: =(J64^2+L64^2)*$G$3+N63 -> 3.535487466e-08
A65: =IF('DF raw data'!I70="","",'DF raw data'!I70) -> -298.5 | B65: =IF('DF raw data'!J70="","",'DF raw data'!J70) -> -6.60584e-06 | C65: =IF('DF raw data'!K70="","",'DF raw data'!K70) -> 0.000149498 | D65: =IF('DF raw data'!L70="","",'DF raw data'!L70) -> -8.76221e-06 | F65: -6.62896044e-06 | G65: 0.000150021243 | H65: -8.792877735e-06 | J65: -2.606399024e-05 | K65: -3.5482359e-05 | L65: 0.0002877385725 | M65: 0.0003554306685 | N65: 7.709128351e-08
A66: =IF('DF raw data'!I71="","",'DF raw data'!I71) -> -298 | B66: =IF('DF raw data'!J71="","",'DF raw data'!J71) -> -1.64712e-05 | C66: =IF('DF raw data'!K71="","",'DF raw data'!K71) -> 0.000161353 | D66: =IF('DF raw data'!L71="","",'DF raw data'!L71) -> -9.1407e-06 | F66: -1.65288492e-05 | G66: 0.0001619177355 | H66: -9.17269245e-06 | J66: -3.432841484e-05 | K66: -5.264656642e-05 | L66: 0.0003686974402 | M66: 0.0005397793886 | N66: 1.456494048e-07
A67: =IF('DF raw data'!I72="","",'DF raw data'!I72) -> -297.5 | B67: =IF('DF raw data'!J72="","",'DF raw data'!J72) -> -1.5959e-05 | C67: =IF('DF raw data'!K72="","",'DF raw data'!K72) -> 0.000159613 | D67: =IF('DF raw data'!L72="","",'DF raw data'!L72) -> -9.07849e-06 | F67: -1.60148565e-05 | G67: 0.0001601716455 | H67: -9.110264715e-06 | J67: -4.233584309e-05 | K67: -7.381448797e-05 | L67: 0.000448783263 | M67: 0.0007641710201 | N67: 2.472487751e-07
A68: =IF('DF raw data'!I73="","",'DF raw data'!I73) -> -297 | B68: =IF('DF raw data'!J73="","",'DF raw data'!J73) -> -2.14042e-05 | C68: =IF('DF raw data'!K73="","",'DF raw data'!K73) -> 0.000157236 | D68: =IF('DF raw data'!L73="","",'DF raw data'!L73) -> -8.69801e-06 | F68: -2.14791147e-05 | G68: 0.000157786326 | H68: -8.728453035e-06 | J68: -5.307540044e-05 | K68: -0.0001003521882 | L68: 0.000527676426 | M68: 0.001028009233 | N68: 3.878784795e-07
A69: =IF('DF raw data'!I74="","",'DF raw data'!I74) -> -296.5 | B69: =IF('DF raw data'!J74="","",'DF raw data'!J74) -> -1.32048e-05 | C69: =IF('DF raw data'!K74="","",'DF raw data'!K74) -> 0.000156845 | D69: =IF('DF raw data'!L74="","",'DF raw data'!L74) -> -8.44516e-06 | F69: -1.32510168e-05 | G69: 0.0001573939575 | H69: -8.47471806e-06 | J69: -5.970090884e-05 | K69: -0.0001302026426 | L69: 0.0006063734047 | M69: 0.001331195936 | N69: 5.735049317e-07
A70: =IF('DF raw data'!I75="","",'DF raw data'!I75) -> -296 | B70: =IF('DF raw data'!J75="","",'DF raw data'!J75) -> -2.2814e-05 | C70: =IF('DF raw data'!K75="","",'DF raw data'!K75) -> 0.000157013 | D70: =IF('DF raw data'!L75="","",'DF raw data'!L75) -> -7.93053e-06 | F70: -2.2893849e-05 | G70: 0.0001575625455 | H70: -7.958286855e-06 | J70: -7.114783334e-05 | K70: -0.0001657765593 | L70: 0.0006851546775 | M70: 0.001673773274 | N70: 8.107544049e-07
A71: =IF('DF raw data'!I76="","",'DF raw data'!I76) -> -295.5 | B71: =IF('DF raw data'!J76="","",'DF raw data'!J76) -> -1.39103e-05 | C71: =IF('DF raw data'!K76="","",'DF raw data'!K76) -> 0.000158388 | D71: =IF('DF raw data'!L76="","",'DF raw data'!L76) -> -7.41047e-06 | F71: -1.395898605e-05 | G71: 0.000158942358 | H71: -7.436406645e-06 | J71: -7.812732637e-05 | K71: -0.0002048402225 | L71: 0.0007646258565 | M71: 0.002056086202 | N71: 1.106132695e-06
A72: =IF('DF raw data'!I77="","",'DF raw data'!I77) -> -295 | B72: =IF('DF raw data'!J77="","",'DF raw data'!J77) -> -8.84851e-06 | C72: =IF('DF raw data'!K77="","",'DF raw data'!K77) -> 0.000154955 | D72: =IF('DF raw data'!L77="","",'DF raw data'!L77) -> -7.72336e-06 | F72: -8.879479785e-06 | G72: 0.0001554973425 | H72: -7.75039176e-06 | J72: -8.256706626e-05 | K72: -0.0002461237556 | L72: 0.0008423745277 | M72: 0.002477273466 | N72: 1.464338777e-06
A73: =IF('DF raw data'!I78="","",'DF raw data'!I78) -> -294.5 | B73: =IF('DF raw data'!J78="","",'DF raw data'!J78) -> -5.70908e-06 | C73: =IF('DF raw data'!K78="","",'DF raw data'!K78) -> 0.00015401 | D73: =IF('DF raw data'!L78="","",'DF raw data'!L78) -> -8.84815e-06 | F73: -5.72906178e-06 | G73: 0.000154549035 | H73: -8.879118525e-06 | J73: -8.543159715e-05 | K73: -0.0002888395542 | L73: 0.0009196490452 | M73: 0.002937097989 | N73: 1.890865239e-06
A74: =IF('DF raw data'!I79="","",'DF raw data'!I79) -> -294 | B74: =IF('DF raw data'!J79="","",'DF raw data'!J79) -> -9.80854e-06 | C74: =IF('DF raw data'!K79="","",'DF raw data'!K79) -> 0.000156779 | D74: =IF('DF raw data'!L79="","",'DF raw data'!L79) -> -9.19695e-06 | F74: -9.84286989e-06 | G74: 0.0001573277265 | H74: -9.229139325e-06 | J74: -9.035303209e-05 | K74: -0.0003340160702 | L74: 0.0009983129085 | M74: 0.003436254443 | N74: 2.393261406e-06
A75: =IF('DF raw data'!I80="","",'DF raw data'!I80) -> -293.5 | B75: =IF('DF raw data'!J80="","",'DF raw data'!J80) -> -2.43524e-05 | C75: =IF('DF raw data'!K80="","",'DF raw data'!K80) -> 0.000155702 | D75: =IF('DF raw data'!L80="","",'DF raw data'!L80) -> -8.04882e-06 | F75: -2.44376334e-05 | G75: 0.000156246957 | H75: -8.07699087e-06 | J75: -0.0001025718488 | K75: -0.0003853019946 | L75: 0.001076436387 | M75: 0.003974472637 | N75: 2.977879546e-06
A76: =IF('DF raw data'!I81="","",'DF raw data'!I81) -> -293 | B76: =IF('DF raw data'!J81="","",'DF raw data'!J81) -> -5.19724e-06 | C76: =IF('DF raw data'!K81="","",'DF raw data'!K81) -> 0.000152395 | D76: =IF('DF raw data'!L81="","",'DF raw data'!L81) -> -7.3912e-06 | F76: -5.21543034e-06 | G76: 0.0001529283825 | H76: -7.4170692e-06 | J76: -0.000105179564 | K76: -0.0004378917766 | L76: 0.001152900578 | M76: 0.004550922926 | N76: 3.648000788e-06
A77: =IF('DF raw data'!I82="","",'DF raw data'!I82) -> -292.5 | B77: =IF('DF raw data'!J82="","",'DF raw data'!J82) -> -1.99854e-07 | C77: =IF('DF raw data'!K82="","",'DF raw data'!K82) -> 0.000149779 | D77: =IF('DF raw data'!L82="","",'DF raw data'!L82) -> -8.31489e-06 | F77: -2.00553489e-07 | G77: 0.0001503032265 | H77: -8.343992115e-06 | J77: -0.0001052798407 | K77: -0.0004905316969 | L77: 0.001228052191 | M77: 0.005164949022 | N77: 4.407598803e-06
A78: =IF('DF raw data'!I83="","",'DF raw data'!I83) -> -292 | B78: =IF('DF raw data'!J83="","",'DF raw data'!J83) -> -9.23183e-06 | C78: =IF('DF raw data'!K83="","",'DF raw data'!K83) -> 0.000145885 | D78: =IF('DF raw data'!L83="","",'DF raw data'!L83) -> -9.29217e-06 | F78: -9.264141405e-06 | G78: 0.0001463955975 | H78: -9.324692595e-06 | J78: -0.0001099119114 | K78: -0.0005454876526 | L78: 0.00130124999 | M78: 0.005815574017 | N78: 5.260264886e-06
A79: =IF('DF raw data'!I84="","",'DF raw data'!I84) -> -291.5 | B79: =IF('DF raw data'!J84="","",'DF raw data'!J84) -> -1.27608e-05 | C79: =IF('DF raw data'!K84="","",'DF raw data'!K84) -> 0.000150978 | D79: =IF('DF raw data'!L84="","",'DF raw data'!L84) -> -1.60136e-06 | F79: -1.28054628e-05 | G79: 0.000151506423 | H79: -1.60696476e-06 | J79: -0.0001163146428 | K79: -0.000603644974 | L79: 0.001377003202 | M79: 0.006504075618 | N79: 6.215098343e-06
A80: =IF('DF raw data'!I85="","",'DF raw data'!I85) -> -291 | B80: =IF('DF raw data'!J85="","",'DF raw data'!J85) -> -1.02566e-05 | C80: =IF('DF raw data'!K85="","",'DF raw data'!K85) -> 0.000153926 | D80: =IF('DF raw data'!L85="","",'DF raw data'!L85) -> -9.4479e-06 | F80: -1.02924981e-05 | G80: 0.000154464741 | H80: -9.48096765e-06 | J80: -0.0001214608919 | K80: -0.00066437542 | L80: 0.001454235572 | M80: 0.007231193404 | N80: 7.279875267e-06
A81: =IF('DF raw data'!I86="","",'DF raw data'!I86) -> -290.5 | B81: =IF('DF raw data'!J86="","",'DF raw data'!J86) -> -1.55057e-05 | C81: =IF('DF raw data'!K86="","",'DF raw data'!K86) -> 0.000140474 | D81: =IF('DF raw data'!L86="","",'DF raw data'!L86) -> -1.69277e-05 | F81: -1.555996995e-05 | G81: 0.000140965659 | H81: -1.698694695e-05 | J81: -0.0001292408768 | K81: -0.0007289958584 | L81: 0.001524718402 | M81: 0.007993552605 | N81: 8.450609971e-06
A82: =IF('DF raw data'!I87="","",'DF raw data'!I87) -> -290 | B82: =IF('DF raw data'!J87="","",'DF raw data'!J87) -> -1.5761e-05 | C82: =IF('DF raw data'!K87="","",'DF raw data'!K87) -> 0.000139466 | D82: =IF('DF raw data'!L87="","",'DF raw data'!L87) -> -1.69217e-05 | F82: -1.58161635e-05 | G82: 0.000139954131 | H82: -1.698092595e-05 | J82: -0.0001371489586 | K82: -0.0007975703377 | L82: 0.001594695467 | M82: 0.008790900338 | N82: 9.731541706e-06
A83: =IF('DF raw data'!I88="","",'DF raw data'!I88) -> -289.5 | B83: =IF('DF raw data'!J88="","",'DF raw data'!J88) -> -9.7403e-06 | C83: =IF('DF raw data'!K88="","",'DF raw data'!K88) -> 0.00014944 | D83: =IF('DF raw data'!L88="","",'DF raw data'!L88) -> -1.6326e-05 | F83: -9.77439105e-06 | G83: 0.00014996304 | H83: -1.6383141e-05 | J83: -0.0001420361541 | K83: -0.0008685884147 | L83: 0.001669676987 | M83: 0.009625738832 | N83: 1.113553946e-05
A84: =IF('DF raw data'!I89="","",'DF raw data'!I89) -> -289 | B84: =IF('DF raw data'!J89="","",'DF raw data'!J89) -> -1.56286e-05 | C84: =IF('DF raw data'!K89="","",'DF raw data'!K89) -> 0.000149973 | D84: =IF('DF raw data'!L89="","",'DF raw data'!L89) -> -2.35159e-05 | F84: -1.56833001e-05 | G84: 0.0001504979055 | H84: -2.359820565e-05 | J84: -0.0001498778042 | K84: -0.0009435273168 | L84: 0.00174492594 | M84: 0.0104982018 | N84: 1.266915441e-05
A85: =IF('DF raw data'!I90="","",'DF raw data'!I90) -> -288.5 | B85: =IF('DF raw data'!J90="","",'DF raw data'!J90) -> -1.00691e-05 | C85: =IF('DF raw data'!K90="","",'DF raw data'!K90) -> 0.000139774 | D85: =IF('DF raw data'!L90="","",'DF raw data'!L90) -> -3.50968e-06 | F85: -1.010434185e-05 | G85: 0.000140263209 | H85: -3.52196388e-06 | J85: -0.0001549299751 | K85: -0.001020992304 | L85: 0.001815057545 | M85: 0.01140573057 | N85: 1.4328373e-05
A86: =IF('DF raw data'!I91="","",'DF raw data'!I91) -> -288 | B86: =IF('DF raw data'!J91="","",'DF raw data'!J91) -> -1.50054e-05 | C86: =IF('DF raw data'!K91="","",'DF raw data'!K91) -> 0.00014252 | D86: =IF('DF raw data'!L91="","",'DF raw data'!L91) -> 3.39393e-06 | F86: -1.50579189e-05 | G86: 0.00014301882 | H86: 3.405808755e-06 | J86: -0.0001624589345 | K86: -0.001102221772 | L86: 0.001886566955 | M86: 0.01234901405 | N86: 1.612113689e-05
A87: =IF('DF raw data'!I92="","",'DF raw data'!I92) -> -287.5 | B87: =IF('DF raw data'!J92="","",'DF raw data'!J92) -> -1.12811e-05 | C87: =IF('DF raw data'!K92="","",'DF raw data'!K92) -> 0.000142421 | D87: =IF('DF raw data'!L92="","",'DF raw data'!L92) -> -1.17835e-05 | F87: -1.132058385e-05 | G87: 0.0001429194735 | H87: -1.182474225e-05 | J87: -0.0001681192265 | K87: -0.001186281385 | L87: 0.001958026691 | M87: 0.0133280274 | N87: 1.805220319e-05
A88: =IF('DF raw data'!I93="","",'DF raw data'!I93) -> -287 | B88: =IF('DF raw data'!J93="","",'DF raw data'!J93) -> -5.64442e-06 | C88: =IF('DF raw data'!K93="","",'DF raw data'!K93) -> 0.000147485 | D88: =IF('DF raw data'!L93="","",'DF raw data'!L93) -> -9.42527e-06 | F88: -5.66417547e-06 | G88: 0.0001480011975 | H88: -9.458258445e-06 | J88: -0.0001709513142 | K88: -0.001271757042 | L88: 0.00203202729 | M88: 0.01434404104 | N88: 2.013138282e-05
A89: =IF('DF raw data'!I94="","",'DF raw data'!I94) -> -286.5 | B89: =IF('DF raw data'!J94="","",'DF raw data'!J94) -> -1.92901e-05 | C89: =IF('DF raw data'!K94="","",'DF raw data'!K94) -> 0.000142635 | D89: =IF('DF raw data'!L94="","",'DF raw data'!L94) -> -1.02206e-05 | F89: -1.935761535e-05 | G89: 0.0001431342225 | H89: -1.02563721e-05 | J89: -0.0001806301219 | K89: -0.001362072103 | L89: 0.002103594401 | M89: 0.01539583824 | N89: 2.236025114e-05
A90: =IF('DF raw data'!I95="","",'DF raw data'!I95) -> -286 | B90: =IF('DF raw data'!J95="","",'DF raw data'!J95) -> -1.81983e-05 | C90: =IF('DF raw data'!K95="","",'DF raw data'!K95) -> 0.000147513 | D90: =IF('DF raw data'!L95="","",'DF raw data'!L95) -> -1.22063e-05 | F90: -1.826199405e-05 | G90: 0.0001480292955 | H90: -1.224902205e-05 | J90: -0.0001897611189 | K90: -0.001456952662 | L90: 0.002177609049 | M90: 0.01648464277 | N90: 2.474924637e-05
A91: =IF('DF raw data'!I96="","",'DF raw data'!I96) -> -285.5 | B91: =IF('DF raw data'!J96="","",'DF raw data'!J96) -> -2.15355e-05 | C91: =IF('DF raw data'!K96="","",'DF raw data'!K96) -> 0.000151449 | D91: =IF('DF raw data'!L96="","",'DF raw data'!L96) -> -5.53812e-06 | F91: -2.161087425e-05 | G91: 0.0001519790715 | H91: -5.55750342e-06 | J91: -0.000200566556 | K91: -0.00155723594 | L91: 0.002253598585 | M91: 0.01761144206 | N91: 2.730871313e-05
A92: =IF('DF raw data'!I97="","",'DF raw data'!I97) -> -285 | B92: =IF('DF raw data'!J97="","",'DF raw data'!J97) -> -1.14728e-05 | C92: =IF('DF raw data'!K97="","",'DF raw data'!K97) -> 0.000154727 | D92: =IF('DF raw data'!L97="","",'DF raw data'!L97) -> -1.07895e-05 | F92: -1.15129548e-05 | G92: 0.0001552685445 | H92: -1.082726325e-05 | J92: -0.0002063230334 | K92: -0.001660397457 | L92: 0.002331232857 | M92: 0.01877705849 | N92: 3.004732104e-05
A93: =IF('DF raw data'!I98="","",'DF raw data'!I98) -> -284.5 | B93: =IF('DF raw data'!J98="","",'DF raw data'!J98) -> -1.93543e-05 | C93: =IF('DF raw data'!K98="","",'DF raw data'!K98) -> 0.000143956 | D93: =IF('DF raw data'!L98="","",'DF raw data'!L98) -> -1.04009e-05 | F93: -1.942204005e-05 | G93: 0.000144459846 | H93: -1.043730315e-05 | J93: -0.0002160340534 | K93: -0.001768414484 | L93: 0.00240346278 | M93: 0.01997878988 | N93: 3.295897307e-05
A94: =IF('DF raw data'!I99="","",'DF raw data'!I99) -> -284 | B94: =IF('DF raw data'!J99="","",'DF raw data'!J99) -> -1.80055e-05 | C94: =IF('DF raw data'!K99="","",'DF raw data'!K99) -> 0.000142814 | D94: =IF('DF raw data'!L99="","",'DF raw data'!L99) -> -1.2981e-05 | F94: -1.806851925e-05 | G94: 0.000143313849 | H94: -1.30264335e-05 | J94: -0.0002250683131 | K94: -0.00188094864 | L94: 0.002475119705 | M94: 0.02121634973 | N94: 3.604740972e-05
A95: =IF('DF raw data'!I100="","",'DF raw data'!I100) -> -283.5 | B95: =IF('DF raw data'!J100="","",'DF raw data'!J100) -> -2.11618e-06 | C95: =IF('DF raw data'!K100="","",'DF raw data'!K100) -> 0.000141608 | D95: =IF('DF raw data'!L100="","",'DF raw data'!L100) -> -1.73263e-05 | F95: -2.12358663e-06 | G95: 0.000142103628 | H95: -1.738694205e-05 | J95: -0.0002261301064 | K95: -0.001994013694 | L95: 0.002546171519 | M95: 0.02248943549 | N95: 3.931447183e-05
A96: =IF('DF raw data'!I101="","",'DF raw data'!I101) -> -283 | B96: =IF('DF raw data'!J101="","",'DF raw data'!J101) -> -5.638e-06 | C96: =IF('DF raw data'!K101="","",'DF raw data'!K101) -> 0.000145272 | D96: =IF('DF raw data'!L101="","",'DF raw data'!L101) -> -1.92105e-05 | F96: -5.657733e-06 | G96: 0.000145780452 | H96: -1.927773675e-05 | J96: -0.0002289589729 | K96: -0.00210849318 | L96: 0.002619061745 | M96: 0.02379896636 | N96: 4.277042515e-05
A97: =IF('DF raw data'!I102="","",'DF raw data'!I102) -> -282.5 | B97: =IF('DF raw data'!J102="","",'DF raw data'!J102) -> -7.69085e-06 | C97: =IF('DF raw data'!K102="","",'DF raw data'!K102) -> 0.000149653 | D97: =IF('DF raw data'!L102="","",'DF raw data'!L102) -> -1.57672e-05 | F97: -7.717767975e-06 | G97: 0.0001501767855 | H97: -1.58223852e-05 | J97: -0.0002328178569 | K97: -0.002224902108 | L97: 0.002694150137 | M97: 0.02514604143 | N97: 4.64267497e-05
A98: =IF('DF raw data'!I103="","",'DF raw data'!I103) -> -282 | B98: =IF('DF raw data'!J103="","",'DF raw data'!J103) -> -8.40051e-07 | C98: =IF('DF raw data'!K103="","",'DF raw data'!K103) -> 0.000155814 | D98: =IF('DF raw data'!L103="","",'DF raw data'!L103) -> -8.8624e-06 | F98: -8.429911785e-07 | G98: 0.000156359349 | H98: -8.8934184e-06 | J98: -0.0002332393525 | K98: -0.002341521785 | L98: 0.002772329812 | M98: 0.02653220634 | N98: 5.029685629e-05
A99: =IF('DF raw data'!I104="","",'DF raw data'!I104) -> -281.5 | B99: =IF('DF raw data'!J104="","",'DF raw data'!J104) -> -1.50598e-05 | C99: =IF('DF raw data'!K104="","",'DF raw data'!K104) -> 0.000146595 | D99: =IF('DF raw data'!L104="","",'DF raw data'!L104) -> -1.38674e-05 | F99: -1.51125093e-05 | G99: 0.0001471080825 | H99: -1.39159359e-05 | J99: -0.0002407956071 | K99: -0.002461919588 | L99: 0.002845883853 | M99: 0.02795514826 | N99: 5.437537501e-05
A100: =IF('DF raw data'!I105="","",'DF raw data'!I105) -> -281 | B100: =IF('DF raw data'!J105="","",'DF raw data'!J105) -> -9.61113e-06 | C100: =IF('DF raw data'!K105="","",'DF raw data'!K105) -> 0.000150188 | D100: =IF('DF raw data'!L105="","",'DF raw data'!L105) -> -1.67105e-05 | F100: -9.644768955e-06 | G100: 0.000150713658 | H100: -1.676898675e-05 | J100: -0.0002456179916 | K100: -0.002584728584 | L100: 0.002921240682 | M100: 0.0294157686 | N100: 5.867236267e-05
A101: =IF('DF raw data'!I106="","",'DF raw data'!I106) -> -280.5 | B101: =IF('DF raw data'!J106="","",'DF raw data'!J106) -> -1.08326e-05 | C101: =IF('DF raw data'!K106="","",'DF raw data'!K106) -> 0.000152021 | D101: =IF('DF raw data'!L106="","",'DF raw data'!L106) -> -1.19915e-05 | F101: -1.08705141e-05 | G101: 0.0001525530735 | H101: -1.203347025e-05 | J101: -0.0002510532486 | K101: -0.002710255208 | L101: 0.002997517219 | M101: 0.03091452721 | N101: 6.319643127e-05
A102: =IF('DF raw data'!I107="","",'DF raw data'!I107) -> -280 | B102: =IF('DF raw data'!J107="","",'DF raw data'!J107) -> -1.49325e-05 | C102: =IF('DF raw data'!K107="","",'DF raw data'!K107) -> 0.000153065 | D102: =IF('DF raw data'!L107="","",'DF raw data'!L107) -> -1.013e-05 | F102: -1.498476375e-05 | G102: 0.0001536007275 | H102: -1.0165455e-05 | J102: -0.0002585456305 | K102: -0.002839528024 | L102: 0.003074317583 | M102: 0.032451686 | N102: 6.79555685e-05
A103: =IF('DF raw data'!I108="","",'DF raw data'!I108) -> -279.5 | B103: =IF('DF raw data'!J108="","",'DF raw data'!J108) -> -3.22988e-05 | C103: =IF('DF raw data'!K108="","",'DF raw data'!K108) -> 0.000146294 | D103: =IF('DF raw data'!L108="","",'DF raw data'!L108) -> -5.83654e-06 | F103: -3.24118458e-05 | G103: 0.000146806029 | H103: -5.85696789e-06 | J103: -0.0002747515534 | K103: -0.0029769038 | L103: 0.003147720597 | M103: 0.0340255463 | N103: 7.294738518e-05
A104: =IF('DF raw data'!I109="","",'DF raw data'!I109) -> -279 | B104: =IF('DF raw data'!J109="","",'DF raw data'!J109) -> -7.50496e-06 | C104: =IF('DF raw data'!K109="","",'DF raw data'!K109) -> 0.000151167 | D104: =IF('DF raw data'!L109="","",'DF raw data'!L109) -> -5.04858e-06 | F104: -7.53122736e-06 | G104: 0.0001516960845 | H104: -5.06625003e-06 | J104: -0.0002785171671 | K104: -0.003116162384 | L104: 0.003223568639 | M104: 0.03563733062 | N104: 7.818186847e-05
A105: =IF('DF raw data'!I110="","",'DF raw data'!I110) -> -278.5 | B105: =IF('DF raw data'!J110="","",'DF raw data'!J110) -> -2.17264e-05 | C105: =IF('DF raw data'!K110="","",'DF raw data'!K110) -> 0.000150196 | D105: =IF('DF raw data'!L110="","",'DF raw data'!L110) -> -8.17232e-06 | F105: -2.18024424e-05 | G105: 0.000150721686 | H105: -8.20092312e-06 | J105: -0.0002894183883 | K105: -0.003260871578 | L105: 0.003298929482 | M105: 0.03728679536 | N105: 8.366521784e-05
A106: =IF('DF raw data'!I111="","",'DF raw data'!I111) -> -278 | B106: =IF('DF raw data'!J111="","",'DF raw data'!J111) -> -1.10326e-05 | C106: =IF('DF raw data'!K111="","",'DF raw data'!K111) -> 0.000149309 | D106: =IF('DF raw data'!L111="","",'DF raw data'!L111) -> 1.72307e-06 | F106: -1.10712141e-05 | G106: 0.0001498315815 | H106: 1.729100745e-06 | J106: -0.0002949539953 | K106: -0.003408348576 | L106: 0.003373845273 | M106: 0.038973718 | N106: 8.940013273e-05
A107: =IF('DF raw data'!I112="","",'DF raw data'!I112) -> -277.5 | B107: =IF('DF raw data'!J112="","",'DF raw data'!J112) -> -1.67941e-05 | C107: =IF('DF raw data'!K112="","",'DF raw data'!K112) -> 0.000140978 | D107: =IF('DF raw data'!L112="","",'DF raw data'!L112) -> -6.91286e-06 | F107: -1.685287935e-05 | G107: 0.000141471423 | H107: -6.93705501e-06 | J107: -0.000303380435 | K107: -0.003560038793 | L107: 0.003444580985 | M107: 0.04069600849 | N107: 9.537872166e-05
A108: =IF('DF raw data'!I113="","",'DF raw data'!I113) -> -277 | B108: =IF('DF raw data'!J113="","",'DF raw data'!J113) -> -3.65853e-06 | C108: =IF('DF raw data'!K113="","",'DF raw data'!K113) -> 0.000138342 | D108: =IF('DF raw data'!L113="","",'DF raw data'!L113) -> -9.29092e-06 | F108: -3.671334855e-06 | G108: 0.000138826197 | H108: -9.32343822e-06 | J108: -0.0003052161024 | K108: -0.003712646844 | L108: 0.003513994083 | M108: 0.04245300553 | N108: 0.0001015993773
A109: =IF('DF raw data'!I114="","",'DF raw data'!I114) -> -276.5 | B109: =IF('DF raw data'!J114="","",'DF raw data'!J114) -> -7.05684e-06 | C109: =IF('DF raw data'!K114="","",'DF raw data'!K114) -> 0.000144535 | D109: =IF('DF raw data'!L114="","",'DF raw data'!L114) -> -5.58024e-06 | F109: -7.08153894e-06 | G109: 0.0001450408725 | H109: -5.59977084e-06 | J109: -0.0003087568719 | K109: -0.00386702528 | L109: 0.003586514519 | M109: 0.04424626279 | N109: 0.0001080785859
A110: =IF('DF raw data'!I115="","",'DF raw data'!I115) -> -276 | B110: =IF('DF raw data'!J115="","",'DF raw data'!J115) -> 3.13221e-06 | C110: =IF('DF raw data'!K115="","",'DF raw data'!K115) -> 0.000147488 | D110: =IF('DF raw data'!L115="","",'DF raw data'!L115) -> -9.99637e-06 | F110: 3.143172735e-06 | G110: 0.000148004208 | H110: -1.003135729e-05 | J110: -0.0003071852855 | K110: -0.004020617923 | L110: 0.003660516623 | M110: 0.04607652111 | N110: 0.0001148254583
A111: =IF('DF raw data'!I116="","",'DF raw data'!I116) -> -275.5 | B111: =IF('DF raw data'!J116="","",'DF raw data'!J116) -> -7.05637e-06 | C111: =IF('DF raw data'!K116="","",'DF raw data'!K116) -> 0.000136203 | D111: =IF('DF raw data'!L116="","",'DF raw data'!L116) -> -6.32189e-06 | F111: -7.081067295e-06 | G111: 0.0001366797105 | H111: -6.344016615e-06 | J111: -0.0003107258192 | K111: -0.004175980833 | L111: 0.003728856479 | M111: 0.04794094934 | N111: 0.0001218259189
A112: =IF('DF raw data'!I117="","",'DF raw data'!I117) -> -275 | B112: =IF('DF raw data'!J117="","",'DF raw data'!J117) -> -7.50664e-06 | C112: =IF('DF raw data'!K117="","",'DF raw data'!K117) -> 0.000134478 | D112: =IF('DF raw data'!L117="","",'DF raw data'!L117) -> -2.43006e-06 | F112: -7.53291324e-06 | G112: 0.000134948673 | H112: -2.43856521e-06 | J112: -0.0003144922758 | K112: -0.004333226971 | L112: 0.003796330815 | M112: 0.04983911475 | N112: 0.0001290814354
A113: =IF('DF raw data'!I118="","",'DF raw data'!I118) -> -274.5 | B113: =IF('DF raw data'!J118="","",'DF raw data'!J118) -> -6.73979e-06 | C113: =IF('DF raw data'!K118="","",'DF raw data'!K118) -> 0.000138888 | D113: =IF('DF raw data'!L118="","",'DF raw data'!L118) -> -3.83119e-07 | F113: -6.763379265e-06 | G113: 0.000139374108 | H113: -3.844599165e-07 | J113: -0.0003178739654 | K113: -0.004492163953 | L113: 0.003866017869 | M113: 0.05177212369 | N113: 0.0001366050044
A114: =IF('DF raw data'!I119="","",'DF raw data'!I119) -> -274 | B114: =IF('DF raw data'!J119="","",'DF raw data'!J119) -> -9.87226e-06 | C114: =IF('DF raw data'!K119="","",'DF raw data'!K119) -> 0.000142601 | D114: =IF('DF raw data'!L119="","",'DF raw data'!L119) -> -9.10993e-06 | F114: -9.90681291e-06 | G114: 0.0001431001035 | H114: -9.141814755e-06 | J114: -0.0003228273719 | K114: -0.004653577639 | L114: 0.003937567921 | M114: 0.05374090765 | N114: 0.0001444093337
A115: =IF('DF raw data'!I120="","",'DF raw data'!I120) -> -273.5 | B115: =IF('DF raw data'!J120="","",'DF raw data'!J120) -> -1.23029e-05 | C115: =IF('DF raw data'!K120="","",'DF raw data'!K120) -> 0.000142044 | D115: =IF('DF raw data'!L120="","",'DF raw data'!L120) -> -1.7196e-05 | F115: -1.234596015e-05 | G115: 0.000142541154 | H115: -1.7256186e-05 | J115: -0.000329000352 | K115: -0.004818077815 | L115: 0.004008838498 | M115: 0.0557453269 | N115: 0.0001524988474
A116: =IF('DF raw data'!I121="","",'DF raw data'!I121) -> -273 | B116: =IF('DF raw data'!J121="","",'DF raw data'!J121) -> -8.46692e-06 | C116: =IF('DF raw data'!K121="","",'DF raw data'!K121) -> 0.000142307 | D116: =IF('DF raw data'!L121="","",'DF raw data'!L121) -> -3.13293e-06 | F116: -8.49655422e-06 | G116: 0.0001428050745 | H116: -3.143895255e-06 | J116: -0.0003332486291 | K116: -0.00498470213 | L116: 0.004080241035 | M116: 0.05778544741 | N116: 0.0001608785582
A117: =IF('DF raw data'!I122="","",'DF raw data'!I122) -> -272.5 | B117: =IF('DF raw data'!J122="","",'DF raw data'!J122) -> -5.90308e-06 | C117: =IF('DF raw data'!K122="","",'DF raw data'!K122) -> 0.000139201 | D117: =IF('DF raw data'!L122="","",'DF raw data'!L122) -> -6.56753e-06 | F117: -5.92374078e-06 | G117: 0.0001396882035 | H117: -6.590516355e-06 | J117: -0.0003362104995 | K117: -0.00515280738 | L117: 0.004150085137 | M117: 0.05986048998 | N117: 0.0001695466802
A118: =IF('DF raw data'!I123="","",'DF raw data'!I123) -> -272 | B118: =IF('DF raw data'!J123="","",'DF raw data'!J123) -> -8.14247e-06 | C118: =IF('DF raw data'!K123="","",'DF raw data'!K123) -> 0.000138254 | D118: =IF('DF raw data'!L123="","",'DF raw data'!L123) -> -9.75564e-06 | F118: -8.170968645e-06 | G118: 0.000138737889 | H118: -9.78978474e-06 | J118: -0.0003402959838 | K118: -0.005322955371 | L118: 0.004219454081 | M118: 0.06197021702 | N118: 0.0001785064773
A119: =IF('DF raw data'!I124="","",'DF raw data'!I124) -> -271.5 | B119: =IF('DF raw data'!J124="","",'DF raw data'!J124) -> -1.70461e-05 | C119: =IF('DF raw data'!K124="","",'DF raw data'!K124) -> 0.000141501 | D119: =IF('DF raw data'!L124="","",'DF raw data'!L124) -> -1.3623e-05 | F119: -1.710576135e-05 | G119: 0.0001419962535 | H119: -1.36706805e-05 | J119: -0.0003488488645 | K119: -0.005497379804 | L119: 0.004290452208 | M119: 0.06411544313 | N119: 0.0001877713151
A120: =IF('DF raw data'!I125="","",'DF raw data'!I125) -> -271 | B120: =IF('DF raw data'!J125="","",'DF raw data'!J125) -> -1.94093e-05 | C120: =IF('DF raw data'!K125="","",'DF raw data'!K125) -> 0.000138663 | D120: =IF('DF raw data'!L125="","",'DF raw data'!L125) -> -2.13771e-05 | F120: -1.947723255e-05 | G120: 0.0001391483205 | H120: -2.145191985e-05 | J120: -0.0003585874808 | K120: -0.005676673544 | L120: 0.004360026368 | M120: 0.06629545631 | N120: 0.0001973405226
A121: =IF('DF raw data'!I126="","",'DF raw data'!I126) -> -270.5 | B121: =IF('DF raw data'!J126="","",'DF raw data'!J126) -> -2.21705e-05 | C121: =IF('DF raw data'!K126="","",'DF raw data'!K126) -> 0.000137127 | D121: =IF('DF raw data'!L126="","",'DF raw data'!L126) -> -1.45999e-05 | F121: -2.224809675e-05 | G121: 0.0001376069445 | H121: -1.465099965e-05 | J121: -0.0003697115291 | K121: -0.005861529309 | L121: 0.00442882984 | M121: 0.06850987123 | N121: 0.0002072161328
A122: =IF('DF raw data'!I127="","",'DF raw data'!I127) -> -270 | B122: =IF('DF raw data'!J127="","",'DF raw data'!J127) -> -1.51254e-05 | C122: =IF('DF raw data'!K127="","",'DF raw data'!K127) -> 0.000146292 | D122: =IF('DF raw data'!L127="","",'DF raw data'!L127) -> -8.97911e-06 | F122: -1.51783389e-05 | G122: 0.000146804022 | H122: -9.010536885e-06 | J122: -0.0003773006986 | K122: -0.006050179658 | L122: 0.004502231851 | M122: 0.07076098716 | N122: 0.0002174223565
A123: =IF('DF raw data'!I128="","",'DF raw data'!I128) -> -269.5 | B123: =IF('DF raw data'!J128="","",'DF raw data'!J128) -> -2.10837e-05 | C123: =IF('DF raw data'!K128="","",'DF raw data'!K128) -> 0.000144992 | D123: =IF('DF raw data'!L128="","",'DF raw data'!L128) -> -1.11706e-05 | F123: -2.115749295e-05 | G123: 0.000145499472 | H123: -1.12096971e-05 | J123: -0.0003878794451 | K123: -0.00624411938 | L123: 0.004574981587 | M123: 0.07304847795 | N123: 0.00022796281
A124: =IF('DF raw data'!I129="","",'DF raw data'!I129) -> -269 | B124: =IF('DF raw data'!J129="","",'DF raw data'!J129) -> -1.57677e-05 | C124: =IF('DF raw data'!K129="","",'DF raw data'!K129) -> 0.000147134 | D124: =IF('DF raw data'!L129="","",'DF raw data'!L129) -> -6.37261e-06 | F124: -1.582288695e-05 | G124: 0.000147648969 | H124: -6.394914135e-06 | J124: -0.0003957908885 | K124: -0.006442014825 | L124: 0.004648806072 | M124: 0.07537288099 | N124: 0.0002388468341
A125: =IF('DF raw data'!I130="","",'DF raw data'!I130) -> -268.5 | B125: =IF('DF raw data'!J130="","",'DF raw data'!J130) -> -2.30666e-05 | C125: =IF('DF raw data'!K130="","",'DF raw data'!K130) -> 0.000147292 | D125: =IF('DF raw data'!L130="","",'DF raw data'!L130) -> -1.60981e-05 | F125: -2.31473331e-05 | G125: 0.000147807522 | H125: -1.615444335e-05 | J125: -0.0004073645551 | K125: -0.006645697102 | L125: 0.004722709833 | M125: 0.0777342359 | N125: 0.0002500818012
A126: =IF('DF raw data'!I131="","",'DF raw data'!I131) -> -268 | B126: =IF('DF raw data'!J131="","",'DF raw data'!J131) -> -1.43529e-05 | C126: =IF('DF raw data'!K131="","",'DF raw data'!K131) -> 0.000144916 | D126: =IF('DF raw data'!L131="","",'DF raw data'!L131) -> -1.4859e-05 | F126: -1.440313515e-05 | G126: 0.000145423206 | H126: -1.49110065e-05 | J126: -0.0004145661227 | K126: -0.006852980164 | L126: 0.004795421436 | M126: 0.08013194662 | N126: 0.0002616657671
A127: =IF('DF raw data'!I132="","",'DF raw data'!I132) -> -267.5 | B127: =IF('DF raw data'!J132="","",'DF raw data'!J132) -> -1.56454e-05 | C127: =IF('DF raw data'!K132="","",'DF raw data'!K132) -> 0.00014286 | D127: =IF('DF raw data'!L132="","",'DF raw data'!L132) -> 5.48474e-07 | F127: -1.57001589e-05 | G127: 0.00014336001 | H127: 5.50393659e-07 | J127: -0.0004224162021 | K127: -0.007064188265 | L127: 0.004867101441 | M127: 0.08256549734 | N127: 0.000273599323
A128: =IF('DF raw data'!I133="","",'DF raw data'!I133) -> -267 | B128: =IF('DF raw data'!J133="","",'DF raw data'!J133) -> -7.88625e-06 | C128: =IF('DF raw data'!K133="","",'DF raw data'!K133) -> 0.000150558 | D128: =IF('DF raw data'!L133="","",'DF raw data'!L133) -> -9.87253e-06 | F128: =(1-$G$1*($B$49-$G$2))*B128 -> -7.913851875e-06 | G128: 0.000151084953 | H128: -9.907083855e-06 | J128: =F128*$G$3+J127 -> -0.000426373128 | K128: =J128*$G$3+K127 -> -0.007277374829 | L128: =G128*$G$3+L127 -> 0.004942643917 | M128: =L128*$G$3+M127 -> 0.0850368193 | N128: =(J128^2+L128^2)*$G$3+N127 -> 0.0002859050845
A129: =IF('DF raw data'!I134="","",'DF raw data'!I134) -> -266.5 | B129: =IF('DF raw data'!J134="","",'DF raw data'!J134) -> -2.05897e-06 | C129: =IF('DF raw data'!K134="","",'DF raw data'!K134) -> 0.000149708 | D129: =IF('DF raw data'!L134="","",'DF raw data'!L134) -> -6.53881e-06 | F129: -2.066176395e-06 | G129: 0.000150231978 | H129: -6.561695835e-06 | J129: -0.0004274062162 | K129: -0.007491077937 | L129: 0.005017759906 | M129: 0.08754569925 | N129: 0.0002985853798
A130: =IF('DF raw data'!I135="","",'DF raw data'!I135) -> -266 | B130: =IF('DF raw data'!J135="","",'DF raw data'!J135) -> -9.10227e-06 | C130: =IF('DF raw data'!K135="","",'DF raw data'!K135) -> 0.000149678 | D130: =IF('DF raw data'!L135="","",'DF raw data'!L135) -> -1.13548e-05 | F130: -9.134127945e-06 | G130: 0.000150201873 | H130: -1.13945418e-05 | J130: -0.0004319732802 | K130: -0.007707064577 | L130: 0.005092860843 | M130: 0.09009212967 | N130: 0.000311647296
A131: =IF('DF raw data'!I136="","",'DF raw data'!I136) -> -265.5 | B131: =IF('DF raw data'!J136="","",'DF raw data'!J136) -> -2.70379e-05 | C131: =IF('DF raw data'!K136="","",'DF raw data'!K136) -> 0.000136488 | D131: =IF('DF raw data'!L136="","",'DF raw data'!L136) -> -1.69996e-05 | F131: -2.713253265e-05 | G131: 0.000136965708 | H131: -1.70590986e-05 | J131: -0.0004455395465 | K131: -0.00792983435 | L131: 0.005161343697 | M131: 0.09267280152 | N131: 0.0003250662831
A132: =IF('DF raw data'!I137="","",'DF raw data'!I137) -> -265 | B132: =IF('DF raw data'!J137="","",'DF raw data'!J137) -> -2.08258e-05 | C132: =IF('DF raw data'!K137="","",'DF raw data'!K137) -> 0.000138103 | D132: =IF('DF raw data'!L137="","",'DF raw data'!L137) -> -1.08506e-05 | F132: -2.08986903e-05 | G132: 0.0001385863605 | H132: -1.08885771e-05 | J132: -0.0004559888917 | K132: -0.008157828796 | L132: 0.005230636877 | M132: 0.09528811996 | N132: 0.0003388500271
A133: =IF('DF raw data'!I138="","",'DF raw data'!I138) -> -264.5 | B133: =IF('DF raw data'!J138="","",'DF raw data'!J138) -> -2.10912e-05 | C133: =IF('DF raw data'!K138="","",'DF raw data'!K138) -> 0.000137423 | D133: =IF('DF raw data'!L138="","",'DF raw data'!L138) -> 4.01691e-07 | F133: -2.11650192e-05 | G133: 0.0001379039805 | H133: 4.030969185e-07 | J133: -0.0004665714013 | K133: -0.008391114497 | L133: 0.005299588867 | M133: 0.0979379144 | N133: 0.0003530016927
A134: =IF('DF raw data'!I139="","",'DF raw data'!I139) -> -264 | B134: =IF('DF raw data'!J139="","",'DF raw data'!J139) -> -1.44175e-05 | C134: =IF('DF raw data'!K139="","",'DF raw data'!K139) -> 0.000140277 | D134: =IF('DF raw data'!L139="","",'DF raw data'!L139) -> -1.43664e-05 | F134: -1.446796125e-05 | G134: 0.0001407679695 | H134: -1.44166824e-05 | J134: -0.0004738053819 | K134: -0.008628017188 | L134: 0.005369972852 | M134: 0.1006229008 | N134: 0.0003675322426
A135: =IF('DF raw data'!I140="","",'DF raw data'!I140) -> -263.5 | B135: =IF('DF raw data'!J140="","",'DF raw data'!J140) -> -4.10525e-06 | C135: =IF('DF raw data'!K140="","",'DF raw data'!K140) -> 0.000145795 | D135: =IF('DF raw data'!L140="","",'DF raw data'!L140) -> -1.23112e-05 | F135: -4.119618375e-06 | G135: 0.0001463052825 | H135: -1.23542892e-05 | J135: -0.0004758651911 | K135: -0.008865949783 | L135: 0.005443125493 | M135: 0.1033444636 | N135: 0.0003824592741
A136: =IF('DF raw data'!I141="","",'DF raw data'!I141) -> -263 | B136: =IF('DF raw data'!J141="","",'DF raw data'!J141) -> -2.04059e-07 | C136: =IF('DF raw data'!K141="","",'DF raw data'!K141) -> 0.000149845 | D136: =IF('DF raw data'!L141="","",'DF raw data'!L141) -> -1.81004e-06 | F136: -2.047732065e-07 | G136: 0.0001503694575 | H136: -1.81637514e-06 | J136: -0.0004759675777 | K136: -0.009103933572 | L136: 0.005518310222 | M136: 0.1061036187 | N136: 0.0003977984205
A137: =IF('DF raw data'!I142="","",'DF raw data'!I142) -> -262.5 | B137: =IF('DF raw data'!J142="","",'DF raw data'!J142) -> -3.18504e-05 | C137: =IF('DF raw data'!K142="","",'DF raw data'!K142) -> 0.000150859 | D137: =IF('DF raw data'!L142="","",'DF raw data'!L142) -> -5.64098e-06 | F137: -3.19618764e-05 | G137: 0.0001513870065 | H137: -5.66072343e-06 | J137: -0.0004919485159 | K137: -0.00934990783 | L137: 0.005594003725 | M137: 0.1089006205 | N137: 0.000413565866
A138: =IF('DF raw data'!I143="","",'DF raw data'!I143) -> -262 | B138: =IF('DF raw data'!J143="","",'DF raw data'!J143) -> -1.88434e-05 | C138: =IF('DF raw data'!K143="","",'DF raw data'!K143) -> 0.000154535 | D138: =IF('DF raw data'!L143="","",'DF raw data'!L143) -> -5.34575e-06 | F138: -1.89093519e-05 | G138: 0.0001550758725 | H138: -5.364460125e-06 | J138: -0.0005014031918 | K138: -0.009600609426 | L138: 0.005671541662 | M138: 0.1117363914 | N138: 0.000429774761
A139: =IF('DF raw data'!I144="","",'DF raw data'!I144) -> -261.5 | B139: =IF('DF raw data'!J144="","",'DF raw data'!J144) -> -1.59662e-05 | C139: =IF('DF raw data'!K144="","",'DF raw data'!K144) -> 0.000153317 | D139: =IF('DF raw data'!L144="","",'DF raw data'!L144) -> 9.30262e-07 | F139: -1.60220817e-05 | G139: 0.0001538536095 | H139: 9.33517917e-07 | J139: -0.0005094142327 | K139: -0.009855316542 | L139: 0.005748468466 | M139: 0.1146106256 | N139: 0.0004464269573
A140: =IF('DF raw data'!I145="","",'DF raw data'!I145) -> -261 | B140: =IF('DF raw data'!J145="","",'DF raw data'!J145) -> -9.80814e-06 | C140: =IF('DF raw data'!K145="","",'DF raw data'!K145) -> 0.000150234 | D140: =IF('DF raw data'!L145="","",'DF raw data'!L145) -> -9.64908e-06 | F140: -9.84246849e-06 | G140: 0.000150759819 | H140: -9.68285178e-06 | J140: -0.0005143354669 | K140: -0.01011248428 | L140: 0.005823848376 | M140: 0.1175225498 | N140: 0.0004635178327
A141: =IF('DF raw data'!I146="","",'DF raw data'!I146) -> -260.5 | B141: =IF('DF raw data'!J146="","",'DF raw data'!J146) -> -2.16031e-05 | C141: =IF('DF raw data'!K146="","",'DF raw data'!K146) -> 0.000149431 | D141: =IF('DF raw data'!L146="","",'DF raw data'!L146) -> -5.54369e-07 | F141: -2.167871085e-05 | G141: 0.0001499540085 | H141: -5.563092915e-07 | J141: -0.0005251748224 | K141: -0.01037507169 | L141: 0.00589882538 | M141: 0.1204719625 | N141: 0.0004810538074
A142: =IF('DF raw data'!I147="","",'DF raw data'!I147) -> -260 | B142: =IF('DF raw data'!J147="","",'DF raw data'!J147) -> -1.80064e-05 | C142: =IF('DF raw data'!K147="","",'DF raw data'!K147) -> 0.000153704 | D142: =IF('DF raw data'!L147="","",'DF raw data'!L147) -> -1.1781e-05 | F142: -1.80694224e-05 | G142: 0.000154241964 | H142: -1.18222335e-05 | J142: -0.0005342095336 | K142: -0.01064217645 | L142: 0.005975946362 | M142: 0.1234599357 | N142: 0.0004990524648
A143: =IF('DF raw data'!I148="","",'DF raw data'!I148) -> -259.5 | B143: =IF('DF raw data'!J148="","",'DF raw data'!J148) -> -1.84637e-05 | C143: =IF('DF raw data'!K148="","",'DF raw data'!K148) -> 0.000145607 | D143: =IF('DF raw data'!L148="","",'DF raw data'!L148) -> -6.74107e-07 | F143: -1.852832295e-05 | G143: 0.0001461166245 | H143: -6.764663745e-07 | J143: -0.000543473695 | K143: -0.0109139133 | L143: 0.006049004674 | M143: 0.126484438 | N143: 0.0005174953754
A144: =IF('DF raw data'!I149="","",'DF raw data'!I149) -> -259 | B144: =IF('DF raw data'!J149="","",'DF raw data'!J149) -> -1.40293e-05 | C144: =IF('DF raw data'!K149="","",'DF raw data'!K149) -> 0.000157626 | D144: =IF('DF raw data'!L149="","",'DF raw data'!L149) -> -2.04299e-05 | F144: -1.407840255e-05 | G144: 0.000158177691 | H144: -2.050140465e-05 | J144: -0.0005505128963 | K144: -0.01118916975 | L144: 0.00612809352 | M144: 0.1295484848 | N144: 0.0005364236727
A145: =IF('DF raw data'!I150="","",'DF raw data'!I150) -> -258.5 | B145: =IF('DF raw data'!J150="","",'DF raw data'!J150) -> -1.3905e-05 | C145: =IF('DF raw data'!K150="","",'DF raw data'!K150) -> 0.000153841 | D145: =IF('DF raw data'!L150="","",'DF raw data'!L150) -> -1.61838e-05 | F145: -1.39536675e-05 | G145: 0.0001543794435 | H145: -1.62404433e-05 | J145: -0.0005574897301 | K145: -0.01146791461 | L145: 0.006205283242 | M145: 0.1326511264 | N145: 0.0005558318402
A146: =IF('DF raw data'!I151="","",'DF raw data'!I151) -> -258 | B146: =IF('DF raw data'!J151="","",'DF raw data'!J151) -> -2.0764e-05 | C146: =IF('DF raw data'!K151="","",'DF raw data'!K151) -> 0.000152645 | D146: =IF('DF raw data'!L151="","",'DF raw data'!L151) -> -7.43907e-06 | F146: -2.0836674e-05 | G146: 0.0001531792575 | H146: -7.465106745e-06 | J146: -0.0005679080671 | K146: -0.01175186865 | L146: 0.00628187287 | M146: 0.1357920628 | N146: 0.0005757240634
A147: =IF('DF raw data'!I152="","",'DF raw data'!I152) -> -257.5 | B147: =IF('DF raw data'!J152="","",'DF raw data'!J152) -> -8.97874e-06 | C147: =IF('DF raw data'!K152="","",'DF raw data'!K152) -> 0.0001424 | D147: =IF('DF raw data'!L152="","",'DF raw data'!L152) -> -5.38651e-06 | F147: -9.01016559e-06 | G147: 0.0001428984 | H147: -5.405362785e-06 | J147: -0.0005724131499 | K147: -0.01203807522 | L147: 0.00635332207 | M147: 0.1389687239 | N147: 0.0005960702424
A148: =IF('DF raw data'!I153="","",'DF raw data'!I153) -> -257 | B148: =IF('DF raw data'!J153="","",'DF raw data'!J153) -> -2.34507e-05 | C148: =IF('DF raw data'!K153="","",'DF raw data'!K153) -> 0.000152798 | D148: =IF('DF raw data'!L153="","",'DF raw data'!L153) -> -1.3614e-05 | F148: -2.353277745e-05 | G148: 0.000153332793 | H148: -1.3661649e-05 | J148: -0.0005841795386 | K148: -0.01233016499 | L148: 0.006429988467 | M148: 0.1421837181 | N148: 0.0006169132511
A149: =IF('DF raw data'!I154="","",'DF raw data'!I154) -> -256.5 | B149: =IF('DF raw data'!J154="","",'DF raw data'!J154) -> -1.55122e-05 | C149: =IF('DF raw data'!K154="","",'DF raw data'!K154) -> 0.000151501 | D149: =IF('DF raw data'!L154="","",'DF raw data'!L154) -> -7.2374e-06 | F149: -1.55664927e-05 | G149: 0.0001520312535 | H149: -7.2627309e-06 | J149: -0.0005919627849 | K149: -0.01262614638 | L149: 0.006506004094 | M149: 0.1454367201 | N149: 0.0006382525057
A150: =IF('DF raw data'!I155="","",'DF raw data'!I155) -> -256 | B150: =IF('DF raw data'!J155="","",'DF raw data'!J155) -> -1.61483e-05 | C150: =IF('DF raw data'!K155="","",'DF raw data'!K155) -> 0.000158254 | D150: =IF('DF raw data'!L155="","",'DF raw data'!L155) -> -1.26133e-05 | F150: -1.620481905e-05 | G150: 0.000158807889 | H150: -1.265744655e-05 | J150: -0.0006000651945 | K150: -0.01292617898 | L150: 0.006585408038 | M150: 0.1487294242 | N150: 0.0006601163444
A151: =IF('DF raw data'!I156="","",'DF raw data'!I156) -> -255.5 | B151: =IF('DF raw data'!J156="","",'DF raw data'!J156) -> -1.93562e-05 | C151: =IF('DF raw data'!K156="","",'DF raw data'!K156) -> 0.000153948 | D151: =IF('DF raw data'!L156="","",'DF raw data'!L156) -> -7.09607e-06 | F151: -1.94239467e-05 | G151: 0.000154486818 | H151: -7.120906245e-06 | J151: -0.0006097771678 | K151: -0.01323106757 | L151: 0.006662651447 | M151: 0.1520607499 | N151: 0.0006824977206
A152: =IF('DF raw data'!I157="","",'DF raw data'!I157) -> -255 | B152: =IF('DF raw data'!J157="","",'DF raw data'!J157) -> -9.35417e-06 | C152: =IF('DF raw data'!K157="","",'DF raw data'!K157) -> 0.000141753 | D152: =IF('DF raw data'!L157="","",'DF raw data'!L157) -> -1.82697e-05 | F152: -9.386909595e-06 | G152: 0.0001422491355 | H152: -1.833364395e-05 | J152: -0.0006144706226 | K152: -0.01353830288 | L152: 0.006733776015 | M152: 0.1554276379 | N152: 0.0007053583774
A153: =IF('DF raw data'!I158="","",'DF raw data'!I158) -> -254.5 | B153: =IF('DF raw data'!J158="","",'DF raw data'!J158) -> -1.05846e-05 | C153: =IF('DF raw data'!K158="","",'DF raw data'!K158) -> 0.000147315 | D153: =IF('DF raw data'!L158="","",'DF raw data'!L158) -> 1.10137e-06 | F153: -1.06216461e-05 | G153: 0.0001478306025 | H153: 1.105224795e-06 | J153: -0.0006197814457 | K153: -0.0138481936 | L153: 0.006807691316 | M153: 0.1588314835 | N153: 0.0007287227725
A154: =IF('DF raw data'!I159="","",'DF raw data'!I159) -> -254 | B154: =IF('DF raw data'!J159="","",'DF raw data'!J159) -> -9.61934e-06 | C154: =IF('DF raw data'!K159="","",'DF raw data'!K159) -> 0.000151969 | D154: =IF('DF raw data'!L159="","",'DF raw data'!L159) -> -4.48922e-06 | F154: -9.65300769e-06 | G154: 0.0001525008915 | H154: -4.50493227e-06 | J154: -0.0006246079495 | K154: -0.01416049757 | L154: 0.006883941762 | M154: 0.1622734544 | N154: 0.0007526121671
A155: =IF('DF raw data'!I160="","",'DF raw data'!I160) -> -253.5 | B155: =IF('DF raw data'!J160="","",'DF raw data'!J160) -> -2.0315e-05 | C155: =IF('DF raw data'!K160="","",'DF raw data'!K160) -> 0.000147801 | D155: =IF('DF raw data'!L160="","",'DF raw data'!L160) -> -1.05492e-05 | F155: -2.03861025e-05 | G155: 0.0001483183035 | H155: -1.05861222e-05 | J155: -0.0006348010008 | K155: -0.01447789807 | L155: 0.006958100914 | M155: 0.1657525049 | N155: 0.0007770212374
A156: =IF('DF raw data'!I161="","",'DF raw data'!I161) -> -253 | B156: =IF('DF raw data'!J161="","",'DF raw data'!J161) -> -2.62063e-05 | C156: =IF('DF raw data'!K161="","",'DF raw data'!K161) -> 0.000147463 | D156: =IF('DF raw data'!L161="","",'DF raw data'!L161) -> -1.25272e-05 | F156: -2.629802205e-05 | G156: 0.0001479791205 | H156: -1.25710452e-05 | J156: -0.0006479500118 | K156: -0.01480187308 | L156: 0.007032090474 | M156: 0.1692685501 | N156: 0.0008019563052
A157: =IF('DF raw data'!I162="","",'DF raw data'!I162) -> -252.5 | B157: =IF('DF raw data'!J162="","",'DF raw data'!J162) -> -1.85218e-05 | C157: =IF('DF raw data'!K162="","",'DF raw data'!K162) -> 0.000141891 | D157: =IF('DF raw data'!L162="","",'DF raw data'!L162) -> -9.23812e-06 | F157: -1.85866263e-05 | G157: 0.0001423876185 | H157: -9.27045342e-06 | J157: -0.0006572433249 | K157: -0.01513049474 | L157: 0.007103284283 | M157: 0.1728201923 | N157: 0.0008274006134
A158: =IF('DF raw data'!I163="","",'DF raw data'!I163) -> -252 | B158: =IF('DF raw data'!J163="","",'DF raw data'!J163) -> -5.7723e-06 | C158: =IF('DF raw data'!K163="","",'DF raw data'!K163) -> 0.000137165 | D158: =IF('DF raw data'!L163="","",'DF raw data'!L163) -> -9.96399e-06 | F158: -5.79250305e-06 | G158: 0.0001376450775 | H158: -9.998863965e-06 | J158: -0.0006601395765 | K158: -0.01546056453 | L158: 0.007172106822 | M158: 0.1764062457 | N158: 0.0008533380637
A159: =IF('DF raw data'!I164="","",'DF raw data'!I164) -> -251.5 | B159: =IF('DF raw data'!J164="","",'DF raw data'!J164) -> -2.71105e-05 | C159: =IF('DF raw data'!K164="","",'DF raw data'!K164) -> 0.000144598 | D159: =IF('DF raw data'!L164="","",'DF raw data'!L164) -> -3.27901e-06 | F159: -2.720538675e-05 | G159: 0.000145104093 | H159: -3.290486535e-06 | J159: -0.0006737422698 | K159: -0.01579743567 | L159: 0.007244658869 | M159: 0.1800285751 | N159: 0.0008798075691
A160: =IF('DF raw data'!I165="","",'DF raw data'!I165) -> -251 | B160: =IF('DF raw data'!J165="","",'DF raw data'!J165) -> -1.15948e-06 | C160: =IF('DF raw data'!K165="","",'DF raw data'!K165) -> 0.000151249 | D160: =IF('DF raw data'!L165="","",'DF raw data'!L165) -> -1.04424e-05 | F160: -1.16353818e-06 | G160: 0.0001517783715 | H160: -1.04789484e-05 | J160: -0.0006743240389 | K160: -0.01613459769 | L160: 0.007320548054 | M160: 0.1836888491 | N160: 0.0009068301374
A161: =IF('DF raw data'!I166="","",'DF raw data'!I166) -> -250.5 | B161: =IF('DF raw data'!J166="","",'DF raw data'!J166) -> -2.30109e-05 | C161: =IF('DF raw data'!K166="","",'DF raw data'!K166) -> 0.000148549 | D161: =IF('DF raw data'!L166="","",'DF raw data'!L166) -> -2.44971e-06 | F161: -2.309143815e-05 | G161: 0.0001490689215 | H161: -2.458283985e-06 | J161: -0.000685869758 | K161: -0.01647753256 | L161: 0.007395082515 | M161: 0.1873863904 | N161: 0.0009344089688
A162: =IF('DF raw data'!I167="","",'DF raw data'!I167) -> -250 | B162: =IF('DF raw data'!J167="","",'DF raw data'!J167) -> -5.58368e-06 | C162: =IF('DF raw data'!K167="","",'DF raw data'!K167) -> 0.000157186 | D162: =IF('DF raw data'!L167="","",'DF raw data'!L167) -> -4.28008e-06 | F162: -5.60322288e-06 | G162: 0.000157736151 | H162: -4.29506028e-06 | J162: -0.0006886713694 | K162: -0.01682186825 | L162: 0.007473950591 | M162: 0.1911233657 | N162: 0.0009625760717
A163: =IF('DF raw data'!I168="","",'DF raw data'!I168) -> -249.5 | B163: =IF('DF raw data'!J168="","",'DF raw data'!J168) -> -1.07737e-05 | C163: =IF('DF raw data'!K168="","",'DF raw data'!K168) -> 0.00015625 | D163: =IF('DF raw data'!L168="","",'DF raw data'!L168) -> -3.82661e-06 | F163: -1.081140795e-05 | G163: 0.000156796875 | H163: -3.840003135e-06 | J163: -0.0006940770734 | K163: -0.01716890679 | L163: 0.007552349028 | M163: 0.1948995402 | N163: 0.0009913359311
A164: =IF('DF raw data'!I169="","",'DF raw data'!I169) -> -249 | B164: =IF('DF raw data'!J169="","",'DF raw data'!J169) -> -1.06403e-05 | C164: =IF('DF raw data'!K169="","",'DF raw data'!K169) -> 0.000160413 | D164: =IF('DF raw data'!L169="","",'DF raw data'!L169) -> -1.10235e-05 | F164: -1.067754105e-05 | G164: 0.0001609744455 | H164: -1.106208225e-05 | J164: -0.0006994158439 | K164: -0.01751861471 | L164: 0.007632836251 | M164: 0.1987159583 | N164: 0.001020710617
A165: =IF('DF raw data'!I170="","",'DF raw data'!I170) -> -248.5 | B165: =IF('DF raw data'!J170="","",'DF raw data'!J170) -> 4.2749e-06 | C165: =IF('DF raw data'!K170="","",'DF raw data'!K170) -> 0.000153265 | D165: =IF('DF raw data'!L170="","",'DF raw data'!L170) -> 6.46635e-06 | F165: 4.28986215e-06 | G165: 0.0001538014275 | H165: 6.488982225e-06 | J165: -0.0006972709129 | K165: -0.01786725016 | L165: 0.007709736965 | M165: 0.2025708268 | N165: 0.001050673732
A166: =IF('DF raw data'!I171="","",'DF raw data'!I171) -> -248 | B166: =IF('DF raw data'!J171="","",'DF raw data'!J171) -> 6.98461e-06 | C166: =IF('DF raw data'!K171="","",'DF raw data'!K171) -> 0.000147213 | D166: =IF('DF raw data'!L171="","",'DF raw data'!L171) -> -2.3102e-05 | F166: 7.009056135e-06 | G166: 0.0001477282455 | H166: -2.3182857e-05 | J166: -0.0006937663848 | K166: -0.01821413336 | L166: 0.007783601087 | M166: 0.2064626273 | N166: 0.001081206611
A167: =IF('DF raw data'!I172="","",'DF raw data'!I172) -> -247.5 | B167: =IF('DF raw data'!J172="","",'DF raw data'!J172) -> -2.47308e-05 | C167: =IF('DF raw data'!K172="","",'DF raw data'!K172) -> 0.000146298 | D167: =IF('DF raw data'!L172="","",'DF raw data'!L172) -> -1.76212e-05 | F167: -2.48173578e-05 | G167: 0.000146810043 | H167: -1.76828742e-05 | J167: -0.0007061750637 | K167: -0.01856722089 | L167: 0.007857006109 | M167: 0.2103911304 | N167: 0.001112322225
A168: =IF('DF raw data'!I173="","",'DF raw data'!I173) -> -247 | B168: =IF('DF raw data'!J173="","",'DF raw data'!J173) -> -1.77548e-05 | C168: =IF('DF raw data'!K173="","",'DF raw data'!K173) -> 0.000143216 | D168: =IF('DF raw data'!L173="","",'DF raw data'!L173) -> -5.36596e-06 | F168: -1.78169418e-05 | G168: 0.000143717256 | H168: -5.38474086e-06 | J168: -0.0007150835346 | K168: -0.01892476266 | L168: 0.007928864737 | M168: 0.2143555628 | N168: 0.001144011346
A169: =IF('DF raw data'!I174="","",'DF raw data'!I174) -> -246.5 | B169: =IF('DF raw data'!J174="","",'DF raw data'!J174) -> -6.28261e-06 | C169: =IF('DF raw data'!K174="","",'DF raw data'!K174) -> 0.000151309 | D169: =IF('DF raw data'!L174="","",'DF raw data'!L174) -> -1.3761e-05 | F169: -6.304599135e-06 | G169: 0.0001518385815 | H169: -1.38091635e-05 | J169: -0.0007182358342 | K169: -0.01928388057 | L169: 0.008004784027 | M169: 0.2183579548 | N169: 0.001176307561
A170: =IF('DF raw data'!I175="","",'DF raw data'!I175) -> -246 | B170: =IF('DF raw data'!J175="","",'DF raw data'!J175) -> -1.32005e-05 | C170: =IF('DF raw data'!K175="","",'DF raw data'!K175) -> 0.000151127 | D170: =IF('DF raw data'!L175="","",'DF raw data'!L175) -> -1.44566e-05 | F170: -1.324670175e-05 | G170: 0.0001516559445 | H170: -1.45071981e-05 | J170: -0.000724859185 | K170: -0.01964631017 | L170: 0.008080612 | M170: 0.2223982608 | N170: 0.001209218416
A171: =IF('DF raw data'!I176="","",'DF raw data'!I176) -> -245.5 | B171: =IF('DF raw data'!J176="","",'DF raw data'!J176) -> -1.53812e-05 | C171: =IF('DF raw data'!K176="","",'DF raw data'!K176) -> 0.000147441 | D171: =IF('DF raw data'!L176="","",'DF raw data'!L176) -> -1.14112e-05 | F171: -1.54350342e-05 | G171: 0.0001479570435 | H171: -1.14511392e-05 | J171: -0.0007325767021 | K171: -0.02001259852 | L171: 0.008154590521 | M171: 0.226475556 | N171: 0.001242735424
A172: =IF('DF raw data'!I177="","",'DF raw data'!I177) -> -245 | B172: =IF('DF raw data'!J177="","",'DF raw data'!J177) -> -3.53055e-06 | C172: =IF('DF raw data'!K177="","",'DF raw data'!K177) -> 0.000145076 | D172: =IF('DF raw data'!L177="","",'DF raw data'!L177) -> -9.30348e-06 | F172: -3.542906925e-06 | G172: 0.000145583766 | H172: -9.33604218e-06 | J172: -0.0007343481556 | K172: -0.02037977259 | L172: 0.008227382404 | M172: 0.2305892472 | N172: 0.001276849968
A173: =IF('DF raw data'!I178="","",'DF raw data'!I178) -> -244.5 | B173: =IF('DF raw data'!J178="","",'DF raw data'!J178) -> -1.55769e-05 | C173: =IF('DF raw data'!K178="","",'DF raw data'!K178) -> 0.000153867 | D173: =IF('DF raw data'!L178="","",'DF raw data'!L178) -> -6.23197e-06 | F173: -1.563141915e-05 | G173: 0.0001544055345 | H173: -6.253781895e-06 | J173: -0.0007421638652 | K173: -0.02075085453 | L173: 0.008304585172 | M173: 0.2347415398 | N173: 0.001311608439
A174: =IF('DF raw data'!I179="","",'DF raw data'!I179) -> -244 | B174: =IF('DF raw data'!J179="","",'DF raw data'!J179) -> -9.74112e-06 | C174: =IF('DF raw data'!K179="","",'DF raw data'!K179) -> 0.000153949 | D174: =IF('DF raw data'!L179="","",'DF raw data'!L179) -> -1.44423e-05 | F174: -9.77521392e-06 | G174: 0.0001544878215 | H174: -1.449284805e-05 | J174: -0.0007470514721 | K174: -0.02112438026 | L174: 0.008381829083 | M174: 0.2389324544 | N174: 0.001347015011
A175: =IF('DF raw data'!I180="","",'DF raw data'!I180) -> -243.5 | B175: =IF('DF raw data'!J180="","",'DF raw data'!J180) -> -1.64073e-05 | C175: =IF('DF raw data'!K180="","",'DF raw data'!K180) -> 0.000147352 | D175: =IF('DF raw data'!L180="","",'DF raw data'!L180) -> -9.59475e-06 | F175: -1.646472555e-05 | G175: 0.000147867732 | H175: -9.628331625e-06 | J175: -0.0007552838349 | K175: -0.02150202218 | L175: 0.008455762949 | M175: 0.2431603359 | N175: 0.001383050202
A176: =IF('DF raw data'!I181="","",'DF raw data'!I181) -> -243 | B176: =IF('DF raw data'!J181="","",'DF raw data'!J181) -> -7.17705e-06 | C176: =IF('DF raw data'!K181="","",'DF raw data'!K181) -> 0.000153284 | D176: =IF('DF raw data'!L181="","",'DF raw data'!L181) -> -1.70914e-05 | F176: -7.202169675e-06 | G176: 0.000153820494 | H176: -1.71512199e-05 | J176: -0.0007588849197 | K176: -0.02188146464 | L176: 0.008532673196 | M176: 0.2474266724 | N176: 0.001419741411
A177: =IF('DF raw data'!I182="","",'DF raw data'!I182) -> -242.5 | B177: =IF('DF raw data'!J182="","",'DF raw data'!J182) -> -1.44827e-05 | C177: =IF('DF raw data'!K182="","",'DF raw data'!K182) -> 0.000154266 | D177: =IF('DF raw data'!L182="","",'DF raw data'!L182) -> -1.37951e-05 | F177: -1.453338945e-05 | G177: 0.000154805931 | H177: -1.384338285e-05 | J177: -0.0007661516145 | K177: -0.02226454045 | L177: 0.008610076161 | M177: 0.2517317105 | N177: 0.001457101611
A178: =IF('DF raw data'!I183="","",'DF raw data'!I183) -> -242 | B178: =IF('DF raw data'!J183="","",'DF raw data'!J183) -> -1.73667e-05 | C178: =IF('DF raw data'!K183="","",'DF raw data'!K183) -> 0.000151998 | D178: =IF('DF raw data'!L183="","",'DF raw data'!L183) -> -1.12944e-05 | F178: -1.742748345e-05 | G178: 0.000152529993 | H178: -1.13339304e-05 | J178: -0.0007748653562 | K178: -0.02265197313 | L178: 0.008686341158 | M178: 0.2560748811 | N178: 0.00149512808
A179: =IF('DF raw data'!I184="","",'DF raw data'!I184) -> -241.5 | B179: =IF('DF raw data'!J184="","",'DF raw data'!J184) -> -1.44894e-05 | C179: =IF('DF raw data'!K184="","",'DF raw data'!K184) -> 0.000147559 | D179: =IF('DF raw data'!L184="","",'DF raw data'!L184) -> -3.43634e-06 | F179: -1.45401129e-05 | G179: 0.0001480754565 | H179: -3.44836719e-06 | J179: -0.0007821354126 | K179: -0.02304304083 | L179: 0.008760378886 | M179: 0.2604550706 | N179: 0.001533806067
A180: =IF('DF raw data'!I185="","",'DF raw data'!I185) -> -241 | B180: =IF('DF raw data'!J185="","",'DF raw data'!J185) -> -1.5577e-05 | C180: =IF('DF raw data'!K185="","",'DF raw data'!K185) -> 0.000137459 | D180: =IF('DF raw data'!L185="","",'DF raw data'!L185) -> -5.30209e-06 | F180: -1.56315195e-05 | G180: 0.0001379401065 | H180: -5.320647315e-06 | J180: -0.0007899511724 | K180: -0.02343801642 | L180: 0.008829348939 | M180: 0.264869745 | N180: 0.00157309678
A181: =IF('DF raw data'!I186="","",'DF raw data'!I186) -> -240.5 | B181: =IF('DF raw data'!J186="","",'DF raw data'!J186) -> -2.10188e-05 | C181: =IF('DF raw data'!K186="","",'DF raw data'!K186) -> 0.00014592 | D181: =IF('DF raw data'!L186="","",'DF raw data'!L186) -> -1.10955e-05 | F181: -2.10923658e-05 | G181: 0.00014643072 | H181: -1.113433425e-05 | J181: -0.0008004973553 | K181: -0.0238382651 | L181: 0.008902564299 | M181: 0.2693210272 | N181: 0.001613045003
A182: =IF('DF raw data'!I187="","",'DF raw data'!I187) -> -240 | B182: =IF('DF raw data'!J187="","",'DF raw data'!J187) -> -2.08267e-05 | C182: =IF('DF raw data'!K187="","",'DF raw data'!K187) -> 0.000148666 | D182: =IF('DF raw data'!L187="","",'DF raw data'!L187) -> -1.07084e-05 | F182: -2.089959345e-05 | G182: 0.000149186331 | H182: -1.07458794e-05 | J182: -0.000810947152 | K182: -0.02424373867 | L182: 0.008977157465 | M182: 0.2738096059 | N182: 0.001653668499
A183: =IF('DF raw data'!I188="","",'DF raw data'!I188) -> -239.5 | B183: =IF('DF raw data'!J188="","",'DF raw data'!J188) -> -1.60171e-05 | C183: =IF('DF raw data'!K188="","",'DF raw data'!K188) -> 0.000139529 | D183: =IF('DF raw data'!L188="","",'DF raw data'!L188) -> -1.83203e-05 | F183: -1.607315985e-05 | G183: 0.0001400173515 | H183: -1.838442105e-05 | J183: -0.0008189837319 | K183: -0.02465323054 | L183: 0.00904716614 | M183: 0.278333189 | N183: 0.001694929474
A184: =IF('DF raw data'!I189="","",'DF raw data'!I189) -> -239 | B184: =IF('DF raw data'!J189="","",'DF raw data'!J189) -> -2.08261e-05 | C184: =IF('DF raw data'!K189="","",'DF raw data'!K189) -> 0.000135451 | D184: =IF('DF raw data'!L189="","",'DF raw data'!L189) -> -1.17584e-05 | F184: -2.089899135e-05 | G184: 0.0001359250785 | H184: -1.17995544e-05 | J184: -0.0008294332276 | K184: -0.02506794715 | L184: 0.009115128679 | M184: 0.2828907533 | N184: 0.001736816239
A185: =IF('DF raw data'!I190="","",'DF raw data'!I190) -> -238.5 | B185: =IF('DF raw data'!J190="","",'DF raw data'!J190) -> -1.71854e-05 | C185: =IF('DF raw data'!K190="","",'DF raw data'!K190) -> 0.00014279 | D185: =IF('DF raw data'!L190="","",'DF raw data'!L190) -> 4.82433e-06 | F185: -1.72455489e-05 | G185: 0.000143289765 | H185: 4.841215155e-06 | J185: -0.0008380560021 | K185: -0.02548697515 | L185: 0.009186773562 | M185: 0.2874841401 | N185: 0.001779365812
A186: =IF('DF raw data'!I191="","",'DF raw data'!I191) -> -238 | B186: =IF('DF raw data'!J191="","",'DF raw data'!J191) -> -1.55152e-05 | C186: =IF('DF raw data'!K191="","",'DF raw data'!K191) -> 0.000143765 | D186: =IF('DF raw data'!L191="","",'DF raw data'!L191) -> -1.84558e-06 | F186: -1.55695032e-05 | G186: 0.0001442681775 | H186: -1.85203953e-06 | J186: -0.0008458407537 | K186: -0.02590989553 | L186: 0.009258907651 | M186: 0.2921135939 | N186: 0.001822587221
A187: =IF('DF raw data'!I192="","",'DF raw data'!I192) -> -237.5 | B187: =IF('DF raw data'!J192="","",'DF raw data'!J192) -> -1.41762e-05 | C187: =IF('DF raw data'!K192="","",'DF raw data'!K192) -> 0.000138488 | D187: =IF('DF raw data'!L192="","",'DF raw data'!L192) -> 7.51012e-06 | F187: -1.42258167e-05 | G187: 0.000138972708 | H187: 7.53640542e-06 | J187: -0.000852953662 | K187: -0.02633637236 | L187: 0.009328394005 | M187: 0.2967777909 | N187: 0.001866460453
A188: =IF('DF raw data'!I193="","",'DF raw data'!I193) -> -237 | B188: =IF('DF raw data'!J193="","",'DF raw data'!J193) -> 2.16781e-06 | C188: =IF('DF raw data'!K193="","",'DF raw data'!K193) -> 0.000139268 | D188: =IF('DF raw data'!L193="","",'DF raw data'!L193) -> -4.1198e-06 | F188: 2.175397335e-06 | G188: 0.000139755438 | H188: -4.1342193e-06 | J188: -0.0008518659634 | K188: -0.02676230534 | L188: 0.009398271724 | M188: 0.3014769268 | N188: 0.001910987047
A189: =IF('DF raw data'!I194="","",'DF raw data'!I194) -> -236.5 | B189: =IF('DF raw data'!J194="","",'DF raw data'!J194) -> -5.65759e-06 | C189: =IF('DF raw data'!K194="","",'DF raw data'!K194) -> 0.000142888 | D189: =IF('DF raw data'!L194="","",'DF raw data'!L194) -> 1.04503e-05 | F189: -5.677391565e-06 | G189: 0.000143388108 | H189: 1.048687605e-05 | J189: -0.0008547046591 | K189: -0.02718965767 | L189: 0.009469965778 | M189: 0.3062119097 | N189: 0.001956192433
A190: =IF('DF raw data'!I195="","",'DF raw data'!I195) -> -236 | B190: =IF('DF raw data'!J195="","",'DF raw data'!J195) -> -2.01258e-05 | C190: =IF('DF raw data'!K195="","",'DF raw data'!K195) -> 0.000150366 | D190: =IF('DF raw data'!L195="","",'DF raw data'!L195) -> -4.97727e-06 | F190: -2.01962403e-05 | G190: 0.000150892281 | H190: -4.994690445e-06 | J190: -0.0008648027793 | K190: -0.02762205906 | L190: 0.009545411918 | M190: 0.3109846156 | N190: 0.002002123819
A191: =IF('DF raw data'!I196="","",'DF raw data'!I196) -> -235.5 | B191: =IF('DF raw data'!J196="","",'DF raw data'!J196) -> -1.46812e-05 | C191: =IF('DF raw data'!K196="","",'DF raw data'!K196) -> 0.000151134 | D191: =IF('DF raw data'!L196="","",'DF raw data'!L196) -> -3.95025e-06 | F191: -1.47325842e-05 | G191: 0.000151662969 | H191: -3.964075875e-06 | J191: -0.0008721690714 | K191: -0.0280581436 | L191: 0.009621243403 | M191: 0.3157952373 | N191: 0.002048788321
A192: =IF('DF raw data'!I197="","",'DF raw data'!I197) -> -235 | B192: =IF('DF raw data'!J197="","",'DF raw data'!J197) -> -1.37778e-05 | C192: =IF('DF raw data'!K197="","",'DF raw data'!K197) -> 0.000140983 | D192: =IF('DF raw data'!L197="","",'DF raw data'!L197) -> -1.39323e-05 | F192: =(1-$G$1*($B$49-$G$2))*B192 -> -1.38260223e-05 | G192: 0.0001414764405 | H192: -1.398106305e-05 | J192: =F192*$G$3+J191 -> -0.0008790820825 | K192: =J192*$G$3+K191 -> -0.02849768464 | L192: =G192*$G$3+L191 -> 0.009691981623 | M192: =L192*$G$3+M191 -> 0.3206412281 | N192: =(J192^2+L192^2)*$G$3+N191 -> 0.002096141967
A193: =IF('DF raw data'!I198="","",'DF raw data'!I198) -> -234.5 | B193: =IF('DF raw data'!J198="","",'DF raw data'!J198) -> -1.99966e-05 | C193: =IF('DF raw data'!K198="","",'DF raw data'!K198) -> 0.000136858 | D193: =IF('DF raw data'!L198="","",'DF raw data'!L198) -> -6.80475e-06 | F193: -2.00665881e-05 | G193: 0.000137337003 | H193: -6.828566625e-06 | J193: -0.0008891153766 | K193: -0.02894224233 | L193: 0.009760650124 | M193: 0.3255215532 | N193: 0.002144172376
A194: =IF('DF raw data'!I199="","",'DF raw data'!I199) -> -234 | B194: =IF('DF raw data'!J199="","",'DF raw data'!J199) -> -2.71688e-05 | C194: =IF('DF raw data'!K199="","",'DF raw data'!K199) -> 0.000143799 | D194: =IF('DF raw data'!L199="","",'DF raw data'!L199) -> -1.09034e-05 | F194: -2.72638908e-05 | G194: 0.0001443022965 | H194: -1.09415619e-05 | J194: -0.000902747322 | K194: -0.02939361599 | L194: 0.009832801273 | M194: 0.3304379538 | N194: 0.002192921843
A195: =IF('DF raw data'!I200="","",'DF raw data'!I200) -> -233.5 | B195: =IF('DF raw data'!J200="","",'DF raw data'!J200) -> -2.18543e-05 | C195: =IF('DF raw data'!K200="","",'DF raw data'!K200) -> 0.000141138 | D195: =IF('DF raw data'!L200="","",'DF raw data'!L200) -> -7.12542e-06 | F195: -2.193079005e-05 | G195: 0.000141631983 | H195: -7.15035897e-06 | J195: -0.000913712717 | K195: -0.02985047235 | L195: 0.009903617264 | M195: 0.3353897625 | N195: 0.002242380096
A196: =IF('DF raw data'!I201="","",'DF raw data'!I201) -> -233 | B196: =IF('DF raw data'!J201="","",'DF raw data'!J201) -> -2.81976e-05 | C196: =IF('DF raw data'!K201="","",'DF raw data'!K201) -> 0.000143136 | D196: =IF('DF raw data'!L201="","",'DF raw data'!L201) -> -5.07548e-06 | F196: -2.82962916e-05 | G196: 0.000143636976 | H196: -5.09324418e-06 | J196: -0.0009278608628 | K196: -0.03031440278 | L196: 0.009975435752 | M196: 0.3403774803 | N196: 0.002292565218
A197: =IF('DF raw data'!I202="","",'DF raw data'!I202) -> -232.5 | B197: =IF('DF raw data'!J202="","",'DF raw data'!J202) -> -2.87077e-05 | C197: =IF('DF raw data'!K202="","",'DF raw data'!K202) -> 0.000140539 | D197: =IF('DF raw data'!L202="","",'DF raw data'!L202) -> -9.04857e-06 | F197: -2.880817695e-05 | G197: 0.0001410308865 | H197: -9.080239995e-06 | J197: -0.0009422649513 | K197: -0.03078553525 | L197: 0.0100459512 | M197: 0.3454004559 | N197: 0.002343469717
A198: =IF('DF raw data'!I203="","",'DF raw data'!I203) -> -232 | B198: =IF('DF raw data'!J203="","",'DF raw data'!J203) -> -9.94041e-06 | C198: =IF('DF raw data'!K203="","",'DF raw data'!K203) -> 0.000135405 | D198: =IF('DF raw data'!L203="","",'DF raw data'!L203) -> -3.91218e-06 | F198: -9.975201435e-06 | G198: 0.0001358789175 | H198: -3.92587263e-06 | J198: -0.000947252552 | K198: -0.03125916153 | L198: 0.01011389065 | M198: 0.3504574013 | N198: 0.002395063753
A199: =IF('DF raw data'!I204="","",'DF raw data'!I204) -> -231.5 | B199: =IF('DF raw data'!J204="","",'DF raw data'!J204) -> -1.84596e-05 | C199: =IF('DF raw data'!K204="","",'DF raw data'!K204) -> 0.000137153 | D199: =IF('DF raw data'!L204="","",'DF raw data'!L204) -> -6.10059e-06 | F199: -1.85242086e-05 | G199: 0.0001376330355 | H199: -6.121942065e-06 | J199: -0.0009565146563 | K199: -0.03173741886 | L199: 0.01018270717 | M199: 0.3555487549 | N199: 0.002447364976
A200: =IF('DF raw data'!I205="","",'DF raw data'!I205) -> -231 | B200: =IF('DF raw data'!J205="","",'DF raw data'!J205) -> -2.21092e-05 | C200: =IF('DF raw data'!K205="","",'DF raw data'!K205) -> 0.000151564 | D200: =IF('DF raw data'!L205="","",'DF raw data'!L205) -> -8.86786e-06 | F200: -2.21865822e-05 | G200: 0.000152094474 | H200: -8.89889751e-06 | J200: -0.0009676079474 | K200: -0.03222122283 | L200: 0.01025875441 | M200: 0.3606781321 | N200: 0.002500454129
A201: =IF('DF raw data'!I206="","",'DF raw data'!I206) -> -230.5 | B201: =IF('DF raw data'!J206="","",'DF raw data'!J206) -> -2.48666e-05 | C201: =IF('DF raw data'!K206="","",'DF raw data'!K206) -> 0.000146241 | D201: =IF('DF raw data'!L206="","",'DF raw data'!L206) -> -5.1839e-06 | F201: -2.49536331e-05 | G201: 0.0001467528435 | H201: -5.20204365e-06 | J201: -0.000980084764 | K201: -0.03271126521 | L201: 0.01033213083 | M201: 0.3658441975 | N201: 0.002554310876
... 1061 more rows

Sheet 10 y=0.1
A1: =IF('DF raw data'!M1="","",'DF raw data'!M1) -> Number of header lines | B1: =IF('DF raw data'!N1="","",'DF raw data'!N1) -> 54 | C1: =IF('DF raw data'!O1="","",'DF raw data'!O1) ->  | D1: =IF('DF raw data'!P1="","",'DF raw data'!P1) ->  | F1: T_coeff | G1: -0.001 | H1: /degC | J1: ='10 y=-0.2'!J1 -> IBy total | K1: ='10 y=-0.2'!K1 -> -4.990286451 | L1: ='10 y=-0.2'!L1 -> muTm | R1: ='10 y=-0.2'!R1 -> DF ref | S1: ='10 y=-0.2'!S1 -> 1
A2: =IF('DF raw data'!M2="","",'DF raw data'!M2) -> Measured by | B2: =IF('DF raw data'!N2="","",'DF raw data'!N2) -> Danfysik | C2: =IF('DF raw data'!O2="","",'DF raw data'!O2) ->  | D2: =IF('DF raw data'!P2="","",'DF raw data'!P2) ->  | F2: Tcorr | G2: 20 | H2: degC | J2: JBy total | K2: =K1262 -> -5.86464582 | L2: muTm^2 | M2: =M1262 -> 5.116862896
A3: =IF('DF raw data'!M3="","",'DF raw data'!M3) -> Operator | B3: =IF('DF raw data'!N3="","",'DF raw data'!N3) -> PMHA | C3: =IF('DF raw data'!O3="","",'DF raw data'!O3) ->  | D3: =IF('DF raw data'!P3="","",'DF raw data'!P3) ->  | F3: Step | G3: =A63-A62 -> 0.5 | H3: mm | J3: PI total | K3: =N1262 -> 10608.13902 | L3: T^2mm^3
A4: =IF('DF raw data'!M4="","",'DF raw data'!M4) -> Data-time | B4: =IF('DF raw data'!N4="","",'DF raw data'!N4) -> 17-09-2024, 12:08:22 | C4: =IF('DF raw data'!O4="","",'DF raw data'!O4) ->  | D4: =IF('DF raw data'!P4="","",'DF raw data'!P4) -> 
A5: =IF('DF raw data'!M5="","",'DF raw data'!M5) -> Project | B5: =IF('DF raw data'!N5="","",'DF raw data'!N5) -> 504314 | C5: =IF('DF raw data'!O5="","",'DF raw data'!O5) ->  | D5: =IF('DF raw data'!P5="","",'DF raw data'!P5) -> 
A6: =IF('DF raw data'!M6="","",'DF raw data'!M6) -> Magnet type | B6: =IF('DF raw data'!N6="","",'DF raw data'!N6) -> Dipole | C6: =IF('DF raw data'!O6="","",'DF raw data'!O6) ->  | D6: =IF('DF raw data'!P6="","",'DF raw data'!P6) -> 
A7: =IF('DF raw data'!M7="","",'DF raw data'!M7) -> Magnet nr. | B7: =IF('DF raw data'!N7="","",'DF raw data'!N7) -> 2410097 | C7: =IF('DF raw data'!O7="","",'DF raw data'!O7) ->  | D7: =IF('DF raw data'!P7="","",'DF raw data'!P7) -> 
A8: =IF('DF raw data'!M8="","",'DF raw data'!M8) -> Meas. number | B8: =IF('DF raw data'!N8="","",'DF raw data'!N8) -> 522 | C8: =IF('DF raw data'!O8="","",'DF raw data'!O8) ->  | D8: =IF('DF raw data'!P8="","",'DF raw data'!P8) -> 
A9: =IF('DF raw data'!M9="","",'DF raw data'!M9) -> Add. info | B9: =IF('DF raw data'!N9="","",'DF raw data'!N9) -> Y-alignment scan 4) | C9: =IF('DF raw data'!O9="","",'DF raw data'!O9) ->  | D9: =IF('DF raw data'!P9="","",'DF raw data'!P9) -> 
A10: =IF('DF raw data'!M10="","",'DF raw data'!M10) -> Device | B10: =IF('DF raw data'!N10="","",'DF raw data'!N10) -> (HAL) HALL-PROBE | C10: =IF('DF raw data'!O10="","",'DF raw data'!O10) ->  | D10: =IF('DF raw data'!P10="","",'DF raw data'!P10) -> 
A11: =IF('DF raw data'!M11="","",'DF raw data'!M11) -> Goal | B11: =IF('DF raw data'!N11="","",'DF raw data'!N11) -> (AXI) AXis Integral (Line, EFB) | C11: =IF('DF raw data'!O11="","",'DF raw data'!O11) ->  | D11: =IF('DF raw data'!P11="","",'DF raw data'!P11) -> 
A12: =IF('DF raw data'!M12="","",'DF raw data'!M12) -> Power supply mode | B12: =IF('DF raw data'!N12="","",'DF raw data'!N12) -> (PM) Permanent Magnet (no MPS in use) | C12: =IF('DF raw data'!O12="","",'DF raw data'!O12) ->  | D12: =IF('DF raw data'!P12="","",'DF raw data'!P12) -> 
A13: =IF('DF raw data'!M13="","",'DF raw data'!M13) -> Data format | B13: =IF('DF raw data'!N13="","",'DF raw data'!N13) -> Raw data text file | C13: =IF('DF raw data'!O13="","",'DF raw data'!O13) ->  | D13: =IF('DF raw data'!P13="","",'DF raw data'!P13) -> 
A14: =IF('DF raw data'!M14="","",'DF raw data'!M14) -> Direction of the pos. x-axis | B14: =IF('DF raw data'!N14="","",'DF raw data'!N14) -> See test program | C14: =IF('DF raw data'!O14="","",'DF raw data'!O14) ->  | D14: =IF('DF raw data'!P14="","",'DF raw data'!P14) -> 
A15: =IF('DF raw data'!M15="","",'DF raw data'!M15) -> Direction of the pos. y-axis | B15: =IF('DF raw data'!N15="","",'DF raw data'!N15) -> Vertical up | C15: =IF('DF raw data'!O15="","",'DF raw data'!O15) ->  | D15: =IF('DF raw data'!P15="","",'DF raw data'!P15) -> 
A16: =IF('DF raw data'!M16="","",'DF raw data'!M16) -> Direction of the pos. z-axis | B16: =IF('DF raw data'!N16="","",'DF raw data'!N16) -> See test program | C16: =IF('DF raw data'!O16="","",'DF raw data'!O16) ->  | D16: =IF('DF raw data'!P16="","",'DF raw data'!P16) -> 
A17: =IF('DF raw data'!M17="","",'DF raw data'!M17) -> Mapper type | B17: =IF('DF raw data'!N17="","",'DF raw data'!N17) -> Precision Hall Mapper | C17: =IF('DF raw data'!O17="","",'DF raw data'!O17) ->  | D17: =IF('DF raw data'!P17="","",'DF raw data'!P17) -> 
A18: =IF('DF raw data'!M18="","",'DF raw data'!M18) -> Mapper Danfysik Reg. Number | B18: =IF('DF raw data'!N18="","",'DF raw data'!N18) -> 2033-D (mapper 1) | C18: =IF('DF raw data'!O18="","",'DF raw data'!O18) ->  | D18: =IF('DF raw data'!P18="","",'DF raw data'!P18) -> 
A19: =IF('DF raw data'!M19="","",'DF raw data'!M19) -> Measurement consept | B19: =IF('DF raw data'!N19="","",'DF raw data'!N19) -> Square line grid | C19: =IF('DF raw data'!O19="","",'DF raw data'!O19) ->  | D19: =IF('DF raw data'!P19="","",'DF raw data'!P19) -> 
A20: =IF('DF raw data'!M20="","",'DF raw data'!M20) -> Mode | B20: =IF('DF raw data'!N20="","",'DF raw data'!N20) -> On-the-fly measurement | C20: =IF('DF raw data'!O20="","",'DF raw data'!O20) ->  | D20: =IF('DF raw data'!P20="","",'DF raw data'!P20) -> 
A21: =IF('DF raw data'!M21="","",'DF raw data'!M21) ->  | B21: =IF('DF raw data'!N21="","",'DF raw data'!N21) ->  | C21: =IF('DF raw data'!O21="","",'DF raw data'!O21) ->  | D21: =IF('DF raw data'!P21="","",'DF raw data'!P21) -> 
A22: =IF('DF raw data'!M22="","",'DF raw data'!M22) -> Probe Name | B22: =IF('DF raw data'!N22="","",'DF raw data'!N22) -> ID12_By | C22: =IF('DF raw data'!O22="","",'DF raw data'!O22) ->  | D22: =IF('DF raw data'!P22="","",'DF raw data'!P22) -> 
A23: =IF('DF raw data'!M23="","",'DF raw data'!M23) -> Probe Type | B23: =IF('DF raw data'!N23="","",'DF raw data'!N23) -> DF_ID_3D_Bxyz | C23: =IF('DF raw data'!O23="","",'DF raw data'!O23) ->  | D23: =IF('DF raw data'!P23="","",'DF raw data'!P23) -> 
A24: =IF('DF raw data'!M24="","",'DF raw data'!M24) -> Probe Danfysik Reg. Number | B24: =IF('DF raw data'!N24="","",'DF raw data'!N24) -> 2277 | C24: =IF('DF raw data'!O24="","",'DF raw data'!O24) ->  | D24: =IF('DF raw data'!P24="","",'DF raw data'!P24) -> 
A25: =IF('DF raw data'!M25="","",'DF raw data'!M25) -> Probe Axis | B25: =IF('DF raw data'!N25="","",'DF raw data'!N25) -> By | C25: =IF('DF raw data'!O25="","",'DF raw data'!O25) ->  | D25: =IF('DF raw data'!P25="","",'DF raw data'!P25) -> 
A26: =IF('DF raw data'!M26="","",'DF raw data'!M26) -> Probe Current Supply | B26: =IF('DF raw data'!N26="","",'DF raw data'!N26) -> 1825-D | C26: =IF('DF raw data'!O26="","",'DF raw data'!O26) ->  | D26: =IF('DF raw data'!P26="","",'DF raw data'!P26) -> 
A27: =IF('DF raw data'!M27="","",'DF raw data'!M27) -> Probe Gain Correction | B27: =IF('DF raw data'!N27="","",'DF raw data'!N27) -> 0.99606 | C27: =IF('DF raw data'!O27="","",'DF raw data'!O27) ->  | D27: =IF('DF raw data'!P27="","",'DF raw data'!P27) -> 
A28: =IF('DF raw data'!M28="","",'DF raw data'!M28) -> Probe Offset Correction | B28: =IF('DF raw data'!N28="","",'DF raw data'!N28) -> 0.0027513 | C28: =IF('DF raw data'!O28="","",'DF raw data'!O28) ->  | D28: =IF('DF raw data'!P28="","",'DF raw data'!P28) -> 
A29: =IF('DF raw data'!M29="","",'DF raw data'!M29) -> DVM Number | B29: =IF('DF raw data'!N29="","",'DF raw data'!N29) -> 2 | C29: =IF('DF raw data'!O29="","",'DF raw data'!O29) ->  | D29: =IF('DF raw data'!P29="","",'DF raw data'!P29) -> 
A30: =IF('DF raw data'!M30="","",'DF raw data'!M30) -> DVM Type | B30: =IF('DF raw data'!N30="","",'DF raw data'!N30) -> K2701 | C30: =IF('DF raw data'!O30="","",'DF raw data'!O30) ->  | D30: =IF('DF raw data'!P30="","",'DF raw data'!P30) -> 
A31: =IF('DF raw data'!M31="","",'DF raw data'!M31) -> DVM Danfysik Reg. Number | B31: =IF('DF raw data'!N31="","",'DF raw data'!N31) -> 1743-D | C31: =IF('DF raw data'!O31="","",'DF raw data'!O31) ->  | D31: =IF('DF raw data'!P31="","",'DF raw data'!P31) -> 
A32: =IF('DF raw data'!M32="","",'DF raw data'!M32) -> Probe Name | B32: =IF('DF raw data'!N32="","",'DF raw data'!N32) -> ID12_Bx | C32: =IF('DF raw data'!O32="","",'DF raw data'!O32) ->  | D32: =IF('DF raw data'!P32="","",'DF raw data'!P32) -> 
A33: =IF('DF raw data'!M33="","",'DF raw data'!M33) -> Probe Type | B33: =IF('DF raw data'!N33="","",'DF raw data'!N33) -> DF_ID_3D_Bxyz | C33: =IF('DF raw data'!O33="","",'DF raw data'!O33) ->  | D33: =IF('DF raw data'!P33="","",'DF raw data'!P33) -> 
A34: =IF('DF raw data'!M34="","",'DF raw data'!M34) -> Probe Danfysik Reg. Number | B34: =IF('DF raw data'!N34="","",'DF raw data'!N34) -> 2277 | C34: =IF('DF raw data'!O34="","",'DF raw data'!O34) ->  | D34: =IF('DF raw data'!P34="","",'DF raw data'!P34) -> 
A35: =IF('DF raw data'!M35="","",'DF raw data'!M35) -> Probe Axis | B35: =IF('DF raw data'!N35="","",'DF raw data'!N35) -> Bx | C35: =IF('DF raw data'!O35="","",'DF raw data'!O35) ->  | D35: =IF('DF raw data'!P35="","",'DF raw data'!P35) -> 
A36: =IF('DF raw data'!M36="","",'DF raw data'!M36) -> Probe Current Supply | B36: =IF('DF raw data'!N36="","",'DF raw data'!N36) -> 1825-D | C36: =IF('DF raw data'!O36="","",'DF raw data'!O36) ->  | D36: =IF('DF raw data'!P36="","",'DF raw data'!P36) -> 
A37: =IF('DF raw data'!M37="","",'DF raw data'!M37) -> Probe Gain Correction | B37: =IF('DF raw data'!N37="","",'DF raw data'!N37) -> 1 | C37: =IF('DF raw data'!O37="","",'DF raw data'!O37) ->  | D37: =IF('DF raw data'!P37="","",'DF raw data'!P37) -> 
A38: =IF('DF raw data'!M38="","",'DF raw data'!M38) -> Probe Offset Correction | B38: =IF('DF raw data'!N38="","",'DF raw data'!N38) -> -0.17549 | C38: =IF('DF raw data'!O38="","",'DF raw data'!O38) ->  | D38: =IF('DF raw data'!P38="","",'DF raw data'!P38) -> 
A39: =IF('DF raw data'!M39="","",'DF raw data'!M39) -> DVM Number | B39: =IF('DF raw data'!N39="","",'DF raw data'!N39) -> 3 | C39: =IF('DF raw data'!O39="","",'DF raw data'!O39) ->  | D39: =IF('DF raw data'!P39="","",'DF raw data'!P39) -> 
A40: =IF('DF raw data'!M40="","",'DF raw data'!M40) -> DVM Type | B40: =IF('DF raw data'!N40="","",'DF raw data'!N40) -> K2701 | C40: =IF('DF raw data'!O40="","",'DF raw data'!O40) ->  | D40: =IF('DF raw data'!P40="","",'DF raw data'!P40) -> 
A41: =IF('DF raw data'!M41="","",'DF raw data'!M41) -> DVM Danfysik Reg. Number | B41: =IF('DF raw data'!N41="","",'DF raw data'!N41) -> 1744-D | C41: =IF('DF raw data'!O41="","",'DF raw data'!O41) ->  | D41: =IF('DF raw data'!P41="","",'DF raw data'!P41) -> 
A42: =IF('DF raw data'!M42="","",'DF raw data'!M42) -> Probe Name | B42: =IF('DF raw data'!N42="","",'DF raw data'!N42) -> ID12_Bz | C42: =IF('DF raw data'!O42="","",'DF raw data'!O42) ->  | D42: =IF('DF raw data'!P42="","",'DF raw data'!P42) -> 
A43: =IF('DF raw data'!M43="","",'DF raw data'!M43) -> Probe Type | B43: =IF('DF raw data'!N43="","",'DF raw data'!N43) -> DF_ID_3D_Bxyz | C43: =IF('DF raw data'!O43="","",'DF raw data'!O43) ->  | D43: =IF('DF raw data'!P43="","",'DF raw data'!P43) -> 
A44: =IF('DF raw data'!M44="","",'DF raw data'!M44) -> Probe Danfysik Reg. Number | B44: =IF('DF raw data'!N44="","",'DF raw data'!N44) -> 2277 | C44: =IF('DF raw data'!O44="","",'DF raw data'!O44) ->  | D44: =IF('DF raw data'!P44="","",'DF raw data'!P44) -> 
A45: =IF('DF raw data'!M45="","",'DF raw data'!M45) -> Probe Axis | B45: =IF('DF raw data'!N45="","",'DF raw data'!N45) -> Bz | C45: =IF('DF raw data'!O45="","",'DF raw data'!O45) ->  | D45: =IF('DF raw data'!P45="","",'DF raw data'!P45) -> 
A46: =IF('DF raw data'!M46="","",'DF raw data'!M46) -> Probe Current Supply | B46: =IF('DF raw data'!N46="","",'DF raw data'!N46) -> 1825-D | C46: =IF('DF raw data'!O46="","",'DF raw data'!O46) ->  | D46: =IF('DF raw data'!P46="","",'DF raw data'!P46) -> 
A47: =IF('DF raw data'!M47="","",'DF raw data'!M47) -> Probe Gain Correction | B47: =IF('DF raw data'!N47="","",'DF raw data'!N47) -> 1 | C47: =IF('DF raw data'!O47="","",'DF raw data'!O47) ->  | D47: =IF('DF raw data'!P47="","",'DF raw data'!P47) -> 
A48: =IF('DF raw data'!M53="","",'DF raw data'!M53) -> PS-Gap: | B48: =IF('DF raw data'!N53="","",'DF raw data'!N53) -> 10 | C48: =IF('DF raw data'!O53="","",'DF raw data'!O53) ->  | D48: =IF('DF raw data'!P53="","",'DF raw data'!P53) -> 
A49: =IF('DF raw data'!M54="","",'DF raw data'!M54) -> PS-Temperature: | B49: =IF('DF raw data'!N54="","",'DF raw data'!N54) -> 23.5 | C49: =IF('DF raw data'!O54="","",'DF raw data'!O54) ->  | D49: =IF('DF raw data'!P54="","",'DF raw data'!P54) -> 
A50: =IF('DF raw data'!M55="","",'DF raw data'!M55) -> PS-Encoder: | B50: =IF('DF raw data'!N55="","",'DF raw data'!N55) -> 19.6817 | C50: =IF('DF raw data'!O55="","",'DF raw data'!O55) ->  | D50: =IF('DF raw data'!P55="","",'DF raw data'!P55) -> 
A51: =IF('DF raw data'!M56="","",'DF raw data'!M56) ->  | B51: =IF('DF raw data'!N56="","",'DF raw data'!N56) ->  | C51: =IF('DF raw data'!O56="","",'DF raw data'!O56) ->  | D51: =IF('DF raw data'!P56="","",'DF raw data'!P56) -> 
A52: =IF('DF raw data'!M57="","",'DF raw data'!M57) -> Monitor-Index | B52: =IF('DF raw data'!N57="","",'DF raw data'!N57) -> [1,1,4] | C52: =IF('DF raw data'!O57="","",'DF raw data'!O57) ->  | D52: =IF('DF raw data'!P57="","",'DF raw data'!P57) -> 
A53: =IF('DF raw data'!M58="","",'DF raw data'!M58) ->  | B53: =IF('DF raw data'!N58="","",'DF raw data'!N58) ->  | C53: =IF('DF raw data'!O58="","",'DF raw data'!O58) ->  | D53: =IF('DF raw data'!P58="","",'DF raw data'!P58) -> 
A54: =IF('DF raw data'!M59="","",'DF raw data'!M59) -> Time [s] | B54: =IF('DF raw data'!N59="","",'DF raw data'!N59) -> Y [mm] | C54: =IF('DF raw data'!O59="","",'DF raw data'!O59) -> X [mm] | D54: =IF('DF raw data'!P59="","",'DF raw data'!P59) -> Nominal current [A]
A55: =IF('DF raw data'!M60="","",'DF raw data'!M60) ->  | B55: =IF('DF raw data'!N60="","",'DF raw data'!N60) ->  | C55: =IF('DF raw data'!O60="","",'DF raw data'!O60) ->  | D55: =IF('DF raw data'!P60="","",'DF raw data'!P60) -> 
A56: =IF('DF raw data'!M61="","",'DF raw data'!M61) -> 207.6 | B56: =IF('DF raw data'!N61="","",'DF raw data'!N61) -> 31.66 | C56: =IF('DF raw data'!O61="","",'DF raw data'!O61) -> 302.3 | D56: =IF('DF raw data'!P61="","",'DF raw data'!P61) -> 0
A57: =IF('DF raw data'!M62="","",'DF raw data'!M62) ->  | B57: =IF('DF raw data'!N62="","",'DF raw data'!N62) ->  | C57: =IF('DF raw data'!O62="","",'DF raw data'!O62) ->  | D57: =IF('DF raw data'!P62="","",'DF raw data'!P62) -> 
A58: =IF('DF raw data'!M63="","",'DF raw data'!M63) -> Measurement-Index | B58: =IF('DF raw data'!N63="","",'DF raw data'!N63) -> [1,1,1201,2] | C58: =IF('DF raw data'!O63="","",'DF raw data'!O63) ->  | D58: =IF('DF raw data'!P63="","",'DF raw data'!P63) -> 
A59: =IF('DF raw data'!M64="","",'DF raw data'!M64) ->  | B59: =IF('DF raw data'!N64="","",'DF raw data'!N64) ->  | C59: =IF('DF raw data'!O64="","",'DF raw data'!O64) ->  | D59: =IF('DF raw data'!P64="","",'DF raw data'!P64) -> 
A60: =IF('DF raw data'!M65="","",'DF raw data'!M65) -> Z [mm] | B60: By [T] | C60: Bx [T] | D60: Bz [T] | F60: By_corr | G60: Bx_corr | H60: Bz_corr | J60: Iy | K60: Jy | L60: Ix | M60: Jx | N60: PI
A62: =IF('DF raw data'!M67="","",'DF raw data'!M67) -> -300 | B62: =IF('DF raw data'!N67="","",'DF raw data'!N67) -> -1.364e-05 | C62: =IF('DF raw data'!O67="","",'DF raw data'!O67) -> 3.65775e-05 | D62: =IF('DF raw data'!P67="","",'DF raw data'!P67) -> -2.49137e-05 | F62: =(1-$G$1*($B$49))*B62 -> -1.396054e-05 | G62: =(1-$G$1*($B$49-$G$2))*C62 -> 3.670552125e-05 | H62: =(1-$G$1*($B$49-$G$2))*D62 -> -2.500089795e-05 | J62: =F62*$G$3 -> -6.98027e-06 | K62: =J62*$G$3 -> -3.490135e-06 | L62: =G62*$G$3 -> 1.835276062e-05 | M62: =L62*$G$3 -> 9.176380312e-06 | N62: =(J62^2+L62^2)*$G$3 -> 1.927739959e-10
A63: =IF('DF raw data'!M68="","",'DF raw data'!M68) -> -299.5 | B63: =IF('DF raw data'!N68="","",'DF raw data'!N68) -> -2.91468e-05 | C63: =IF('DF raw data'!O68="","",'DF raw data'!O68) -> 3.77922e-05 | D63: =IF('DF raw data'!P68="","",'DF raw data'!P68) -> -2.43328e-05 | F63: =(1-$G$1*($B$49-$G$2))*B63 -> -2.92488138e-05 | G63: =(1-$G$1*($B$49-$G$2))*C63 -> 3.79244727e-05 | H63: -2.44179648e-05 | J63: =F63*$G$3+J62 -> -2.16046769e-05 | K63: =J63*$G$3+K62 -> -1.429247345e-05 | L63: =G63*$G$3+L62 -> 3.731499698e-05 | M63: =L63*$G$3+M62 -> 2.78338788e-05 | N63: =(J63^2+L63^2)*$G$3+N62 -> 1.122359528e-09
A64: =IF('DF raw data'!M69="","",'DF raw data'!M69) -> -299 | B64: =IF('DF raw data'!N69="","",'DF raw data'!N69) -> -1.37697e-05 | C64: =IF('DF raw data'!O69="","",'DF raw data'!O69) -> 4.52121e-05 | D64: =IF('DF raw data'!P69="","",'DF raw data'!P69) -> -2.34763e-05 | F64: =(1-$G$1*($B$49-$G$2))*B64 -> -1.381789395e-05 | G64: 4.537034235e-05 | H64: -2.355846705e-05 | J64: =F64*$G$3+J63 -> -2.851362388e-05 | K64: =J64*$G$3+K63 -> -2.854928539e-05 | L64: =G64*$G$3+L63 -> 6.000016815e-05 | M64: =L64*$G$3+M63 -> 5.783396288e-05 | N64: =(J64^2+L64^2)*$G$3+N63 -> 3.32888299e-09
A65: =IF('DF raw data'!M70="","",'DF raw data'!M70) -> -298.5 | B65: =IF('DF raw data'!N70="","",'DF raw data'!N70) -> -3.08778e-05 | C65: =IF('DF raw data'!O70="","",'DF raw data'!O70) -> 5.15553e-05 | D65: =IF('DF raw data'!P70="","",'DF raw data'!P70) -> -2.27661e-05 | F65: -3.09858723e-05 | G65: 5.173574355e-05 | H65: -2.284578135e-05 | J65: -4.400656003e-05 | K65: -5.05525654e-05 | L65: 8.586803993e-05 | M65: 0.0001007679828 | N65: 7.983831793e-09
A66: =IF('DF raw data'!M71="","",'DF raw data'!M71) -> -298 | B66: =IF('DF raw data'!N71="","",'DF raw data'!N71) -> -1.95369e-05 | C66: =IF('DF raw data'!O71="","",'DF raw data'!O71) -> 4.83888e-05 | D66: =IF('DF raw data'!P71="","",'DF raw data'!P71) -> -2.25681e-05 | F66: -1.960527915e-05 | G66: 4.85581608e-05 | H66: -2.264708835e-05 | J66: -5.38091996e-05 | K66: -7.74571652e-05 | L66: 0.0001101471203 | M66: 0.000155841543 | N66: 1.549774083e-08
A67: =IF('DF raw data'!M72="","",'DF raw data'!M72) -> -297.5 | B67: =IF('DF raw data'!N72="","",'DF raw data'!N72) -> -1.3642e-05 | C67: =IF('DF raw data'!O72="","",'DF raw data'!O72) -> 5.10065e-05 | D67: =IF('DF raw data'!P72="","",'DF raw data'!P72) -> -2.28315e-05 | F67: -1.3689747e-05 | G67: 5.118502275e-05 | H67: -2.291141025e-05 | J67: -6.06540731e-05 | K67: -0.0001077842018 | L67: 0.0001357396317 | M67: 0.0002237113589 | N67: 2.654982293e-08
A68: =IF('DF raw data'!M73="","",'DF raw data'!M73) -> -297 | B68: =IF('DF raw data'!N73="","",'DF raw data'!N73) -> -2.92758e-05 | C68: =IF('DF raw data'!O73="","",'DF raw data'!O73) -> 4.90247e-05 | D68: =IF('DF raw data'!P73="","",'DF raw data'!P73) -> -2.29774e-05 | F68: -2.93782653e-05 | G68: 4.919628645e-05 | H68: -2.30578209e-05 | J68: -7.534320575e-05 | K68: -0.0001454558046 | L68: 0.0001603377749 | M68: 0.0003038802463 | N68: 4.224222329e-08
A69: =IF('DF raw data'!M74="","",'DF raw data'!M74) -> -296.5 | B69: =IF('DF raw data'!N74="","",'DF raw data'!N74) -> -1.25526e-05 | C69: =IF('DF raw data'!O74="","",'DF raw data'!O74) -> 4.82187e-05 | D69: =IF('DF raw data'!P74="","",'DF raw data'!P74) -> -2.33099e-05 | F69: -1.25965341e-05 | G69: 4.838746545e-05 | H69: -2.339148465e-05 | J69: -8.16414728e-05 | K69: -0.000186276541 | L69: 0.0001845315077 | M69: 0.0003961460001 | N69: 6.260082699e-08
A70: =IF('DF raw data'!M75="","",'DF raw data'!M75) -> -296 | B70: =IF('DF raw data'!N75="","",'DF raw data'!N75) -> -2.19711e-05 | C70: =IF('DF raw data'!O75="","",'DF raw data'!O75) -> 5.13825e-05 | D70: =IF('DF raw data'!P75="","",'DF raw data'!P75) -> -2.36583e-05 | F70: -2.204799885e-05 | G70: 5.156233875e-05 | H70: -2.374110405e-05 | J70: -9.266547223e-05 | K70: -0.0002326092771 | L70: 0.000210312677 | M70: 0.0005013023387 | N70: 8.900998292e-08
A71: =IF('DF raw data'!M76="","",'DF raw data'!M76) -> -295.5 | B71: =IF('DF raw data'!N76="","",'DF raw data'!N76) -> -2.95319e-05 | C71: =IF('DF raw data'!O76="","",'DF raw data'!O76) -> 5.91779e-05 | D71: =IF('DF raw data'!P76="","",'DF raw data'!P76) -> -2.32834e-05 | F71: -2.963526165e-05 | G71: 5.938502265e-05 | H71: -2.33648919e-05 | J71: -0.0001074831031 | K71: -0.0002863508287 | L71: 0.0002400051884 | M71: 0.0006213049328 | N71: 1.235875369e-07
A72: =IF('DF raw data'!M77="","",'DF raw data'!M77) -> -295 | B72: =IF('DF raw data'!N77="","",'DF raw data'!N77) -> -2.33174e-05 | C72: =IF('DF raw data'!O77="","",'DF raw data'!O77) -> 5.59236e-05 | D72: =IF('DF raw data'!P77="","",'DF raw data'!P77) -> -2.26704e-05 | F72: -2.33990109e-05 | G72: 5.61193326e-05 | H72: -2.27497464e-05 | J72: -0.0001191826085 | K72: -0.0003459421329 | L72: 0.0002680648547 | M72: 0.0007553373602 | N72: 1.666191671e-07
A73: =IF('DF raw data'!M78="","",'DF raw data'!M78) -> -294.5 | B73: =IF('DF raw data'!N78="","",'DF raw data'!N78) -> -2.09467e-05 | C73: =IF('DF raw data'!O78="","",'DF raw data'!O78) -> 5.10539e-05 | D73: =IF('DF raw data'!P78="","",'DF raw data'!P78) -> -2.25676e-05 | F73: -2.102001345e-05 | G73: 5.123258865e-05 | H73: -2.26465866e-05 | J73: -0.0001296926152 | K73: -0.0004107884405 | L73: 0.000293681149 | M73: 0.0009021779346 | N73: 2.181535629e-07
A74: =IF('DF raw data'!M79="","",'DF raw data'!M79) -> -294 | B74: =IF('DF raw data'!N79="","",'DF raw data'!N79) -> -2.24203e-05 | C74: =IF('DF raw data'!O79="","",'DF raw data'!O79) -> 4.4077e-05 | D74: =IF('DF raw data'!P79="","",'DF raw data'!P79) -> -2.24044e-05 | F74: -2.249877105e-05 | G74: 4.42312695e-05 | H74: -2.24828154e-05 | J74: -0.0001409420008 | K74: -0.0004812594409 | L74: 0.0003157967837 | M74: 0.001060076327 | N74: 2.77949691e-07
A75: =IF('DF raw data'!M80="","",'DF raw data'!M80) -> -293.5 | B75: =IF('DF raw data'!N80="","",'DF raw data'!N80) -> -2.42786e-05 | C75: =IF('DF raw data'!O80="","",'DF raw data'!O80) -> 4.31509e-05 | D75: =IF('DF raw data'!P80="","",'DF raw data'!P80) -> -2.21904e-05 | F75: -2.43635751e-05 | G75: 4.330192815e-05 | H75: -2.22680664e-05 | J75: -0.0001531237883 | K75: -0.0005578213351 | L75: 0.0003374477478 | M75: 0.0012288002 | N75: 3.466086296e-07
A76: =IF('DF raw data'!M81="","",'DF raw data'!M81) -> -293 | B76: =IF('DF raw data'!N81="","",'DF raw data'!N81) -> -7.1066e-06 | C76: =IF('DF raw data'!O81="","",'DF raw data'!O81) -> 4.31857e-05 | D76: =IF('DF raw data'!P81="","",'DF raw data'!P81) -> -2.28261e-05 | F76: -7.1314731e-06 | G76: 4.333684995e-05 | H76: -2.290599135e-05 | J76: -0.0001566895249 | K76: -0.0006361660975 | L76: 0.0003591161728 | M76: 0.001408358287 | N76: 4.233666459e-07
A77: =IF('DF raw data'!M82="","",'DF raw data'!M82) -> -292.5 | B77: =IF('DF raw data'!N82="","",'DF raw data'!N82) -> -2.15868e-05 | C77: =IF('DF raw data'!O82="","",'DF raw data'!O82) -> 4.81346e-05 | D77: =IF('DF raw data'!P82="","",'DF raw data'!P82) -> -2.35228e-05 | F77: -2.16623538e-05 | G77: 4.83030711e-05 | H77: -2.36051298e-05 | J77: -0.0001675207018 | K77: -0.0007199264484 | L77: 0.0003832677083 | M77: 0.001599992141 | N77: 5.108453068e-07
A78: =IF('DF raw data'!M83="","",'DF raw data'!M83) -> -292 | B78: =IF('DF raw data'!N83="","",'DF raw data'!N83) -> -2.04976e-05 | C78: =IF('DF raw data'!O83="","",'DF raw data'!O83) -> 4.07148e-05 | D78: =IF('DF raw data'!P83="","",'DF raw data'!P83) -> -2.33644e-05 | F78: -2.05693416e-05 | G78: 4.08573018e-05 | H78: -2.34461754e-05 | J78: -0.0001778053726 | K78: -0.0008088291346 | L78: 0.0004036963592 | M78: 0.001801840321 | N78: 6.081380573e-07
A79: =IF('DF raw data'!M84="","",'DF raw data'!M84) -> -291.5 | B79: =IF('DF raw data'!N84="","",'DF raw data'!N84) -> -2.31261e-05 | C79: =IF('DF raw data'!O84="","",'DF raw data'!O84) -> 3.99885e-05 | D79: =IF('DF raw data'!P84="","",'DF raw data'!P84) -> -2.10257e-05 | F79: -2.320704135e-05 | G79: 4.012845975e-05 | H79: -2.109928995e-05 | J79: -0.0001894088932 | K79: -0.0009035335812 | L79: 0.0004237605891 | M79: 0.002013720615 | N79: 7.158624401e-07
A80: =IF('DF raw data'!M85="","",'DF raw data'!M85) -> -291 | B80: =IF('DF raw data'!N85="","",'DF raw data'!N85) -> -1.48527e-05 | C80: =IF('DF raw data'!O85="","",'DF raw data'!O85) -> 4.29266e-05 | D80: =IF('DF raw data'!P85="","",'DF raw data'!P85) -> -3.32687e-05 | F80: -1.490468445e-05 | G80: 4.30768431e-05 | H80: -3.338514045e-05 | J80: -0.0001968612355 | K80: -0.001001964199 | L80: 0.0004452990106 | M80: 0.00223637012 | N80: 8.343852176e-07
A81: =IF('DF raw data'!M86="","",'DF raw data'!M86) -> -290.5 | B81: =IF('DF raw data'!N86="","",'DF raw data'!N86) -> -2.42843e-05 | C81: =IF('DF raw data'!O86="","",'DF raw data'!O86) -> 4.12128e-05 | D81: =IF('DF raw data'!P86="","",'DF raw data'!P86) -> -1.33982e-05 | F81: -2.436929505e-05 | G81: 4.13570448e-05 | H81: -1.34450937e-05 | J81: -0.000209045883 | K81: -0.00110648714 | L81: 0.000465977533 | M81: 0.002469358887 | N81: 9.648028388e-07
A82: =IF('DF raw data'!M87="","",'DF raw data'!M87) -> -290 | B82: =IF('DF raw data'!N87="","",'DF raw data'!N87) -> -2.30684e-05 | C82: =IF('DF raw data'!O87="","",'DF raw data'!O87) -> 5.18119e-05 | D82: =IF('DF raw data'!P87="","",'DF raw data'!P87) -> -1.14572e-05 | F82: -2.31491394e-05 | G82: 5.199324165e-05 | H82: -1.14973002e-05 | J82: -0.0002206204527 | K82: -0.001216797367 | L82: 0.0004919741539 | M82: 0.002715345964 | N82: 1.110158815e-06
A83: =IF('DF raw data'!M88="","",'DF raw data'!M88) -> -289.5 | B83: =IF('DF raw data'!N88="","",'DF raw data'!N88) -> -2.99094e-05 | C83: =IF('DF raw data'!O88="","",'DF raw data'!O88) -> 4.38904e-05 | D83: =IF('DF raw data'!P88="","",'DF raw data'!P88) -> -3.38481e-05 | F83: -3.00140829e-05 | G83: 4.40440164e-05 | H83: -3.396656835e-05 | J83: -0.0002356274941 | K83: -0.001334611114 | L83: 0.0005139961621 | M83: 0.002972344045 | N83: 1.270015e-06
A84: =IF('DF raw data'!M89="","",'DF raw data'!M89) -> -289 | B84: =IF('DF raw data'!N89="","",'DF raw data'!N89) -> -2.37669e-05 | C84: =IF('DF raw data'!O89="","",'DF raw data'!O89) -> 3.93259e-05 | D84: =IF('DF raw data'!P89="","",'DF raw data'!P89) -> -2.08081e-05 | F84: -2.385008415e-05 | G84: 3.946354065e-05 | H84: -2.088092835e-05 | J84: -0.0002475525362 | K84: -0.001458387382 | L84: 0.0005337279324 | M84: 0.003239208011 | N84: 1.443088882e-06
A85: =IF('DF raw data'!M90="","",'DF raw data'!M90) -> -288.5 | B85: =IF('DF raw data'!N90="","",'DF raw data'!N90) -> -1.59524e-05 | C85: =IF('DF raw data'!O90="","",'DF raw data'!O90) -> 5.46252e-05 | D85: =IF('DF raw data'!P90="","",'DF raw data'!P90) -> -1.72847e-05 | F85: -1.60082334e-05 | G85: 5.48163882e-05 | H85: -1.734519645e-05 | J85: -0.0002555566529 | K85: -0.001586165708 | L85: 0.0005611361265 | M85: 0.003519776074 | N85: 1.63318036e-06
A86: =IF('DF raw data'!M91="","",'DF raw data'!M91) -> -288 | B86: =IF('DF raw data'!N91="","",'DF raw data'!N91) -> -2.1009e-05 | C86: =IF('DF raw data'!O91="","",'DF raw data'!O91) -> 5.49508e-05 | D86: =IF('DF raw data'!P91="","",'DF raw data'!P91) -> -2.51695e-05 | F86: -2.10825315e-05 | G86: 5.51431278e-05 | H86: -2.525759325e-05 | J86: -0.0002660979187 | K86: -0.001719214668 | L86: 0.0005887076904 | M86: 0.00381412992 | N86: 1.841872783e-06
A87: =IF('DF raw data'!M92="","",'DF raw data'!M92) -> -287.5 | B87: =IF('DF raw data'!N92="","",'DF raw data'!N92) -> -2.16502e-05 | C87: =IF('DF raw data'!O92="","",'DF raw data'!O92) -> 4.57125e-05 | D87: =IF('DF raw data'!P92="","",'DF raw data'!P92) -> -2.42812e-05 | F87: -2.17259757e-05 | G87: 4.587249375e-05 | H87: -2.43661842e-05 | J87: -0.0002769609065 | K87: -0.001857695121 | L87: 0.0006116439373 | M87: 0.004119951888 | N87: 2.067280608e-06
A88: =IF('DF raw data'!M93="","",'DF raw data'!M93) -> -287 | B88: =IF('DF raw data'!N93="","",'DF raw data'!N93) -> -2.24832e-05 | C88: =IF('DF raw data'!O93="","",'DF raw data'!O93) -> 5.28855e-05 | D88: =IF('DF raw data'!P93="","",'DF raw data'!P93) -> -2.43536e-05 | F88: -2.25618912e-05 | G88: 5.307059925e-05 | H88: -2.44388376e-05 | J88: -0.0002882418521 | K88: -0.002001816047 | L88: 0.0006381792369 | M88: 0.004439041507 | N88: 2.31245866e-06
A89: =IF('DF raw data'!M94="","",'DF raw data'!M94) -> -286.5 | B89: =IF('DF raw data'!N94="","",'DF raw data'!N94) -> -2.70317e-05 | C89: =IF('DF raw data'!O94="","",'DF raw data'!O94) -> 5.53548e-05 | D89: =IF('DF raw data'!P94="","",'DF raw data'!P94) -> -2.52152e-05 | F89: -2.712631095e-05 | G89: 5.55485418e-05 | H89: -2.53034532e-05 | J89: -0.0003018050076 | K89: -0.002152718551 | L89: 0.0006659535078 | M89: 0.004772018261 | N89: 2.579748829e-06
A90: =IF('DF raw data'!M95="","",'DF raw data'!M95) -> -286 | B90: =IF('DF raw data'!N95="","",'DF raw data'!N95) -> -2.24212e-05 | C90: =IF('DF raw data'!O95="","",'DF raw data'!O95) -> 4.51429e-05 | D90: =IF('DF raw data'!P95="","",'DF raw data'!P95) -> -2.09703e-05 | F90: -2.24996742e-05 | G90: 4.530090015e-05 | H90: -2.104369605e-05 | J90: -0.0003130548447 | K90: -0.002309245973 | L90: 0.0006886039579 | M90: 0.00511632024 | N90: 2.865838202e-06
A91: =IF('DF raw data'!M96="","",'DF raw data'!M96) -> -285.5 | B91: =IF('DF raw data'!N96="","",'DF raw data'!N96) -> -2.37077e-05 | C91: =IF('DF raw data'!O96="","",'DF raw data'!O96) -> 4.09706e-05 | D91: =IF('DF raw data'!P96="","",'DF raw data'!P96) -> -1.34168e-05 | F91: -2.379067695e-05 | G91: 4.11139971e-05 | H91: -1.34637588e-05 | J91: -0.0003249501832 | K91: -0.002471721065 | L91: 0.0007091609564 | M91: 0.005470900718 | N91: 3.170089144e-06
A92: =IF('DF raw data'!M97="","",'DF raw data'!M97) -> -285 | B92: =IF('DF raw data'!N97="","",'DF raw data'!N97) -> -2.81912e-05 | C92: =IF('DF raw data'!O97="","",'DF raw data'!O97) -> 4.28637e-05 | D92: =IF('DF raw data'!P97="","",'DF raw data'!P97) -> -1.56747e-05 | F92: -2.82898692e-05 | G92: 4.301372295e-05 | H92: -1.572956145e-05 | J92: -0.0003390951178 | K92: -0.002641268624 | L92: 0.0007306678179 | M92: 0.005836234627 | N92: 3.494519623e-06
A93: =IF('DF raw data'!M98="","",'DF raw data'!M98) -> -284.5 | B93: =IF('DF raw data'!N98="","",'DF raw data'!N98) -> -1.76172e-05 | C93: =IF('DF raw data'!O98="","",'DF raw data'!O98) -> 5.31434e-05 | D93: =IF('DF raw data'!P98="","",'DF raw data'!P98) -> -1.88024e-05 | F93: -1.76788602e-05 | G93: 5.33294019e-05 | H93: -1.88682084e-05 | J93: -0.0003479345479 | K93: -0.002815235898 | L93: 0.0007573325188 | M93: 0.006214900886 | N93: 3.84182512e-06
A94: =IF('DF raw data'!M99="","",'DF raw data'!M99) -> -284 | B94: =IF('DF raw data'!N99="","",'DF raw data'!N99) -> -1.40263e-05 | C94: =IF('DF raw data'!O99="","",'DF raw data'!O99) -> 5.25976e-05 | D94: =IF('DF raw data'!P99="","",'DF raw data'!P99) -> -2.33761e-05 | F94: -1.407539205e-05 | G94: 5.27816916e-05 | H94: -2.345791635e-05 | J94: -0.0003549722439 | K94: -0.002992722019 | L94: 0.0007837233646 | M94: 0.006606762568 | N94: 4.211938923e-06
A95: =IF('DF raw data'!M100="","",'DF raw data'!M100) -> -283.5 | B95: =IF('DF raw data'!N100="","",'DF raw data'!N100) -> -1.67228e-05 | C95: =IF('DF raw data'!O100="","",'DF raw data'!O100) -> 5.78273e-05 | D95: =IF('DF raw data'!P100="","",'DF raw data'!P100) -> -1.4807e-05 | F95: -1.67813298e-05 | G95: 5.802969555e-05 | H95: -1.48588245e-05 | J95: -0.0003633629088 | K95: -0.003174403474 | L95: 0.0008127382124 | M95: 0.007013131675 | N95: 4.608226926e-06
A96: =IF('DF raw data'!M101="","",'DF raw data'!M101) -> -283 | B96: =IF('DF raw data'!N101="","",'DF raw data'!N101) -> -1.83159e-05 | C96: =IF('DF raw data'!O101="","",'DF raw data'!O101) -> 5.59537e-05 | D96: =IF('DF raw data'!P101="","",'DF raw data'!P101) -> -2.84866e-05 | F96: -1.838000565e-05 | G96: 5.614953795e-05 | H96: -2.85863031e-05 | J96: -0.0003725529116 | K96: -0.00336067993 | L96: 0.0008408129814 | M96: 0.007433538165 | N96: 5.031107997e-06
A97: =IF('DF raw data'!M102="","",'DF raw data'!M102) -> -282.5 | B97: =IF('DF raw data'!N102="","",'DF raw data'!N102) -> -3.12026e-05 | C97: =IF('DF raw data'!O102="","",'DF raw data'!O102) -> 5.77489e-05 | D97: =IF('DF raw data'!P102="","",'DF raw data'!P102) -> -1.56518e-05 | F97: -3.13118091e-05 | G97: 5.795102115e-05 | H97: -1.57065813e-05 | J97: -0.0003882088162 | K97: -0.003554784338 | L97: 0.000869788492 | M97: 0.007868432411 | N97: 5.48472705e-06
A98: =IF('DF raw data'!M103="","",'DF raw data'!M103) -> -282 | B98: =IF('DF raw data'!N103="","",'DF raw data'!N103) -> -1.52464e-05 | C98: =IF('DF raw data'!O103="","",'DF raw data'!O103) -> 6.08791e-05 | D98: =IF('DF raw data'!P103="","",'DF raw data'!P103) -> -1.90084e-05 | F98: -1.52997624e-05 | G98: 6.109217685e-05 | H98: -1.90749294e-05 | J98: -0.0003958586974 | K98: -0.003752713686 | L98: 0.0009003345804 | M98: 0.008318599702 | N98: 5.968380282e-06
A99: =IF('DF raw data'!M104="","",'DF raw data'!M104) -> -281.5 | B99: =IF('DF raw data'!N104="","",'DF raw data'!N104) -> -3.68946e-05 | C99: =IF('DF raw data'!O104="","",'DF raw data'!O104) -> 5.00457e-05 | D99: =IF('DF raw data'!P104="","",'DF raw data'!P104) -> -3.20515e-05 | F99: -3.70237311e-05 | G99: 5.022085995e-05 | H99: -3.216368025e-05 | J99: -0.0004143705629 | K99: -0.003959898968 | L99: 0.0009254450104 | M99: 0.008781322207 | N99: 6.482455997e-06
A100: =IF('DF raw data'!M105="","",'DF raw data'!M105) -> -281 | B100: =IF('DF raw data'!N105="","",'DF raw data'!N105) -> -2.4981e-05 | C100: =IF('DF raw data'!O105="","",'DF raw data'!O105) -> 4.2652e-05 | D100: =IF('DF raw data'!P105="","",'DF raw data'!P105) -> -2.6014e-05 | F100: -2.50684335e-05 | G100: 4.2801282e-05 | H100: -2.6105049e-05 | J100: -0.0004269047797 | K100: -0.004173351358 | L100: 0.0009468456514 | M100: 0.009254745032 | N100: 7.021838187e-06
A101: =IF('DF raw data'!M106="","",'DF raw data'!M106) -> -280.5 | B101: =IF('DF raw data'!N106="","",'DF raw data'!N106) -> -2.3253e-05 | C101: =IF('DF raw data'!O106="","",'DF raw data'!O106) -> 4.43283e-05 | D101: =IF('DF raw data'!P106="","",'DF raw data'!P106) -> -2.2937e-05 | F101: -2.33343855e-05 | G101: 4.448344905e-05 | H101: -2.30172795e-05 | J101: -0.0004385719724 | K101: -0.004392637344 | L101: 0.0009690873759 | M101: 0.00973928872 | N101: 7.587576045e-06
A102: =IF('DF raw data'!M107="","",'DF raw data'!M107) -> -280 | B102: =IF('DF raw data'!N107="","",'DF raw data'!N107) -> -3.03645e-05 | C102: =IF('DF raw data'!O107="","",'DF raw data'!O107) -> 5.30741e-05 | D102: =IF('DF raw data'!P107="","",'DF raw data'!P107) -> -2.39156e-05 | F102: -3.047077575e-05 | G102: 5.325985935e-05 | H102: -2.39993046e-05 | J102: -0.0004538073603 | K102: -0.004619541024 | L102: 0.0009957173056 | M102: 0.01023714737 | N102: 8.186273082e-06
A103: =IF('DF raw data'!M108="","",'DF raw data'!M108) -> -279.5 | B103: =IF('DF raw data'!N108="","",'DF raw data'!N108) -> -1.91513e-05 | C103: =IF('DF raw data'!O108="","",'DF raw data'!O108) -> 5.20898e-05 | D103: =IF('DF raw data'!P108="","",'DF raw data'!P108) -> -2.43837e-05 | F103: -1.921832955e-05 | G103: 5.22721143e-05 | H103: -2.446904295e-05 | J103: -0.0004634165251 | K103: -0.004851249287 | L103: 0.001021853363 | M103: 0.01074807405 | N103: 8.815742667e-06
A104: =IF('DF raw data'!M109="","",'DF raw data'!M109) -> -279 | B104: =IF('DF raw data'!N109="","",'DF raw data'!N109) -> -9.41735e-06 | C104: =IF('DF raw data'!O109="","",'DF raw data'!O109) -> 4.62292e-05 | D104: =IF('DF raw data'!P109="","",'DF raw data'!P109) -> -1.67263e-05 | F104: -9.450310725e-06 | G104: 4.63910022e-05 | H104: -1.678484205e-05 | J104: -0.0004681416804 | K104: -0.005085320127 | L104: 0.001045048864 | M104: 0.01127059849 | N104: 9.471384547e-06
A105: =IF('DF raw data'!M110="","",'DF raw data'!M110) -> -278.5 | B105: =IF('DF raw data'!N110="","",'DF raw data'!N110) -> -1.09506e-05 | C105: =IF('DF raw data'!O110="","",'DF raw data'!O110) -> 5.16687e-05 | D105: =IF('DF raw data'!P110="","",'DF raw data'!P110) -> -2.35589e-05 | F105: -1.09889271e-05 | G105: 5.184954045e-05 | H105: -2.364135615e-05 | J105: -0.000473636144 | K105: -0.005322138199 | L105: 0.001070973634 | M105: 0.0118060853 | N105: 1.015704241e-05
A106: =IF('DF raw data'!M111="","",'DF raw data'!M111) -> -278 | B106: =IF('DF raw data'!N111="","",'DF raw data'!N111) -> -2.0111e-05 | C106: =IF('DF raw data'!O111="","",'DF raw data'!O111) -> 5.41547e-05 | D106: =IF('DF raw data'!P111="","",'DF raw data'!P111) -> -2.66859e-05 | F106: -2.01813885e-05 | G106: 5.434424145e-05 | H106: -2.677930065e-05 | J106: -0.0004837268382 | K106: -0.005564001618 | L106: 0.001098145755 | M106: 0.01235515818 | N106: 1.087700028e-05
A107: =IF('DF raw data'!M112="","",'DF raw data'!M112) -> -277.5 | B107: =IF('DF raw data'!N112="","",'DF raw data'!N112) -> -2.42755e-05 | C107: =IF('DF raw data'!O112="","",'DF raw data'!O112) -> 3.95678e-05 | D107: =IF('DF raw data'!P112="","",'DF raw data'!P112) -> -2.68686e-05 | F107: -2.436046425e-05 | G107: 3.97062873e-05 | H107: -2.69626401e-05 | J107: -0.0004959070703 | K107: -0.005811955153 | L107: 0.001117998898 | M107: 0.01291415763 | N107: 1.162492296e-05
A108: =IF('DF raw data'!M113="","",'DF raw data'!M113) -> -277 | B108: =IF('DF raw data'!N113="","",'DF raw data'!N113) -> -2.08185e-05 | C108: =IF('DF raw data'!O113="","",'DF raw data'!O113) -> 4.25737e-05 | D108: =IF('DF raw data'!P113="","",'DF raw data'!P113) -> -2.26986e-05 | F108: -2.089136475e-05 | G108: 4.272270795e-05 | H108: -2.27780451e-05 | J108: -0.0005063527527 | K108: -0.006065131529 | L108: 0.001139360252 | M108: 0.01348383776 | N108: 1.240219041e-05
A109: =IF('DF raw data'!M114="","",'DF raw data'!M114) -> -276.5 | B109: =IF('DF raw data'!N114="","",'DF raw data'!N114) -> -2.9725e-05 | C109: =IF('DF raw data'!O114="","",'DF raw data'!O114) -> 4.91413e-05 | D109: =IF('DF raw data'!P114="","",'DF raw data'!P114) -> -2.19868e-05 | F109: -2.98290375e-05 | G109: 4.931329455e-05 | H109: -2.20637538e-05 | J109: -0.0005212672715 | K109: -0.006325765165 | L109: 0.0011640169 | M109: 0.01406584621 | N109: 1.321551787e-05
A110: =IF('DF raw data'!M115="","",'DF raw data'!M115) -> -276 | B110: =IF('DF raw data'!N115="","",'DF raw data'!N115) -> -2.35799e-05 | C110: =IF('DF raw data'!O115="","",'DF raw data'!O115) -> 4.88776e-05 | D110: =IF('DF raw data'!P115="","",'DF raw data'!P115) -> -1.30131e-05 | F110: -2.366242965e-05 | G110: 4.90486716e-05 | H110: -1.305864585e-05 | J110: -0.0005330984863 | K110: -0.006592314408 | L110: 0.001188541235 | M110: 0.01466011682 | N110: 1.406393e-05
A111: =IF('DF raw data'!M116="","",'DF raw data'!M116) -> -275.5 | B111: =IF('DF raw data'!N116="","",'DF raw data'!N116) -> -1.6209e-05 | C111: =IF('DF raw data'!O116="","",'DF raw data'!O116) -> 5.05642e-05 | D111: =IF('DF raw data'!P116="","",'DF raw data'!P116) -> -1.66997e-05 | F111: -1.62657315e-05 | G111: 5.07411747e-05 | H111: -1.675814895e-05 | J111: -0.000541231352 | K111: -0.006862930084 | L111: 0.001213911823 | M111: 0.01526707274 | N111: 1.494718664e-05
A112: =IF('DF raw data'!M117="","",'DF raw data'!M117) -> -275 | B112: =IF('DF raw data'!N117="","",'DF raw data'!N117) -> -1.91553e-05 | C112: =IF('DF raw data'!O117="","",'DF raw data'!O117) -> 4.6064e-05 | D112: =IF('DF raw data'!P117="","",'DF raw data'!P117) -> -1.82642e-05 | F112: -1.922234355e-05 | G112: 4.6225224e-05 | H112: -1.83281247e-05 | J112: -0.0005508425238 | K112: -0.007138351346 | L112: 0.001237024435 | M112: 0.01588558495 | N112: 1.586401511e-05
A113: =IF('DF raw data'!M118="","",'DF raw data'!M118) -> -274.5 | B113: =IF('DF raw data'!N118="","",'DF raw data'!N118) -> -1.95417e-05 | C113: =IF('DF raw data'!O118="","",'DF raw data'!O118) -> 4.65643e-05 | D113: =IF('DF raw data'!P118="","",'DF raw data'!P118) -> -1.51506e-05 | F113: -1.961009595e-05 | G113: 4.672727505e-05 | H113: -1.52036271e-05 | J113: -0.0005606475718 | K113: -0.007418675132 | L113: 0.001260388072 | M113: 0.01651577899 | N113: 1.681546701e-05
A114: =IF('DF raw data'!M119="","",'DF raw data'!M119) -> -274 | B114: =IF('DF raw data'!N119="","",'DF raw data'!N119) -> -2.54293e-05 | C114: =IF('DF raw data'!O119="","",'DF raw data'!O119) -> 4.13369e-05 | D114: =IF('DF raw data'!P119="","",'DF raw data'!P119) -> -2.6104e-05 | F114: -2.551830255e-05 | G114: 4.148157915e-05 | H114: -2.6195364e-05 | J114: -0.0005734067231 | K114: -0.007705378494 | L114: 0.001281128862 | M114: 0.01715634342 | N114: 1.780051023e-05
A115: =IF('DF raw data'!M120="","",'DF raw data'!M120) -> -273.5 | B115: =IF('DF raw data'!N120="","",'DF raw data'!N120) -> -1.83825e-05 | C115: =IF('DF raw data'!O120="","",'DF raw data'!O120) -> 4.0938e-05 | D115: =IF('DF raw data'!P120="","",'DF raw data'!P120) -> -2.42098e-05 | F115: -1.844683875e-05 | G115: 4.1081283e-05 | H115: -2.42945343e-05 | J115: -0.0005826301424 | K115: -0.007996693565 | L115: 0.001301669503 | M115: 0.01780717817 | N115: 1.881741091e-05
A116: =IF('DF raw data'!M121="","",'DF raw data'!M121) -> -273 | B116: =IF('DF raw data'!N121="","",'DF raw data'!N121) -> -1.95953e-05 | C116: =IF('DF raw data'!O121="","",'DF raw data'!O121) -> 4.98252e-05 | D116: =IF('DF raw data'!P121="","",'DF raw data'!P121) -> -3.15503e-05 | F116: -1.966388355e-05 | G116: 4.99995882e-05 | H116: -3.166072605e-05 | J116: -0.0005924620842 | K116: -0.008292924607 | L116: 0.001326669298 | M116: 0.01847051282 | N116: 1.987294229e-05
A117: =IF('DF raw data'!M122="","",'DF raw data'!M122) -> -272.5 | B117: =IF('DF raw data'!N122="","",'DF raw data'!N122) -> -2.6266e-05 | C117: =IF('DF raw data'!O122="","",'DF raw data'!O122) -> 4.50863e-05 | D117: =IF('DF raw data'!P122="","",'DF raw data'!P122) -> -2.03749e-05 | F117: -2.6357931e-05 | G117: 4.524410205e-05 | H117: -2.044621215e-05 | J117: -0.0006056410497 | K117: -0.008595745132 | L117: 0.001349291349 | M117: 0.01914515849 | N117: 2.09666364e-05
A118: =IF('DF raw data'!M123="","",'DF raw data'!M123) -> -272 | B118: =IF('DF raw data'!N123="","",'DF raw data'!N123) -> -1.42824e-05 | C118: =IF('DF raw data'!O123="","",'DF raw data'!O123) -> 4.73162e-05 | D118: =IF('DF raw data'!P123="","",'DF raw data'!P123) -> -2.37915e-05 | F118: -1.43323884e-05 | G118: 4.74818067e-05 | H118: -2.387477025e-05 | J118: -0.0006128072439 | K118: -0.008902148754 | L118: 0.001373032252 | M118: 0.01983167462 | N118: 2.209701154e-05
A119: =IF('DF raw data'!M124="","",'DF raw data'!M124) -> -271.5 | B119: =IF('DF raw data'!N124="","",'DF raw data'!N124) -> -1.61997e-05 | C119: =IF('DF raw data'!O124="","",'DF raw data'!O124) -> 5.35571e-05 | D119: =IF('DF raw data'!P124="","",'DF raw data'!P124) -> -3.10534e-05 | F119: -1.625639895e-05 | G119: 5.374454985e-05 | H119: -3.11620869e-05 | J119: -0.0006209354434 | K119: -0.009212616475 | L119: 0.001399904527 | M119: 0.02053162688 | N119: 2.32696583e-05
A120: =IF('DF raw data'!M125="","",'DF raw data'!M125) -> -271 | B120: =IF('DF raw data'!N125="","",'DF raw data'!N125) -> -1.84505e-05 | C120: =IF('DF raw data'!O125="","",'DF raw data'!O125) -> 5.35863e-05 | D120: =IF('DF raw data'!P125="","",'DF raw data'!P125) -> -1.84916e-05 | F120: -1.851507675e-05 | G120: 5.377385205e-05 | H120: -1.85563206e-05 | J120: -0.0006301929818 | K120: -0.009527712966 | L120: 0.001426791453 | M120: 0.02124502261 | N120: 2.448609682e-05
A121: =IF('DF raw data'!M126="","",'DF raw data'!M126) -> -270.5 | B121: =IF('DF raw data'!N126="","",'DF raw data'!N126) -> -2.01186e-05 | C121: =IF('DF raw data'!O126="","",'DF raw data'!O126) -> 4.82926e-05 | D121: =IF('DF raw data'!P126="","",'DF raw data'!P126) -> -1.48403e-05 | F121: -2.01890151e-05 | G121: 4.84616241e-05 | H121: -1.489224105e-05 | J121: -0.0006402874893 | K121: -0.009847856711 | L121: 0.001451022265 | M121: 0.02197053374 | N121: 2.574381366e-05
A122: =IF('DF raw data'!M127="","",'DF raw data'!M127) -> -270 | B122: =IF('DF raw data'!N127="","",'DF raw data'!N127) -> -1.92868e-05 | C122: =IF('DF raw data'!O127="","",'DF raw data'!O127) -> 4.86142e-05 | D122: =IF('DF raw data'!P127="","",'DF raw data'!P127) -> -1.30849e-05 | F122: -1.93543038e-05 | G122: 4.87843497e-05 | H122: -1.313069715e-05 | J122: -0.0006499646412 | K122: -0.01017283903 | L122: 0.00147541444 | M122: 0.02270824096 | N122: 2.704346456e-05
A123: =IF('DF raw data'!M128="","",'DF raw data'!M128) -> -269.5 | B123: =IF('DF raw data'!N128="","",'DF raw data'!N128) -> -2.58122e-05 | C123: =IF('DF raw data'!O128="","",'DF raw data'!O128) -> 4.92711e-05 | D123: =IF('DF raw data'!P128="","",'DF raw data'!P128) -> -2.87547e-05 | F123: -2.59025427e-05 | G123: 4.944354885e-05 | H123: -2.885534145e-05 | J123: -0.0006629159126 | K123: -0.01050429699 | L123: 0.001500136214 | M123: 0.02345830907 | N123: 2.838839765e-05
A124: =IF('DF raw data'!M129="","",'DF raw data'!M129) -> -269 | B124: =IF('DF raw data'!N129="","",'DF raw data'!N129) -> -1.8328e-05 | C124: =IF('DF raw data'!O129="","",'DF raw data'!O129) -> 4.82482e-05 | D124: =IF('DF raw data'!P129="","",'DF raw data'!P129) -> -9.78877e-06 | F124: -1.8392148e-05 | G124: 4.84170687e-05 | H124: -9.823030695e-06 | J124: -0.0006721119866 | K124: -0.01084035298 | L124: 0.001524344749 | M124: 0.02422048144 | N124: 2.977607836e-05
A125: =IF('DF raw data'!M130="","",'DF raw data'!M130) -> -268.5 | B125: =IF('DF raw data'!N130="","",'DF raw data'!N130) -> -1.8444e-05 | C125: =IF('DF raw data'!O130="","",'DF raw data'!O130) -> 5.39597e-05 | D125: =IF('DF raw data'!P130="","",'DF raw data'!P130) -> -2.84678e-05 | F125: -1.8508554e-05 | G125: 5.414855895e-05 | H125: -2.85674373e-05 | J125: -0.0006813662636 | K125: -0.01118103611 | L125: 0.001551419028 | M125: 0.02499619096 | N125: 3.121165886e-05
A126: =IF('DF raw data'!M131="","",'DF raw data'!M131) -> -268 | B126: =IF('DF raw data'!N131="","",'DF raw data'!N131) -> -2.12699e-05 | C126: =IF('DF raw data'!O131="","",'DF raw data'!O131) -> 5.7203e-05 | D126: =IF('DF raw data'!P131="","",'DF raw data'!P131) -> -1.80246e-05 | F126: -2.134434465e-05 | G126: 5.74032105e-05 | H126: -1.80876861e-05 | J126: -0.0006920384359 | K126: -0.01152705533 | L126: 0.001580120633 | M126: 0.02578625127 | N126: 3.269950806e-05
A127: =IF('DF raw data'!M132="","",'DF raw data'!M132) -> -267.5 | B127: =IF('DF raw data'!N132="","",'DF raw data'!N132) -> -2.82563e-05 | C127: =IF('DF raw data'!O132="","",'DF raw data'!O132) -> 5.46746e-05 | D127: =IF('DF raw data'!P132="","",'DF raw data'!P132) -> -1.4208e-05 | F127: -2.835519705e-05 | G127: 5.48659611e-05 | H127: -1.4257728e-05 | J127: -0.0007062160344 | K127: -0.01188016335 | L127: 0.001607553614 | M127: 0.02659002808 | N127: 3.424099292e-05
A128: =IF('DF raw data'!M133="","",'DF raw data'!M133) -> -267 | B128: =IF('DF raw data'!N133="","",'DF raw data'!N133) -> -2.17772e-05 | C128: =IF('DF raw data'!O133="","",'DF raw data'!O133) -> 5.82065e-05 | D128: =IF('DF raw data'!P133="","",'DF raw data'!P133) -> -2.60404e-05 | F128: =(1-$G$1*($B$49-$G$2))*B128 -> -2.18534202e-05 | G128: 5.841022275e-05 | H128: -2.61315414e-05 | J128: =F128*$G$3+J127 -> -0.0007171427445 | K128: =J128*$G$3+K127 -> -0.01223873472 | L128: =G128*$G$3+L127 -> 0.001636758725 | M128: =L128*$G$3+M127 -> 0.02740840744 | N128: =(J128^2+L128^2)*$G$3+N127 -> 3.583762934e-05
A129: =IF('DF raw data'!M134="","",'DF raw data'!M134) -> -266.5 | B129: =IF('DF raw data'!N134="","",'DF raw data'!N134) -> -2.72863e-05 | C129: =IF('DF raw data'!O134="","",'DF raw data'!O134) -> 5.79651e-05 | D129: =IF('DF raw data'!P134="","",'DF raw data'!P134) -> -2.78041e-05 | F129: -2.738180205e-05 | G129: 5.816797785e-05 | H129: -2.790141435e-05 | J129: -0.0007308336455 | K129: -0.01260415154 | L129: 0.001665842714 | M129: 0.0282413288 | N129: 3.749220422e-05
A130: =IF('DF raw data'!M135="","",'DF raw data'!M135) -> -266 | B130: =IF('DF raw data'!N135="","",'DF raw data'!N135) -> -1.70999e-05 | C130: =IF('DF raw data'!O135="","",'DF raw data'!O135) -> 6.12772e-05 | D130: =IF('DF raw data'!P135="","",'DF raw data'!P135) -> -2.62301e-05 | F130: -1.715974965e-05 | G130: 6.14916702e-05 | H130: -2.632190535e-05 | J130: -0.0007394135204 | K130: -0.0129738583 | L130: 0.001696588549 | M130: 0.02908962308 | N130: 3.920477675e-05
A131: =IF('DF raw data'!M136="","",'DF raw data'!M136) -> -265.5 | B131: =IF('DF raw data'!N136="","",'DF raw data'!N136) -> -2.089e-05 | C131: =IF('DF raw data'!O136="","",'DF raw data'!O136) -> 5.49679e-05 | D131: =IF('DF raw data'!P136="","",'DF raw data'!P136) -> -1.09918e-05 | F131: -2.0963115e-05 | G131: 5.516028765e-05 | H131: -1.10302713e-05 | J131: -0.0007498950779 | K131: -0.01334880584 | L131: 0.001724168693 | M131: 0.02995170742 | N131: 4.09723269e-05
A132: =IF('DF raw data'!M137="","",'DF raw data'!M137) -> -265 | B132: =IF('DF raw data'!N137="","",'DF raw data'!N137) -> -1.90905e-05 | C132: =IF('DF raw data'!O137="","",'DF raw data'!O137) -> 5.24201e-05 | D132: =IF('DF raw data'!P137="","",'DF raw data'!P137) -> -1.95347e-05 | F132: -1.915731675e-05 | G132: 5.260357035e-05 | H132: -1.960307145e-05 | J132: -0.0007594737362 | K132: -0.01372854271 | L132: 0.001750470478 | M132: 0.03082694266 | N132: 4.279280053e-05
A133: =IF('DF raw data'!M138="","",'DF raw data'!M138) -> -264.5 | B133: =IF('DF raw data'!N138="","",'DF raw data'!N138) -> -1.01855e-05 | C133: =IF('DF raw data'!O138="","",'DF raw data'!O138) -> 5.85783e-05 | D133: =IF('DF raw data'!P138="","",'DF raw data'!P138) -> -1.77278e-05 | F133: -1.022114925e-05 | G133: 5.878332405e-05 | H133: -1.77898473e-05 | J133: -0.0007645843109 | K133: -0.01411083487 | L133: 0.00177986214 | M133: 0.03171687373 | N133: 4.466904973e-05
A134: =IF('DF raw data'!M139="","",'DF raw data'!M139) -> -264 | B134: =IF('DF raw data'!N139="","",'DF raw data'!N139) -> -2.05624e-05 | C134: =IF('DF raw data'!O139="","",'DF raw data'!O139) -> 5.37873e-05 | D134: =IF('DF raw data'!P139="","",'DF raw data'!P139) -> -2.24331e-05 | F134: -2.06343684e-05 | G134: 5.397555555e-05 | H134: -2.251161585e-05 | J134: -0.0007749014951 | K134: -0.01449828561 | L134: 0.001806849918 | M134: 0.03262029869 | N134: 4.660163921e-05
A135: =IF('DF raw data'!M140="","",'DF raw data'!M140) -> -263.5 | B135: =IF('DF raw data'!N140="","",'DF raw data'!N140) -> -2.40204e-05 | C135: =IF('DF raw data'!O140="","",'DF raw data'!O140) -> 5.59594e-05 | D135: =IF('DF raw data'!P140="","",'DF raw data'!P140) -> -2.50068e-05 | F135: -2.41044714e-05 | G135: 5.61552579e-05 | H135: -2.50943238e-05 | J135: -0.0007869537308 | K135: -0.01489176248 | L135: 0.001834927547 | M135: 0.03353776246 | N135: 4.859476685e-05
A136: =IF('DF raw data'!M141="","",'DF raw data'!M141) -> -263 | B136: =IF('DF raw data'!N141="","",'DF raw data'!N141) -> -1.56291e-05 | C136: =IF('DF raw data'!O141="","",'DF raw data'!O141) -> 5.58683e-05 | D136: =IF('DF raw data'!P141="","",'DF raw data'!P141) -> -2.16782e-05 | F136: -1.568380185e-05 | G136: 5.606383905e-05 | H136: -2.17540737e-05 | J136: -0.0007947956317 | K136: -0.01528916029 | L136: 0.001862959466 | M136: 0.0344692422 | N136: 5.064592588e-05
A137: =IF('DF raw data'!M142="","",'DF raw data'!M142) -> -262.5 | B137: =IF('DF raw data'!N142="","",'DF raw data'!N142) -> -1.15363e-05 | C137: =IF('DF raw data'!O142="","",'DF raw data'!O142) -> 5.56349e-05 | D137: =IF('DF raw data'!P142="","",'DF raw data'!P142) -> -9.82294e-06 | F137: -1.157667705e-05 | G137: 5.582962215e-05 | H137: -9.85732029e-06 | J137: -0.0008005839702 | K137: -0.01568945228 | L137: 0.001890874278 | M137: 0.03541467934 | N137: 5.2754096e-05
A138: =IF('DF raw data'!M143="","",'DF raw data'!M143) -> -262 | B138: =IF('DF raw data'!N143="","",'DF raw data'!N143) -> -1.92785e-05 | C138: =IF('DF raw data'!O143="","",'DF raw data'!O143) -> 5.54214e-05 | D138: =IF('DF raw data'!P143="","",'DF raw data'!P143) -> -2.57792e-05 | F138: -1.934597475e-05 | G138: 5.56153749e-05 | H138: -2.58694272e-05 | J138: -0.0008102569576 | K138: -0.01609458076 | L138: 0.001918681965 | M138: 0.03637402032 | N138: 5.492302441e-05
A139: =IF('DF raw data'!M144="","",'DF raw data'!M144) -> -261.5 | B139: =IF('DF raw data'!N144="","",'DF raw data'!N144) -> -1.88326e-05 | C139: =IF('DF raw data'!O144="","",'DF raw data'!O144) -> 5.74852e-05 | D139: =IF('DF raw data'!P144="","",'DF raw data'!P144) -> -2.20625e-05 | F139: -1.88985141e-05 | G139: 5.76863982e-05 | H139: -2.213971875e-05 | J139: -0.0008197062146 | K139: -0.01650443387 | L139: 0.001947525164 | M139: 0.0373477829 | N139: 5.715541068e-05
A140: =IF('DF raw data'!M145="","",'DF raw data'!M145) -> -261 | B140: =IF('DF raw data'!N145="","",'DF raw data'!N145) -> -2.49804e-05 | C140: =IF('DF raw data'!O145="","",'DF raw data'!O145) -> 5.17405e-05 | D140: =IF('DF raw data'!P145="","",'DF raw data'!P145) -> -2.68878e-05 | F140: -2.50678314e-05 | G140: 5.192159175e-05 | H140: -2.69819073e-05 | J140: -0.0008322401303 | K140: -0.01692055393 | L140: 0.00197348596 | M140: 0.03833452588 | N140: 5.944904591e-05
A141: =IF('DF raw data'!M146="","",'DF raw data'!M146) -> -260.5 | B141: =IF('DF raw data'!N146="","",'DF raw data'!N146) -> -2.15866e-05 | C141: =IF('DF raw data'!O146="","",'DF raw data'!O146) -> 4.24283e-05 | D141: =IF('DF raw data'!P146="","",'DF raw data'!P146) -> -2.37442e-05 | F141: -2.16621531e-05 | G141: 4.257679905e-05 | H141: -2.38273047e-05 | J141: -0.0008430712069 | K141: -0.01734208953 | L141: 0.001994774359 | M141: 0.03933191306 | N141: 6.179399281e-05
A142: =IF('DF raw data'!M147="","",'DF raw data'!M147) -> -260 | B142: =IF('DF raw data'!N147="","",'DF raw data'!N147) -> -2.10789e-05 | C142: =IF('DF raw data'!O147="","",'DF raw data'!O147) -> 4.17189e-05 | D142: =IF('DF raw data'!P147="","",'DF raw data'!P147) -> -1.63538e-05 | F142: -2.115267615e-05 | G142: 4.186491615e-05 | H142: -1.64110383e-05 | J142: -0.000853647545 | K142: -0.01776891331 | L142: 0.002015706818 | M142: 0.04033976647 | N142: 6.418988687e-05
A143: =IF('DF raw data'!M148="","",'DF raw data'!M148) -> -259.5 | B143: =IF('DF raw data'!N148="","",'DF raw data'!N148) -> -2.77451e-05 | C143: =IF('DF raw data'!O148="","",'DF raw data'!O148) -> 3.93924e-05 | D143: =IF('DF raw data'!P148="","",'DF raw data'!P148) -> -1.21455e-05 | F143: -2.784220785e-05 | G143: 3.95302734e-05 | H143: -1.218800925e-05 | J143: -0.0008675686489 | K143: -0.01820269763 | L143: 0.002035471954 | M143: 0.04135750245 | N143: 6.663779759e-05
A144: =IF('DF raw data'!M149="","",'DF raw data'!M149) -> -259 | B144: =IF('DF raw data'!N149="","",'DF raw data'!N149) -> -2.00491e-05 | C144: =IF('DF raw data'!O149="","",'DF raw data'!O149) -> 4.4302e-05 | D144: =IF('DF raw data'!P149="","",'DF raw data'!P149) -> -2.35831e-05 | F144: -2.011927185e-05 | G144: 4.4457057e-05 | H144: -2.366564085e-05 | J144: -0.0008776282848 | K144: -0.01864151177 | L144: 0.002057700483 | M144: 0.04238635269 | N144: 6.913997893e-05
A145: =IF('DF raw data'!M150="","",'DF raw data'!M150) -> -258.5 | B145: =IF('DF raw data'!N150="","",'DF raw data'!N150) -> -2.0751e-05 | C145: =IF('DF raw data'!O150="","",'DF raw data'!O150) -> 4.50742e-05 | D145: =IF('DF raw data'!P150="","",'DF raw data'!P150) -> -2.76728e-05 | F145: -2.08236285e-05 | G145: 4.52319597e-05 | H145: -2.77696548e-05 | J145: -0.0008880400991 | K145: -0.01908553182 | L145: 0.002080316463 | M145: 0.04342651092 | N145: 7.169814483e-05
